Workbook

Sheet Onderwerpen
A1: Onderwerpen
A3: Onderwerp | B3: Aantal vragen
A4: 1 Machines | B4: 11 | C4: =B4 -> 11 | D4: =C4+1 -> 12
A5: 2 Elektriciteit | B5: 7 | C5: =B5+B4 -> 18 | D5: =C5+2 -> 20
A6: 3 Medisch toezicht | B6: 16 | C6: =B6+C5 -> 34 | D6: =C6+3 -> 37
A7: 4 Lawaai | B7: 4 | C7: =B7+C6 -> 38 | D7: =C7+4 -> 42
A8: 5 Ergonomie werkpost | B8: 7 | C8: 45 | D8: =C8+5 -> 50
A9: 6 Psycho-sociale belasting | B9: 7 | C9: 52 | D9: =C9+6 -> 58
A10: 7 Sociale ruimten | B10: 7 | C10: 59 | D10: =C10+7 -> 66
A11: 8 Gevaarlijke producten | B11: 13 | C11: 72 | D11: =C11+8 -> 80
A12: 9 Brand en noodplan | B12: 14 | C12: 86 | D12: =C12+9 -> 95
A13: 10 Documenten | B13: 22 | C13: 108 | D13: =C13+10 -> 118
A14: 11 Opleiding-vorming-bewustzijn | B14: 8 | C14: 116 | D14: =C14+11 -> 127
A15: 12 Veiligheidssignalisatie | B15: 9 | C15: 125 | D15: =C15+12 -> 137
A16: 13 Organisatie mbt preventie | B16: 9 | C16: 134 | D16: =C16+13 -> 147
A17: 14 Trillingen | B17: 19 | C17: 153 | D17: =C17+14 -> 167
A18: 15 Explosieve atmosferen | B18: 13 | C18: 166 | D18: =C18+15 -> 181
A19: 16 Rookbeleid | B19: 9 | C19: 175 | D19: =C19+16 -> 191
A20: 17 Alcohol & drugbeleid | B20: 5 | C20: 180 | D20: =C20+17 -> 197
A21: 18 Arbeidsongevallen | B21: 5 | C21: 185 | D21: =C21+18 -> 203
A22: x | C22: 185 | D22: =C22+19 -> 204
A23: x | C23: 185

Sheet Resultaten
E1: Resultaten | K1: 2020 | Q1: =$K$1+1 -> 2021 | W1: =$Q$1+1 -> 2022 | AC1: =$W$1+1 -> 2023 | AI1: =$AC$1+1 -> 2024
E2: GPP
F3: Uitgevoerd door | L3: Uitgevoerd door | R3: Uitgevoerd door | X3: Uitgevoerd door | AD3: Uitgevoerd door
F4: Datum | L4: Datum | R4: Datum | X4: Datum | AD4: Datum
E5: Deze vragenlijst is niet limitatief! | F5: Tijdstip | L5: Tijdstip | R5: Tijdstip | X5: Tijdstip | AD5: Tijdstip
E7: Omschrijving | F7: Ja | G7: Nee | H7: NVT | I7: Opmerkingen | J7: ID Nr. | L7: Ja | M7: Nee | N7: NVT | O7: Opmerkingen | P7: ID Nr. | R7: Ja | S7: Nee | T7: NVT | U7: Opmerkingen | V7: ID Nr. | X7: Ja | Y7: Nee | Z7: NVT | AA7: Opmerkingen | AB7: ID Nr. | AD7: Ja | AE7: Nee | AF7: NVT | AG7: Opmerkingen | AH7: ID Nr.
A8: 0 | D8: =Onderwerpen!A4 -> 1 Machines
A9: =IFERROR(IF(A8=Onderwerpen!$C$23+19,"",A8+1),"") -> 1 | B9: =IF(C9<=Onderwerpen!$C$4,Onderwerpen!$A$4,IF(C9<=Onderwerpen!$C$5,Onderwerpen!$A$5,IF(C9<=Onderwerpen!$C$6,Onderwerpen!$A$6,IF(C9<=Onderwerpen!$C$7,Onderwerpen!$A$7,IF(C9<=Onderwerpen!$C$8,Onderwerpen!$A$8,IF(C9<=Onderwerpen!$C$9,Onderwerpen!$A$9,IF(C9<=Onderwerpen!C$10,Onderwerpen!$A$10,IF(C9<=Onderwerpen!C$11,Onderwerpen!$A$11,IF(C9<=Onderwerpen!C$12,Onderwerpen!$A$12,IF(C9<=Onderwerpen!C$13,Onderwerpen!$A$13,IF(C9<=Onderwerpen!$C$14,Onderwerpen!$A$14,IF(C9<=Onderwerpen!$C$15,Onderwerpen!$A$15,IF(C9<=Onderwerpen!$C$16,Onderwerpen!$A$16,IF(C9<=Onderwerpen!$C$17,Onderwerpen!$A$17,IF(C9<=Onderwerpen!$C$18,Onderwerpen!$A$18,IF(C9<=Onderwerpen!$C$19,Onderwerpen!$A$19,IF(C9<=Onderwerpen!$C$20,Onderwerpen!$A$20,IF(C9<=Onderwerpen!$C$21,Onderwerpen!$A$21,IF(C9<=Onderwerpen!$C$22,Onderwerpen!$A$22,IF(C9<=Onderwerpen!$C$23,Onderwerpen!$A$22,"")))))))))))))))))))) -> 1 Machines | C9: =IF(Onderwerpen!$B$4+1=A9,Onderwerpen!$A$5,IF(SUM(Onderwerpen!$B$4:$B$5)+2=A9,Onderwerpen!$A$6,IF(SUM(Onderwerpen!$B$4:$B$6)+3=A9,Onderwerpen!$A$7,IF(SUM(Onderwerpen!$B$4:$B$7)+4=A9,Onderwerpen!$A$8,IF(SUM(Onderwerpen!$B$4:$B$8)+5=A9,Onderwerpen!$A$9,IF(SUM(Onderwerpen!$B$4:$B$9)+6=A9,Onderwerpen!$A$10,IF(SUM(Onderwerpen!$B$4:$B$10)+7=A9,Onderwerpen!$A$11,IF(SUM(Onderwerpen!$B$4:$B$11)+8=A9,Onderwerpen!$A$12,IF(SUM(Onderwerpen!$B$4:$B$12)+9=A9,Onderwerpen!$A$13,IF(SUM(Onderwerpen!$B$4:$B$13)+10=A9,Onderwerpen!$A$14,IF(SUM(Onderwerpen!$B$4:$B$14)+11=A9,Onderwerpen!$A$15,IF(SUM(Onderwerpen!$B$4:$B$15)+12=A9,Onderwerpen!$A$16,IF(SUM(Onderwerpen!$B$4:$B$16)+13=A9,Onderwerpen!$A$17,IF(SUM(Onderwerpen!$B$4:$B$17)+14=A9,Onderwerpen!$A$18,IF(SUM(Onderwerpen!$B$4:$B$18)+15=A9,Onderwerpen!$A$19,IF(SUM(Onderwerpen!$B$4:$B$19)+16=A9,Onderwerpen!$A$20,IF(SUM(Onderwerpen!$B$4:$B$20)+17=A9,Onderwerpen!$A$21,IF(SUM(Onderwerpen!$B$4:$B$21)+18=A9,Onderwerpen!$A$22,IF(SUM(Onderwerpen!$B$4:$B$22)+19=A9,Onderwerpen!$A$23,IFERROR((IF(A9<Onderwerpen!$D$4,A9,IF(AND(A9>Onderwerpen!$D$4,A9<Onderwerpen!$D$5),A9-1,IF(AND(A9>Onderwerpen!$D$5,A9<Onderwerpen!$D$6),A9-2,IF(AND(A9>Onderwerpen!$D$6,A9<Onderwerpen!$D$7),A9-3,IF(AND(A9>Onderwerpen!$D$7,A9<Onderwerpen!$D$8),A9-4,IF(AND(A9>Onderwerpen!$D$8,A9<Onderwerpen!$D$9),A9-5,IF(AND(A9>Onderwerpen!$D$9,A9<Onderwerpen!$D$10),A9-6,IF(AND(A9>Onderwerpen!$D$10,A9<Onderwerpen!$D$11),A9-7,IF(AND(A9>Onderwerpen!$D$11,A9<Onderwerpen!$D$12),A9-8,IF(AND(A9>Onderwerpen!$D$12,A9<Onderwerpen!$D$13),A9-9,IF(AND(A9>Onderwerpen!$D$13,A9<Onderwerpen!$D$14),A9-10,IF(AND(A9>Onderwerpen!$D$14,A9<Onderwerpen!$D$15),A9-11,IF(AND(A9>Onderwerpen!$D$15,A9<Onderwerpen!$D$16),A9-12,IF(AND(A9>Onderwerpen!$D$16,A9<Onderwerpen!$D$17),A9-13,IF(AND(A9>Onderwerpen!$D$17,A9<Onderwerpen!$D$18),A9-14,IF(AND(A9>Onderwerpen!$D$18,A9<Onderwerpen!$D$19),A9-15,IF(AND(A9>Onderwerpen!$D$19,A9<Onderwerpen!$D$20),A9-16,IF(AND(A9>Onderwerpen!$D$20,A9<Onderwerpen!$D$21),A9-17,IF(AND(A9>Onderwerpen!$D$21,A9<Onderwerpen!$D$22),A9-18,IF(A9>Onderwerpen!$D$22,A9-19,"X"))))))))))))))))))))),"")))))))))))))))))))) -> 1 | D9: =IF(B9="",""&C9,LEFT(B9, FIND(" ",B9)-1) & "."&COUNTIF($B$8:B9,B9)) -> 1.1 | E9: Heeft u een geactualiseerde inventarislijst van alle machines? | G9: x | J9: =IF(G9="x",D9,"") -> 1.1 | P9: =IF(M9="x",D9,"") ->  | V9: =IF(S9="x",D9,"") ->  | AB9: =IF(Y9="x",D9,"") ->  | AH9: =IF(AE9="x",D9,"") -> 
A10: =IFERROR(IF(A9=Onderwerpen!$C$23+19,"",A9+1),"") -> 2 | B10: =IF(C10<=Onderwerpen!$C$4,Onderwerpen!$A$4,IF(C10<=Onderwerpen!$C$5,Onderwerpen!$A$5,IF(C10<=Onderwerpen!$C$6,Onderwerpen!$A$6,IF(C10<=Onderwerpen!$C$7,Onderwerpen!$A$7,IF(C10<=Onderwerpen!$C$8,Onderwerpen!$A$8,IF(C10<=Onderwerpen!$C$9,Onderwerpen!$A$9,IF(C10<=Onderwerpen!C$10,Onderwerpen!$A$10,IF(C10<=Onderwerpen!C$11,Onderwerpen!$A$11,IF(C10<=Onderwerpen!C$12,Onderwerpen!$A$12,IF(C10<=Onderwerpen!C$13,Onderwerpen!$A$13,IF(C10<=Onderwerpen!$C$14,Onderwerpen!$A$14,IF(C10<=Onderwerpen!$C$15,Onderwerpen!$A$15,IF(C10<=Onderwerpen!$C$16,Onderwerpen!$A$16,IF(C10<=Onderwerpen!$C$17,Onderwerpen!$A$17,IF(C10<=Onderwerpen!$C$18,Onderwerpen!$A$18,IF(C10<=Onderwerpen!$C$19,Onderwerpen!$A$19,IF(C10<=Onderwerpen!$C$20,Onderwerpen!$A$20,IF(C10<=Onderwerpen!$C$21,Onderwerpen!$A$21,IF(C10<=Onderwerpen!$C$22,Onderwerpen!$A$22,IF(C10<=Onderwerpen!$C$23,Onderwerpen!$A$22,"")))))))))))))))))))) -> 1 Machines | C10: =IF(Onderwerpen!$B$4+1=A10,Onderwerpen!$A$5,IF(SUM(Onderwerpen!$B$4:$B$5)+2=A10,Onderwerpen!$A$6,IF(SUM(Onderwerpen!$B$4:$B$6)+3=A10,Onderwerpen!$A$7,IF(SUM(Onderwerpen!$B$4:$B$7)+4=A10,Onderwerpen!$A$8,IF(SUM(Onderwerpen!$B$4:$B$8)+5=A10,Onderwerpen!$A$9,IF(SUM(Onderwerpen!$B$4:$B$9)+6=A10,Onderwerpen!$A$10,IF(SUM(Onderwerpen!$B$4:$B$10)+7=A10,Onderwerpen!$A$11,IF(SUM(Onderwerpen!$B$4:$B$11)+8=A10,Onderwerpen!$A$12,IF(SUM(Onderwerpen!$B$4:$B$12)+9=A10,Onderwerpen!$A$13,IF(SUM(Onderwerpen!$B$4:$B$13)+10=A10,Onderwerpen!$A$14,IF(SUM(Onderwerpen!$B$4:$B$14)+11=A10,Onderwerpen!$A$15,IF(SUM(Onderwerpen!$B$4:$B$15)+12=A10,Onderwerpen!$A$16,IF(SUM(Onderwerpen!$B$4:$B$16)+13=A10,Onderwerpen!$A$17,IF(SUM(Onderwerpen!$B$4:$B$17)+14=A10,Onderwerpen!$A$18,IF(SUM(Onderwerpen!$B$4:$B$18)+15=A10,Onderwerpen!$A$19,IF(SUM(Onderwerpen!$B$4:$B$19)+16=A10,Onderwerpen!$A$20,IF(SUM(Onderwerpen!$B$4:$B$20)+17=A10,Onderwerpen!$A$21,IF(SUM(Onderwerpen!$B$4:$B$21)+18=A10,Onderwerpen!$A$22,IF(SUM(Onderwerpen!$B$4:$B$22)+19=A10,Onderwerpen!$A$23,IFERROR((IF(A10<Onderwerpen!$D$4,A10,IF(AND(A10>Onderwerpen!$D$4,A10<Onderwerpen!$D$5),A10-1,IF(AND(A10>Onderwerpen!$D$5,A10<Onderwerpen!$D$6),A10-2,IF(AND(A10>Onderwerpen!$D$6,A10<Onderwerpen!$D$7),A10-3,IF(AND(A10>Onderwerpen!$D$7,A10<Onderwerpen!$D$8),A10-4,IF(AND(A10>Onderwerpen!$D$8,A10<Onderwerpen!$D$9),A10-5,IF(AND(A10>Onderwerpen!$D$9,A10<Onderwerpen!$D$10),A10-6,IF(AND(A10>Onderwerpen!$D$10,A10<Onderwerpen!$D$11),A10-7,IF(AND(A10>Onderwerpen!$D$11,A10<Onderwerpen!$D$12),A10-8,IF(AND(A10>Onderwerpen!$D$12,A10<Onderwerpen!$D$13),A10-9,IF(AND(A10>Onderwerpen!$D$13,A10<Onderwerpen!$D$14),A10-10,IF(AND(A10>Onderwerpen!$D$14,A10<Onderwerpen!$D$15),A10-11,IF(AND(A10>Onderwerpen!$D$15,A10<Onderwerpen!$D$16),A10-12,IF(AND(A10>Onderwerpen!$D$16,A10<Onderwerpen!$D$17),A10-13,IF(AND(A10>Onderwerpen!$D$17,A10<Onderwerpen!$D$18),A10-14,IF(AND(A10>Onderwerpen!$D$18,A10<Onderwerpen!$D$19),A10-15,IF(AND(A10>Onderwerpen!$D$19,A10<Onderwerpen!$D$20),A10-16,IF(AND(A10>Onderwerpen!$D$20,A10<Onderwerpen!$D$21),A10-17,IF(AND(A10>Onderwerpen!$D$21,A10<Onderwerpen!$D$22),A10-18,IF(A10>Onderwerpen!$D$22,A10-19,"X"))))))))))))))))))))),"")))))))))))))))))))) -> 2 | D10: =IF(B10="",""&C10,LEFT(B10, FIND(" ",B10)-1) & "."&COUNTIF($B$8:B10,B10)) -> 1.2 | E10: bestaan er algemene procedures voor het bedienen van machines? | G10: x | J10: =IF(G10="x",D10,"") -> 1.2 | P10: =IF(M10="x",D10,"") ->  | V10: =IF(S10="x",D10,"") ->  | AB10: =IF(Y10="x",D10,"") ->  | AH10: =IF(AE10="x",D10,"") -> 
A11: =IFERROR(IF(A10=Onderwerpen!$C$23+19,"",A10+1),"") -> 3 | B11: =IF(C11<=Onderwerpen!$C$4,Onderwerpen!$A$4,IF(C11<=Onderwerpen!$C$5,Onderwerpen!$A$5,IF(C11<=Onderwerpen!$C$6,Onderwerpen!$A$6,IF(C11<=Onderwerpen!$C$7,Onderwerpen!$A$7,IF(C11<=Onderwerpen!$C$8,Onderwerpen!$A$8,IF(C11<=Onderwerpen!$C$9,Onderwerpen!$A$9,IF(C11<=Onderwerpen!C$10,Onderwerpen!$A$10,IF(C11<=Onderwerpen!C$11,Onderwerpen!$A$11,IF(C11<=Onderwerpen!C$12,Onderwerpen!$A$12,IF(C11<=Onderwerpen!C$13,Onderwerpen!$A$13,IF(C11<=Onderwerpen!$C$14,Onderwerpen!$A$14,IF(C11<=Onderwerpen!$C$15,Onderwerpen!$A$15,IF(C11<=Onderwerpen!$C$16,Onderwerpen!$A$16,IF(C11<=Onderwerpen!$C$17,Onderwerpen!$A$17,IF(C11<=Onderwerpen!$C$18,Onderwerpen!$A$18,IF(C11<=Onderwerpen!$C$19,Onderwerpen!$A$19,IF(C11<=Onderwerpen!$C$20,Onderwerpen!$A$20,IF(C11<=Onderwerpen!$C$21,Onderwerpen!$A$21,IF(C11<=Onderwerpen!$C$22,Onderwerpen!$A$22,IF(C11<=Onderwerpen!$C$23,Onderwerpen!$A$22,"")))))))))))))))))))) -> 1 Machines | C11: =IF(Onderwerpen!$B$4+1=A11,Onderwerpen!$A$5,IF(SUM(Onderwerpen!$B$4:$B$5)+2=A11,Onderwerpen!$A$6,IF(SUM(Onderwerpen!$B$4:$B$6)+3=A11,Onderwerpen!$A$7,IF(SUM(Onderwerpen!$B$4:$B$7)+4=A11,Onderwerpen!$A$8,IF(SUM(Onderwerpen!$B$4:$B$8)+5=A11,Onderwerpen!$A$9,IF(SUM(Onderwerpen!$B$4:$B$9)+6=A11,Onderwerpen!$A$10,IF(SUM(Onderwerpen!$B$4:$B$10)+7=A11,Onderwerpen!$A$11,IF(SUM(Onderwerpen!$B$4:$B$11)+8=A11,Onderwerpen!$A$12,IF(SUM(Onderwerpen!$B$4:$B$12)+9=A11,Onderwerpen!$A$13,IF(SUM(Onderwerpen!$B$4:$B$13)+10=A11,Onderwerpen!$A$14,IF(SUM(Onderwerpen!$B$4:$B$14)+11=A11,Onderwerpen!$A$15,IF(SUM(Onderwerpen!$B$4:$B$15)+12=A11,Onderwerpen!$A$16,IF(SUM(Onderwerpen!$B$4:$B$16)+13=A11,Onderwerpen!$A$17,IF(SUM(Onderwerpen!$B$4:$B$17)+14=A11,Onderwerpen!$A$18,IF(SUM(Onderwerpen!$B$4:$B$18)+15=A11,Onderwerpen!$A$19,IF(SUM(Onderwerpen!$B$4:$B$19)+16=A11,Onderwerpen!$A$20,IF(SUM(Onderwerpen!$B$4:$B$20)+17=A11,Onderwerpen!$A$21,IF(SUM(Onderwerpen!$B$4:$B$21)+18=A11,Onderwerpen!$A$22,IF(SUM(Onderwerpen!$B$4:$B$22)+19=A11,Onderwerpen!$A$23,IFERROR((IF(A11<Onderwerpen!$D$4,A11,IF(AND(A11>Onderwerpen!$D$4,A11<Onderwerpen!$D$5),A11-1,IF(AND(A11>Onderwerpen!$D$5,A11<Onderwerpen!$D$6),A11-2,IF(AND(A11>Onderwerpen!$D$6,A11<Onderwerpen!$D$7),A11-3,IF(AND(A11>Onderwerpen!$D$7,A11<Onderwerpen!$D$8),A11-4,IF(AND(A11>Onderwerpen!$D$8,A11<Onderwerpen!$D$9),A11-5,IF(AND(A11>Onderwerpen!$D$9,A11<Onderwerpen!$D$10),A11-6,IF(AND(A11>Onderwerpen!$D$10,A11<Onderwerpen!$D$11),A11-7,IF(AND(A11>Onderwerpen!$D$11,A11<Onderwerpen!$D$12),A11-8,IF(AND(A11>Onderwerpen!$D$12,A11<Onderwerpen!$D$13),A11-9,IF(AND(A11>Onderwerpen!$D$13,A11<Onderwerpen!$D$14),A11-10,IF(AND(A11>Onderwerpen!$D$14,A11<Onderwerpen!$D$15),A11-11,IF(AND(A11>Onderwerpen!$D$15,A11<Onderwerpen!$D$16),A11-12,IF(AND(A11>Onderwerpen!$D$16,A11<Onderwerpen!$D$17),A11-13,IF(AND(A11>Onderwerpen!$D$17,A11<Onderwerpen!$D$18),A11-14,IF(AND(A11>Onderwerpen!$D$18,A11<Onderwerpen!$D$19),A11-15,IF(AND(A11>Onderwerpen!$D$19,A11<Onderwerpen!$D$20),A11-16,IF(AND(A11>Onderwerpen!$D$20,A11<Onderwerpen!$D$21),A11-17,IF(AND(A11>Onderwerpen!$D$21,A11<Onderwerpen!$D$22),A11-18,IF(A11>Onderwerpen!$D$22,A11-19,"X"))))))))))))))))))))),"")))))))))))))))))))) -> 3 | D11: =IF(B11="",""&C11,LEFT(B11, FIND(" ",B11)-1) & "."&COUNTIF($B$8:B11,B11)) -> 1.3 | E11: Bestaan er algemene procedures voor onderhoudswerken en herstellingen? | F11: x
A12: =IFERROR(IF(A11=Onderwerpen!$C$23+19,"",A11+1),"") -> 4 | B12: =IF(C12<=Onderwerpen!$C$4,Onderwerpen!$A$4,IF(C12<=Onderwerpen!$C$5,Onderwerpen!$A$5,IF(C12<=Onderwerpen!$C$6,Onderwerpen!$A$6,IF(C12<=Onderwerpen!$C$7,Onderwerpen!$A$7,IF(C12<=Onderwerpen!$C$8,Onderwerpen!$A$8,IF(C12<=Onderwerpen!$C$9,Onderwerpen!$A$9,IF(C12<=Onderwerpen!C$10,Onderwerpen!$A$10,IF(C12<=Onderwerpen!C$11,Onderwerpen!$A$11,IF(C12<=Onderwerpen!C$12,Onderwerpen!$A$12,IF(C12<=Onderwerpen!C$13,Onderwerpen!$A$13,IF(C12<=Onderwerpen!$C$14,Onderwerpen!$A$14,IF(C12<=Onderwerpen!$C$15,Onderwerpen!$A$15,IF(C12<=Onderwerpen!$C$16,Onderwerpen!$A$16,IF(C12<=Onderwerpen!$C$17,Onderwerpen!$A$17,IF(C12<=Onderwerpen!$C$18,Onderwerpen!$A$18,IF(C12<=Onderwerpen!$C$19,Onderwerpen!$A$19,IF(C12<=Onderwerpen!$C$20,Onderwerpen!$A$20,IF(C12<=Onderwerpen!$C$21,Onderwerpen!$A$21,IF(C12<=Onderwerpen!$C$22,Onderwerpen!$A$22,IF(C12<=Onderwerpen!$C$23,Onderwerpen!$A$22,"")))))))))))))))))))) -> 1 Machines | C12: =IF(Onderwerpen!$B$4+1=A12,Onderwerpen!$A$5,IF(SUM(Onderwerpen!$B$4:$B$5)+2=A12,Onderwerpen!$A$6,IF(SUM(Onderwerpen!$B$4:$B$6)+3=A12,Onderwerpen!$A$7,IF(SUM(Onderwerpen!$B$4:$B$7)+4=A12,Onderwerpen!$A$8,IF(SUM(Onderwerpen!$B$4:$B$8)+5=A12,Onderwerpen!$A$9,IF(SUM(Onderwerpen!$B$4:$B$9)+6=A12,Onderwerpen!$A$10,IF(SUM(Onderwerpen!$B$4:$B$10)+7=A12,Onderwerpen!$A$11,IF(SUM(Onderwerpen!$B$4:$B$11)+8=A12,Onderwerpen!$A$12,IF(SUM(Onderwerpen!$B$4:$B$12)+9=A12,Onderwerpen!$A$13,IF(SUM(Onderwerpen!$B$4:$B$13)+10=A12,Onderwerpen!$A$14,IF(SUM(Onderwerpen!$B$4:$B$14)+11=A12,Onderwerpen!$A$15,IF(SUM(Onderwerpen!$B$4:$B$15)+12=A12,Onderwerpen!$A$16,IF(SUM(Onderwerpen!$B$4:$B$16)+13=A12,Onderwerpen!$A$17,IF(SUM(Onderwerpen!$B$4:$B$17)+14=A12,Onderwerpen!$A$18,IF(SUM(Onderwerpen!$B$4:$B$18)+15=A12,Onderwerpen!$A$19,IF(SUM(Onderwerpen!$B$4:$B$19)+16=A12,Onderwerpen!$A$20,IF(SUM(Onderwerpen!$B$4:$B$20)+17=A12,Onderwerpen!$A$21,IF(SUM(Onderwerpen!$B$4:$B$21)+18=A12,Onderwerpen!$A$22,IF(SUM(Onderwerpen!$B$4:$B$22)+19=A12,Onderwerpen!$A$23,IFERROR((IF(A12<Onderwerpen!$D$4,A12,IF(AND(A12>Onderwerpen!$D$4,A12<Onderwerpen!$D$5),A12-1,IF(AND(A12>Onderwerpen!$D$5,A12<Onderwerpen!$D$6),A12-2,IF(AND(A12>Onderwerpen!$D$6,A12<Onderwerpen!$D$7),A12-3,IF(AND(A12>Onderwerpen!$D$7,A12<Onderwerpen!$D$8),A12-4,IF(AND(A12>Onderwerpen!$D$8,A12<Onderwerpen!$D$9),A12-5,IF(AND(A12>Onderwerpen!$D$9,A12<Onderwerpen!$D$10),A12-6,IF(AND(A12>Onderwerpen!$D$10,A12<Onderwerpen!$D$11),A12-7,IF(AND(A12>Onderwerpen!$D$11,A12<Onderwerpen!$D$12),A12-8,IF(AND(A12>Onderwerpen!$D$12,A12<Onderwerpen!$D$13),A12-9,IF(AND(A12>Onderwerpen!$D$13,A12<Onderwerpen!$D$14),A12-10,IF(AND(A12>Onderwerpen!$D$14,A12<Onderwerpen!$D$15),A12-11,IF(AND(A12>Onderwerpen!$D$15,A12<Onderwerpen!$D$16),A12-12,IF(AND(A12>Onderwerpen!$D$16,A12<Onderwerpen!$D$17),A12-13,IF(AND(A12>Onderwerpen!$D$17,A12<Onderwerpen!$D$18),A12-14,IF(AND(A12>Onderwerpen!$D$18,A12<Onderwerpen!$D$19),A12-15,IF(AND(A12>Onderwerpen!$D$19,A12<Onderwerpen!$D$20),A12-16,IF(AND(A12>Onderwerpen!$D$20,A12<Onderwerpen!$D$21),A12-17,IF(AND(A12>Onderwerpen!$D$21,A12<Onderwerpen!$D$22),A12-18,IF(A12>Onderwerpen!$D$22,A12-19,"X"))))))))))))))))))))),"")))))))))))))))))))) -> 4 | D12: =IF(B12="",""&C12,LEFT(B12, FIND(" ",B12)-1) & "."&COUNTIF($B$8:B12,B12)) -> 1.4 | E12: Bestaan er instructiekaarten voor alle machines en installaties? | F12: x
A13: =IFERROR(IF(A12=Onderwerpen!$C$23+19,"",A12+1),"") -> 5 | B13: =IF(C13<=Onderwerpen!$C$4,Onderwerpen!$A$4,IF(C13<=Onderwerpen!$C$5,Onderwerpen!$A$5,IF(C13<=Onderwerpen!$C$6,Onderwerpen!$A$6,IF(C13<=Onderwerpen!$C$7,Onderwerpen!$A$7,IF(C13<=Onderwerpen!$C$8,Onderwerpen!$A$8,IF(C13<=Onderwerpen!$C$9,Onderwerpen!$A$9,IF(C13<=Onderwerpen!C$10,Onderwerpen!$A$10,IF(C13<=Onderwerpen!C$11,Onderwerpen!$A$11,IF(C13<=Onderwerpen!C$12,Onderwerpen!$A$12,IF(C13<=Onderwerpen!C$13,Onderwerpen!$A$13,IF(C13<=Onderwerpen!$C$14,Onderwerpen!$A$14,IF(C13<=Onderwerpen!$C$15,Onderwerpen!$A$15,IF(C13<=Onderwerpen!$C$16,Onderwerpen!$A$16,IF(C13<=Onderwerpen!$C$17,Onderwerpen!$A$17,IF(C13<=Onderwerpen!$C$18,Onderwerpen!$A$18,IF(C13<=Onderwerpen!$C$19,Onderwerpen!$A$19,IF(C13<=Onderwerpen!$C$20,Onderwerpen!$A$20,IF(C13<=Onderwerpen!$C$21,Onderwerpen!$A$21,IF(C13<=Onderwerpen!$C$22,Onderwerpen!$A$22,IF(C13<=Onderwerpen!$C$23,Onderwerpen!$A$22,"")))))))))))))))))))) -> 1 Machines | C13: =IF(Onderwerpen!$B$4+1=A13,Onderwerpen!$A$5,IF(SUM(Onderwerpen!$B$4:$B$5)+2=A13,Onderwerpen!$A$6,IF(SUM(Onderwerpen!$B$4:$B$6)+3=A13,Onderwerpen!$A$7,IF(SUM(Onderwerpen!$B$4:$B$7)+4=A13,Onderwerpen!$A$8,IF(SUM(Onderwerpen!$B$4:$B$8)+5=A13,Onderwerpen!$A$9,IF(SUM(Onderwerpen!$B$4:$B$9)+6=A13,Onderwerpen!$A$10,IF(SUM(Onderwerpen!$B$4:$B$10)+7=A13,Onderwerpen!$A$11,IF(SUM(Onderwerpen!$B$4:$B$11)+8=A13,Onderwerpen!$A$12,IF(SUM(Onderwerpen!$B$4:$B$12)+9=A13,Onderwerpen!$A$13,IF(SUM(Onderwerpen!$B$4:$B$13)+10=A13,Onderwerpen!$A$14,IF(SUM(Onderwerpen!$B$4:$B$14)+11=A13,Onderwerpen!$A$15,IF(SUM(Onderwerpen!$B$4:$B$15)+12=A13,Onderwerpen!$A$16,IF(SUM(Onderwerpen!$B$4:$B$16)+13=A13,Onderwerpen!$A$17,IF(SUM(Onderwerpen!$B$4:$B$17)+14=A13,Onderwerpen!$A$18,IF(SUM(Onderwerpen!$B$4:$B$18)+15=A13,Onderwerpen!$A$19,IF(SUM(Onderwerpen!$B$4:$B$19)+16=A13,Onderwerpen!$A$20,IF(SUM(Onderwerpen!$B$4:$B$20)+17=A13,Onderwerpen!$A$21,IF(SUM(Onderwerpen!$B$4:$B$21)+18=A13,Onderwerpen!$A$22,IF(SUM(Onderwerpen!$B$4:$B$22)+19=A13,Onderwerpen!$A$23,IFERROR((IF(A13<Onderwerpen!$D$4,A13,IF(AND(A13>Onderwerpen!$D$4,A13<Onderwerpen!$D$5),A13-1,IF(AND(A13>Onderwerpen!$D$5,A13<Onderwerpen!$D$6),A13-2,IF(AND(A13>Onderwerpen!$D$6,A13<Onderwerpen!$D$7),A13-3,IF(AND(A13>Onderwerpen!$D$7,A13<Onderwerpen!$D$8),A13-4,IF(AND(A13>Onderwerpen!$D$8,A13<Onderwerpen!$D$9),A13-5,IF(AND(A13>Onderwerpen!$D$9,A13<Onderwerpen!$D$10),A13-6,IF(AND(A13>Onderwerpen!$D$10,A13<Onderwerpen!$D$11),A13-7,IF(AND(A13>Onderwerpen!$D$11,A13<Onderwerpen!$D$12),A13-8,IF(AND(A13>Onderwerpen!$D$12,A13<Onderwerpen!$D$13),A13-9,IF(AND(A13>Onderwerpen!$D$13,A13<Onderwerpen!$D$14),A13-10,IF(AND(A13>Onderwerpen!$D$14,A13<Onderwerpen!$D$15),A13-11,IF(AND(A13>Onderwerpen!$D$15,A13<Onderwerpen!$D$16),A13-12,IF(AND(A13>Onderwerpen!$D$16,A13<Onderwerpen!$D$17),A13-13,IF(AND(A13>Onderwerpen!$D$17,A13<Onderwerpen!$D$18),A13-14,IF(AND(A13>Onderwerpen!$D$18,A13<Onderwerpen!$D$19),A13-15,IF(AND(A13>Onderwerpen!$D$19,A13<Onderwerpen!$D$20),A13-16,IF(AND(A13>Onderwerpen!$D$20,A13<Onderwerpen!$D$21),A13-17,IF(AND(A13>Onderwerpen!$D$21,A13<Onderwerpen!$D$22),A13-18,IF(A13>Onderwerpen!$D$22,A13-19,"X"))))))))))))))))))))),"")))))))))))))))))))) -> 5 | D13: =IF(B13="",""&C13,LEFT(B13, FIND(" ",B13)-1) & "."&COUNTIF($B$8:B13,B13)) -> 1.5 | E13: Worden de instructiekaarten ook gebruikt? | G13: x | J13: 1.5
A14: =IFERROR(IF(A13=Onderwerpen!$C$23+19,"",A13+1),"") -> 6 | B14: =IF(C14<=Onderwerpen!$C$4,Onderwerpen!$A$4,IF(C14<=Onderwerpen!$C$5,Onderwerpen!$A$5,IF(C14<=Onderwerpen!$C$6,Onderwerpen!$A$6,IF(C14<=Onderwerpen!$C$7,Onderwerpen!$A$7,IF(C14<=Onderwerpen!$C$8,Onderwerpen!$A$8,IF(C14<=Onderwerpen!$C$9,Onderwerpen!$A$9,IF(C14<=Onderwerpen!C$10,Onderwerpen!$A$10,IF(C14<=Onderwerpen!C$11,Onderwerpen!$A$11,IF(C14<=Onderwerpen!C$12,Onderwerpen!$A$12,IF(C14<=Onderwerpen!C$13,Onderwerpen!$A$13,IF(C14<=Onderwerpen!$C$14,Onderwerpen!$A$14,IF(C14<=Onderwerpen!$C$15,Onderwerpen!$A$15,IF(C14<=Onderwerpen!$C$16,Onderwerpen!$A$16,IF(C14<=Onderwerpen!$C$17,Onderwerpen!$A$17,IF(C14<=Onderwerpen!$C$18,Onderwerpen!$A$18,IF(C14<=Onderwerpen!$C$19,Onderwerpen!$A$19,IF(C14<=Onderwerpen!$C$20,Onderwerpen!$A$20,IF(C14<=Onderwerpen!$C$21,Onderwerpen!$A$21,IF(C14<=Onderwerpen!$C$22,Onderwerpen!$A$22,IF(C14<=Onderwerpen!$C$23,Onderwerpen!$A$22,"")))))))))))))))))))) -> 1 Machines | C14: =IF(Onderwerpen!$B$4+1=A14,Onderwerpen!$A$5,IF(SUM(Onderwerpen!$B$4:$B$5)+2=A14,Onderwerpen!$A$6,IF(SUM(Onderwerpen!$B$4:$B$6)+3=A14,Onderwerpen!$A$7,IF(SUM(Onderwerpen!$B$4:$B$7)+4=A14,Onderwerpen!$A$8,IF(SUM(Onderwerpen!$B$4:$B$8)+5=A14,Onderwerpen!$A$9,IF(SUM(Onderwerpen!$B$4:$B$9)+6=A14,Onderwerpen!$A$10,IF(SUM(Onderwerpen!$B$4:$B$10)+7=A14,Onderwerpen!$A$11,IF(SUM(Onderwerpen!$B$4:$B$11)+8=A14,Onderwerpen!$A$12,IF(SUM(Onderwerpen!$B$4:$B$12)+9=A14,Onderwerpen!$A$13,IF(SUM(Onderwerpen!$B$4:$B$13)+10=A14,Onderwerpen!$A$14,IF(SUM(Onderwerpen!$B$4:$B$14)+11=A14,Onderwerpen!$A$15,IF(SUM(Onderwerpen!$B$4:$B$15)+12=A14,Onderwerpen!$A$16,IF(SUM(Onderwerpen!$B$4:$B$16)+13=A14,Onderwerpen!$A$17,IF(SUM(Onderwerpen!$B$4:$B$17)+14=A14,Onderwerpen!$A$18,IF(SUM(Onderwerpen!$B$4:$B$18)+15=A14,Onderwerpen!$A$19,IF(SUM(Onderwerpen!$B$4:$B$19)+16=A14,Onderwerpen!$A$20,IF(SUM(Onderwerpen!$B$4:$B$20)+17=A14,Onderwerpen!$A$21,IF(SUM(Onderwerpen!$B$4:$B$21)+18=A14,Onderwerpen!$A$22,IF(SUM(Onderwerpen!$B$4:$B$22)+19=A14,Onderwerpen!$A$23,IFERROR((IF(A14<Onderwerpen!$D$4,A14,IF(AND(A14>Onderwerpen!$D$4,A14<Onderwerpen!$D$5),A14-1,IF(AND(A14>Onderwerpen!$D$5,A14<Onderwerpen!$D$6),A14-2,IF(AND(A14>Onderwerpen!$D$6,A14<Onderwerpen!$D$7),A14-3,IF(AND(A14>Onderwerpen!$D$7,A14<Onderwerpen!$D$8),A14-4,IF(AND(A14>Onderwerpen!$D$8,A14<Onderwerpen!$D$9),A14-5,IF(AND(A14>Onderwerpen!$D$9,A14<Onderwerpen!$D$10),A14-6,IF(AND(A14>Onderwerpen!$D$10,A14<Onderwerpen!$D$11),A14-7,IF(AND(A14>Onderwerpen!$D$11,A14<Onderwerpen!$D$12),A14-8,IF(AND(A14>Onderwerpen!$D$12,A14<Onderwerpen!$D$13),A14-9,IF(AND(A14>Onderwerpen!$D$13,A14<Onderwerpen!$D$14),A14-10,IF(AND(A14>Onderwerpen!$D$14,A14<Onderwerpen!$D$15),A14-11,IF(AND(A14>Onderwerpen!$D$15,A14<Onderwerpen!$D$16),A14-12,IF(AND(A14>Onderwerpen!$D$16,A14<Onderwerpen!$D$17),A14-13,IF(AND(A14>Onderwerpen!$D$17,A14<Onderwerpen!$D$18),A14-14,IF(AND(A14>Onderwerpen!$D$18,A14<Onderwerpen!$D$19),A14-15,IF(AND(A14>Onderwerpen!$D$19,A14<Onderwerpen!$D$20),A14-16,IF(AND(A14>Onderwerpen!$D$20,A14<Onderwerpen!$D$21),A14-17,IF(AND(A14>Onderwerpen!$D$21,A14<Onderwerpen!$D$22),A14-18,IF(A14>Onderwerpen!$D$22,A14-19,"X"))))))))))))))))))))),"")))))))))))))))))))) -> 6 | D14: =IF(B14="",""&C14,LEFT(B14, FIND(" ",B14)-1) & "."&COUNTIF($B$8:B14,B14)) -> 1.6 | E14: Zijn de instructiekaarten begrijpbaar voor de gebruiker? | G14: x | J14: 1.6
A15: =IFERROR(IF(A14=Onderwerpen!$C$23+19,"",A14+1),"") -> 7 | B15: =IF(C15<=Onderwerpen!$C$4,Onderwerpen!$A$4,IF(C15<=Onderwerpen!$C$5,Onderwerpen!$A$5,IF(C15<=Onderwerpen!$C$6,Onderwerpen!$A$6,IF(C15<=Onderwerpen!$C$7,Onderwerpen!$A$7,IF(C15<=Onderwerpen!$C$8,Onderwerpen!$A$8,IF(C15<=Onderwerpen!$C$9,Onderwerpen!$A$9,IF(C15<=Onderwerpen!C$10,Onderwerpen!$A$10,IF(C15<=Onderwerpen!C$11,Onderwerpen!$A$11,IF(C15<=Onderwerpen!C$12,Onderwerpen!$A$12,IF(C15<=Onderwerpen!C$13,Onderwerpen!$A$13,IF(C15<=Onderwerpen!$C$14,Onderwerpen!$A$14,IF(C15<=Onderwerpen!$C$15,Onderwerpen!$A$15,IF(C15<=Onderwerpen!$C$16,Onderwerpen!$A$16,IF(C15<=Onderwerpen!$C$17,Onderwerpen!$A$17,IF(C15<=Onderwerpen!$C$18,Onderwerpen!$A$18,IF(C15<=Onderwerpen!$C$19,Onderwerpen!$A$19,IF(C15<=Onderwerpen!$C$20,Onderwerpen!$A$20,IF(C15<=Onderwerpen!$C$21,Onderwerpen!$A$21,IF(C15<=Onderwerpen!$C$22,Onderwerpen!$A$22,IF(C15<=Onderwerpen!$C$23,Onderwerpen!$A$22,"")))))))))))))))))))) -> 1 Machines | C15: =IF(Onderwerpen!$B$4+1=A15,Onderwerpen!$A$5,IF(SUM(Onderwerpen!$B$4:$B$5)+2=A15,Onderwerpen!$A$6,IF(SUM(Onderwerpen!$B$4:$B$6)+3=A15,Onderwerpen!$A$7,IF(SUM(Onderwerpen!$B$4:$B$7)+4=A15,Onderwerpen!$A$8,IF(SUM(Onderwerpen!$B$4:$B$8)+5=A15,Onderwerpen!$A$9,IF(SUM(Onderwerpen!$B$4:$B$9)+6=A15,Onderwerpen!$A$10,IF(SUM(Onderwerpen!$B$4:$B$10)+7=A15,Onderwerpen!$A$11,IF(SUM(Onderwerpen!$B$4:$B$11)+8=A15,Onderwerpen!$A$12,IF(SUM(Onderwerpen!$B$4:$B$12)+9=A15,Onderwerpen!$A$13,IF(SUM(Onderwerpen!$B$4:$B$13)+10=A15,Onderwerpen!$A$14,IF(SUM(Onderwerpen!$B$4:$B$14)+11=A15,Onderwerpen!$A$15,IF(SUM(Onderwerpen!$B$4:$B$15)+12=A15,Onderwerpen!$A$16,IF(SUM(Onderwerpen!$B$4:$B$16)+13=A15,Onderwerpen!$A$17,IF(SUM(Onderwerpen!$B$4:$B$17)+14=A15,Onderwerpen!$A$18,IF(SUM(Onderwerpen!$B$4:$B$18)+15=A15,Onderwerpen!$A$19,IF(SUM(Onderwerpen!$B$4:$B$19)+16=A15,Onderwerpen!$A$20,IF(SUM(Onderwerpen!$B$4:$B$20)+17=A15,Onderwerpen!$A$21,IF(SUM(Onderwerpen!$B$4:$B$21)+18=A15,Onderwerpen!$A$22,IF(SUM(Onderwerpen!$B$4:$B$22)+19=A15,Onderwerpen!$A$23,IFERROR((IF(A15<Onderwerpen!$D$4,A15,IF(AND(A15>Onderwerpen!$D$4,A15<Onderwerpen!$D$5),A15-1,IF(AND(A15>Onderwerpen!$D$5,A15<Onderwerpen!$D$6),A15-2,IF(AND(A15>Onderwerpen!$D$6,A15<Onderwerpen!$D$7),A15-3,IF(AND(A15>Onderwerpen!$D$7,A15<Onderwerpen!$D$8),A15-4,IF(AND(A15>Onderwerpen!$D$8,A15<Onderwerpen!$D$9),A15-5,IF(AND(A15>Onderwerpen!$D$9,A15<Onderwerpen!$D$10),A15-6,IF(AND(A15>Onderwerpen!$D$10,A15<Onderwerpen!$D$11),A15-7,IF(AND(A15>Onderwerpen!$D$11,A15<Onderwerpen!$D$12),A15-8,IF(AND(A15>Onderwerpen!$D$12,A15<Onderwerpen!$D$13),A15-9,IF(AND(A15>Onderwerpen!$D$13,A15<Onderwerpen!$D$14),A15-10,IF(AND(A15>Onderwerpen!$D$14,A15<Onderwerpen!$D$15),A15-11,IF(AND(A15>Onderwerpen!$D$15,A15<Onderwerpen!$D$16),A15-12,IF(AND(A15>Onderwerpen!$D$16,A15<Onderwerpen!$D$17),A15-13,IF(AND(A15>Onderwerpen!$D$17,A15<Onderwerpen!$D$18),A15-14,IF(AND(A15>Onderwerpen!$D$18,A15<Onderwerpen!$D$19),A15-15,IF(AND(A15>Onderwerpen!$D$19,A15<Onderwerpen!$D$20),A15-16,IF(AND(A15>Onderwerpen!$D$20,A15<Onderwerpen!$D$21),A15-17,IF(AND(A15>Onderwerpen!$D$21,A15<Onderwerpen!$D$22),A15-18,IF(A15>Onderwerpen!$D$22,A15-19,"X"))))))))))))))))))))),"")))))))))))))))))))) -> 7 | D15: =IF(B15="",""&C15,LEFT(B15, FIND(" ",B15)-1) & "."&COUNTIF($B$8:B15,B15)) -> 1.7 | E15: Beschikt u over indienststellingsverslagen voor alle machines? | G15: x | J15: 1.7
A16: =IFERROR(IF(A15=Onderwerpen!$C$23+19,"",A15+1),"") -> 8 | B16: =IF(C16<=Onderwerpen!$C$4,Onderwerpen!$A$4,IF(C16<=Onderwerpen!$C$5,Onderwerpen!$A$5,IF(C16<=Onderwerpen!$C$6,Onderwerpen!$A$6,IF(C16<=Onderwerpen!$C$7,Onderwerpen!$A$7,IF(C16<=Onderwerpen!$C$8,Onderwerpen!$A$8,IF(C16<=Onderwerpen!$C$9,Onderwerpen!$A$9,IF(C16<=Onderwerpen!C$10,Onderwerpen!$A$10,IF(C16<=Onderwerpen!C$11,Onderwerpen!$A$11,IF(C16<=Onderwerpen!C$12,Onderwerpen!$A$12,IF(C16<=Onderwerpen!C$13,Onderwerpen!$A$13,IF(C16<=Onderwerpen!$C$14,Onderwerpen!$A$14,IF(C16<=Onderwerpen!$C$15,Onderwerpen!$A$15,IF(C16<=Onderwerpen!$C$16,Onderwerpen!$A$16,IF(C16<=Onderwerpen!$C$17,Onderwerpen!$A$17,IF(C16<=Onderwerpen!$C$18,Onderwerpen!$A$18,IF(C16<=Onderwerpen!$C$19,Onderwerpen!$A$19,IF(C16<=Onderwerpen!$C$20,Onderwerpen!$A$20,IF(C16<=Onderwerpen!$C$21,Onderwerpen!$A$21,IF(C16<=Onderwerpen!$C$22,Onderwerpen!$A$22,IF(C16<=Onderwerpen!$C$23,Onderwerpen!$A$22,"")))))))))))))))))))) -> 1 Machines | C16: =IF(Onderwerpen!$B$4+1=A16,Onderwerpen!$A$5,IF(SUM(Onderwerpen!$B$4:$B$5)+2=A16,Onderwerpen!$A$6,IF(SUM(Onderwerpen!$B$4:$B$6)+3=A16,Onderwerpen!$A$7,IF(SUM(Onderwerpen!$B$4:$B$7)+4=A16,Onderwerpen!$A$8,IF(SUM(Onderwerpen!$B$4:$B$8)+5=A16,Onderwerpen!$A$9,IF(SUM(Onderwerpen!$B$4:$B$9)+6=A16,Onderwerpen!$A$10,IF(SUM(Onderwerpen!$B$4:$B$10)+7=A16,Onderwerpen!$A$11,IF(SUM(Onderwerpen!$B$4:$B$11)+8=A16,Onderwerpen!$A$12,IF(SUM(Onderwerpen!$B$4:$B$12)+9=A16,Onderwerpen!$A$13,IF(SUM(Onderwerpen!$B$4:$B$13)+10=A16,Onderwerpen!$A$14,IF(SUM(Onderwerpen!$B$4:$B$14)+11=A16,Onderwerpen!$A$15,IF(SUM(Onderwerpen!$B$4:$B$15)+12=A16,Onderwerpen!$A$16,IF(SUM(Onderwerpen!$B$4:$B$16)+13=A16,Onderwerpen!$A$17,IF(SUM(Onderwerpen!$B$4:$B$17)+14=A16,Onderwerpen!$A$18,IF(SUM(Onderwerpen!$B$4:$B$18)+15=A16,Onderwerpen!$A$19,IF(SUM(Onderwerpen!$B$4:$B$19)+16=A16,Onderwerpen!$A$20,IF(SUM(Onderwerpen!$B$4:$B$20)+17=A16,Onderwerpen!$A$21,IF(SUM(Onderwerpen!$B$4:$B$21)+18=A16,Onderwerpen!$A$22,IF(SUM(Onderwerpen!$B$4:$B$22)+19=A16,Onderwerpen!$A$23,IFERROR((IF(A16<Onderwerpen!$D$4,A16,IF(AND(A16>Onderwerpen!$D$4,A16<Onderwerpen!$D$5),A16-1,IF(AND(A16>Onderwerpen!$D$5,A16<Onderwerpen!$D$6),A16-2,IF(AND(A16>Onderwerpen!$D$6,A16<Onderwerpen!$D$7),A16-3,IF(AND(A16>Onderwerpen!$D$7,A16<Onderwerpen!$D$8),A16-4,IF(AND(A16>Onderwerpen!$D$8,A16<Onderwerpen!$D$9),A16-5,IF(AND(A16>Onderwerpen!$D$9,A16<Onderwerpen!$D$10),A16-6,IF(AND(A16>Onderwerpen!$D$10,A16<Onderwerpen!$D$11),A16-7,IF(AND(A16>Onderwerpen!$D$11,A16<Onderwerpen!$D$12),A16-8,IF(AND(A16>Onderwerpen!$D$12,A16<Onderwerpen!$D$13),A16-9,IF(AND(A16>Onderwerpen!$D$13,A16<Onderwerpen!$D$14),A16-10,IF(AND(A16>Onderwerpen!$D$14,A16<Onderwerpen!$D$15),A16-11,IF(AND(A16>Onderwerpen!$D$15,A16<Onderwerpen!$D$16),A16-12,IF(AND(A16>Onderwerpen!$D$16,A16<Onderwerpen!$D$17),A16-13,IF(AND(A16>Onderwerpen!$D$17,A16<Onderwerpen!$D$18),A16-14,IF(AND(A16>Onderwerpen!$D$18,A16<Onderwerpen!$D$19),A16-15,IF(AND(A16>Onderwerpen!$D$19,A16<Onderwerpen!$D$20),A16-16,IF(AND(A16>Onderwerpen!$D$20,A16<Onderwerpen!$D$21),A16-17,IF(AND(A16>Onderwerpen!$D$21,A16<Onderwerpen!$D$22),A16-18,IF(A16>Onderwerpen!$D$22,A16-19,"X"))))))))))))))))))))),"")))))))))))))))))))) -> 8 | D16: =IF(B16="",""&C16,LEFT(B16, FIND(" ",B16)-1) & "."&COUNTIF($B$8:B16,B16)) -> 1.8 | E16: Beschikt u over de EC-verklaring van overeenkomst voor nieuwe machines vanaf 01/01/1995? | F16: x
A17: =IFERROR(IF(A16=Onderwerpen!$C$23+19,"",A16+1),"") -> 9 | B17: =IF(C17<=Onderwerpen!$C$4,Onderwerpen!$A$4,IF(C17<=Onderwerpen!$C$5,Onderwerpen!$A$5,IF(C17<=Onderwerpen!$C$6,Onderwerpen!$A$6,IF(C17<=Onderwerpen!$C$7,Onderwerpen!$A$7,IF(C17<=Onderwerpen!$C$8,Onderwerpen!$A$8,IF(C17<=Onderwerpen!$C$9,Onderwerpen!$A$9,IF(C17<=Onderwerpen!C$10,Onderwerpen!$A$10,IF(C17<=Onderwerpen!C$11,Onderwerpen!$A$11,IF(C17<=Onderwerpen!C$12,Onderwerpen!$A$12,IF(C17<=Onderwerpen!C$13,Onderwerpen!$A$13,IF(C17<=Onderwerpen!$C$14,Onderwerpen!$A$14,IF(C17<=Onderwerpen!$C$15,Onderwerpen!$A$15,IF(C17<=Onderwerpen!$C$16,Onderwerpen!$A$16,IF(C17<=Onderwerpen!$C$17,Onderwerpen!$A$17,IF(C17<=Onderwerpen!$C$18,Onderwerpen!$A$18,IF(C17<=Onderwerpen!$C$19,Onderwerpen!$A$19,IF(C17<=Onderwerpen!$C$20,Onderwerpen!$A$20,IF(C17<=Onderwerpen!$C$21,Onderwerpen!$A$21,IF(C17<=Onderwerpen!$C$22,Onderwerpen!$A$22,IF(C17<=Onderwerpen!$C$23,Onderwerpen!$A$22,"")))))))))))))))))))) -> 1 Machines | C17: =IF(Onderwerpen!$B$4+1=A17,Onderwerpen!$A$5,IF(SUM(Onderwerpen!$B$4:$B$5)+2=A17,Onderwerpen!$A$6,IF(SUM(Onderwerpen!$B$4:$B$6)+3=A17,Onderwerpen!$A$7,IF(SUM(Onderwerpen!$B$4:$B$7)+4=A17,Onderwerpen!$A$8,IF(SUM(Onderwerpen!$B$4:$B$8)+5=A17,Onderwerpen!$A$9,IF(SUM(Onderwerpen!$B$4:$B$9)+6=A17,Onderwerpen!$A$10,IF(SUM(Onderwerpen!$B$4:$B$10)+7=A17,Onderwerpen!$A$11,IF(SUM(Onderwerpen!$B$4:$B$11)+8=A17,Onderwerpen!$A$12,IF(SUM(Onderwerpen!$B$4:$B$12)+9=A17,Onderwerpen!$A$13,IF(SUM(Onderwerpen!$B$4:$B$13)+10=A17,Onderwerpen!$A$14,IF(SUM(Onderwerpen!$B$4:$B$14)+11=A17,Onderwerpen!$A$15,IF(SUM(Onderwerpen!$B$4:$B$15)+12=A17,Onderwerpen!$A$16,IF(SUM(Onderwerpen!$B$4:$B$16)+13=A17,Onderwerpen!$A$17,IF(SUM(Onderwerpen!$B$4:$B$17)+14=A17,Onderwerpen!$A$18,IF(SUM(Onderwerpen!$B$4:$B$18)+15=A17,Onderwerpen!$A$19,IF(SUM(Onderwerpen!$B$4:$B$19)+16=A17,Onderwerpen!$A$20,IF(SUM(Onderwerpen!$B$4:$B$20)+17=A17,Onderwerpen!$A$21,IF(SUM(Onderwerpen!$B$4:$B$21)+18=A17,Onderwerpen!$A$22,IF(SUM(Onderwerpen!$B$4:$B$22)+19=A17,Onderwerpen!$A$23,IFERROR((IF(A17<Onderwerpen!$D$4,A17,IF(AND(A17>Onderwerpen!$D$4,A17<Onderwerpen!$D$5),A17-1,IF(AND(A17>Onderwerpen!$D$5,A17<Onderwerpen!$D$6),A17-2,IF(AND(A17>Onderwerpen!$D$6,A17<Onderwerpen!$D$7),A17-3,IF(AND(A17>Onderwerpen!$D$7,A17<Onderwerpen!$D$8),A17-4,IF(AND(A17>Onderwerpen!$D$8,A17<Onderwerpen!$D$9),A17-5,IF(AND(A17>Onderwerpen!$D$9,A17<Onderwerpen!$D$10),A17-6,IF(AND(A17>Onderwerpen!$D$10,A17<Onderwerpen!$D$11),A17-7,IF(AND(A17>Onderwerpen!$D$11,A17<Onderwerpen!$D$12),A17-8,IF(AND(A17>Onderwerpen!$D$12,A17<Onderwerpen!$D$13),A17-9,IF(AND(A17>Onderwerpen!$D$13,A17<Onderwerpen!$D$14),A17-10,IF(AND(A17>Onderwerpen!$D$14,A17<Onderwerpen!$D$15),A17-11,IF(AND(A17>Onderwerpen!$D$15,A17<Onderwerpen!$D$16),A17-12,IF(AND(A17>Onderwerpen!$D$16,A17<Onderwerpen!$D$17),A17-13,IF(AND(A17>Onderwerpen!$D$17,A17<Onderwerpen!$D$18),A17-14,IF(AND(A17>Onderwerpen!$D$18,A17<Onderwerpen!$D$19),A17-15,IF(AND(A17>Onderwerpen!$D$19,A17<Onderwerpen!$D$20),A17-16,IF(AND(A17>Onderwerpen!$D$20,A17<Onderwerpen!$D$21),A17-17,IF(AND(A17>Onderwerpen!$D$21,A17<Onderwerpen!$D$22),A17-18,IF(A17>Onderwerpen!$D$22,A17-19,"X"))))))))))))))))))))),"")))))))))))))))))))) -> 9 | D17: =IF(B17="",""&C17,LEFT(B17, FIND(" ",B17)-1) & "."&COUNTIF($B$8:B17,B17)) -> 1.9 | E17: Is er voor gevaarlijke werken voorafgaandelijk een risicoanalyse opgemaakt? | F17: x
A18: =IFERROR(IF(A17=Onderwerpen!$C$23+19,"",A17+1),"") -> 10 | B18: =IF(C18<=Onderwerpen!$C$4,Onderwerpen!$A$4,IF(C18<=Onderwerpen!$C$5,Onderwerpen!$A$5,IF(C18<=Onderwerpen!$C$6,Onderwerpen!$A$6,IF(C18<=Onderwerpen!$C$7,Onderwerpen!$A$7,IF(C18<=Onderwerpen!$C$8,Onderwerpen!$A$8,IF(C18<=Onderwerpen!$C$9,Onderwerpen!$A$9,IF(C18<=Onderwerpen!C$10,Onderwerpen!$A$10,IF(C18<=Onderwerpen!C$11,Onderwerpen!$A$11,IF(C18<=Onderwerpen!C$12,Onderwerpen!$A$12,IF(C18<=Onderwerpen!C$13,Onderwerpen!$A$13,IF(C18<=Onderwerpen!$C$14,Onderwerpen!$A$14,IF(C18<=Onderwerpen!$C$15,Onderwerpen!$A$15,IF(C18<=Onderwerpen!$C$16,Onderwerpen!$A$16,IF(C18<=Onderwerpen!$C$17,Onderwerpen!$A$17,IF(C18<=Onderwerpen!$C$18,Onderwerpen!$A$18,IF(C18<=Onderwerpen!$C$19,Onderwerpen!$A$19,IF(C18<=Onderwerpen!$C$20,Onderwerpen!$A$20,IF(C18<=Onderwerpen!$C$21,Onderwerpen!$A$21,IF(C18<=Onderwerpen!$C$22,Onderwerpen!$A$22,IF(C18<=Onderwerpen!$C$23,Onderwerpen!$A$22,"")))))))))))))))))))) -> 1 Machines | C18: =IF(Onderwerpen!$B$4+1=A18,Onderwerpen!$A$5,IF(SUM(Onderwerpen!$B$4:$B$5)+2=A18,Onderwerpen!$A$6,IF(SUM(Onderwerpen!$B$4:$B$6)+3=A18,Onderwerpen!$A$7,IF(SUM(Onderwerpen!$B$4:$B$7)+4=A18,Onderwerpen!$A$8,IF(SUM(Onderwerpen!$B$4:$B$8)+5=A18,Onderwerpen!$A$9,IF(SUM(Onderwerpen!$B$4:$B$9)+6=A18,Onderwerpen!$A$10,IF(SUM(Onderwerpen!$B$4:$B$10)+7=A18,Onderwerpen!$A$11,IF(SUM(Onderwerpen!$B$4:$B$11)+8=A18,Onderwerpen!$A$12,IF(SUM(Onderwerpen!$B$4:$B$12)+9=A18,Onderwerpen!$A$13,IF(SUM(Onderwerpen!$B$4:$B$13)+10=A18,Onderwerpen!$A$14,IF(SUM(Onderwerpen!$B$4:$B$14)+11=A18,Onderwerpen!$A$15,IF(SUM(Onderwerpen!$B$4:$B$15)+12=A18,Onderwerpen!$A$16,IF(SUM(Onderwerpen!$B$4:$B$16)+13=A18,Onderwerpen!$A$17,IF(SUM(Onderwerpen!$B$4:$B$17)+14=A18,Onderwerpen!$A$18,IF(SUM(Onderwerpen!$B$4:$B$18)+15=A18,Onderwerpen!$A$19,IF(SUM(Onderwerpen!$B$4:$B$19)+16=A18,Onderwerpen!$A$20,IF(SUM(Onderwerpen!$B$4:$B$20)+17=A18,Onderwerpen!$A$21,IF(SUM(Onderwerpen!$B$4:$B$21)+18=A18,Onderwerpen!$A$22,IF(SUM(Onderwerpen!$B$4:$B$22)+19=A18,Onderwerpen!$A$23,IFERROR((IF(A18<Onderwerpen!$D$4,A18,IF(AND(A18>Onderwerpen!$D$4,A18<Onderwerpen!$D$5),A18-1,IF(AND(A18>Onderwerpen!$D$5,A18<Onderwerpen!$D$6),A18-2,IF(AND(A18>Onderwerpen!$D$6,A18<Onderwerpen!$D$7),A18-3,IF(AND(A18>Onderwerpen!$D$7,A18<Onderwerpen!$D$8),A18-4,IF(AND(A18>Onderwerpen!$D$8,A18<Onderwerpen!$D$9),A18-5,IF(AND(A18>Onderwerpen!$D$9,A18<Onderwerpen!$D$10),A18-6,IF(AND(A18>Onderwerpen!$D$10,A18<Onderwerpen!$D$11),A18-7,IF(AND(A18>Onderwerpen!$D$11,A18<Onderwerpen!$D$12),A18-8,IF(AND(A18>Onderwerpen!$D$12,A18<Onderwerpen!$D$13),A18-9,IF(AND(A18>Onderwerpen!$D$13,A18<Onderwerpen!$D$14),A18-10,IF(AND(A18>Onderwerpen!$D$14,A18<Onderwerpen!$D$15),A18-11,IF(AND(A18>Onderwerpen!$D$15,A18<Onderwerpen!$D$16),A18-12,IF(AND(A18>Onderwerpen!$D$16,A18<Onderwerpen!$D$17),A18-13,IF(AND(A18>Onderwerpen!$D$17,A18<Onderwerpen!$D$18),A18-14,IF(AND(A18>Onderwerpen!$D$18,A18<Onderwerpen!$D$19),A18-15,IF(AND(A18>Onderwerpen!$D$19,A18<Onderwerpen!$D$20),A18-16,IF(AND(A18>Onderwerpen!$D$20,A18<Onderwerpen!$D$21),A18-17,IF(AND(A18>Onderwerpen!$D$21,A18<Onderwerpen!$D$22),A18-18,IF(A18>Onderwerpen!$D$22,A18-19,"X"))))))))))))))))))))),"")))))))))))))))))))) -> 10 | D18: =IF(B18="",""&C18,LEFT(B18, FIND(" ",B18)-1) & "."&COUNTIF($B$8:B18,B18)) -> 1.10 | E18: Voldoen alle machines aan de eisen van het KB-Arbeidsmiddelen? | G18: x | J18: 1.10
A19: =IFERROR(IF(A18=Onderwerpen!$C$23+19,"",A18+1),"") -> 11 | B19: =IF(C19<=Onderwerpen!$C$4,Onderwerpen!$A$4,IF(C19<=Onderwerpen!$C$5,Onderwerpen!$A$5,IF(C19<=Onderwerpen!$C$6,Onderwerpen!$A$6,IF(C19<=Onderwerpen!$C$7,Onderwerpen!$A$7,IF(C19<=Onderwerpen!$C$8,Onderwerpen!$A$8,IF(C19<=Onderwerpen!$C$9,Onderwerpen!$A$9,IF(C19<=Onderwerpen!C$10,Onderwerpen!$A$10,IF(C19<=Onderwerpen!C$11,Onderwerpen!$A$11,IF(C19<=Onderwerpen!C$12,Onderwerpen!$A$12,IF(C19<=Onderwerpen!C$13,Onderwerpen!$A$13,IF(C19<=Onderwerpen!$C$14,Onderwerpen!$A$14,IF(C19<=Onderwerpen!$C$15,Onderwerpen!$A$15,IF(C19<=Onderwerpen!$C$16,Onderwerpen!$A$16,IF(C19<=Onderwerpen!$C$17,Onderwerpen!$A$17,IF(C19<=Onderwerpen!$C$18,Onderwerpen!$A$18,IF(C19<=Onderwerpen!$C$19,Onderwerpen!$A$19,IF(C19<=Onderwerpen!$C$20,Onderwerpen!$A$20,IF(C19<=Onderwerpen!$C$21,Onderwerpen!$A$21,IF(C19<=Onderwerpen!$C$22,Onderwerpen!$A$22,IF(C19<=Onderwerpen!$C$23,Onderwerpen!$A$22,"")))))))))))))))))))) -> 1 Machines | C19: =IF(Onderwerpen!$B$4+1=A19,Onderwerpen!$A$5,IF(SUM(Onderwerpen!$B$4:$B$5)+2=A19,Onderwerpen!$A$6,IF(SUM(Onderwerpen!$B$4:$B$6)+3=A19,Onderwerpen!$A$7,IF(SUM(Onderwerpen!$B$4:$B$7)+4=A19,Onderwerpen!$A$8,IF(SUM(Onderwerpen!$B$4:$B$8)+5=A19,Onderwerpen!$A$9,IF(SUM(Onderwerpen!$B$4:$B$9)+6=A19,Onderwerpen!$A$10,IF(SUM(Onderwerpen!$B$4:$B$10)+7=A19,Onderwerpen!$A$11,IF(SUM(Onderwerpen!$B$4:$B$11)+8=A19,Onderwerpen!$A$12,IF(SUM(Onderwerpen!$B$4:$B$12)+9=A19,Onderwerpen!$A$13,IF(SUM(Onderwerpen!$B$4:$B$13)+10=A19,Onderwerpen!$A$14,IF(SUM(Onderwerpen!$B$4:$B$14)+11=A19,Onderwerpen!$A$15,IF(SUM(Onderwerpen!$B$4:$B$15)+12=A19,Onderwerpen!$A$16,IF(SUM(Onderwerpen!$B$4:$B$16)+13=A19,Onderwerpen!$A$17,IF(SUM(Onderwerpen!$B$4:$B$17)+14=A19,Onderwerpen!$A$18,IF(SUM(Onderwerpen!$B$4:$B$18)+15=A19,Onderwerpen!$A$19,IF(SUM(Onderwerpen!$B$4:$B$19)+16=A19,Onderwerpen!$A$20,IF(SUM(Onderwerpen!$B$4:$B$20)+17=A19,Onderwerpen!$A$21,IF(SUM(Onderwerpen!$B$4:$B$21)+18=A19,Onderwerpen!$A$22,IF(SUM(Onderwerpen!$B$4:$B$22)+19=A19,Onderwerpen!$A$23,IFERROR((IF(A19<Onderwerpen!$D$4,A19,IF(AND(A19>Onderwerpen!$D$4,A19<Onderwerpen!$D$5),A19-1,IF(AND(A19>Onderwerpen!$D$5,A19<Onderwerpen!$D$6),A19-2,IF(AND(A19>Onderwerpen!$D$6,A19<Onderwerpen!$D$7),A19-3,IF(AND(A19>Onderwerpen!$D$7,A19<Onderwerpen!$D$8),A19-4,IF(AND(A19>Onderwerpen!$D$8,A19<Onderwerpen!$D$9),A19-5,IF(AND(A19>Onderwerpen!$D$9,A19<Onderwerpen!$D$10),A19-6,IF(AND(A19>Onderwerpen!$D$10,A19<Onderwerpen!$D$11),A19-7,IF(AND(A19>Onderwerpen!$D$11,A19<Onderwerpen!$D$12),A19-8,IF(AND(A19>Onderwerpen!$D$12,A19<Onderwerpen!$D$13),A19-9,IF(AND(A19>Onderwerpen!$D$13,A19<Onderwerpen!$D$14),A19-10,IF(AND(A19>Onderwerpen!$D$14,A19<Onderwerpen!$D$15),A19-11,IF(AND(A19>Onderwerpen!$D$15,A19<Onderwerpen!$D$16),A19-12,IF(AND(A19>Onderwerpen!$D$16,A19<Onderwerpen!$D$17),A19-13,IF(AND(A19>Onderwerpen!$D$17,A19<Onderwerpen!$D$18),A19-14,IF(AND(A19>Onderwerpen!$D$18,A19<Onderwerpen!$D$19),A19-15,IF(AND(A19>Onderwerpen!$D$19,A19<Onderwerpen!$D$20),A19-16,IF(AND(A19>Onderwerpen!$D$20,A19<Onderwerpen!$D$21),A19-17,IF(AND(A19>Onderwerpen!$D$21,A19<Onderwerpen!$D$22),A19-18,IF(A19>Onderwerpen!$D$22,A19-19,"X"))))))))))))))))))))),"")))))))))))))))))))) -> 11 | D19: =IF(B19="",""&C19,LEFT(B19, FIND(" ",B19)-1) & "."&COUNTIF($B$8:B19,B19)) -> 1.11 | E19: Wordt er regelmatig onderhoud van machines en materiaal voorzien? | G19: x | J19: 1.11
A20: =IFERROR(IF(A19=Onderwerpen!$C$23+19,"",A19+1),"") -> 12 | B20: =IF(C20<=Onderwerpen!$C$4,Onderwerpen!$A$4,IF(C20<=Onderwerpen!$C$5,Onderwerpen!$A$5,IF(C20<=Onderwerpen!$C$6,Onderwerpen!$A$6,IF(C20<=Onderwerpen!$C$7,Onderwerpen!$A$7,IF(C20<=Onderwerpen!$C$8,Onderwerpen!$A$8,IF(C20<=Onderwerpen!$C$9,Onderwerpen!$A$9,IF(C20<=Onderwerpen!C$10,Onderwerpen!$A$10,IF(C20<=Onderwerpen!C$11,Onderwerpen!$A$11,IF(C20<=Onderwerpen!C$12,Onderwerpen!$A$12,IF(C20<=Onderwerpen!C$13,Onderwerpen!$A$13,IF(C20<=Onderwerpen!$C$14,Onderwerpen!$A$14,IF(C20<=Onderwerpen!$C$15,Onderwerpen!$A$15,IF(C20<=Onderwerpen!$C$16,Onderwerpen!$A$16,IF(C20<=Onderwerpen!$C$17,Onderwerpen!$A$17,IF(C20<=Onderwerpen!$C$18,Onderwerpen!$A$18,IF(C20<=Onderwerpen!$C$19,Onderwerpen!$A$19,IF(C20<=Onderwerpen!$C$20,Onderwerpen!$A$20,IF(C20<=Onderwerpen!$C$21,Onderwerpen!$A$21,IF(C20<=Onderwerpen!$C$22,Onderwerpen!$A$22,IF(C20<=Onderwerpen!$C$23,Onderwerpen!$A$22,"")))))))))))))))))))) ->  | C20: =IF(Onderwerpen!$B$4+1=A20,Onderwerpen!$A$5,IF(SUM(Onderwerpen!$B$4:$B$5)+2=A20,Onderwerpen!$A$6,IF(SUM(Onderwerpen!$B$4:$B$6)+3=A20,Onderwerpen!$A$7,IF(SUM(Onderwerpen!$B$4:$B$7)+4=A20,Onderwerpen!$A$8,IF(SUM(Onderwerpen!$B$4:$B$8)+5=A20,Onderwerpen!$A$9,IF(SUM(Onderwerpen!$B$4:$B$9)+6=A20,Onderwerpen!$A$10,IF(SUM(Onderwerpen!$B$4:$B$10)+7=A20,Onderwerpen!$A$11,IF(SUM(Onderwerpen!$B$4:$B$11)+8=A20,Onderwerpen!$A$12,IF(SUM(Onderwerpen!$B$4:$B$12)+9=A20,Onderwerpen!$A$13,IF(SUM(Onderwerpen!$B$4:$B$13)+10=A20,Onderwerpen!$A$14,IF(SUM(Onderwerpen!$B$4:$B$14)+11=A20,Onderwerpen!$A$15,IF(SUM(Onderwerpen!$B$4:$B$15)+12=A20,Onderwerpen!$A$16,IF(SUM(Onderwerpen!$B$4:$B$16)+13=A20,Onderwerpen!$A$17,IF(SUM(Onderwerpen!$B$4:$B$17)+14=A20,Onderwerpen!$A$18,IF(SUM(Onderwerpen!$B$4:$B$18)+15=A20,Onderwerpen!$A$19,IF(SUM(Onderwerpen!$B$4:$B$19)+16=A20,Onderwerpen!$A$20,IF(SUM(Onderwerpen!$B$4:$B$20)+17=A20,Onderwerpen!$A$21,IF(SUM(Onderwerpen!$B$4:$B$21)+18=A20,Onderwerpen!$A$22,IF(SUM(Onderwerpen!$B$4:$B$22)+19=A20,Onderwerpen!$A$23,IFERROR((IF(A20<Onderwerpen!$D$4,A20,IF(AND(A20>Onderwerpen!$D$4,A20<Onderwerpen!$D$5),A20-1,IF(AND(A20>Onderwerpen!$D$5,A20<Onderwerpen!$D$6),A20-2,IF(AND(A20>Onderwerpen!$D$6,A20<Onderwerpen!$D$7),A20-3,IF(AND(A20>Onderwerpen!$D$7,A20<Onderwerpen!$D$8),A20-4,IF(AND(A20>Onderwerpen!$D$8,A20<Onderwerpen!$D$9),A20-5,IF(AND(A20>Onderwerpen!$D$9,A20<Onderwerpen!$D$10),A20-6,IF(AND(A20>Onderwerpen!$D$10,A20<Onderwerpen!$D$11),A20-7,IF(AND(A20>Onderwerpen!$D$11,A20<Onderwerpen!$D$12),A20-8,IF(AND(A20>Onderwerpen!$D$12,A20<Onderwerpen!$D$13),A20-9,IF(AND(A20>Onderwerpen!$D$13,A20<Onderwerpen!$D$14),A20-10,IF(AND(A20>Onderwerpen!$D$14,A20<Onderwerpen!$D$15),A20-11,IF(AND(A20>Onderwerpen!$D$15,A20<Onderwerpen!$D$16),A20-12,IF(AND(A20>Onderwerpen!$D$16,A20<Onderwerpen!$D$17),A20-13,IF(AND(A20>Onderwerpen!$D$17,A20<Onderwerpen!$D$18),A20-14,IF(AND(A20>Onderwerpen!$D$18,A20<Onderwerpen!$D$19),A20-15,IF(AND(A20>Onderwerpen!$D$19,A20<Onderwerpen!$D$20),A20-16,IF(AND(A20>Onderwerpen!$D$20,A20<Onderwerpen!$D$21),A20-17,IF(AND(A20>Onderwerpen!$D$21,A20<Onderwerpen!$D$22),A20-18,IF(A20>Onderwerpen!$D$22,A20-19,"X"))))))))))))))))))))),"")))))))))))))))))))) -> 2 Elektriciteit | D20: =IF(B20="",""&C20,LEFT(B20, FIND(" ",B20)-1) & "."&COUNTIF($B$8:B20,B20)) -> 2 Elektriciteit | J20: =IF(G20="x",D20,"") -> 
A21: =IFERROR(IF(A20=Onderwerpen!$C$23+19,"",A20+1),"") -> 13 | B21: =IF(C21<=Onderwerpen!$C$4,Onderwerpen!$A$4,IF(C21<=Onderwerpen!$C$5,Onderwerpen!$A$5,IF(C21<=Onderwerpen!$C$6,Onderwerpen!$A$6,IF(C21<=Onderwerpen!$C$7,Onderwerpen!$A$7,IF(C21<=Onderwerpen!$C$8,Onderwerpen!$A$8,IF(C21<=Onderwerpen!$C$9,Onderwerpen!$A$9,IF(C21<=Onderwerpen!C$10,Onderwerpen!$A$10,IF(C21<=Onderwerpen!C$11,Onderwerpen!$A$11,IF(C21<=Onderwerpen!C$12,Onderwerpen!$A$12,IF(C21<=Onderwerpen!C$13,Onderwerpen!$A$13,IF(C21<=Onderwerpen!$C$14,Onderwerpen!$A$14,IF(C21<=Onderwerpen!$C$15,Onderwerpen!$A$15,IF(C21<=Onderwerpen!$C$16,Onderwerpen!$A$16,IF(C21<=Onderwerpen!$C$17,Onderwerpen!$A$17,IF(C21<=Onderwerpen!$C$18,Onderwerpen!$A$18,IF(C21<=Onderwerpen!$C$19,Onderwerpen!$A$19,IF(C21<=Onderwerpen!$C$20,Onderwerpen!$A$20,IF(C21<=Onderwerpen!$C$21,Onderwerpen!$A$21,IF(C21<=Onderwerpen!$C$22,Onderwerpen!$A$22,IF(C21<=Onderwerpen!$C$23,Onderwerpen!$A$22,"")))))))))))))))))))) -> 2 Elektriciteit | C21: =IF(Onderwerpen!$B$4+1=A21,Onderwerpen!$A$5,IF(SUM(Onderwerpen!$B$4:$B$5)+2=A21,Onderwerpen!$A$6,IF(SUM(Onderwerpen!$B$4:$B$6)+3=A21,Onderwerpen!$A$7,IF(SUM(Onderwerpen!$B$4:$B$7)+4=A21,Onderwerpen!$A$8,IF(SUM(Onderwerpen!$B$4:$B$8)+5=A21,Onderwerpen!$A$9,IF(SUM(Onderwerpen!$B$4:$B$9)+6=A21,Onderwerpen!$A$10,IF(SUM(Onderwerpen!$B$4:$B$10)+7=A21,Onderwerpen!$A$11,IF(SUM(Onderwerpen!$B$4:$B$11)+8=A21,Onderwerpen!$A$12,IF(SUM(Onderwerpen!$B$4:$B$12)+9=A21,Onderwerpen!$A$13,IF(SUM(Onderwerpen!$B$4:$B$13)+10=A21,Onderwerpen!$A$14,IF(SUM(Onderwerpen!$B$4:$B$14)+11=A21,Onderwerpen!$A$15,IF(SUM(Onderwerpen!$B$4:$B$15)+12=A21,Onderwerpen!$A$16,IF(SUM(Onderwerpen!$B$4:$B$16)+13=A21,Onderwerpen!$A$17,IF(SUM(Onderwerpen!$B$4:$B$17)+14=A21,Onderwerpen!$A$18,IF(SUM(Onderwerpen!$B$4:$B$18)+15=A21,Onderwerpen!$A$19,IF(SUM(Onderwerpen!$B$4:$B$19)+16=A21,Onderwerpen!$A$20,IF(SUM(Onderwerpen!$B$4:$B$20)+17=A21,Onderwerpen!$A$21,IF(SUM(Onderwerpen!$B$4:$B$21)+18=A21,Onderwerpen!$A$22,IF(SUM(Onderwerpen!$B$4:$B$22)+19=A21,Onderwerpen!$A$23,IFERROR((IF(A21<Onderwerpen!$D$4,A21,IF(AND(A21>Onderwerpen!$D$4,A21<Onderwerpen!$D$5),A21-1,IF(AND(A21>Onderwerpen!$D$5,A21<Onderwerpen!$D$6),A21-2,IF(AND(A21>Onderwerpen!$D$6,A21<Onderwerpen!$D$7),A21-3,IF(AND(A21>Onderwerpen!$D$7,A21<Onderwerpen!$D$8),A21-4,IF(AND(A21>Onderwerpen!$D$8,A21<Onderwerpen!$D$9),A21-5,IF(AND(A21>Onderwerpen!$D$9,A21<Onderwerpen!$D$10),A21-6,IF(AND(A21>Onderwerpen!$D$10,A21<Onderwerpen!$D$11),A21-7,IF(AND(A21>Onderwerpen!$D$11,A21<Onderwerpen!$D$12),A21-8,IF(AND(A21>Onderwerpen!$D$12,A21<Onderwerpen!$D$13),A21-9,IF(AND(A21>Onderwerpen!$D$13,A21<Onderwerpen!$D$14),A21-10,IF(AND(A21>Onderwerpen!$D$14,A21<Onderwerpen!$D$15),A21-11,IF(AND(A21>Onderwerpen!$D$15,A21<Onderwerpen!$D$16),A21-12,IF(AND(A21>Onderwerpen!$D$16,A21<Onderwerpen!$D$17),A21-13,IF(AND(A21>Onderwerpen!$D$17,A21<Onderwerpen!$D$18),A21-14,IF(AND(A21>Onderwerpen!$D$18,A21<Onderwerpen!$D$19),A21-15,IF(AND(A21>Onderwerpen!$D$19,A21<Onderwerpen!$D$20),A21-16,IF(AND(A21>Onderwerpen!$D$20,A21<Onderwerpen!$D$21),A21-17,IF(AND(A21>Onderwerpen!$D$21,A21<Onderwerpen!$D$22),A21-18,IF(A21>Onderwerpen!$D$22,A21-19,"X"))))))))))))))))))))),"")))))))))))))))))))) -> 12 | D21: =IF(B21="",""&C21,LEFT(B21, FIND(" ",B21)-1) & "."&COUNTIF($B$8:B21,B21)) -> 2.1 | E21: Wordt de HS-cabine jaarlijks gekeurd door een EDTC? | F21: x
A22: =IFERROR(IF(A21=Onderwerpen!$C$23+19,"",A21+1),"") -> 14 | B22: =IF(C22<=Onderwerpen!$C$4,Onderwerpen!$A$4,IF(C22<=Onderwerpen!$C$5,Onderwerpen!$A$5,IF(C22<=Onderwerpen!$C$6,Onderwerpen!$A$6,IF(C22<=Onderwerpen!$C$7,Onderwerpen!$A$7,IF(C22<=Onderwerpen!$C$8,Onderwerpen!$A$8,IF(C22<=Onderwerpen!$C$9,Onderwerpen!$A$9,IF(C22<=Onderwerpen!C$10,Onderwerpen!$A$10,IF(C22<=Onderwerpen!C$11,Onderwerpen!$A$11,IF(C22<=Onderwerpen!C$12,Onderwerpen!$A$12,IF(C22<=Onderwerpen!C$13,Onderwerpen!$A$13,IF(C22<=Onderwerpen!$C$14,Onderwerpen!$A$14,IF(C22<=Onderwerpen!$C$15,Onderwerpen!$A$15,IF(C22<=Onderwerpen!$C$16,Onderwerpen!$A$16,IF(C22<=Onderwerpen!$C$17,Onderwerpen!$A$17,IF(C22<=Onderwerpen!$C$18,Onderwerpen!$A$18,IF(C22<=Onderwerpen!$C$19,Onderwerpen!$A$19,IF(C22<=Onderwerpen!$C$20,Onderwerpen!$A$20,IF(C22<=Onderwerpen!$C$21,Onderwerpen!$A$21,IF(C22<=Onderwerpen!$C$22,Onderwerpen!$A$22,IF(C22<=Onderwerpen!$C$23,Onderwerpen!$A$22,"")))))))))))))))))))) -> 2 Elektriciteit | C22: =IF(Onderwerpen!$B$4+1=A22,Onderwerpen!$A$5,IF(SUM(Onderwerpen!$B$4:$B$5)+2=A22,Onderwerpen!$A$6,IF(SUM(Onderwerpen!$B$4:$B$6)+3=A22,Onderwerpen!$A$7,IF(SUM(Onderwerpen!$B$4:$B$7)+4=A22,Onderwerpen!$A$8,IF(SUM(Onderwerpen!$B$4:$B$8)+5=A22,Onderwerpen!$A$9,IF(SUM(Onderwerpen!$B$4:$B$9)+6=A22,Onderwerpen!$A$10,IF(SUM(Onderwerpen!$B$4:$B$10)+7=A22,Onderwerpen!$A$11,IF(SUM(Onderwerpen!$B$4:$B$11)+8=A22,Onderwerpen!$A$12,IF(SUM(Onderwerpen!$B$4:$B$12)+9=A22,Onderwerpen!$A$13,IF(SUM(Onderwerpen!$B$4:$B$13)+10=A22,Onderwerpen!$A$14,IF(SUM(Onderwerpen!$B$4:$B$14)+11=A22,Onderwerpen!$A$15,IF(SUM(Onderwerpen!$B$4:$B$15)+12=A22,Onderwerpen!$A$16,IF(SUM(Onderwerpen!$B$4:$B$16)+13=A22,Onderwerpen!$A$17,IF(SUM(Onderwerpen!$B$4:$B$17)+14=A22,Onderwerpen!$A$18,IF(SUM(Onderwerpen!$B$4:$B$18)+15=A22,Onderwerpen!$A$19,IF(SUM(Onderwerpen!$B$4:$B$19)+16=A22,Onderwerpen!$A$20,IF(SUM(Onderwerpen!$B$4:$B$20)+17=A22,Onderwerpen!$A$21,IF(SUM(Onderwerpen!$B$4:$B$21)+18=A22,Onderwerpen!$A$22,IF(SUM(Onderwerpen!$B$4:$B$22)+19=A22,Onderwerpen!$A$23,IFERROR((IF(A22<Onderwerpen!$D$4,A22,IF(AND(A22>Onderwerpen!$D$4,A22<Onderwerpen!$D$5),A22-1,IF(AND(A22>Onderwerpen!$D$5,A22<Onderwerpen!$D$6),A22-2,IF(AND(A22>Onderwerpen!$D$6,A22<Onderwerpen!$D$7),A22-3,IF(AND(A22>Onderwerpen!$D$7,A22<Onderwerpen!$D$8),A22-4,IF(AND(A22>Onderwerpen!$D$8,A22<Onderwerpen!$D$9),A22-5,IF(AND(A22>Onderwerpen!$D$9,A22<Onderwerpen!$D$10),A22-6,IF(AND(A22>Onderwerpen!$D$10,A22<Onderwerpen!$D$11),A22-7,IF(AND(A22>Onderwerpen!$D$11,A22<Onderwerpen!$D$12),A22-8,IF(AND(A22>Onderwerpen!$D$12,A22<Onderwerpen!$D$13),A22-9,IF(AND(A22>Onderwerpen!$D$13,A22<Onderwerpen!$D$14),A22-10,IF(AND(A22>Onderwerpen!$D$14,A22<Onderwerpen!$D$15),A22-11,IF(AND(A22>Onderwerpen!$D$15,A22<Onderwerpen!$D$16),A22-12,IF(AND(A22>Onderwerpen!$D$16,A22<Onderwerpen!$D$17),A22-13,IF(AND(A22>Onderwerpen!$D$17,A22<Onderwerpen!$D$18),A22-14,IF(AND(A22>Onderwerpen!$D$18,A22<Onderwerpen!$D$19),A22-15,IF(AND(A22>Onderwerpen!$D$19,A22<Onderwerpen!$D$20),A22-16,IF(AND(A22>Onderwerpen!$D$20,A22<Onderwerpen!$D$21),A22-17,IF(AND(A22>Onderwerpen!$D$21,A22<Onderwerpen!$D$22),A22-18,IF(A22>Onderwerpen!$D$22,A22-19,"X"))))))))))))))))))))),"")))))))))))))))))))) -> 13 | D22: =IF(B22="",""&C22,LEFT(B22, FIND(" ",B22)-1) & "."&COUNTIF($B$8:B22,B22)) -> 2.2 | E22: Wordt de LS-installatie 5 jaarlijks gekeurd door een EDTC? | G22: x | J22: 2.2
A23: =IFERROR(IF(A22=Onderwerpen!$C$23+19,"",A22+1),"") -> 15 | B23: =IF(C23<=Onderwerpen!$C$4,Onderwerpen!$A$4,IF(C23<=Onderwerpen!$C$5,Onderwerpen!$A$5,IF(C23<=Onderwerpen!$C$6,Onderwerpen!$A$6,IF(C23<=Onderwerpen!$C$7,Onderwerpen!$A$7,IF(C23<=Onderwerpen!$C$8,Onderwerpen!$A$8,IF(C23<=Onderwerpen!$C$9,Onderwerpen!$A$9,IF(C23<=Onderwerpen!C$10,Onderwerpen!$A$10,IF(C23<=Onderwerpen!C$11,Onderwerpen!$A$11,IF(C23<=Onderwerpen!C$12,Onderwerpen!$A$12,IF(C23<=Onderwerpen!C$13,Onderwerpen!$A$13,IF(C23<=Onderwerpen!$C$14,Onderwerpen!$A$14,IF(C23<=Onderwerpen!$C$15,Onderwerpen!$A$15,IF(C23<=Onderwerpen!$C$16,Onderwerpen!$A$16,IF(C23<=Onderwerpen!$C$17,Onderwerpen!$A$17,IF(C23<=Onderwerpen!$C$18,Onderwerpen!$A$18,IF(C23<=Onderwerpen!$C$19,Onderwerpen!$A$19,IF(C23<=Onderwerpen!$C$20,Onderwerpen!$A$20,IF(C23<=Onderwerpen!$C$21,Onderwerpen!$A$21,IF(C23<=Onderwerpen!$C$22,Onderwerpen!$A$22,IF(C23<=Onderwerpen!$C$23,Onderwerpen!$A$22,"")))))))))))))))))))) -> 2 Elektriciteit | C23: =IF(Onderwerpen!$B$4+1=A23,Onderwerpen!$A$5,IF(SUM(Onderwerpen!$B$4:$B$5)+2=A23,Onderwerpen!$A$6,IF(SUM(Onderwerpen!$B$4:$B$6)+3=A23,Onderwerpen!$A$7,IF(SUM(Onderwerpen!$B$4:$B$7)+4=A23,Onderwerpen!$A$8,IF(SUM(Onderwerpen!$B$4:$B$8)+5=A23,Onderwerpen!$A$9,IF(SUM(Onderwerpen!$B$4:$B$9)+6=A23,Onderwerpen!$A$10,IF(SUM(Onderwerpen!$B$4:$B$10)+7=A23,Onderwerpen!$A$11,IF(SUM(Onderwerpen!$B$4:$B$11)+8=A23,Onderwerpen!$A$12,IF(SUM(Onderwerpen!$B$4:$B$12)+9=A23,Onderwerpen!$A$13,IF(SUM(Onderwerpen!$B$4:$B$13)+10=A23,Onderwerpen!$A$14,IF(SUM(Onderwerpen!$B$4:$B$14)+11=A23,Onderwerpen!$A$15,IF(SUM(Onderwerpen!$B$4:$B$15)+12=A23,Onderwerpen!$A$16,IF(SUM(Onderwerpen!$B$4:$B$16)+13=A23,Onderwerpen!$A$17,IF(SUM(Onderwerpen!$B$4:$B$17)+14=A23,Onderwerpen!$A$18,IF(SUM(Onderwerpen!$B$4:$B$18)+15=A23,Onderwerpen!$A$19,IF(SUM(Onderwerpen!$B$4:$B$19)+16=A23,Onderwerpen!$A$20,IF(SUM(Onderwerpen!$B$4:$B$20)+17=A23,Onderwerpen!$A$21,IF(SUM(Onderwerpen!$B$4:$B$21)+18=A23,Onderwerpen!$A$22,IF(SUM(Onderwerpen!$B$4:$B$22)+19=A23,Onderwerpen!$A$23,IFERROR((IF(A23<Onderwerpen!$D$4,A23,IF(AND(A23>Onderwerpen!$D$4,A23<Onderwerpen!$D$5),A23-1,IF(AND(A23>Onderwerpen!$D$5,A23<Onderwerpen!$D$6),A23-2,IF(AND(A23>Onderwerpen!$D$6,A23<Onderwerpen!$D$7),A23-3,IF(AND(A23>Onderwerpen!$D$7,A23<Onderwerpen!$D$8),A23-4,IF(AND(A23>Onderwerpen!$D$8,A23<Onderwerpen!$D$9),A23-5,IF(AND(A23>Onderwerpen!$D$9,A23<Onderwerpen!$D$10),A23-6,IF(AND(A23>Onderwerpen!$D$10,A23<Onderwerpen!$D$11),A23-7,IF(AND(A23>Onderwerpen!$D$11,A23<Onderwerpen!$D$12),A23-8,IF(AND(A23>Onderwerpen!$D$12,A23<Onderwerpen!$D$13),A23-9,IF(AND(A23>Onderwerpen!$D$13,A23<Onderwerpen!$D$14),A23-10,IF(AND(A23>Onderwerpen!$D$14,A23<Onderwerpen!$D$15),A23-11,IF(AND(A23>Onderwerpen!$D$15,A23<Onderwerpen!$D$16),A23-12,IF(AND(A23>Onderwerpen!$D$16,A23<Onderwerpen!$D$17),A23-13,IF(AND(A23>Onderwerpen!$D$17,A23<Onderwerpen!$D$18),A23-14,IF(AND(A23>Onderwerpen!$D$18,A23<Onderwerpen!$D$19),A23-15,IF(AND(A23>Onderwerpen!$D$19,A23<Onderwerpen!$D$20),A23-16,IF(AND(A23>Onderwerpen!$D$20,A23<Onderwerpen!$D$21),A23-17,IF(AND(A23>Onderwerpen!$D$21,A23<Onderwerpen!$D$22),A23-18,IF(A23>Onderwerpen!$D$22,A23-19,"X"))))))))))))))))))))),"")))))))))))))))))))) -> 14 | D23: =IF(B23="",""&C23,LEFT(B23, FIND(" ",B23)-1) & "."&COUNTIF($B$8:B23,B23)) -> 2.3 | E23: Zijn alle deuren van de LS-kasten dicht? | G23: x | J23: 2.3
A24: =IFERROR(IF(A23=Onderwerpen!$C$23+19,"",A23+1),"") -> 16 | B24: =IF(C24<=Onderwerpen!$C$4,Onderwerpen!$A$4,IF(C24<=Onderwerpen!$C$5,Onderwerpen!$A$5,IF(C24<=Onderwerpen!$C$6,Onderwerpen!$A$6,IF(C24<=Onderwerpen!$C$7,Onderwerpen!$A$7,IF(C24<=Onderwerpen!$C$8,Onderwerpen!$A$8,IF(C24<=Onderwerpen!$C$9,Onderwerpen!$A$9,IF(C24<=Onderwerpen!C$10,Onderwerpen!$A$10,IF(C24<=Onderwerpen!C$11,Onderwerpen!$A$11,IF(C24<=Onderwerpen!C$12,Onderwerpen!$A$12,IF(C24<=Onderwerpen!C$13,Onderwerpen!$A$13,IF(C24<=Onderwerpen!$C$14,Onderwerpen!$A$14,IF(C24<=Onderwerpen!$C$15,Onderwerpen!$A$15,IF(C24<=Onderwerpen!$C$16,Onderwerpen!$A$16,IF(C24<=Onderwerpen!$C$17,Onderwerpen!$A$17,IF(C24<=Onderwerpen!$C$18,Onderwerpen!$A$18,IF(C24<=Onderwerpen!$C$19,Onderwerpen!$A$19,IF(C24<=Onderwerpen!$C$20,Onderwerpen!$A$20,IF(C24<=Onderwerpen!$C$21,Onderwerpen!$A$21,IF(C24<=Onderwerpen!$C$22,Onderwerpen!$A$22,IF(C24<=Onderwerpen!$C$23,Onderwerpen!$A$22,"")))))))))))))))))))) -> 2 Elektriciteit | C24: =IF(Onderwerpen!$B$4+1=A24,Onderwerpen!$A$5,IF(SUM(Onderwerpen!$B$4:$B$5)+2=A24,Onderwerpen!$A$6,IF(SUM(Onderwerpen!$B$4:$B$6)+3=A24,Onderwerpen!$A$7,IF(SUM(Onderwerpen!$B$4:$B$7)+4=A24,Onderwerpen!$A$8,IF(SUM(Onderwerpen!$B$4:$B$8)+5=A24,Onderwerpen!$A$9,IF(SUM(Onderwerpen!$B$4:$B$9)+6=A24,Onderwerpen!$A$10,IF(SUM(Onderwerpen!$B$4:$B$10)+7=A24,Onderwerpen!$A$11,IF(SUM(Onderwerpen!$B$4:$B$11)+8=A24,Onderwerpen!$A$12,IF(SUM(Onderwerpen!$B$4:$B$12)+9=A24,Onderwerpen!$A$13,IF(SUM(Onderwerpen!$B$4:$B$13)+10=A24,Onderwerpen!$A$14,IF(SUM(Onderwerpen!$B$4:$B$14)+11=A24,Onderwerpen!$A$15,IF(SUM(Onderwerpen!$B$4:$B$15)+12=A24,Onderwerpen!$A$16,IF(SUM(Onderwerpen!$B$4:$B$16)+13=A24,Onderwerpen!$A$17,IF(SUM(Onderwerpen!$B$4:$B$17)+14=A24,Onderwerpen!$A$18,IF(SUM(Onderwerpen!$B$4:$B$18)+15=A24,Onderwerpen!$A$19,IF(SUM(Onderwerpen!$B$4:$B$19)+16=A24,Onderwerpen!$A$20,IF(SUM(Onderwerpen!$B$4:$B$20)+17=A24,Onderwerpen!$A$21,IF(SUM(Onderwerpen!$B$4:$B$21)+18=A24,Onderwerpen!$A$22,IF(SUM(Onderwerpen!$B$4:$B$22)+19=A24,Onderwerpen!$A$23,IFERROR((IF(A24<Onderwerpen!$D$4,A24,IF(AND(A24>Onderwerpen!$D$4,A24<Onderwerpen!$D$5),A24-1,IF(AND(A24>Onderwerpen!$D$5,A24<Onderwerpen!$D$6),A24-2,IF(AND(A24>Onderwerpen!$D$6,A24<Onderwerpen!$D$7),A24-3,IF(AND(A24>Onderwerpen!$D$7,A24<Onderwerpen!$D$8),A24-4,IF(AND(A24>Onderwerpen!$D$8,A24<Onderwerpen!$D$9),A24-5,IF(AND(A24>Onderwerpen!$D$9,A24<Onderwerpen!$D$10),A24-6,IF(AND(A24>Onderwerpen!$D$10,A24<Onderwerpen!$D$11),A24-7,IF(AND(A24>Onderwerpen!$D$11,A24<Onderwerpen!$D$12),A24-8,IF(AND(A24>Onderwerpen!$D$12,A24<Onderwerpen!$D$13),A24-9,IF(AND(A24>Onderwerpen!$D$13,A24<Onderwerpen!$D$14),A24-10,IF(AND(A24>Onderwerpen!$D$14,A24<Onderwerpen!$D$15),A24-11,IF(AND(A24>Onderwerpen!$D$15,A24<Onderwerpen!$D$16),A24-12,IF(AND(A24>Onderwerpen!$D$16,A24<Onderwerpen!$D$17),A24-13,IF(AND(A24>Onderwerpen!$D$17,A24<Onderwerpen!$D$18),A24-14,IF(AND(A24>Onderwerpen!$D$18,A24<Onderwerpen!$D$19),A24-15,IF(AND(A24>Onderwerpen!$D$19,A24<Onderwerpen!$D$20),A24-16,IF(AND(A24>Onderwerpen!$D$20,A24<Onderwerpen!$D$21),A24-17,IF(AND(A24>Onderwerpen!$D$21,A24<Onderwerpen!$D$22),A24-18,IF(A24>Onderwerpen!$D$22,A24-19,"X"))))))))))))))))))))),"")))))))))))))))))))) -> 15 | D24: =IF(B24="",""&C24,LEFT(B24, FIND(" ",B24)-1) & "."&COUNTIF($B$8:B24,B24)) -> 2.4 | E24: Zijn de kasten voorzien van schema's? | G24: x | J24: 2.4
A25: =IFERROR(IF(A24=Onderwerpen!$C$23+19,"",A24+1),"") -> 17 | B25: =IF(C25<=Onderwerpen!$C$4,Onderwerpen!$A$4,IF(C25<=Onderwerpen!$C$5,Onderwerpen!$A$5,IF(C25<=Onderwerpen!$C$6,Onderwerpen!$A$6,IF(C25<=Onderwerpen!$C$7,Onderwerpen!$A$7,IF(C25<=Onderwerpen!$C$8,Onderwerpen!$A$8,IF(C25<=Onderwerpen!$C$9,Onderwerpen!$A$9,IF(C25<=Onderwerpen!C$10,Onderwerpen!$A$10,IF(C25<=Onderwerpen!C$11,Onderwerpen!$A$11,IF(C25<=Onderwerpen!C$12,Onderwerpen!$A$12,IF(C25<=Onderwerpen!C$13,Onderwerpen!$A$13,IF(C25<=Onderwerpen!$C$14,Onderwerpen!$A$14,IF(C25<=Onderwerpen!$C$15,Onderwerpen!$A$15,IF(C25<=Onderwerpen!$C$16,Onderwerpen!$A$16,IF(C25<=Onderwerpen!$C$17,Onderwerpen!$A$17,IF(C25<=Onderwerpen!$C$18,Onderwerpen!$A$18,IF(C25<=Onderwerpen!$C$19,Onderwerpen!$A$19,IF(C25<=Onderwerpen!$C$20,Onderwerpen!$A$20,IF(C25<=Onderwerpen!$C$21,Onderwerpen!$A$21,IF(C25<=Onderwerpen!$C$22,Onderwerpen!$A$22,IF(C25<=Onderwerpen!$C$23,Onderwerpen!$A$22,"")))))))))))))))))))) -> 2 Elektriciteit | C25: =IF(Onderwerpen!$B$4+1=A25,Onderwerpen!$A$5,IF(SUM(Onderwerpen!$B$4:$B$5)+2=A25,Onderwerpen!$A$6,IF(SUM(Onderwerpen!$B$4:$B$6)+3=A25,Onderwerpen!$A$7,IF(SUM(Onderwerpen!$B$4:$B$7)+4=A25,Onderwerpen!$A$8,IF(SUM(Onderwerpen!$B$4:$B$8)+5=A25,Onderwerpen!$A$9,IF(SUM(Onderwerpen!$B$4:$B$9)+6=A25,Onderwerpen!$A$10,IF(SUM(Onderwerpen!$B$4:$B$10)+7=A25,Onderwerpen!$A$11,IF(SUM(Onderwerpen!$B$4:$B$11)+8=A25,Onderwerpen!$A$12,IF(SUM(Onderwerpen!$B$4:$B$12)+9=A25,Onderwerpen!$A$13,IF(SUM(Onderwerpen!$B$4:$B$13)+10=A25,Onderwerpen!$A$14,IF(SUM(Onderwerpen!$B$4:$B$14)+11=A25,Onderwerpen!$A$15,IF(SUM(Onderwerpen!$B$4:$B$15)+12=A25,Onderwerpen!$A$16,IF(SUM(Onderwerpen!$B$4:$B$16)+13=A25,Onderwerpen!$A$17,IF(SUM(Onderwerpen!$B$4:$B$17)+14=A25,Onderwerpen!$A$18,IF(SUM(Onderwerpen!$B$4:$B$18)+15=A25,Onderwerpen!$A$19,IF(SUM(Onderwerpen!$B$4:$B$19)+16=A25,Onderwerpen!$A$20,IF(SUM(Onderwerpen!$B$4:$B$20)+17=A25,Onderwerpen!$A$21,IF(SUM(Onderwerpen!$B$4:$B$21)+18=A25,Onderwerpen!$A$22,IF(SUM(Onderwerpen!$B$4:$B$22)+19=A25,Onderwerpen!$A$23,IFERROR((IF(A25<Onderwerpen!$D$4,A25,IF(AND(A25>Onderwerpen!$D$4,A25<Onderwerpen!$D$5),A25-1,IF(AND(A25>Onderwerpen!$D$5,A25<Onderwerpen!$D$6),A25-2,IF(AND(A25>Onderwerpen!$D$6,A25<Onderwerpen!$D$7),A25-3,IF(AND(A25>Onderwerpen!$D$7,A25<Onderwerpen!$D$8),A25-4,IF(AND(A25>Onderwerpen!$D$8,A25<Onderwerpen!$D$9),A25-5,IF(AND(A25>Onderwerpen!$D$9,A25<Onderwerpen!$D$10),A25-6,IF(AND(A25>Onderwerpen!$D$10,A25<Onderwerpen!$D$11),A25-7,IF(AND(A25>Onderwerpen!$D$11,A25<Onderwerpen!$D$12),A25-8,IF(AND(A25>Onderwerpen!$D$12,A25<Onderwerpen!$D$13),A25-9,IF(AND(A25>Onderwerpen!$D$13,A25<Onderwerpen!$D$14),A25-10,IF(AND(A25>Onderwerpen!$D$14,A25<Onderwerpen!$D$15),A25-11,IF(AND(A25>Onderwerpen!$D$15,A25<Onderwerpen!$D$16),A25-12,IF(AND(A25>Onderwerpen!$D$16,A25<Onderwerpen!$D$17),A25-13,IF(AND(A25>Onderwerpen!$D$17,A25<Onderwerpen!$D$18),A25-14,IF(AND(A25>Onderwerpen!$D$18,A25<Onderwerpen!$D$19),A25-15,IF(AND(A25>Onderwerpen!$D$19,A25<Onderwerpen!$D$20),A25-16,IF(AND(A25>Onderwerpen!$D$20,A25<Onderwerpen!$D$21),A25-17,IF(AND(A25>Onderwerpen!$D$21,A25<Onderwerpen!$D$22),A25-18,IF(A25>Onderwerpen!$D$22,A25-19,"X"))))))))))))))))))))),"")))))))))))))))))))) -> 16 | D25: =IF(B25="",""&C25,LEFT(B25, FIND(" ",B25)-1) & "."&COUNTIF($B$8:B25,B25)) -> 2.5 | E25: zijn de kasten voorzien van een pictogram? | H25: x
A26: =IFERROR(IF(A25=Onderwerpen!$C$23+19,"",A25+1),"") -> 18 | B26: =IF(C26<=Onderwerpen!$C$4,Onderwerpen!$A$4,IF(C26<=Onderwerpen!$C$5,Onderwerpen!$A$5,IF(C26<=Onderwerpen!$C$6,Onderwerpen!$A$6,IF(C26<=Onderwerpen!$C$7,Onderwerpen!$A$7,IF(C26<=Onderwerpen!$C$8,Onderwerpen!$A$8,IF(C26<=Onderwerpen!$C$9,Onderwerpen!$A$9,IF(C26<=Onderwerpen!C$10,Onderwerpen!$A$10,IF(C26<=Onderwerpen!C$11,Onderwerpen!$A$11,IF(C26<=Onderwerpen!C$12,Onderwerpen!$A$12,IF(C26<=Onderwerpen!C$13,Onderwerpen!$A$13,IF(C26<=Onderwerpen!$C$14,Onderwerpen!$A$14,IF(C26<=Onderwerpen!$C$15,Onderwerpen!$A$15,IF(C26<=Onderwerpen!$C$16,Onderwerpen!$A$16,IF(C26<=Onderwerpen!$C$17,Onderwerpen!$A$17,IF(C26<=Onderwerpen!$C$18,Onderwerpen!$A$18,IF(C26<=Onderwerpen!$C$19,Onderwerpen!$A$19,IF(C26<=Onderwerpen!$C$20,Onderwerpen!$A$20,IF(C26<=Onderwerpen!$C$21,Onderwerpen!$A$21,IF(C26<=Onderwerpen!$C$22,Onderwerpen!$A$22,IF(C26<=Onderwerpen!$C$23,Onderwerpen!$A$22,"")))))))))))))))))))) -> 2 Elektriciteit | C26: =IF(Onderwerpen!$B$4+1=A26,Onderwerpen!$A$5,IF(SUM(Onderwerpen!$B$4:$B$5)+2=A26,Onderwerpen!$A$6,IF(SUM(Onderwerpen!$B$4:$B$6)+3=A26,Onderwerpen!$A$7,IF(SUM(Onderwerpen!$B$4:$B$7)+4=A26,Onderwerpen!$A$8,IF(SUM(Onderwerpen!$B$4:$B$8)+5=A26,Onderwerpen!$A$9,IF(SUM(Onderwerpen!$B$4:$B$9)+6=A26,Onderwerpen!$A$10,IF(SUM(Onderwerpen!$B$4:$B$10)+7=A26,Onderwerpen!$A$11,IF(SUM(Onderwerpen!$B$4:$B$11)+8=A26,Onderwerpen!$A$12,IF(SUM(Onderwerpen!$B$4:$B$12)+9=A26,Onderwerpen!$A$13,IF(SUM(Onderwerpen!$B$4:$B$13)+10=A26,Onderwerpen!$A$14,IF(SUM(Onderwerpen!$B$4:$B$14)+11=A26,Onderwerpen!$A$15,IF(SUM(Onderwerpen!$B$4:$B$15)+12=A26,Onderwerpen!$A$16,IF(SUM(Onderwerpen!$B$4:$B$16)+13=A26,Onderwerpen!$A$17,IF(SUM(Onderwerpen!$B$4:$B$17)+14=A26,Onderwerpen!$A$18,IF(SUM(Onderwerpen!$B$4:$B$18)+15=A26,Onderwerpen!$A$19,IF(SUM(Onderwerpen!$B$4:$B$19)+16=A26,Onderwerpen!$A$20,IF(SUM(Onderwerpen!$B$4:$B$20)+17=A26,Onderwerpen!$A$21,IF(SUM(Onderwerpen!$B$4:$B$21)+18=A26,Onderwerpen!$A$22,IF(SUM(Onderwerpen!$B$4:$B$22)+19=A26,Onderwerpen!$A$23,IFERROR((IF(A26<Onderwerpen!$D$4,A26,IF(AND(A26>Onderwerpen!$D$4,A26<Onderwerpen!$D$5),A26-1,IF(AND(A26>Onderwerpen!$D$5,A26<Onderwerpen!$D$6),A26-2,IF(AND(A26>Onderwerpen!$D$6,A26<Onderwerpen!$D$7),A26-3,IF(AND(A26>Onderwerpen!$D$7,A26<Onderwerpen!$D$8),A26-4,IF(AND(A26>Onderwerpen!$D$8,A26<Onderwerpen!$D$9),A26-5,IF(AND(A26>Onderwerpen!$D$9,A26<Onderwerpen!$D$10),A26-6,IF(AND(A26>Onderwerpen!$D$10,A26<Onderwerpen!$D$11),A26-7,IF(AND(A26>Onderwerpen!$D$11,A26<Onderwerpen!$D$12),A26-8,IF(AND(A26>Onderwerpen!$D$12,A26<Onderwerpen!$D$13),A26-9,IF(AND(A26>Onderwerpen!$D$13,A26<Onderwerpen!$D$14),A26-10,IF(AND(A26>Onderwerpen!$D$14,A26<Onderwerpen!$D$15),A26-11,IF(AND(A26>Onderwerpen!$D$15,A26<Onderwerpen!$D$16),A26-12,IF(AND(A26>Onderwerpen!$D$16,A26<Onderwerpen!$D$17),A26-13,IF(AND(A26>Onderwerpen!$D$17,A26<Onderwerpen!$D$18),A26-14,IF(AND(A26>Onderwerpen!$D$18,A26<Onderwerpen!$D$19),A26-15,IF(AND(A26>Onderwerpen!$D$19,A26<Onderwerpen!$D$20),A26-16,IF(AND(A26>Onderwerpen!$D$20,A26<Onderwerpen!$D$21),A26-17,IF(AND(A26>Onderwerpen!$D$21,A26<Onderwerpen!$D$22),A26-18,IF(A26>Onderwerpen!$D$22,A26-19,"X"))))))))))))))))))))),"")))))))))))))))))))) -> 17 | D26: =IF(B26="",""&C26,LEFT(B26, FIND(" ",B26)-1) & "."&COUNTIF($B$8:B26,B26)) -> 2.6 | E26: Zijn de kasten voorzien van een spanningsaanduiding? | H26: x
A27: =IFERROR(IF(A26=Onderwerpen!$C$23+19,"",A26+1),"") -> 19 | B27: =IF(C27<=Onderwerpen!$C$4,Onderwerpen!$A$4,IF(C27<=Onderwerpen!$C$5,Onderwerpen!$A$5,IF(C27<=Onderwerpen!$C$6,Onderwerpen!$A$6,IF(C27<=Onderwerpen!$C$7,Onderwerpen!$A$7,IF(C27<=Onderwerpen!$C$8,Onderwerpen!$A$8,IF(C27<=Onderwerpen!$C$9,Onderwerpen!$A$9,IF(C27<=Onderwerpen!C$10,Onderwerpen!$A$10,IF(C27<=Onderwerpen!C$11,Onderwerpen!$A$11,IF(C27<=Onderwerpen!C$12,Onderwerpen!$A$12,IF(C27<=Onderwerpen!C$13,Onderwerpen!$A$13,IF(C27<=Onderwerpen!$C$14,Onderwerpen!$A$14,IF(C27<=Onderwerpen!$C$15,Onderwerpen!$A$15,IF(C27<=Onderwerpen!$C$16,Onderwerpen!$A$16,IF(C27<=Onderwerpen!$C$17,Onderwerpen!$A$17,IF(C27<=Onderwerpen!$C$18,Onderwerpen!$A$18,IF(C27<=Onderwerpen!$C$19,Onderwerpen!$A$19,IF(C27<=Onderwerpen!$C$20,Onderwerpen!$A$20,IF(C27<=Onderwerpen!$C$21,Onderwerpen!$A$21,IF(C27<=Onderwerpen!$C$22,Onderwerpen!$A$22,IF(C27<=Onderwerpen!$C$23,Onderwerpen!$A$22,"")))))))))))))))))))) -> 2 Elektriciteit | C27: =IF(Onderwerpen!$B$4+1=A27,Onderwerpen!$A$5,IF(SUM(Onderwerpen!$B$4:$B$5)+2=A27,Onderwerpen!$A$6,IF(SUM(Onderwerpen!$B$4:$B$6)+3=A27,Onderwerpen!$A$7,IF(SUM(Onderwerpen!$B$4:$B$7)+4=A27,Onderwerpen!$A$8,IF(SUM(Onderwerpen!$B$4:$B$8)+5=A27,Onderwerpen!$A$9,IF(SUM(Onderwerpen!$B$4:$B$9)+6=A27,Onderwerpen!$A$10,IF(SUM(Onderwerpen!$B$4:$B$10)+7=A27,Onderwerpen!$A$11,IF(SUM(Onderwerpen!$B$4:$B$11)+8=A27,Onderwerpen!$A$12,IF(SUM(Onderwerpen!$B$4:$B$12)+9=A27,Onderwerpen!$A$13,IF(SUM(Onderwerpen!$B$4:$B$13)+10=A27,Onderwerpen!$A$14,IF(SUM(Onderwerpen!$B$4:$B$14)+11=A27,Onderwerpen!$A$15,IF(SUM(Onderwerpen!$B$4:$B$15)+12=A27,Onderwerpen!$A$16,IF(SUM(Onderwerpen!$B$4:$B$16)+13=A27,Onderwerpen!$A$17,IF(SUM(Onderwerpen!$B$4:$B$17)+14=A27,Onderwerpen!$A$18,IF(SUM(Onderwerpen!$B$4:$B$18)+15=A27,Onderwerpen!$A$19,IF(SUM(Onderwerpen!$B$4:$B$19)+16=A27,Onderwerpen!$A$20,IF(SUM(Onderwerpen!$B$4:$B$20)+17=A27,Onderwerpen!$A$21,IF(SUM(Onderwerpen!$B$4:$B$21)+18=A27,Onderwerpen!$A$22,IF(SUM(Onderwerpen!$B$4:$B$22)+19=A27,Onderwerpen!$A$23,IFERROR((IF(A27<Onderwerpen!$D$4,A27,IF(AND(A27>Onderwerpen!$D$4,A27<Onderwerpen!$D$5),A27-1,IF(AND(A27>Onderwerpen!$D$5,A27<Onderwerpen!$D$6),A27-2,IF(AND(A27>Onderwerpen!$D$6,A27<Onderwerpen!$D$7),A27-3,IF(AND(A27>Onderwerpen!$D$7,A27<Onderwerpen!$D$8),A27-4,IF(AND(A27>Onderwerpen!$D$8,A27<Onderwerpen!$D$9),A27-5,IF(AND(A27>Onderwerpen!$D$9,A27<Onderwerpen!$D$10),A27-6,IF(AND(A27>Onderwerpen!$D$10,A27<Onderwerpen!$D$11),A27-7,IF(AND(A27>Onderwerpen!$D$11,A27<Onderwerpen!$D$12),A27-8,IF(AND(A27>Onderwerpen!$D$12,A27<Onderwerpen!$D$13),A27-9,IF(AND(A27>Onderwerpen!$D$13,A27<Onderwerpen!$D$14),A27-10,IF(AND(A27>Onderwerpen!$D$14,A27<Onderwerpen!$D$15),A27-11,IF(AND(A27>Onderwerpen!$D$15,A27<Onderwerpen!$D$16),A27-12,IF(AND(A27>Onderwerpen!$D$16,A27<Onderwerpen!$D$17),A27-13,IF(AND(A27>Onderwerpen!$D$17,A27<Onderwerpen!$D$18),A27-14,IF(AND(A27>Onderwerpen!$D$18,A27<Onderwerpen!$D$19),A27-15,IF(AND(A27>Onderwerpen!$D$19,A27<Onderwerpen!$D$20),A27-16,IF(AND(A27>Onderwerpen!$D$20,A27<Onderwerpen!$D$21),A27-17,IF(AND(A27>Onderwerpen!$D$21,A27<Onderwerpen!$D$22),A27-18,IF(A27>Onderwerpen!$D$22,A27-19,"X"))))))))))))))))))))),"")))))))))))))))))))) -> 18 | D27: =IF(B27="",""&C27,LEFT(B27, FIND(" ",B27)-1) & "."&COUNTIF($B$8:B27,B27)) -> 2.7 | E27: Bestaat er een zoneringsplan voor opslag van ontvlambare producten? | G27: x | J27: 2.7
A28: =IFERROR(IF(A27=Onderwerpen!$C$23+19,"",A27+1),"") -> 20 | B28: =IF(C28<=Onderwerpen!$C$4,Onderwerpen!$A$4,IF(C28<=Onderwerpen!$C$5,Onderwerpen!$A$5,IF(C28<=Onderwerpen!$C$6,Onderwerpen!$A$6,IF(C28<=Onderwerpen!$C$7,Onderwerpen!$A$7,IF(C28<=Onderwerpen!$C$8,Onderwerpen!$A$8,IF(C28<=Onderwerpen!$C$9,Onderwerpen!$A$9,IF(C28<=Onderwerpen!C$10,Onderwerpen!$A$10,IF(C28<=Onderwerpen!C$11,Onderwerpen!$A$11,IF(C28<=Onderwerpen!C$12,Onderwerpen!$A$12,IF(C28<=Onderwerpen!C$13,Onderwerpen!$A$13,IF(C28<=Onderwerpen!$C$14,Onderwerpen!$A$14,IF(C28<=Onderwerpen!$C$15,Onderwerpen!$A$15,IF(C28<=Onderwerpen!$C$16,Onderwerpen!$A$16,IF(C28<=Onderwerpen!$C$17,Onderwerpen!$A$17,IF(C28<=Onderwerpen!$C$18,Onderwerpen!$A$18,IF(C28<=Onderwerpen!$C$19,Onderwerpen!$A$19,IF(C28<=Onderwerpen!$C$20,Onderwerpen!$A$20,IF(C28<=Onderwerpen!$C$21,Onderwerpen!$A$21,IF(C28<=Onderwerpen!$C$22,Onderwerpen!$A$22,IF(C28<=Onderwerpen!$C$23,Onderwerpen!$A$22,"")))))))))))))))))))) ->  | C28: =IF(Onderwerpen!$B$4+1=A28,Onderwerpen!$A$5,IF(SUM(Onderwerpen!$B$4:$B$5)+2=A28,Onderwerpen!$A$6,IF(SUM(Onderwerpen!$B$4:$B$6)+3=A28,Onderwerpen!$A$7,IF(SUM(Onderwerpen!$B$4:$B$7)+4=A28,Onderwerpen!$A$8,IF(SUM(Onderwerpen!$B$4:$B$8)+5=A28,Onderwerpen!$A$9,IF(SUM(Onderwerpen!$B$4:$B$9)+6=A28,Onderwerpen!$A$10,IF(SUM(Onderwerpen!$B$4:$B$10)+7=A28,Onderwerpen!$A$11,IF(SUM(Onderwerpen!$B$4:$B$11)+8=A28,Onderwerpen!$A$12,IF(SUM(Onderwerpen!$B$4:$B$12)+9=A28,Onderwerpen!$A$13,IF(SUM(Onderwerpen!$B$4:$B$13)+10=A28,Onderwerpen!$A$14,IF(SUM(Onderwerpen!$B$4:$B$14)+11=A28,Onderwerpen!$A$15,IF(SUM(Onderwerpen!$B$4:$B$15)+12=A28,Onderwerpen!$A$16,IF(SUM(Onderwerpen!$B$4:$B$16)+13=A28,Onderwerpen!$A$17,IF(SUM(Onderwerpen!$B$4:$B$17)+14=A28,Onderwerpen!$A$18,IF(SUM(Onderwerpen!$B$4:$B$18)+15=A28,Onderwerpen!$A$19,IF(SUM(Onderwerpen!$B$4:$B$19)+16=A28,Onderwerpen!$A$20,IF(SUM(Onderwerpen!$B$4:$B$20)+17=A28,Onderwerpen!$A$21,IF(SUM(Onderwerpen!$B$4:$B$21)+18=A28,Onderwerpen!$A$22,IF(SUM(Onderwerpen!$B$4:$B$22)+19=A28,Onderwerpen!$A$23,IFERROR((IF(A28<Onderwerpen!$D$4,A28,IF(AND(A28>Onderwerpen!$D$4,A28<Onderwerpen!$D$5),A28-1,IF(AND(A28>Onderwerpen!$D$5,A28<Onderwerpen!$D$6),A28-2,IF(AND(A28>Onderwerpen!$D$6,A28<Onderwerpen!$D$7),A28-3,IF(AND(A28>Onderwerpen!$D$7,A28<Onderwerpen!$D$8),A28-4,IF(AND(A28>Onderwerpen!$D$8,A28<Onderwerpen!$D$9),A28-5,IF(AND(A28>Onderwerpen!$D$9,A28<Onderwerpen!$D$10),A28-6,IF(AND(A28>Onderwerpen!$D$10,A28<Onderwerpen!$D$11),A28-7,IF(AND(A28>Onderwerpen!$D$11,A28<Onderwerpen!$D$12),A28-8,IF(AND(A28>Onderwerpen!$D$12,A28<Onderwerpen!$D$13),A28-9,IF(AND(A28>Onderwerpen!$D$13,A28<Onderwerpen!$D$14),A28-10,IF(AND(A28>Onderwerpen!$D$14,A28<Onderwerpen!$D$15),A28-11,IF(AND(A28>Onderwerpen!$D$15,A28<Onderwerpen!$D$16),A28-12,IF(AND(A28>Onderwerpen!$D$16,A28<Onderwerpen!$D$17),A28-13,IF(AND(A28>Onderwerpen!$D$17,A28<Onderwerpen!$D$18),A28-14,IF(AND(A28>Onderwerpen!$D$18,A28<Onderwerpen!$D$19),A28-15,IF(AND(A28>Onderwerpen!$D$19,A28<Onderwerpen!$D$20),A28-16,IF(AND(A28>Onderwerpen!$D$20,A28<Onderwerpen!$D$21),A28-17,IF(AND(A28>Onderwerpen!$D$21,A28<Onderwerpen!$D$22),A28-18,IF(A28>Onderwerpen!$D$22,A28-19,"X"))))))))))))))))))))),"")))))))))))))))))))) -> 3 Medisch toezicht | D28: =IF(B28="",""&C28,LEFT(B28, FIND(" ",B28)-1) & "."&COUNTIF($B$8:B28,B28)) -> 3 Medisch toezicht
A29: =IFERROR(IF(A28=Onderwerpen!$C$23+19,"",A28+1),"") -> 21 | B29: =IF(C29<=Onderwerpen!$C$4,Onderwerpen!$A$4,IF(C29<=Onderwerpen!$C$5,Onderwerpen!$A$5,IF(C29<=Onderwerpen!$C$6,Onderwerpen!$A$6,IF(C29<=Onderwerpen!$C$7,Onderwerpen!$A$7,IF(C29<=Onderwerpen!$C$8,Onderwerpen!$A$8,IF(C29<=Onderwerpen!$C$9,Onderwerpen!$A$9,IF(C29<=Onderwerpen!C$10,Onderwerpen!$A$10,IF(C29<=Onderwerpen!C$11,Onderwerpen!$A$11,IF(C29<=Onderwerpen!C$12,Onderwerpen!$A$12,IF(C29<=Onderwerpen!C$13,Onderwerpen!$A$13,IF(C29<=Onderwerpen!$C$14,Onderwerpen!$A$14,IF(C29<=Onderwerpen!$C$15,Onderwerpen!$A$15,IF(C29<=Onderwerpen!$C$16,Onderwerpen!$A$16,IF(C29<=Onderwerpen!$C$17,Onderwerpen!$A$17,IF(C29<=Onderwerpen!$C$18,Onderwerpen!$A$18,IF(C29<=Onderwerpen!$C$19,Onderwerpen!$A$19,IF(C29<=Onderwerpen!$C$20,Onderwerpen!$A$20,IF(C29<=Onderwerpen!$C$21,Onderwerpen!$A$21,IF(C29<=Onderwerpen!$C$22,Onderwerpen!$A$22,IF(C29<=Onderwerpen!$C$23,Onderwerpen!$A$22,"")))))))))))))))))))) -> 3 Medisch toezicht | C29: =IF(Onderwerpen!$B$4+1=A29,Onderwerpen!$A$5,IF(SUM(Onderwerpen!$B$4:$B$5)+2=A29,Onderwerpen!$A$6,IF(SUM(Onderwerpen!$B$4:$B$6)+3=A29,Onderwerpen!$A$7,IF(SUM(Onderwerpen!$B$4:$B$7)+4=A29,Onderwerpen!$A$8,IF(SUM(Onderwerpen!$B$4:$B$8)+5=A29,Onderwerpen!$A$9,IF(SUM(Onderwerpen!$B$4:$B$9)+6=A29,Onderwerpen!$A$10,IF(SUM(Onderwerpen!$B$4:$B$10)+7=A29,Onderwerpen!$A$11,IF(SUM(Onderwerpen!$B$4:$B$11)+8=A29,Onderwerpen!$A$12,IF(SUM(Onderwerpen!$B$4:$B$12)+9=A29,Onderwerpen!$A$13,IF(SUM(Onderwerpen!$B$4:$B$13)+10=A29,Onderwerpen!$A$14,IF(SUM(Onderwerpen!$B$4:$B$14)+11=A29,Onderwerpen!$A$15,IF(SUM(Onderwerpen!$B$4:$B$15)+12=A29,Onderwerpen!$A$16,IF(SUM(Onderwerpen!$B$4:$B$16)+13=A29,Onderwerpen!$A$17,IF(SUM(Onderwerpen!$B$4:$B$17)+14=A29,Onderwerpen!$A$18,IF(SUM(Onderwerpen!$B$4:$B$18)+15=A29,Onderwerpen!$A$19,IF(SUM(Onderwerpen!$B$4:$B$19)+16=A29,Onderwerpen!$A$20,IF(SUM(Onderwerpen!$B$4:$B$20)+17=A29,Onderwerpen!$A$21,IF(SUM(Onderwerpen!$B$4:$B$21)+18=A29,Onderwerpen!$A$22,IF(SUM(Onderwerpen!$B$4:$B$22)+19=A29,Onderwerpen!$A$23,IFERROR((IF(A29<Onderwerpen!$D$4,A29,IF(AND(A29>Onderwerpen!$D$4,A29<Onderwerpen!$D$5),A29-1,IF(AND(A29>Onderwerpen!$D$5,A29<Onderwerpen!$D$6),A29-2,IF(AND(A29>Onderwerpen!$D$6,A29<Onderwerpen!$D$7),A29-3,IF(AND(A29>Onderwerpen!$D$7,A29<Onderwerpen!$D$8),A29-4,IF(AND(A29>Onderwerpen!$D$8,A29<Onderwerpen!$D$9),A29-5,IF(AND(A29>Onderwerpen!$D$9,A29<Onderwerpen!$D$10),A29-6,IF(AND(A29>Onderwerpen!$D$10,A29<Onderwerpen!$D$11),A29-7,IF(AND(A29>Onderwerpen!$D$11,A29<Onderwerpen!$D$12),A29-8,IF(AND(A29>Onderwerpen!$D$12,A29<Onderwerpen!$D$13),A29-9,IF(AND(A29>Onderwerpen!$D$13,A29<Onderwerpen!$D$14),A29-10,IF(AND(A29>Onderwerpen!$D$14,A29<Onderwerpen!$D$15),A29-11,IF(AND(A29>Onderwerpen!$D$15,A29<Onderwerpen!$D$16),A29-12,IF(AND(A29>Onderwerpen!$D$16,A29<Onderwerpen!$D$17),A29-13,IF(AND(A29>Onderwerpen!$D$17,A29<Onderwerpen!$D$18),A29-14,IF(AND(A29>Onderwerpen!$D$18,A29<Onderwerpen!$D$19),A29-15,IF(AND(A29>Onderwerpen!$D$19,A29<Onderwerpen!$D$20),A29-16,IF(AND(A29>Onderwerpen!$D$20,A29<Onderwerpen!$D$21),A29-17,IF(AND(A29>Onderwerpen!$D$21,A29<Onderwerpen!$D$22),A29-18,IF(A29>Onderwerpen!$D$22,A29-19,"X"))))))))))))))))))))),"")))))))))))))))))))) -> 19 | D29: =IF(B29="",""&C29,LEFT(B29, FIND(" ",B29)-1) & "."&COUNTIF($B$8:B29,B29)) -> 3.1 | E29: Is er een lijst van alle werknemers blootgesteld aan lawaai? | G29: x | J29: 3.1
A30: =IFERROR(IF(A29=Onderwerpen!$C$23+19,"",A29+1),"") -> 22 | B30: =IF(C30<=Onderwerpen!$C$4,Onderwerpen!$A$4,IF(C30<=Onderwerpen!$C$5,Onderwerpen!$A$5,IF(C30<=Onderwerpen!$C$6,Onderwerpen!$A$6,IF(C30<=Onderwerpen!$C$7,Onderwerpen!$A$7,IF(C30<=Onderwerpen!$C$8,Onderwerpen!$A$8,IF(C30<=Onderwerpen!$C$9,Onderwerpen!$A$9,IF(C30<=Onderwerpen!C$10,Onderwerpen!$A$10,IF(C30<=Onderwerpen!C$11,Onderwerpen!$A$11,IF(C30<=Onderwerpen!C$12,Onderwerpen!$A$12,IF(C30<=Onderwerpen!C$13,Onderwerpen!$A$13,IF(C30<=Onderwerpen!$C$14,Onderwerpen!$A$14,IF(C30<=Onderwerpen!$C$15,Onderwerpen!$A$15,IF(C30<=Onderwerpen!$C$16,Onderwerpen!$A$16,IF(C30<=Onderwerpen!$C$17,Onderwerpen!$A$17,IF(C30<=Onderwerpen!$C$18,Onderwerpen!$A$18,IF(C30<=Onderwerpen!$C$19,Onderwerpen!$A$19,IF(C30<=Onderwerpen!$C$20,Onderwerpen!$A$20,IF(C30<=Onderwerpen!$C$21,Onderwerpen!$A$21,IF(C30<=Onderwerpen!$C$22,Onderwerpen!$A$22,IF(C30<=Onderwerpen!$C$23,Onderwerpen!$A$22,"")))))))))))))))))))) -> 3 Medisch toezicht | C30: =IF(Onderwerpen!$B$4+1=A30,Onderwerpen!$A$5,IF(SUM(Onderwerpen!$B$4:$B$5)+2=A30,Onderwerpen!$A$6,IF(SUM(Onderwerpen!$B$4:$B$6)+3=A30,Onderwerpen!$A$7,IF(SUM(Onderwerpen!$B$4:$B$7)+4=A30,Onderwerpen!$A$8,IF(SUM(Onderwerpen!$B$4:$B$8)+5=A30,Onderwerpen!$A$9,IF(SUM(Onderwerpen!$B$4:$B$9)+6=A30,Onderwerpen!$A$10,IF(SUM(Onderwerpen!$B$4:$B$10)+7=A30,Onderwerpen!$A$11,IF(SUM(Onderwerpen!$B$4:$B$11)+8=A30,Onderwerpen!$A$12,IF(SUM(Onderwerpen!$B$4:$B$12)+9=A30,Onderwerpen!$A$13,IF(SUM(Onderwerpen!$B$4:$B$13)+10=A30,Onderwerpen!$A$14,IF(SUM(Onderwerpen!$B$4:$B$14)+11=A30,Onderwerpen!$A$15,IF(SUM(Onderwerpen!$B$4:$B$15)+12=A30,Onderwerpen!$A$16,IF(SUM(Onderwerpen!$B$4:$B$16)+13=A30,Onderwerpen!$A$17,IF(SUM(Onderwerpen!$B$4:$B$17)+14=A30,Onderwerpen!$A$18,IF(SUM(Onderwerpen!$B$4:$B$18)+15=A30,Onderwerpen!$A$19,IF(SUM(Onderwerpen!$B$4:$B$19)+16=A30,Onderwerpen!$A$20,IF(SUM(Onderwerpen!$B$4:$B$20)+17=A30,Onderwerpen!$A$21,IF(SUM(Onderwerpen!$B$4:$B$21)+18=A30,Onderwerpen!$A$22,IF(SUM(Onderwerpen!$B$4:$B$22)+19=A30,Onderwerpen!$A$23,IFERROR((IF(A30<Onderwerpen!$D$4,A30,IF(AND(A30>Onderwerpen!$D$4,A30<Onderwerpen!$D$5),A30-1,IF(AND(A30>Onderwerpen!$D$5,A30<Onderwerpen!$D$6),A30-2,IF(AND(A30>Onderwerpen!$D$6,A30<Onderwerpen!$D$7),A30-3,IF(AND(A30>Onderwerpen!$D$7,A30<Onderwerpen!$D$8),A30-4,IF(AND(A30>Onderwerpen!$D$8,A30<Onderwerpen!$D$9),A30-5,IF(AND(A30>Onderwerpen!$D$9,A30<Onderwerpen!$D$10),A30-6,IF(AND(A30>Onderwerpen!$D$10,A30<Onderwerpen!$D$11),A30-7,IF(AND(A30>Onderwerpen!$D$11,A30<Onderwerpen!$D$12),A30-8,IF(AND(A30>Onderwerpen!$D$12,A30<Onderwerpen!$D$13),A30-9,IF(AND(A30>Onderwerpen!$D$13,A30<Onderwerpen!$D$14),A30-10,IF(AND(A30>Onderwerpen!$D$14,A30<Onderwerpen!$D$15),A30-11,IF(AND(A30>Onderwerpen!$D$15,A30<Onderwerpen!$D$16),A30-12,IF(AND(A30>Onderwerpen!$D$16,A30<Onderwerpen!$D$17),A30-13,IF(AND(A30>Onderwerpen!$D$17,A30<Onderwerpen!$D$18),A30-14,IF(AND(A30>Onderwerpen!$D$18,A30<Onderwerpen!$D$19),A30-15,IF(AND(A30>Onderwerpen!$D$19,A30<Onderwerpen!$D$20),A30-16,IF(AND(A30>Onderwerpen!$D$20,A30<Onderwerpen!$D$21),A30-17,IF(AND(A30>Onderwerpen!$D$21,A30<Onderwerpen!$D$22),A30-18,IF(A30>Onderwerpen!$D$22,A30-19,"X"))))))))))))))))))))),"")))))))))))))))))))) -> 20 | D30: =IF(B30="",""&C30,LEFT(B30, FIND(" ",B30)-1) & "."&COUNTIF($B$8:B30,B30)) -> 3.2 | E30: Is er een lijst van alle werknemers blootgesteld aan trillingen? | G30: x | J30: 3.2
A31: =IFERROR(IF(A30=Onderwerpen!$C$23+19,"",A30+1),"") -> 23 | B31: =IF(C31<=Onderwerpen!$C$4,Onderwerpen!$A$4,IF(C31<=Onderwerpen!$C$5,Onderwerpen!$A$5,IF(C31<=Onderwerpen!$C$6,Onderwerpen!$A$6,IF(C31<=Onderwerpen!$C$7,Onderwerpen!$A$7,IF(C31<=Onderwerpen!$C$8,Onderwerpen!$A$8,IF(C31<=Onderwerpen!$C$9,Onderwerpen!$A$9,IF(C31<=Onderwerpen!C$10,Onderwerpen!$A$10,IF(C31<=Onderwerpen!C$11,Onderwerpen!$A$11,IF(C31<=Onderwerpen!C$12,Onderwerpen!$A$12,IF(C31<=Onderwerpen!C$13,Onderwerpen!$A$13,IF(C31<=Onderwerpen!$C$14,Onderwerpen!$A$14,IF(C31<=Onderwerpen!$C$15,Onderwerpen!$A$15,IF(C31<=Onderwerpen!$C$16,Onderwerpen!$A$16,IF(C31<=Onderwerpen!$C$17,Onderwerpen!$A$17,IF(C31<=Onderwerpen!$C$18,Onderwerpen!$A$18,IF(C31<=Onderwerpen!$C$19,Onderwerpen!$A$19,IF(C31<=Onderwerpen!$C$20,Onderwerpen!$A$20,IF(C31<=Onderwerpen!$C$21,Onderwerpen!$A$21,IF(C31<=Onderwerpen!$C$22,Onderwerpen!$A$22,IF(C31<=Onderwerpen!$C$23,Onderwerpen!$A$22,"")))))))))))))))))))) -> 3 Medisch toezicht | C31: =IF(Onderwerpen!$B$4+1=A31,Onderwerpen!$A$5,IF(SUM(Onderwerpen!$B$4:$B$5)+2=A31,Onderwerpen!$A$6,IF(SUM(Onderwerpen!$B$4:$B$6)+3=A31,Onderwerpen!$A$7,IF(SUM(Onderwerpen!$B$4:$B$7)+4=A31,Onderwerpen!$A$8,IF(SUM(Onderwerpen!$B$4:$B$8)+5=A31,Onderwerpen!$A$9,IF(SUM(Onderwerpen!$B$4:$B$9)+6=A31,Onderwerpen!$A$10,IF(SUM(Onderwerpen!$B$4:$B$10)+7=A31,Onderwerpen!$A$11,IF(SUM(Onderwerpen!$B$4:$B$11)+8=A31,Onderwerpen!$A$12,IF(SUM(Onderwerpen!$B$4:$B$12)+9=A31,Onderwerpen!$A$13,IF(SUM(Onderwerpen!$B$4:$B$13)+10=A31,Onderwerpen!$A$14,IF(SUM(Onderwerpen!$B$4:$B$14)+11=A31,Onderwerpen!$A$15,IF(SUM(Onderwerpen!$B$4:$B$15)+12=A31,Onderwerpen!$A$16,IF(SUM(Onderwerpen!$B$4:$B$16)+13=A31,Onderwerpen!$A$17,IF(SUM(Onderwerpen!$B$4:$B$17)+14=A31,Onderwerpen!$A$18,IF(SUM(Onderwerpen!$B$4:$B$18)+15=A31,Onderwerpen!$A$19,IF(SUM(Onderwerpen!$B$4:$B$19)+16=A31,Onderwerpen!$A$20,IF(SUM(Onderwerpen!$B$4:$B$20)+17=A31,Onderwerpen!$A$21,IF(SUM(Onderwerpen!$B$4:$B$21)+18=A31,Onderwerpen!$A$22,IF(SUM(Onderwerpen!$B$4:$B$22)+19=A31,Onderwerpen!$A$23,IFERROR((IF(A31<Onderwerpen!$D$4,A31,IF(AND(A31>Onderwerpen!$D$4,A31<Onderwerpen!$D$5),A31-1,IF(AND(A31>Onderwerpen!$D$5,A31<Onderwerpen!$D$6),A31-2,IF(AND(A31>Onderwerpen!$D$6,A31<Onderwerpen!$D$7),A31-3,IF(AND(A31>Onderwerpen!$D$7,A31<Onderwerpen!$D$8),A31-4,IF(AND(A31>Onderwerpen!$D$8,A31<Onderwerpen!$D$9),A31-5,IF(AND(A31>Onderwerpen!$D$9,A31<Onderwerpen!$D$10),A31-6,IF(AND(A31>Onderwerpen!$D$10,A31<Onderwerpen!$D$11),A31-7,IF(AND(A31>Onderwerpen!$D$11,A31<Onderwerpen!$D$12),A31-8,IF(AND(A31>Onderwerpen!$D$12,A31<Onderwerpen!$D$13),A31-9,IF(AND(A31>Onderwerpen!$D$13,A31<Onderwerpen!$D$14),A31-10,IF(AND(A31>Onderwerpen!$D$14,A31<Onderwerpen!$D$15),A31-11,IF(AND(A31>Onderwerpen!$D$15,A31<Onderwerpen!$D$16),A31-12,IF(AND(A31>Onderwerpen!$D$16,A31<Onderwerpen!$D$17),A31-13,IF(AND(A31>Onderwerpen!$D$17,A31<Onderwerpen!$D$18),A31-14,IF(AND(A31>Onderwerpen!$D$18,A31<Onderwerpen!$D$19),A31-15,IF(AND(A31>Onderwerpen!$D$19,A31<Onderwerpen!$D$20),A31-16,IF(AND(A31>Onderwerpen!$D$20,A31<Onderwerpen!$D$21),A31-17,IF(AND(A31>Onderwerpen!$D$21,A31<Onderwerpen!$D$22),A31-18,IF(A31>Onderwerpen!$D$22,A31-19,"X"))))))))))))))))))))),"")))))))))))))))))))) -> 21 | D31: =IF(B31="",""&C31,LEFT(B31, FIND(" ",B31)-1) & "."&COUNTIF($B$8:B31,B31)) -> 3.3 | E31: Is er een lijst van alle werknemers blootgesteld aan chemische stoffen? | G31: x | J31: 3.3
A32: =IFERROR(IF(A31=Onderwerpen!$C$23+19,"",A31+1),"") -> 24 | B32: =IF(C32<=Onderwerpen!$C$4,Onderwerpen!$A$4,IF(C32<=Onderwerpen!$C$5,Onderwerpen!$A$5,IF(C32<=Onderwerpen!$C$6,Onderwerpen!$A$6,IF(C32<=Onderwerpen!$C$7,Onderwerpen!$A$7,IF(C32<=Onderwerpen!$C$8,Onderwerpen!$A$8,IF(C32<=Onderwerpen!$C$9,Onderwerpen!$A$9,IF(C32<=Onderwerpen!C$10,Onderwerpen!$A$10,IF(C32<=Onderwerpen!C$11,Onderwerpen!$A$11,IF(C32<=Onderwerpen!C$12,Onderwerpen!$A$12,IF(C32<=Onderwerpen!C$13,Onderwerpen!$A$13,IF(C32<=Onderwerpen!$C$14,Onderwerpen!$A$14,IF(C32<=Onderwerpen!$C$15,Onderwerpen!$A$15,IF(C32<=Onderwerpen!$C$16,Onderwerpen!$A$16,IF(C32<=Onderwerpen!$C$17,Onderwerpen!$A$17,IF(C32<=Onderwerpen!$C$18,Onderwerpen!$A$18,IF(C32<=Onderwerpen!$C$19,Onderwerpen!$A$19,IF(C32<=Onderwerpen!$C$20,Onderwerpen!$A$20,IF(C32<=Onderwerpen!$C$21,Onderwerpen!$A$21,IF(C32<=Onderwerpen!$C$22,Onderwerpen!$A$22,IF(C32<=Onderwerpen!$C$23,Onderwerpen!$A$22,"")))))))))))))))))))) -> 3 Medisch toezicht | C32: =IF(Onderwerpen!$B$4+1=A32,Onderwerpen!$A$5,IF(SUM(Onderwerpen!$B$4:$B$5)+2=A32,Onderwerpen!$A$6,IF(SUM(Onderwerpen!$B$4:$B$6)+3=A32,Onderwerpen!$A$7,IF(SUM(Onderwerpen!$B$4:$B$7)+4=A32,Onderwerpen!$A$8,IF(SUM(Onderwerpen!$B$4:$B$8)+5=A32,Onderwerpen!$A$9,IF(SUM(Onderwerpen!$B$4:$B$9)+6=A32,Onderwerpen!$A$10,IF(SUM(Onderwerpen!$B$4:$B$10)+7=A32,Onderwerpen!$A$11,IF(SUM(Onderwerpen!$B$4:$B$11)+8=A32,Onderwerpen!$A$12,IF(SUM(Onderwerpen!$B$4:$B$12)+9=A32,Onderwerpen!$A$13,IF(SUM(Onderwerpen!$B$4:$B$13)+10=A32,Onderwerpen!$A$14,IF(SUM(Onderwerpen!$B$4:$B$14)+11=A32,Onderwerpen!$A$15,IF(SUM(Onderwerpen!$B$4:$B$15)+12=A32,Onderwerpen!$A$16,IF(SUM(Onderwerpen!$B$4:$B$16)+13=A32,Onderwerpen!$A$17,IF(SUM(Onderwerpen!$B$4:$B$17)+14=A32,Onderwerpen!$A$18,IF(SUM(Onderwerpen!$B$4:$B$18)+15=A32,Onderwerpen!$A$19,IF(SUM(Onderwerpen!$B$4:$B$19)+16=A32,Onderwerpen!$A$20,IF(SUM(Onderwerpen!$B$4:$B$20)+17=A32,Onderwerpen!$A$21,IF(SUM(Onderwerpen!$B$4:$B$21)+18=A32,Onderwerpen!$A$22,IF(SUM(Onderwerpen!$B$4:$B$22)+19=A32,Onderwerpen!$A$23,IFERROR((IF(A32<Onderwerpen!$D$4,A32,IF(AND(A32>Onderwerpen!$D$4,A32<Onderwerpen!$D$5),A32-1,IF(AND(A32>Onderwerpen!$D$5,A32<Onderwerpen!$D$6),A32-2,IF(AND(A32>Onderwerpen!$D$6,A32<Onderwerpen!$D$7),A32-3,IF(AND(A32>Onderwerpen!$D$7,A32<Onderwerpen!$D$8),A32-4,IF(AND(A32>Onderwerpen!$D$8,A32<Onderwerpen!$D$9),A32-5,IF(AND(A32>Onderwerpen!$D$9,A32<Onderwerpen!$D$10),A32-6,IF(AND(A32>Onderwerpen!$D$10,A32<Onderwerpen!$D$11),A32-7,IF(AND(A32>Onderwerpen!$D$11,A32<Onderwerpen!$D$12),A32-8,IF(AND(A32>Onderwerpen!$D$12,A32<Onderwerpen!$D$13),A32-9,IF(AND(A32>Onderwerpen!$D$13,A32<Onderwerpen!$D$14),A32-10,IF(AND(A32>Onderwerpen!$D$14,A32<Onderwerpen!$D$15),A32-11,IF(AND(A32>Onderwerpen!$D$15,A32<Onderwerpen!$D$16),A32-12,IF(AND(A32>Onderwerpen!$D$16,A32<Onderwerpen!$D$17),A32-13,IF(AND(A32>Onderwerpen!$D$17,A32<Onderwerpen!$D$18),A32-14,IF(AND(A32>Onderwerpen!$D$18,A32<Onderwerpen!$D$19),A32-15,IF(AND(A32>Onderwerpen!$D$19,A32<Onderwerpen!$D$20),A32-16,IF(AND(A32>Onderwerpen!$D$20,A32<Onderwerpen!$D$21),A32-17,IF(AND(A32>Onderwerpen!$D$21,A32<Onderwerpen!$D$22),A32-18,IF(A32>Onderwerpen!$D$22,A32-19,"X"))))))))))))))))))))),"")))))))))))))))))))) -> 22 | D32: =IF(B32="",""&C32,LEFT(B32, FIND(" ",B32)-1) & "."&COUNTIF($B$8:B32,B32)) -> 3.4 | E32: Is er een lijst van de heftruckchauffeurs?
A33: =IFERROR(IF(A32=Onderwerpen!$C$23+19,"",A32+1),"") -> 25 | B33: =IF(C33<=Onderwerpen!$C$4,Onderwerpen!$A$4,IF(C33<=Onderwerpen!$C$5,Onderwerpen!$A$5,IF(C33<=Onderwerpen!$C$6,Onderwerpen!$A$6,IF(C33<=Onderwerpen!$C$7,Onderwerpen!$A$7,IF(C33<=Onderwerpen!$C$8,Onderwerpen!$A$8,IF(C33<=Onderwerpen!$C$9,Onderwerpen!$A$9,IF(C33<=Onderwerpen!C$10,Onderwerpen!$A$10,IF(C33<=Onderwerpen!C$11,Onderwerpen!$A$11,IF(C33<=Onderwerpen!C$12,Onderwerpen!$A$12,IF(C33<=Onderwerpen!C$13,Onderwerpen!$A$13,IF(C33<=Onderwerpen!$C$14,Onderwerpen!$A$14,IF(C33<=Onderwerpen!$C$15,Onderwerpen!$A$15,IF(C33<=Onderwerpen!$C$16,Onderwerpen!$A$16,IF(C33<=Onderwerpen!$C$17,Onderwerpen!$A$17,IF(C33<=Onderwerpen!$C$18,Onderwerpen!$A$18,IF(C33<=Onderwerpen!$C$19,Onderwerpen!$A$19,IF(C33<=Onderwerpen!$C$20,Onderwerpen!$A$20,IF(C33<=Onderwerpen!$C$21,Onderwerpen!$A$21,IF(C33<=Onderwerpen!$C$22,Onderwerpen!$A$22,IF(C33<=Onderwerpen!$C$23,Onderwerpen!$A$22,"")))))))))))))))))))) -> 3 Medisch toezicht | C33: =IF(Onderwerpen!$B$4+1=A33,Onderwerpen!$A$5,IF(SUM(Onderwerpen!$B$4:$B$5)+2=A33,Onderwerpen!$A$6,IF(SUM(Onderwerpen!$B$4:$B$6)+3=A33,Onderwerpen!$A$7,IF(SUM(Onderwerpen!$B$4:$B$7)+4=A33,Onderwerpen!$A$8,IF(SUM(Onderwerpen!$B$4:$B$8)+5=A33,Onderwerpen!$A$9,IF(SUM(Onderwerpen!$B$4:$B$9)+6=A33,Onderwerpen!$A$10,IF(SUM(Onderwerpen!$B$4:$B$10)+7=A33,Onderwerpen!$A$11,IF(SUM(Onderwerpen!$B$4:$B$11)+8=A33,Onderwerpen!$A$12,IF(SUM(Onderwerpen!$B$4:$B$12)+9=A33,Onderwerpen!$A$13,IF(SUM(Onderwerpen!$B$4:$B$13)+10=A33,Onderwerpen!$A$14,IF(SUM(Onderwerpen!$B$4:$B$14)+11=A33,Onderwerpen!$A$15,IF(SUM(Onderwerpen!$B$4:$B$15)+12=A33,Onderwerpen!$A$16,IF(SUM(Onderwerpen!$B$4:$B$16)+13=A33,Onderwerpen!$A$17,IF(SUM(Onderwerpen!$B$4:$B$17)+14=A33,Onderwerpen!$A$18,IF(SUM(Onderwerpen!$B$4:$B$18)+15=A33,Onderwerpen!$A$19,IF(SUM(Onderwerpen!$B$4:$B$19)+16=A33,Onderwerpen!$A$20,IF(SUM(Onderwerpen!$B$4:$B$20)+17=A33,Onderwerpen!$A$21,IF(SUM(Onderwerpen!$B$4:$B$21)+18=A33,Onderwerpen!$A$22,IF(SUM(Onderwerpen!$B$4:$B$22)+19=A33,Onderwerpen!$A$23,IFERROR((IF(A33<Onderwerpen!$D$4,A33,IF(AND(A33>Onderwerpen!$D$4,A33<Onderwerpen!$D$5),A33-1,IF(AND(A33>Onderwerpen!$D$5,A33<Onderwerpen!$D$6),A33-2,IF(AND(A33>Onderwerpen!$D$6,A33<Onderwerpen!$D$7),A33-3,IF(AND(A33>Onderwerpen!$D$7,A33<Onderwerpen!$D$8),A33-4,IF(AND(A33>Onderwerpen!$D$8,A33<Onderwerpen!$D$9),A33-5,IF(AND(A33>Onderwerpen!$D$9,A33<Onderwerpen!$D$10),A33-6,IF(AND(A33>Onderwerpen!$D$10,A33<Onderwerpen!$D$11),A33-7,IF(AND(A33>Onderwerpen!$D$11,A33<Onderwerpen!$D$12),A33-8,IF(AND(A33>Onderwerpen!$D$12,A33<Onderwerpen!$D$13),A33-9,IF(AND(A33>Onderwerpen!$D$13,A33<Onderwerpen!$D$14),A33-10,IF(AND(A33>Onderwerpen!$D$14,A33<Onderwerpen!$D$15),A33-11,IF(AND(A33>Onderwerpen!$D$15,A33<Onderwerpen!$D$16),A33-12,IF(AND(A33>Onderwerpen!$D$16,A33<Onderwerpen!$D$17),A33-13,IF(AND(A33>Onderwerpen!$D$17,A33<Onderwerpen!$D$18),A33-14,IF(AND(A33>Onderwerpen!$D$18,A33<Onderwerpen!$D$19),A33-15,IF(AND(A33>Onderwerpen!$D$19,A33<Onderwerpen!$D$20),A33-16,IF(AND(A33>Onderwerpen!$D$20,A33<Onderwerpen!$D$21),A33-17,IF(AND(A33>Onderwerpen!$D$21,A33<Onderwerpen!$D$22),A33-18,IF(A33>Onderwerpen!$D$22,A33-19,"X"))))))))))))))))))))),"")))))))))))))))))))) -> 23 | D33: =IF(B33="",""&C33,LEFT(B33, FIND(" ",B33)-1) & "."&COUNTIF($B$8:B33,B33)) -> 3.5 | E33: Is er een lijst van de vrachtwagenchauffeurs?
A34: =IFERROR(IF(A33=Onderwerpen!$C$23+19,"",A33+1),"") -> 26 | B34: =IF(C34<=Onderwerpen!$C$4,Onderwerpen!$A$4,IF(C34<=Onderwerpen!$C$5,Onderwerpen!$A$5,IF(C34<=Onderwerpen!$C$6,Onderwerpen!$A$6,IF(C34<=Onderwerpen!$C$7,Onderwerpen!$A$7,IF(C34<=Onderwerpen!$C$8,Onderwerpen!$A$8,IF(C34<=Onderwerpen!$C$9,Onderwerpen!$A$9,IF(C34<=Onderwerpen!C$10,Onderwerpen!$A$10,IF(C34<=Onderwerpen!C$11,Onderwerpen!$A$11,IF(C34<=Onderwerpen!C$12,Onderwerpen!$A$12,IF(C34<=Onderwerpen!C$13,Onderwerpen!$A$13,IF(C34<=Onderwerpen!$C$14,Onderwerpen!$A$14,IF(C34<=Onderwerpen!$C$15,Onderwerpen!$A$15,IF(C34<=Onderwerpen!$C$16,Onderwerpen!$A$16,IF(C34<=Onderwerpen!$C$17,Onderwerpen!$A$17,IF(C34<=Onderwerpen!$C$18,Onderwerpen!$A$18,IF(C34<=Onderwerpen!$C$19,Onderwerpen!$A$19,IF(C34<=Onderwerpen!$C$20,Onderwerpen!$A$20,IF(C34<=Onderwerpen!$C$21,Onderwerpen!$A$21,IF(C34<=Onderwerpen!$C$22,Onderwerpen!$A$22,IF(C34<=Onderwerpen!$C$23,Onderwerpen!$A$22,"")))))))))))))))))))) -> 3 Medisch toezicht | C34: =IF(Onderwerpen!$B$4+1=A34,Onderwerpen!$A$5,IF(SUM(Onderwerpen!$B$4:$B$5)+2=A34,Onderwerpen!$A$6,IF(SUM(Onderwerpen!$B$4:$B$6)+3=A34,Onderwerpen!$A$7,IF(SUM(Onderwerpen!$B$4:$B$7)+4=A34,Onderwerpen!$A$8,IF(SUM(Onderwerpen!$B$4:$B$8)+5=A34,Onderwerpen!$A$9,IF(SUM(Onderwerpen!$B$4:$B$9)+6=A34,Onderwerpen!$A$10,IF(SUM(Onderwerpen!$B$4:$B$10)+7=A34,Onderwerpen!$A$11,IF(SUM(Onderwerpen!$B$4:$B$11)+8=A34,Onderwerpen!$A$12,IF(SUM(Onderwerpen!$B$4:$B$12)+9=A34,Onderwerpen!$A$13,IF(SUM(Onderwerpen!$B$4:$B$13)+10=A34,Onderwerpen!$A$14,IF(SUM(Onderwerpen!$B$4:$B$14)+11=A34,Onderwerpen!$A$15,IF(SUM(Onderwerpen!$B$4:$B$15)+12=A34,Onderwerpen!$A$16,IF(SUM(Onderwerpen!$B$4:$B$16)+13=A34,Onderwerpen!$A$17,IF(SUM(Onderwerpen!$B$4:$B$17)+14=A34,Onderwerpen!$A$18,IF(SUM(Onderwerpen!$B$4:$B$18)+15=A34,Onderwerpen!$A$19,IF(SUM(Onderwerpen!$B$4:$B$19)+16=A34,Onderwerpen!$A$20,IF(SUM(Onderwerpen!$B$4:$B$20)+17=A34,Onderwerpen!$A$21,IF(SUM(Onderwerpen!$B$4:$B$21)+18=A34,Onderwerpen!$A$22,IF(SUM(Onderwerpen!$B$4:$B$22)+19=A34,Onderwerpen!$A$23,IFERROR((IF(A34<Onderwerpen!$D$4,A34,IF(AND(A34>Onderwerpen!$D$4,A34<Onderwerpen!$D$5),A34-1,IF(AND(A34>Onderwerpen!$D$5,A34<Onderwerpen!$D$6),A34-2,IF(AND(A34>Onderwerpen!$D$6,A34<Onderwerpen!$D$7),A34-3,IF(AND(A34>Onderwerpen!$D$7,A34<Onderwerpen!$D$8),A34-4,IF(AND(A34>Onderwerpen!$D$8,A34<Onderwerpen!$D$9),A34-5,IF(AND(A34>Onderwerpen!$D$9,A34<Onderwerpen!$D$10),A34-6,IF(AND(A34>Onderwerpen!$D$10,A34<Onderwerpen!$D$11),A34-7,IF(AND(A34>Onderwerpen!$D$11,A34<Onderwerpen!$D$12),A34-8,IF(AND(A34>Onderwerpen!$D$12,A34<Onderwerpen!$D$13),A34-9,IF(AND(A34>Onderwerpen!$D$13,A34<Onderwerpen!$D$14),A34-10,IF(AND(A34>Onderwerpen!$D$14,A34<Onderwerpen!$D$15),A34-11,IF(AND(A34>Onderwerpen!$D$15,A34<Onderwerpen!$D$16),A34-12,IF(AND(A34>Onderwerpen!$D$16,A34<Onderwerpen!$D$17),A34-13,IF(AND(A34>Onderwerpen!$D$17,A34<Onderwerpen!$D$18),A34-14,IF(AND(A34>Onderwerpen!$D$18,A34<Onderwerpen!$D$19),A34-15,IF(AND(A34>Onderwerpen!$D$19,A34<Onderwerpen!$D$20),A34-16,IF(AND(A34>Onderwerpen!$D$20,A34<Onderwerpen!$D$21),A34-17,IF(AND(A34>Onderwerpen!$D$21,A34<Onderwerpen!$D$22),A34-18,IF(A34>Onderwerpen!$D$22,A34-19,"X"))))))))))))))))))))),"")))))))))))))))))))) -> 24 | D34: =IF(B34="",""&C34,LEFT(B34, FIND(" ",B34)-1) & "."&COUNTIF($B$8:B34,B34)) -> 3.6 | E34: Is er een lijst van de werknemers minder dan 21 jaar? | G34: x | J34: 3.6
A35: =IFERROR(IF(A34=Onderwerpen!$C$23+19,"",A34+1),"") -> 27 | B35: =IF(C35<=Onderwerpen!$C$4,Onderwerpen!$A$4,IF(C35<=Onderwerpen!$C$5,Onderwerpen!$A$5,IF(C35<=Onderwerpen!$C$6,Onderwerpen!$A$6,IF(C35<=Onderwerpen!$C$7,Onderwerpen!$A$7,IF(C35<=Onderwerpen!$C$8,Onderwerpen!$A$8,IF(C35<=Onderwerpen!$C$9,Onderwerpen!$A$9,IF(C35<=Onderwerpen!C$10,Onderwerpen!$A$10,IF(C35<=Onderwerpen!C$11,Onderwerpen!$A$11,IF(C35<=Onderwerpen!C$12,Onderwerpen!$A$12,IF(C35<=Onderwerpen!C$13,Onderwerpen!$A$13,IF(C35<=Onderwerpen!$C$14,Onderwerpen!$A$14,IF(C35<=Onderwerpen!$C$15,Onderwerpen!$A$15,IF(C35<=Onderwerpen!$C$16,Onderwerpen!$A$16,IF(C35<=Onderwerpen!$C$17,Onderwerpen!$A$17,IF(C35<=Onderwerpen!$C$18,Onderwerpen!$A$18,IF(C35<=Onderwerpen!$C$19,Onderwerpen!$A$19,IF(C35<=Onderwerpen!$C$20,Onderwerpen!$A$20,IF(C35<=Onderwerpen!$C$21,Onderwerpen!$A$21,IF(C35<=Onderwerpen!$C$22,Onderwerpen!$A$22,IF(C35<=Onderwerpen!$C$23,Onderwerpen!$A$22,"")))))))))))))))))))) -> 3 Medisch toezicht | C35: =IF(Onderwerpen!$B$4+1=A35,Onderwerpen!$A$5,IF(SUM(Onderwerpen!$B$4:$B$5)+2=A35,Onderwerpen!$A$6,IF(SUM(Onderwerpen!$B$4:$B$6)+3=A35,Onderwerpen!$A$7,IF(SUM(Onderwerpen!$B$4:$B$7)+4=A35,Onderwerpen!$A$8,IF(SUM(Onderwerpen!$B$4:$B$8)+5=A35,Onderwerpen!$A$9,IF(SUM(Onderwerpen!$B$4:$B$9)+6=A35,Onderwerpen!$A$10,IF(SUM(Onderwerpen!$B$4:$B$10)+7=A35,Onderwerpen!$A$11,IF(SUM(Onderwerpen!$B$4:$B$11)+8=A35,Onderwerpen!$A$12,IF(SUM(Onderwerpen!$B$4:$B$12)+9=A35,Onderwerpen!$A$13,IF(SUM(Onderwerpen!$B$4:$B$13)+10=A35,Onderwerpen!$A$14,IF(SUM(Onderwerpen!$B$4:$B$14)+11=A35,Onderwerpen!$A$15,IF(SUM(Onderwerpen!$B$4:$B$15)+12=A35,Onderwerpen!$A$16,IF(SUM(Onderwerpen!$B$4:$B$16)+13=A35,Onderwerpen!$A$17,IF(SUM(Onderwerpen!$B$4:$B$17)+14=A35,Onderwerpen!$A$18,IF(SUM(Onderwerpen!$B$4:$B$18)+15=A35,Onderwerpen!$A$19,IF(SUM(Onderwerpen!$B$4:$B$19)+16=A35,Onderwerpen!$A$20,IF(SUM(Onderwerpen!$B$4:$B$20)+17=A35,Onderwerpen!$A$21,IF(SUM(Onderwerpen!$B$4:$B$21)+18=A35,Onderwerpen!$A$22,IF(SUM(Onderwerpen!$B$4:$B$22)+19=A35,Onderwerpen!$A$23,IFERROR((IF(A35<Onderwerpen!$D$4,A35,IF(AND(A35>Onderwerpen!$D$4,A35<Onderwerpen!$D$5),A35-1,IF(AND(A35>Onderwerpen!$D$5,A35<Onderwerpen!$D$6),A35-2,IF(AND(A35>Onderwerpen!$D$6,A35<Onderwerpen!$D$7),A35-3,IF(AND(A35>Onderwerpen!$D$7,A35<Onderwerpen!$D$8),A35-4,IF(AND(A35>Onderwerpen!$D$8,A35<Onderwerpen!$D$9),A35-5,IF(AND(A35>Onderwerpen!$D$9,A35<Onderwerpen!$D$10),A35-6,IF(AND(A35>Onderwerpen!$D$10,A35<Onderwerpen!$D$11),A35-7,IF(AND(A35>Onderwerpen!$D$11,A35<Onderwerpen!$D$12),A35-8,IF(AND(A35>Onderwerpen!$D$12,A35<Onderwerpen!$D$13),A35-9,IF(AND(A35>Onderwerpen!$D$13,A35<Onderwerpen!$D$14),A35-10,IF(AND(A35>Onderwerpen!$D$14,A35<Onderwerpen!$D$15),A35-11,IF(AND(A35>Onderwerpen!$D$15,A35<Onderwerpen!$D$16),A35-12,IF(AND(A35>Onderwerpen!$D$16,A35<Onderwerpen!$D$17),A35-13,IF(AND(A35>Onderwerpen!$D$17,A35<Onderwerpen!$D$18),A35-14,IF(AND(A35>Onderwerpen!$D$18,A35<Onderwerpen!$D$19),A35-15,IF(AND(A35>Onderwerpen!$D$19,A35<Onderwerpen!$D$20),A35-16,IF(AND(A35>Onderwerpen!$D$20,A35<Onderwerpen!$D$21),A35-17,IF(AND(A35>Onderwerpen!$D$21,A35<Onderwerpen!$D$22),A35-18,IF(A35>Onderwerpen!$D$22,A35-19,"X"))))))))))))))))))))),"")))))))))))))))))))) -> 25 | D35: =IF(B35="",""&C35,LEFT(B35, FIND(" ",B35)-1) & "."&COUNTIF($B$8:B35,B35)) -> 3.7 | E35: Is er een lijst van nieuwe werknemers (indiensttredingen)? | G35: x | J35: 3.7
A36: =IFERROR(IF(A35=Onderwerpen!$C$23+19,"",A35+1),"") -> 28 | B36: =IF(C36<=Onderwerpen!$C$4,Onderwerpen!$A$4,IF(C36<=Onderwerpen!$C$5,Onderwerpen!$A$5,IF(C36<=Onderwerpen!$C$6,Onderwerpen!$A$6,IF(C36<=Onderwerpen!$C$7,Onderwerpen!$A$7,IF(C36<=Onderwerpen!$C$8,Onderwerpen!$A$8,IF(C36<=Onderwerpen!$C$9,Onderwerpen!$A$9,IF(C36<=Onderwerpen!C$10,Onderwerpen!$A$10,IF(C36<=Onderwerpen!C$11,Onderwerpen!$A$11,IF(C36<=Onderwerpen!C$12,Onderwerpen!$A$12,IF(C36<=Onderwerpen!C$13,Onderwerpen!$A$13,IF(C36<=Onderwerpen!$C$14,Onderwerpen!$A$14,IF(C36<=Onderwerpen!$C$15,Onderwerpen!$A$15,IF(C36<=Onderwerpen!$C$16,Onderwerpen!$A$16,IF(C36<=Onderwerpen!$C$17,Onderwerpen!$A$17,IF(C36<=Onderwerpen!$C$18,Onderwerpen!$A$18,IF(C36<=Onderwerpen!$C$19,Onderwerpen!$A$19,IF(C36<=Onderwerpen!$C$20,Onderwerpen!$A$20,IF(C36<=Onderwerpen!$C$21,Onderwerpen!$A$21,IF(C36<=Onderwerpen!$C$22,Onderwerpen!$A$22,IF(C36<=Onderwerpen!$C$23,Onderwerpen!$A$22,"")))))))))))))))))))) -> 3 Medisch toezicht | C36: =IF(Onderwerpen!$B$4+1=A36,Onderwerpen!$A$5,IF(SUM(Onderwerpen!$B$4:$B$5)+2=A36,Onderwerpen!$A$6,IF(SUM(Onderwerpen!$B$4:$B$6)+3=A36,Onderwerpen!$A$7,IF(SUM(Onderwerpen!$B$4:$B$7)+4=A36,Onderwerpen!$A$8,IF(SUM(Onderwerpen!$B$4:$B$8)+5=A36,Onderwerpen!$A$9,IF(SUM(Onderwerpen!$B$4:$B$9)+6=A36,Onderwerpen!$A$10,IF(SUM(Onderwerpen!$B$4:$B$10)+7=A36,Onderwerpen!$A$11,IF(SUM(Onderwerpen!$B$4:$B$11)+8=A36,Onderwerpen!$A$12,IF(SUM(Onderwerpen!$B$4:$B$12)+9=A36,Onderwerpen!$A$13,IF(SUM(Onderwerpen!$B$4:$B$13)+10=A36,Onderwerpen!$A$14,IF(SUM(Onderwerpen!$B$4:$B$14)+11=A36,Onderwerpen!$A$15,IF(SUM(Onderwerpen!$B$4:$B$15)+12=A36,Onderwerpen!$A$16,IF(SUM(Onderwerpen!$B$4:$B$16)+13=A36,Onderwerpen!$A$17,IF(SUM(Onderwerpen!$B$4:$B$17)+14=A36,Onderwerpen!$A$18,IF(SUM(Onderwerpen!$B$4:$B$18)+15=A36,Onderwerpen!$A$19,IF(SUM(Onderwerpen!$B$4:$B$19)+16=A36,Onderwerpen!$A$20,IF(SUM(Onderwerpen!$B$4:$B$20)+17=A36,Onderwerpen!$A$21,IF(SUM(Onderwerpen!$B$4:$B$21)+18=A36,Onderwerpen!$A$22,IF(SUM(Onderwerpen!$B$4:$B$22)+19=A36,Onderwerpen!$A$23,IFERROR((IF(A36<Onderwerpen!$D$4,A36,IF(AND(A36>Onderwerpen!$D$4,A36<Onderwerpen!$D$5),A36-1,IF(AND(A36>Onderwerpen!$D$5,A36<Onderwerpen!$D$6),A36-2,IF(AND(A36>Onderwerpen!$D$6,A36<Onderwerpen!$D$7),A36-3,IF(AND(A36>Onderwerpen!$D$7,A36<Onderwerpen!$D$8),A36-4,IF(AND(A36>Onderwerpen!$D$8,A36<Onderwerpen!$D$9),A36-5,IF(AND(A36>Onderwerpen!$D$9,A36<Onderwerpen!$D$10),A36-6,IF(AND(A36>Onderwerpen!$D$10,A36<Onderwerpen!$D$11),A36-7,IF(AND(A36>Onderwerpen!$D$11,A36<Onderwerpen!$D$12),A36-8,IF(AND(A36>Onderwerpen!$D$12,A36<Onderwerpen!$D$13),A36-9,IF(AND(A36>Onderwerpen!$D$13,A36<Onderwerpen!$D$14),A36-10,IF(AND(A36>Onderwerpen!$D$14,A36<Onderwerpen!$D$15),A36-11,IF(AND(A36>Onderwerpen!$D$15,A36<Onderwerpen!$D$16),A36-12,IF(AND(A36>Onderwerpen!$D$16,A36<Onderwerpen!$D$17),A36-13,IF(AND(A36>Onderwerpen!$D$17,A36<Onderwerpen!$D$18),A36-14,IF(AND(A36>Onderwerpen!$D$18,A36<Onderwerpen!$D$19),A36-15,IF(AND(A36>Onderwerpen!$D$19,A36<Onderwerpen!$D$20),A36-16,IF(AND(A36>Onderwerpen!$D$20,A36<Onderwerpen!$D$21),A36-17,IF(AND(A36>Onderwerpen!$D$21,A36<Onderwerpen!$D$22),A36-18,IF(A36>Onderwerpen!$D$22,A36-19,"X"))))))))))))))))))))),"")))))))))))))))))))) -> 26 | D36: =IF(B36="",""&C36,LEFT(B36, FIND(" ",B36)-1) & "."&COUNTIF($B$8:B36,B36)) -> 3.8 | E36: Is er een lijst van alle werknemers onderworpen aan beeldschermwerk?
A37: =IFERROR(IF(A36=Onderwerpen!$C$23+19,"",A36+1),"") -> 29 | B37: =IF(C37<=Onderwerpen!$C$4,Onderwerpen!$A$4,IF(C37<=Onderwerpen!$C$5,Onderwerpen!$A$5,IF(C37<=Onderwerpen!$C$6,Onderwerpen!$A$6,IF(C37<=Onderwerpen!$C$7,Onderwerpen!$A$7,IF(C37<=Onderwerpen!$C$8,Onderwerpen!$A$8,IF(C37<=Onderwerpen!$C$9,Onderwerpen!$A$9,IF(C37<=Onderwerpen!C$10,Onderwerpen!$A$10,IF(C37<=Onderwerpen!C$11,Onderwerpen!$A$11,IF(C37<=Onderwerpen!C$12,Onderwerpen!$A$12,IF(C37<=Onderwerpen!C$13,Onderwerpen!$A$13,IF(C37<=Onderwerpen!$C$14,Onderwerpen!$A$14,IF(C37<=Onderwerpen!$C$15,Onderwerpen!$A$15,IF(C37<=Onderwerpen!$C$16,Onderwerpen!$A$16,IF(C37<=Onderwerpen!$C$17,Onderwerpen!$A$17,IF(C37<=Onderwerpen!$C$18,Onderwerpen!$A$18,IF(C37<=Onderwerpen!$C$19,Onderwerpen!$A$19,IF(C37<=Onderwerpen!$C$20,Onderwerpen!$A$20,IF(C37<=Onderwerpen!$C$21,Onderwerpen!$A$21,IF(C37<=Onderwerpen!$C$22,Onderwerpen!$A$22,IF(C37<=Onderwerpen!$C$23,Onderwerpen!$A$22,"")))))))))))))))))))) -> 3 Medisch toezicht | C37: =IF(Onderwerpen!$B$4+1=A37,Onderwerpen!$A$5,IF(SUM(Onderwerpen!$B$4:$B$5)+2=A37,Onderwerpen!$A$6,IF(SUM(Onderwerpen!$B$4:$B$6)+3=A37,Onderwerpen!$A$7,IF(SUM(Onderwerpen!$B$4:$B$7)+4=A37,Onderwerpen!$A$8,IF(SUM(Onderwerpen!$B$4:$B$8)+5=A37,Onderwerpen!$A$9,IF(SUM(Onderwerpen!$B$4:$B$9)+6=A37,Onderwerpen!$A$10,IF(SUM(Onderwerpen!$B$4:$B$10)+7=A37,Onderwerpen!$A$11,IF(SUM(Onderwerpen!$B$4:$B$11)+8=A37,Onderwerpen!$A$12,IF(SUM(Onderwerpen!$B$4:$B$12)+9=A37,Onderwerpen!$A$13,IF(SUM(Onderwerpen!$B$4:$B$13)+10=A37,Onderwerpen!$A$14,IF(SUM(Onderwerpen!$B$4:$B$14)+11=A37,Onderwerpen!$A$15,IF(SUM(Onderwerpen!$B$4:$B$15)+12=A37,Onderwerpen!$A$16,IF(SUM(Onderwerpen!$B$4:$B$16)+13=A37,Onderwerpen!$A$17,IF(SUM(Onderwerpen!$B$4:$B$17)+14=A37,Onderwerpen!$A$18,IF(SUM(Onderwerpen!$B$4:$B$18)+15=A37,Onderwerpen!$A$19,IF(SUM(Onderwerpen!$B$4:$B$19)+16=A37,Onderwerpen!$A$20,IF(SUM(Onderwerpen!$B$4:$B$20)+17=A37,Onderwerpen!$A$21,IF(SUM(Onderwerpen!$B$4:$B$21)+18=A37,Onderwerpen!$A$22,IF(SUM(Onderwerpen!$B$4:$B$22)+19=A37,Onderwerpen!$A$23,IFERROR((IF(A37<Onderwerpen!$D$4,A37,IF(AND(A37>Onderwerpen!$D$4,A37<Onderwerpen!$D$5),A37-1,IF(AND(A37>Onderwerpen!$D$5,A37<Onderwerpen!$D$6),A37-2,IF(AND(A37>Onderwerpen!$D$6,A37<Onderwerpen!$D$7),A37-3,IF(AND(A37>Onderwerpen!$D$7,A37<Onderwerpen!$D$8),A37-4,IF(AND(A37>Onderwerpen!$D$8,A37<Onderwerpen!$D$9),A37-5,IF(AND(A37>Onderwerpen!$D$9,A37<Onderwerpen!$D$10),A37-6,IF(AND(A37>Onderwerpen!$D$10,A37<Onderwerpen!$D$11),A37-7,IF(AND(A37>Onderwerpen!$D$11,A37<Onderwerpen!$D$12),A37-8,IF(AND(A37>Onderwerpen!$D$12,A37<Onderwerpen!$D$13),A37-9,IF(AND(A37>Onderwerpen!$D$13,A37<Onderwerpen!$D$14),A37-10,IF(AND(A37>Onderwerpen!$D$14,A37<Onderwerpen!$D$15),A37-11,IF(AND(A37>Onderwerpen!$D$15,A37<Onderwerpen!$D$16),A37-12,IF(AND(A37>Onderwerpen!$D$16,A37<Onderwerpen!$D$17),A37-13,IF(AND(A37>Onderwerpen!$D$17,A37<Onderwerpen!$D$18),A37-14,IF(AND(A37>Onderwerpen!$D$18,A37<Onderwerpen!$D$19),A37-15,IF(AND(A37>Onderwerpen!$D$19,A37<Onderwerpen!$D$20),A37-16,IF(AND(A37>Onderwerpen!$D$20,A37<Onderwerpen!$D$21),A37-17,IF(AND(A37>Onderwerpen!$D$21,A37<Onderwerpen!$D$22),A37-18,IF(A37>Onderwerpen!$D$22,A37-19,"X"))))))))))))))))))))),"")))))))))))))))))))) -> 27 | D37: =IF(B37="",""&C37,LEFT(B37, FIND(" ",B37)-1) & "."&COUNTIF($B$8:B37,B37)) -> 3.9 | E37: Is er een lijst van werknemers blootgesteld aan stralingen ( UV, IR, ..)?
A38: =IFERROR(IF(A37=Onderwerpen!$C$23+19,"",A37+1),"") -> 30 | B38: =IF(C38<=Onderwerpen!$C$4,Onderwerpen!$A$4,IF(C38<=Onderwerpen!$C$5,Onderwerpen!$A$5,IF(C38<=Onderwerpen!$C$6,Onderwerpen!$A$6,IF(C38<=Onderwerpen!$C$7,Onderwerpen!$A$7,IF(C38<=Onderwerpen!$C$8,Onderwerpen!$A$8,IF(C38<=Onderwerpen!$C$9,Onderwerpen!$A$9,IF(C38<=Onderwerpen!C$10,Onderwerpen!$A$10,IF(C38<=Onderwerpen!C$11,Onderwerpen!$A$11,IF(C38<=Onderwerpen!C$12,Onderwerpen!$A$12,IF(C38<=Onderwerpen!C$13,Onderwerpen!$A$13,IF(C38<=Onderwerpen!$C$14,Onderwerpen!$A$14,IF(C38<=Onderwerpen!$C$15,Onderwerpen!$A$15,IF(C38<=Onderwerpen!$C$16,Onderwerpen!$A$16,IF(C38<=Onderwerpen!$C$17,Onderwerpen!$A$17,IF(C38<=Onderwerpen!$C$18,Onderwerpen!$A$18,IF(C38<=Onderwerpen!$C$19,Onderwerpen!$A$19,IF(C38<=Onderwerpen!$C$20,Onderwerpen!$A$20,IF(C38<=Onderwerpen!$C$21,Onderwerpen!$A$21,IF(C38<=Onderwerpen!$C$22,Onderwerpen!$A$22,IF(C38<=Onderwerpen!$C$23,Onderwerpen!$A$22,"")))))))))))))))))))) -> 3 Medisch toezicht | C38: =IF(Onderwerpen!$B$4+1=A38,Onderwerpen!$A$5,IF(SUM(Onderwerpen!$B$4:$B$5)+2=A38,Onderwerpen!$A$6,IF(SUM(Onderwerpen!$B$4:$B$6)+3=A38,Onderwerpen!$A$7,IF(SUM(Onderwerpen!$B$4:$B$7)+4=A38,Onderwerpen!$A$8,IF(SUM(Onderwerpen!$B$4:$B$8)+5=A38,Onderwerpen!$A$9,IF(SUM(Onderwerpen!$B$4:$B$9)+6=A38,Onderwerpen!$A$10,IF(SUM(Onderwerpen!$B$4:$B$10)+7=A38,Onderwerpen!$A$11,IF(SUM(Onderwerpen!$B$4:$B$11)+8=A38,Onderwerpen!$A$12,IF(SUM(Onderwerpen!$B$4:$B$12)+9=A38,Onderwerpen!$A$13,IF(SUM(Onderwerpen!$B$4:$B$13)+10=A38,Onderwerpen!$A$14,IF(SUM(Onderwerpen!$B$4:$B$14)+11=A38,Onderwerpen!$A$15,IF(SUM(Onderwerpen!$B$4:$B$15)+12=A38,Onderwerpen!$A$16,IF(SUM(Onderwerpen!$B$4:$B$16)+13=A38,Onderwerpen!$A$17,IF(SUM(Onderwerpen!$B$4:$B$17)+14=A38,Onderwerpen!$A$18,IF(SUM(Onderwerpen!$B$4:$B$18)+15=A38,Onderwerpen!$A$19,IF(SUM(Onderwerpen!$B$4:$B$19)+16=A38,Onderwerpen!$A$20,IF(SUM(Onderwerpen!$B$4:$B$20)+17=A38,Onderwerpen!$A$21,IF(SUM(Onderwerpen!$B$4:$B$21)+18=A38,Onderwerpen!$A$22,IF(SUM(Onderwerpen!$B$4:$B$22)+19=A38,Onderwerpen!$A$23,IFERROR((IF(A38<Onderwerpen!$D$4,A38,IF(AND(A38>Onderwerpen!$D$4,A38<Onderwerpen!$D$5),A38-1,IF(AND(A38>Onderwerpen!$D$5,A38<Onderwerpen!$D$6),A38-2,IF(AND(A38>Onderwerpen!$D$6,A38<Onderwerpen!$D$7),A38-3,IF(AND(A38>Onderwerpen!$D$7,A38<Onderwerpen!$D$8),A38-4,IF(AND(A38>Onderwerpen!$D$8,A38<Onderwerpen!$D$9),A38-5,IF(AND(A38>Onderwerpen!$D$9,A38<Onderwerpen!$D$10),A38-6,IF(AND(A38>Onderwerpen!$D$10,A38<Onderwerpen!$D$11),A38-7,IF(AND(A38>Onderwerpen!$D$11,A38<Onderwerpen!$D$12),A38-8,IF(AND(A38>Onderwerpen!$D$12,A38<Onderwerpen!$D$13),A38-9,IF(AND(A38>Onderwerpen!$D$13,A38<Onderwerpen!$D$14),A38-10,IF(AND(A38>Onderwerpen!$D$14,A38<Onderwerpen!$D$15),A38-11,IF(AND(A38>Onderwerpen!$D$15,A38<Onderwerpen!$D$16),A38-12,IF(AND(A38>Onderwerpen!$D$16,A38<Onderwerpen!$D$17),A38-13,IF(AND(A38>Onderwerpen!$D$17,A38<Onderwerpen!$D$18),A38-14,IF(AND(A38>Onderwerpen!$D$18,A38<Onderwerpen!$D$19),A38-15,IF(AND(A38>Onderwerpen!$D$19,A38<Onderwerpen!$D$20),A38-16,IF(AND(A38>Onderwerpen!$D$20,A38<Onderwerpen!$D$21),A38-17,IF(AND(A38>Onderwerpen!$D$21,A38<Onderwerpen!$D$22),A38-18,IF(A38>Onderwerpen!$D$22,A38-19,"X"))))))))))))))))))))),"")))))))))))))))))))) -> 28 | D38: =IF(B38="",""&C38,LEFT(B38, FIND(" ",B38)-1) & "."&COUNTIF($B$8:B38,B38)) -> 3.10 | E38: Is er een lijst van werknemers blootgesteld aan hoge en/of lage temperaturen? | G38: x | J38: 3.10
A39: =IFERROR(IF(A38=Onderwerpen!$C$23+19,"",A38+1),"") -> 31 | B39: =IF(C39<=Onderwerpen!$C$4,Onderwerpen!$A$4,IF(C39<=Onderwerpen!$C$5,Onderwerpen!$A$5,IF(C39<=Onderwerpen!$C$6,Onderwerpen!$A$6,IF(C39<=Onderwerpen!$C$7,Onderwerpen!$A$7,IF(C39<=Onderwerpen!$C$8,Onderwerpen!$A$8,IF(C39<=Onderwerpen!$C$9,Onderwerpen!$A$9,IF(C39<=Onderwerpen!C$10,Onderwerpen!$A$10,IF(C39<=Onderwerpen!C$11,Onderwerpen!$A$11,IF(C39<=Onderwerpen!C$12,Onderwerpen!$A$12,IF(C39<=Onderwerpen!C$13,Onderwerpen!$A$13,IF(C39<=Onderwerpen!$C$14,Onderwerpen!$A$14,IF(C39<=Onderwerpen!$C$15,Onderwerpen!$A$15,IF(C39<=Onderwerpen!$C$16,Onderwerpen!$A$16,IF(C39<=Onderwerpen!$C$17,Onderwerpen!$A$17,IF(C39<=Onderwerpen!$C$18,Onderwerpen!$A$18,IF(C39<=Onderwerpen!$C$19,Onderwerpen!$A$19,IF(C39<=Onderwerpen!$C$20,Onderwerpen!$A$20,IF(C39<=Onderwerpen!$C$21,Onderwerpen!$A$21,IF(C39<=Onderwerpen!$C$22,Onderwerpen!$A$22,IF(C39<=Onderwerpen!$C$23,Onderwerpen!$A$22,"")))))))))))))))))))) -> 3 Medisch toezicht | C39: =IF(Onderwerpen!$B$4+1=A39,Onderwerpen!$A$5,IF(SUM(Onderwerpen!$B$4:$B$5)+2=A39,Onderwerpen!$A$6,IF(SUM(Onderwerpen!$B$4:$B$6)+3=A39,Onderwerpen!$A$7,IF(SUM(Onderwerpen!$B$4:$B$7)+4=A39,Onderwerpen!$A$8,IF(SUM(Onderwerpen!$B$4:$B$8)+5=A39,Onderwerpen!$A$9,IF(SUM(Onderwerpen!$B$4:$B$9)+6=A39,Onderwerpen!$A$10,IF(SUM(Onderwerpen!$B$4:$B$10)+7=A39,Onderwerpen!$A$11,IF(SUM(Onderwerpen!$B$4:$B$11)+8=A39,Onderwerpen!$A$12,IF(SUM(Onderwerpen!$B$4:$B$12)+9=A39,Onderwerpen!$A$13,IF(SUM(Onderwerpen!$B$4:$B$13)+10=A39,Onderwerpen!$A$14,IF(SUM(Onderwerpen!$B$4:$B$14)+11=A39,Onderwerpen!$A$15,IF(SUM(Onderwerpen!$B$4:$B$15)+12=A39,Onderwerpen!$A$16,IF(SUM(Onderwerpen!$B$4:$B$16)+13=A39,Onderwerpen!$A$17,IF(SUM(Onderwerpen!$B$4:$B$17)+14=A39,Onderwerpen!$A$18,IF(SUM(Onderwerpen!$B$4:$B$18)+15=A39,Onderwerpen!$A$19,IF(SUM(Onderwerpen!$B$4:$B$19)+16=A39,Onderwerpen!$A$20,IF(SUM(Onderwerpen!$B$4:$B$20)+17=A39,Onderwerpen!$A$21,IF(SUM(Onderwerpen!$B$4:$B$21)+18=A39,Onderwerpen!$A$22,IF(SUM(Onderwerpen!$B$4:$B$22)+19=A39,Onderwerpen!$A$23,IFERROR((IF(A39<Onderwerpen!$D$4,A39,IF(AND(A39>Onderwerpen!$D$4,A39<Onderwerpen!$D$5),A39-1,IF(AND(A39>Onderwerpen!$D$5,A39<Onderwerpen!$D$6),A39-2,IF(AND(A39>Onderwerpen!$D$6,A39<Onderwerpen!$D$7),A39-3,IF(AND(A39>Onderwerpen!$D$7,A39<Onderwerpen!$D$8),A39-4,IF(AND(A39>Onderwerpen!$D$8,A39<Onderwerpen!$D$9),A39-5,IF(AND(A39>Onderwerpen!$D$9,A39<Onderwerpen!$D$10),A39-6,IF(AND(A39>Onderwerpen!$D$10,A39<Onderwerpen!$D$11),A39-7,IF(AND(A39>Onderwerpen!$D$11,A39<Onderwerpen!$D$12),A39-8,IF(AND(A39>Onderwerpen!$D$12,A39<Onderwerpen!$D$13),A39-9,IF(AND(A39>Onderwerpen!$D$13,A39<Onderwerpen!$D$14),A39-10,IF(AND(A39>Onderwerpen!$D$14,A39<Onderwerpen!$D$15),A39-11,IF(AND(A39>Onderwerpen!$D$15,A39<Onderwerpen!$D$16),A39-12,IF(AND(A39>Onderwerpen!$D$16,A39<Onderwerpen!$D$17),A39-13,IF(AND(A39>Onderwerpen!$D$17,A39<Onderwerpen!$D$18),A39-14,IF(AND(A39>Onderwerpen!$D$18,A39<Onderwerpen!$D$19),A39-15,IF(AND(A39>Onderwerpen!$D$19,A39<Onderwerpen!$D$20),A39-16,IF(AND(A39>Onderwerpen!$D$20,A39<Onderwerpen!$D$21),A39-17,IF(AND(A39>Onderwerpen!$D$21,A39<Onderwerpen!$D$22),A39-18,IF(A39>Onderwerpen!$D$22,A39-19,"X"))))))))))))))))))))),"")))))))))))))))))))) -> 29 | D39: =IF(B39="",""&C39,LEFT(B39, FIND(" ",B39)-1) & "."&COUNTIF($B$8:B39,B39)) -> 3.11 | E39: Beschikt u over een overzicht van ziekteverzuim? | G39: x | J39: 3.11
A40: =IFERROR(IF(A39=Onderwerpen!$C$23+19,"",A39+1),"") -> 32 | B40: =IF(C40<=Onderwerpen!$C$4,Onderwerpen!$A$4,IF(C40<=Onderwerpen!$C$5,Onderwerpen!$A$5,IF(C40<=Onderwerpen!$C$6,Onderwerpen!$A$6,IF(C40<=Onderwerpen!$C$7,Onderwerpen!$A$7,IF(C40<=Onderwerpen!$C$8,Onderwerpen!$A$8,IF(C40<=Onderwerpen!$C$9,Onderwerpen!$A$9,IF(C40<=Onderwerpen!C$10,Onderwerpen!$A$10,IF(C40<=Onderwerpen!C$11,Onderwerpen!$A$11,IF(C40<=Onderwerpen!C$12,Onderwerpen!$A$12,IF(C40<=Onderwerpen!C$13,Onderwerpen!$A$13,IF(C40<=Onderwerpen!$C$14,Onderwerpen!$A$14,IF(C40<=Onderwerpen!$C$15,Onderwerpen!$A$15,IF(C40<=Onderwerpen!$C$16,Onderwerpen!$A$16,IF(C40<=Onderwerpen!$C$17,Onderwerpen!$A$17,IF(C40<=Onderwerpen!$C$18,Onderwerpen!$A$18,IF(C40<=Onderwerpen!$C$19,Onderwerpen!$A$19,IF(C40<=Onderwerpen!$C$20,Onderwerpen!$A$20,IF(C40<=Onderwerpen!$C$21,Onderwerpen!$A$21,IF(C40<=Onderwerpen!$C$22,Onderwerpen!$A$22,IF(C40<=Onderwerpen!$C$23,Onderwerpen!$A$22,"")))))))))))))))))))) -> 3 Medisch toezicht | C40: =IF(Onderwerpen!$B$4+1=A40,Onderwerpen!$A$5,IF(SUM(Onderwerpen!$B$4:$B$5)+2=A40,Onderwerpen!$A$6,IF(SUM(Onderwerpen!$B$4:$B$6)+3=A40,Onderwerpen!$A$7,IF(SUM(Onderwerpen!$B$4:$B$7)+4=A40,Onderwerpen!$A$8,IF(SUM(Onderwerpen!$B$4:$B$8)+5=A40,Onderwerpen!$A$9,IF(SUM(Onderwerpen!$B$4:$B$9)+6=A40,Onderwerpen!$A$10,IF(SUM(Onderwerpen!$B$4:$B$10)+7=A40,Onderwerpen!$A$11,IF(SUM(Onderwerpen!$B$4:$B$11)+8=A40,Onderwerpen!$A$12,IF(SUM(Onderwerpen!$B$4:$B$12)+9=A40,Onderwerpen!$A$13,IF(SUM(Onderwerpen!$B$4:$B$13)+10=A40,Onderwerpen!$A$14,IF(SUM(Onderwerpen!$B$4:$B$14)+11=A40,Onderwerpen!$A$15,IF(SUM(Onderwerpen!$B$4:$B$15)+12=A40,Onderwerpen!$A$16,IF(SUM(Onderwerpen!$B$4:$B$16)+13=A40,Onderwerpen!$A$17,IF(SUM(Onderwerpen!$B$4:$B$17)+14=A40,Onderwerpen!$A$18,IF(SUM(Onderwerpen!$B$4:$B$18)+15=A40,Onderwerpen!$A$19,IF(SUM(Onderwerpen!$B$4:$B$19)+16=A40,Onderwerpen!$A$20,IF(SUM(Onderwerpen!$B$4:$B$20)+17=A40,Onderwerpen!$A$21,IF(SUM(Onderwerpen!$B$4:$B$21)+18=A40,Onderwerpen!$A$22,IF(SUM(Onderwerpen!$B$4:$B$22)+19=A40,Onderwerpen!$A$23,IFERROR((IF(A40<Onderwerpen!$D$4,A40,IF(AND(A40>Onderwerpen!$D$4,A40<Onderwerpen!$D$5),A40-1,IF(AND(A40>Onderwerpen!$D$5,A40<Onderwerpen!$D$6),A40-2,IF(AND(A40>Onderwerpen!$D$6,A40<Onderwerpen!$D$7),A40-3,IF(AND(A40>Onderwerpen!$D$7,A40<Onderwerpen!$D$8),A40-4,IF(AND(A40>Onderwerpen!$D$8,A40<Onderwerpen!$D$9),A40-5,IF(AND(A40>Onderwerpen!$D$9,A40<Onderwerpen!$D$10),A40-6,IF(AND(A40>Onderwerpen!$D$10,A40<Onderwerpen!$D$11),A40-7,IF(AND(A40>Onderwerpen!$D$11,A40<Onderwerpen!$D$12),A40-8,IF(AND(A40>Onderwerpen!$D$12,A40<Onderwerpen!$D$13),A40-9,IF(AND(A40>Onderwerpen!$D$13,A40<Onderwerpen!$D$14),A40-10,IF(AND(A40>Onderwerpen!$D$14,A40<Onderwerpen!$D$15),A40-11,IF(AND(A40>Onderwerpen!$D$15,A40<Onderwerpen!$D$16),A40-12,IF(AND(A40>Onderwerpen!$D$16,A40<Onderwerpen!$D$17),A40-13,IF(AND(A40>Onderwerpen!$D$17,A40<Onderwerpen!$D$18),A40-14,IF(AND(A40>Onderwerpen!$D$18,A40<Onderwerpen!$D$19),A40-15,IF(AND(A40>Onderwerpen!$D$19,A40<Onderwerpen!$D$20),A40-16,IF(AND(A40>Onderwerpen!$D$20,A40<Onderwerpen!$D$21),A40-17,IF(AND(A40>Onderwerpen!$D$21,A40<Onderwerpen!$D$22),A40-18,IF(A40>Onderwerpen!$D$22,A40-19,"X"))))))))))))))))))))),"")))))))))))))))))))) -> 30 | D40: =IF(B40="",""&C40,LEFT(B40, FIND(" ",B40)-1) & "."&COUNTIF($B$8:B40,B40)) -> 3.12 | E40: Beschikt u over een overzicht van werkverlet door arbeidsongeval?
A41: =IFERROR(IF(A40=Onderwerpen!$C$23+19,"",A40+1),"") -> 33 | B41: =IF(C41<=Onderwerpen!$C$4,Onderwerpen!$A$4,IF(C41<=Onderwerpen!$C$5,Onderwerpen!$A$5,IF(C41<=Onderwerpen!$C$6,Onderwerpen!$A$6,IF(C41<=Onderwerpen!$C$7,Onderwerpen!$A$7,IF(C41<=Onderwerpen!$C$8,Onderwerpen!$A$8,IF(C41<=Onderwerpen!$C$9,Onderwerpen!$A$9,IF(C41<=Onderwerpen!C$10,Onderwerpen!$A$10,IF(C41<=Onderwerpen!C$11,Onderwerpen!$A$11,IF(C41<=Onderwerpen!C$12,Onderwerpen!$A$12,IF(C41<=Onderwerpen!C$13,Onderwerpen!$A$13,IF(C41<=Onderwerpen!$C$14,Onderwerpen!$A$14,IF(C41<=Onderwerpen!$C$15,Onderwerpen!$A$15,IF(C41<=Onderwerpen!$C$16,Onderwerpen!$A$16,IF(C41<=Onderwerpen!$C$17,Onderwerpen!$A$17,IF(C41<=Onderwerpen!$C$18,Onderwerpen!$A$18,IF(C41<=Onderwerpen!$C$19,Onderwerpen!$A$19,IF(C41<=Onderwerpen!$C$20,Onderwerpen!$A$20,IF(C41<=Onderwerpen!$C$21,Onderwerpen!$A$21,IF(C41<=Onderwerpen!$C$22,Onderwerpen!$A$22,IF(C41<=Onderwerpen!$C$23,Onderwerpen!$A$22,"")))))))))))))))))))) -> 3 Medisch toezicht | C41: =IF(Onderwerpen!$B$4+1=A41,Onderwerpen!$A$5,IF(SUM(Onderwerpen!$B$4:$B$5)+2=A41,Onderwerpen!$A$6,IF(SUM(Onderwerpen!$B$4:$B$6)+3=A41,Onderwerpen!$A$7,IF(SUM(Onderwerpen!$B$4:$B$7)+4=A41,Onderwerpen!$A$8,IF(SUM(Onderwerpen!$B$4:$B$8)+5=A41,Onderwerpen!$A$9,IF(SUM(Onderwerpen!$B$4:$B$9)+6=A41,Onderwerpen!$A$10,IF(SUM(Onderwerpen!$B$4:$B$10)+7=A41,Onderwerpen!$A$11,IF(SUM(Onderwerpen!$B$4:$B$11)+8=A41,Onderwerpen!$A$12,IF(SUM(Onderwerpen!$B$4:$B$12)+9=A41,Onderwerpen!$A$13,IF(SUM(Onderwerpen!$B$4:$B$13)+10=A41,Onderwerpen!$A$14,IF(SUM(Onderwerpen!$B$4:$B$14)+11=A41,Onderwerpen!$A$15,IF(SUM(Onderwerpen!$B$4:$B$15)+12=A41,Onderwerpen!$A$16,IF(SUM(Onderwerpen!$B$4:$B$16)+13=A41,Onderwerpen!$A$17,IF(SUM(Onderwerpen!$B$4:$B$17)+14=A41,Onderwerpen!$A$18,IF(SUM(Onderwerpen!$B$4:$B$18)+15=A41,Onderwerpen!$A$19,IF(SUM(Onderwerpen!$B$4:$B$19)+16=A41,Onderwerpen!$A$20,IF(SUM(Onderwerpen!$B$4:$B$20)+17=A41,Onderwerpen!$A$21,IF(SUM(Onderwerpen!$B$4:$B$21)+18=A41,Onderwerpen!$A$22,IF(SUM(Onderwerpen!$B$4:$B$22)+19=A41,Onderwerpen!$A$23,IFERROR((IF(A41<Onderwerpen!$D$4,A41,IF(AND(A41>Onderwerpen!$D$4,A41<Onderwerpen!$D$5),A41-1,IF(AND(A41>Onderwerpen!$D$5,A41<Onderwerpen!$D$6),A41-2,IF(AND(A41>Onderwerpen!$D$6,A41<Onderwerpen!$D$7),A41-3,IF(AND(A41>Onderwerpen!$D$7,A41<Onderwerpen!$D$8),A41-4,IF(AND(A41>Onderwerpen!$D$8,A41<Onderwerpen!$D$9),A41-5,IF(AND(A41>Onderwerpen!$D$9,A41<Onderwerpen!$D$10),A41-6,IF(AND(A41>Onderwerpen!$D$10,A41<Onderwerpen!$D$11),A41-7,IF(AND(A41>Onderwerpen!$D$11,A41<Onderwerpen!$D$12),A41-8,IF(AND(A41>Onderwerpen!$D$12,A41<Onderwerpen!$D$13),A41-9,IF(AND(A41>Onderwerpen!$D$13,A41<Onderwerpen!$D$14),A41-10,IF(AND(A41>Onderwerpen!$D$14,A41<Onderwerpen!$D$15),A41-11,IF(AND(A41>Onderwerpen!$D$15,A41<Onderwerpen!$D$16),A41-12,IF(AND(A41>Onderwerpen!$D$16,A41<Onderwerpen!$D$17),A41-13,IF(AND(A41>Onderwerpen!$D$17,A41<Onderwerpen!$D$18),A41-14,IF(AND(A41>Onderwerpen!$D$18,A41<Onderwerpen!$D$19),A41-15,IF(AND(A41>Onderwerpen!$D$19,A41<Onderwerpen!$D$20),A41-16,IF(AND(A41>Onderwerpen!$D$20,A41<Onderwerpen!$D$21),A41-17,IF(AND(A41>Onderwerpen!$D$21,A41<Onderwerpen!$D$22),A41-18,IF(A41>Onderwerpen!$D$22,A41-19,"X"))))))))))))))))))))),"")))))))))))))))))))) -> 31 | D41: =IF(B41="",""&C41,LEFT(B41, FIND(" ",B41)-1) & "."&COUNTIF($B$8:B41,B41)) -> 3.13 | E41: Is er medisch toezicht door een arbeidsgeneesheer?
A42: =IFERROR(IF(A41=Onderwerpen!$C$23+19,"",A41+1),"") -> 34 | B42: =IF(C42<=Onderwerpen!$C$4,Onderwerpen!$A$4,IF(C42<=Onderwerpen!$C$5,Onderwerpen!$A$5,IF(C42<=Onderwerpen!$C$6,Onderwerpen!$A$6,IF(C42<=Onderwerpen!$C$7,Onderwerpen!$A$7,IF(C42<=Onderwerpen!$C$8,Onderwerpen!$A$8,IF(C42<=Onderwerpen!$C$9,Onderwerpen!$A$9,IF(C42<=Onderwerpen!C$10,Onderwerpen!$A$10,IF(C42<=Onderwerpen!C$11,Onderwerpen!$A$11,IF(C42<=Onderwerpen!C$12,Onderwerpen!$A$12,IF(C42<=Onderwerpen!C$13,Onderwerpen!$A$13,IF(C42<=Onderwerpen!$C$14,Onderwerpen!$A$14,IF(C42<=Onderwerpen!$C$15,Onderwerpen!$A$15,IF(C42<=Onderwerpen!$C$16,Onderwerpen!$A$16,IF(C42<=Onderwerpen!$C$17,Onderwerpen!$A$17,IF(C42<=Onderwerpen!$C$18,Onderwerpen!$A$18,IF(C42<=Onderwerpen!$C$19,Onderwerpen!$A$19,IF(C42<=Onderwerpen!$C$20,Onderwerpen!$A$20,IF(C42<=Onderwerpen!$C$21,Onderwerpen!$A$21,IF(C42<=Onderwerpen!$C$22,Onderwerpen!$A$22,IF(C42<=Onderwerpen!$C$23,Onderwerpen!$A$22,"")))))))))))))))))))) -> 3 Medisch toezicht | C42: =IF(Onderwerpen!$B$4+1=A42,Onderwerpen!$A$5,IF(SUM(Onderwerpen!$B$4:$B$5)+2=A42,Onderwerpen!$A$6,IF(SUM(Onderwerpen!$B$4:$B$6)+3=A42,Onderwerpen!$A$7,IF(SUM(Onderwerpen!$B$4:$B$7)+4=A42,Onderwerpen!$A$8,IF(SUM(Onderwerpen!$B$4:$B$8)+5=A42,Onderwerpen!$A$9,IF(SUM(Onderwerpen!$B$4:$B$9)+6=A42,Onderwerpen!$A$10,IF(SUM(Onderwerpen!$B$4:$B$10)+7=A42,Onderwerpen!$A$11,IF(SUM(Onderwerpen!$B$4:$B$11)+8=A42,Onderwerpen!$A$12,IF(SUM(Onderwerpen!$B$4:$B$12)+9=A42,Onderwerpen!$A$13,IF(SUM(Onderwerpen!$B$4:$B$13)+10=A42,Onderwerpen!$A$14,IF(SUM(Onderwerpen!$B$4:$B$14)+11=A42,Onderwerpen!$A$15,IF(SUM(Onderwerpen!$B$4:$B$15)+12=A42,Onderwerpen!$A$16,IF(SUM(Onderwerpen!$B$4:$B$16)+13=A42,Onderwerpen!$A$17,IF(SUM(Onderwerpen!$B$4:$B$17)+14=A42,Onderwerpen!$A$18,IF(SUM(Onderwerpen!$B$4:$B$18)+15=A42,Onderwerpen!$A$19,IF(SUM(Onderwerpen!$B$4:$B$19)+16=A42,Onderwerpen!$A$20,IF(SUM(Onderwerpen!$B$4:$B$20)+17=A42,Onderwerpen!$A$21,IF(SUM(Onderwerpen!$B$4:$B$21)+18=A42,Onderwerpen!$A$22,IF(SUM(Onderwerpen!$B$4:$B$22)+19=A42,Onderwerpen!$A$23,IFERROR((IF(A42<Onderwerpen!$D$4,A42,IF(AND(A42>Onderwerpen!$D$4,A42<Onderwerpen!$D$5),A42-1,IF(AND(A42>Onderwerpen!$D$5,A42<Onderwerpen!$D$6),A42-2,IF(AND(A42>Onderwerpen!$D$6,A42<Onderwerpen!$D$7),A42-3,IF(AND(A42>Onderwerpen!$D$7,A42<Onderwerpen!$D$8),A42-4,IF(AND(A42>Onderwerpen!$D$8,A42<Onderwerpen!$D$9),A42-5,IF(AND(A42>Onderwerpen!$D$9,A42<Onderwerpen!$D$10),A42-6,IF(AND(A42>Onderwerpen!$D$10,A42<Onderwerpen!$D$11),A42-7,IF(AND(A42>Onderwerpen!$D$11,A42<Onderwerpen!$D$12),A42-8,IF(AND(A42>Onderwerpen!$D$12,A42<Onderwerpen!$D$13),A42-9,IF(AND(A42>Onderwerpen!$D$13,A42<Onderwerpen!$D$14),A42-10,IF(AND(A42>Onderwerpen!$D$14,A42<Onderwerpen!$D$15),A42-11,IF(AND(A42>Onderwerpen!$D$15,A42<Onderwerpen!$D$16),A42-12,IF(AND(A42>Onderwerpen!$D$16,A42<Onderwerpen!$D$17),A42-13,IF(AND(A42>Onderwerpen!$D$17,A42<Onderwerpen!$D$18),A42-14,IF(AND(A42>Onderwerpen!$D$18,A42<Onderwerpen!$D$19),A42-15,IF(AND(A42>Onderwerpen!$D$19,A42<Onderwerpen!$D$20),A42-16,IF(AND(A42>Onderwerpen!$D$20,A42<Onderwerpen!$D$21),A42-17,IF(AND(A42>Onderwerpen!$D$21,A42<Onderwerpen!$D$22),A42-18,IF(A42>Onderwerpen!$D$22,A42-19,"X"))))))))))))))))))))),"")))))))))))))))))))) -> 32 | D42: =IF(B42="",""&C42,LEFT(B42, FIND(" ",B42)-1) & "."&COUNTIF($B$8:B42,B42)) -> 3.14 | E42: Houdt u rekening met de beperkingen van werkneemsters tijdens de zwangerschap en na de bevalling?
A43: =IFERROR(IF(A42=Onderwerpen!$C$23+19,"",A42+1),"") -> 35 | B43: =IF(C43<=Onderwerpen!$C$4,Onderwerpen!$A$4,IF(C43<=Onderwerpen!$C$5,Onderwerpen!$A$5,IF(C43<=Onderwerpen!$C$6,Onderwerpen!$A$6,IF(C43<=Onderwerpen!$C$7,Onderwerpen!$A$7,IF(C43<=Onderwerpen!$C$8,Onderwerpen!$A$8,IF(C43<=Onderwerpen!$C$9,Onderwerpen!$A$9,IF(C43<=Onderwerpen!C$10,Onderwerpen!$A$10,IF(C43<=Onderwerpen!C$11,Onderwerpen!$A$11,IF(C43<=Onderwerpen!C$12,Onderwerpen!$A$12,IF(C43<=Onderwerpen!C$13,Onderwerpen!$A$13,IF(C43<=Onderwerpen!$C$14,Onderwerpen!$A$14,IF(C43<=Onderwerpen!$C$15,Onderwerpen!$A$15,IF(C43<=Onderwerpen!$C$16,Onderwerpen!$A$16,IF(C43<=Onderwerpen!$C$17,Onderwerpen!$A$17,IF(C43<=Onderwerpen!$C$18,Onderwerpen!$A$18,IF(C43<=Onderwerpen!$C$19,Onderwerpen!$A$19,IF(C43<=Onderwerpen!$C$20,Onderwerpen!$A$20,IF(C43<=Onderwerpen!$C$21,Onderwerpen!$A$21,IF(C43<=Onderwerpen!$C$22,Onderwerpen!$A$22,IF(C43<=Onderwerpen!$C$23,Onderwerpen!$A$22,"")))))))))))))))))))) -> 3 Medisch toezicht | C43: =IF(Onderwerpen!$B$4+1=A43,Onderwerpen!$A$5,IF(SUM(Onderwerpen!$B$4:$B$5)+2=A43,Onderwerpen!$A$6,IF(SUM(Onderwerpen!$B$4:$B$6)+3=A43,Onderwerpen!$A$7,IF(SUM(Onderwerpen!$B$4:$B$7)+4=A43,Onderwerpen!$A$8,IF(SUM(Onderwerpen!$B$4:$B$8)+5=A43,Onderwerpen!$A$9,IF(SUM(Onderwerpen!$B$4:$B$9)+6=A43,Onderwerpen!$A$10,IF(SUM(Onderwerpen!$B$4:$B$10)+7=A43,Onderwerpen!$A$11,IF(SUM(Onderwerpen!$B$4:$B$11)+8=A43,Onderwerpen!$A$12,IF(SUM(Onderwerpen!$B$4:$B$12)+9=A43,Onderwerpen!$A$13,IF(SUM(Onderwerpen!$B$4:$B$13)+10=A43,Onderwerpen!$A$14,IF(SUM(Onderwerpen!$B$4:$B$14)+11=A43,Onderwerpen!$A$15,IF(SUM(Onderwerpen!$B$4:$B$15)+12=A43,Onderwerpen!$A$16,IF(SUM(Onderwerpen!$B$4:$B$16)+13=A43,Onderwerpen!$A$17,IF(SUM(Onderwerpen!$B$4:$B$17)+14=A43,Onderwerpen!$A$18,IF(SUM(Onderwerpen!$B$4:$B$18)+15=A43,Onderwerpen!$A$19,IF(SUM(Onderwerpen!$B$4:$B$19)+16=A43,Onderwerpen!$A$20,IF(SUM(Onderwerpen!$B$4:$B$20)+17=A43,Onderwerpen!$A$21,IF(SUM(Onderwerpen!$B$4:$B$21)+18=A43,Onderwerpen!$A$22,IF(SUM(Onderwerpen!$B$4:$B$22)+19=A43,Onderwerpen!$A$23,IFERROR((IF(A43<Onderwerpen!$D$4,A43,IF(AND(A43>Onderwerpen!$D$4,A43<Onderwerpen!$D$5),A43-1,IF(AND(A43>Onderwerpen!$D$5,A43<Onderwerpen!$D$6),A43-2,IF(AND(A43>Onderwerpen!$D$6,A43<Onderwerpen!$D$7),A43-3,IF(AND(A43>Onderwerpen!$D$7,A43<Onderwerpen!$D$8),A43-4,IF(AND(A43>Onderwerpen!$D$8,A43<Onderwerpen!$D$9),A43-5,IF(AND(A43>Onderwerpen!$D$9,A43<Onderwerpen!$D$10),A43-6,IF(AND(A43>Onderwerpen!$D$10,A43<Onderwerpen!$D$11),A43-7,IF(AND(A43>Onderwerpen!$D$11,A43<Onderwerpen!$D$12),A43-8,IF(AND(A43>Onderwerpen!$D$12,A43<Onderwerpen!$D$13),A43-9,IF(AND(A43>Onderwerpen!$D$13,A43<Onderwerpen!$D$14),A43-10,IF(AND(A43>Onderwerpen!$D$14,A43<Onderwerpen!$D$15),A43-11,IF(AND(A43>Onderwerpen!$D$15,A43<Onderwerpen!$D$16),A43-12,IF(AND(A43>Onderwerpen!$D$16,A43<Onderwerpen!$D$17),A43-13,IF(AND(A43>Onderwerpen!$D$17,A43<Onderwerpen!$D$18),A43-14,IF(AND(A43>Onderwerpen!$D$18,A43<Onderwerpen!$D$19),A43-15,IF(AND(A43>Onderwerpen!$D$19,A43<Onderwerpen!$D$20),A43-16,IF(AND(A43>Onderwerpen!$D$20,A43<Onderwerpen!$D$21),A43-17,IF(AND(A43>Onderwerpen!$D$21,A43<Onderwerpen!$D$22),A43-18,IF(A43>Onderwerpen!$D$22,A43-19,"X"))))))))))))))))))))),"")))))))))))))))))))) -> 33 | D43: =IF(B43="",""&C43,LEFT(B43, FIND(" ",B43)-1) & "."&COUNTIF($B$8:B43,B43)) -> 3.15 | E43: Is de organisatie betreffende EH geregeld (verantwoordelijke, hulpverlener, verbanddozen, ..)?
A44: =IFERROR(IF(A43=Onderwerpen!$C$23+19,"",A43+1),"") -> 36 | B44: =IF(C44<=Onderwerpen!$C$4,Onderwerpen!$A$4,IF(C44<=Onderwerpen!$C$5,Onderwerpen!$A$5,IF(C44<=Onderwerpen!$C$6,Onderwerpen!$A$6,IF(C44<=Onderwerpen!$C$7,Onderwerpen!$A$7,IF(C44<=Onderwerpen!$C$8,Onderwerpen!$A$8,IF(C44<=Onderwerpen!$C$9,Onderwerpen!$A$9,IF(C44<=Onderwerpen!C$10,Onderwerpen!$A$10,IF(C44<=Onderwerpen!C$11,Onderwerpen!$A$11,IF(C44<=Onderwerpen!C$12,Onderwerpen!$A$12,IF(C44<=Onderwerpen!C$13,Onderwerpen!$A$13,IF(C44<=Onderwerpen!$C$14,Onderwerpen!$A$14,IF(C44<=Onderwerpen!$C$15,Onderwerpen!$A$15,IF(C44<=Onderwerpen!$C$16,Onderwerpen!$A$16,IF(C44<=Onderwerpen!$C$17,Onderwerpen!$A$17,IF(C44<=Onderwerpen!$C$18,Onderwerpen!$A$18,IF(C44<=Onderwerpen!$C$19,Onderwerpen!$A$19,IF(C44<=Onderwerpen!$C$20,Onderwerpen!$A$20,IF(C44<=Onderwerpen!$C$21,Onderwerpen!$A$21,IF(C44<=Onderwerpen!$C$22,Onderwerpen!$A$22,IF(C44<=Onderwerpen!$C$23,Onderwerpen!$A$22,"")))))))))))))))))))) -> 3 Medisch toezicht | C44: =IF(Onderwerpen!$B$4+1=A44,Onderwerpen!$A$5,IF(SUM(Onderwerpen!$B$4:$B$5)+2=A44,Onderwerpen!$A$6,IF(SUM(Onderwerpen!$B$4:$B$6)+3=A44,Onderwerpen!$A$7,IF(SUM(Onderwerpen!$B$4:$B$7)+4=A44,Onderwerpen!$A$8,IF(SUM(Onderwerpen!$B$4:$B$8)+5=A44,Onderwerpen!$A$9,IF(SUM(Onderwerpen!$B$4:$B$9)+6=A44,Onderwerpen!$A$10,IF(SUM(Onderwerpen!$B$4:$B$10)+7=A44,Onderwerpen!$A$11,IF(SUM(Onderwerpen!$B$4:$B$11)+8=A44,Onderwerpen!$A$12,IF(SUM(Onderwerpen!$B$4:$B$12)+9=A44,Onderwerpen!$A$13,IF(SUM(Onderwerpen!$B$4:$B$13)+10=A44,Onderwerpen!$A$14,IF(SUM(Onderwerpen!$B$4:$B$14)+11=A44,Onderwerpen!$A$15,IF(SUM(Onderwerpen!$B$4:$B$15)+12=A44,Onderwerpen!$A$16,IF(SUM(Onderwerpen!$B$4:$B$16)+13=A44,Onderwerpen!$A$17,IF(SUM(Onderwerpen!$B$4:$B$17)+14=A44,Onderwerpen!$A$18,IF(SUM(Onderwerpen!$B$4:$B$18)+15=A44,Onderwerpen!$A$19,IF(SUM(Onderwerpen!$B$4:$B$19)+16=A44,Onderwerpen!$A$20,IF(SUM(Onderwerpen!$B$4:$B$20)+17=A44,Onderwerpen!$A$21,IF(SUM(Onderwerpen!$B$4:$B$21)+18=A44,Onderwerpen!$A$22,IF(SUM(Onderwerpen!$B$4:$B$22)+19=A44,Onderwerpen!$A$23,IFERROR((IF(A44<Onderwerpen!$D$4,A44,IF(AND(A44>Onderwerpen!$D$4,A44<Onderwerpen!$D$5),A44-1,IF(AND(A44>Onderwerpen!$D$5,A44<Onderwerpen!$D$6),A44-2,IF(AND(A44>Onderwerpen!$D$6,A44<Onderwerpen!$D$7),A44-3,IF(AND(A44>Onderwerpen!$D$7,A44<Onderwerpen!$D$8),A44-4,IF(AND(A44>Onderwerpen!$D$8,A44<Onderwerpen!$D$9),A44-5,IF(AND(A44>Onderwerpen!$D$9,A44<Onderwerpen!$D$10),A44-6,IF(AND(A44>Onderwerpen!$D$10,A44<Onderwerpen!$D$11),A44-7,IF(AND(A44>Onderwerpen!$D$11,A44<Onderwerpen!$D$12),A44-8,IF(AND(A44>Onderwerpen!$D$12,A44<Onderwerpen!$D$13),A44-9,IF(AND(A44>Onderwerpen!$D$13,A44<Onderwerpen!$D$14),A44-10,IF(AND(A44>Onderwerpen!$D$14,A44<Onderwerpen!$D$15),A44-11,IF(AND(A44>Onderwerpen!$D$15,A44<Onderwerpen!$D$16),A44-12,IF(AND(A44>Onderwerpen!$D$16,A44<Onderwerpen!$D$17),A44-13,IF(AND(A44>Onderwerpen!$D$17,A44<Onderwerpen!$D$18),A44-14,IF(AND(A44>Onderwerpen!$D$18,A44<Onderwerpen!$D$19),A44-15,IF(AND(A44>Onderwerpen!$D$19,A44<Onderwerpen!$D$20),A44-16,IF(AND(A44>Onderwerpen!$D$20,A44<Onderwerpen!$D$21),A44-17,IF(AND(A44>Onderwerpen!$D$21,A44<Onderwerpen!$D$22),A44-18,IF(A44>Onderwerpen!$D$22,A44-19,"X"))))))))))))))))))))),"")))))))))))))))))))) -> 34 | D44: =IF(B44="",""&C44,LEFT(B44, FIND(" ",B44)-1) & "."&COUNTIF($B$8:B44,B44)) -> 3.16 | E44: Is er een lijst van alle werknemers die aan explosieve atmosferen blootgesteld worden?
A45: =IFERROR(IF(A44=Onderwerpen!$C$23+19,"",A44+1),"") -> 37 | B45: =IF(C45<=Onderwerpen!$C$4,Onderwerpen!$A$4,IF(C45<=Onderwerpen!$C$5,Onderwerpen!$A$5,IF(C45<=Onderwerpen!$C$6,Onderwerpen!$A$6,IF(C45<=Onderwerpen!$C$7,Onderwerpen!$A$7,IF(C45<=Onderwerpen!$C$8,Onderwerpen!$A$8,IF(C45<=Onderwerpen!$C$9,Onderwerpen!$A$9,IF(C45<=Onderwerpen!C$10,Onderwerpen!$A$10,IF(C45<=Onderwerpen!C$11,Onderwerpen!$A$11,IF(C45<=Onderwerpen!C$12,Onderwerpen!$A$12,IF(C45<=Onderwerpen!C$13,Onderwerpen!$A$13,IF(C45<=Onderwerpen!$C$14,Onderwerpen!$A$14,IF(C45<=Onderwerpen!$C$15,Onderwerpen!$A$15,IF(C45<=Onderwerpen!$C$16,Onderwerpen!$A$16,IF(C45<=Onderwerpen!$C$17,Onderwerpen!$A$17,IF(C45<=Onderwerpen!$C$18,Onderwerpen!$A$18,IF(C45<=Onderwerpen!$C$19,Onderwerpen!$A$19,IF(C45<=Onderwerpen!$C$20,Onderwerpen!$A$20,IF(C45<=Onderwerpen!$C$21,Onderwerpen!$A$21,IF(C45<=Onderwerpen!$C$22,Onderwerpen!$A$22,IF(C45<=Onderwerpen!$C$23,Onderwerpen!$A$22,"")))))))))))))))))))) ->  | C45: =IF(Onderwerpen!$B$4+1=A45,Onderwerpen!$A$5,IF(SUM(Onderwerpen!$B$4:$B$5)+2=A45,Onderwerpen!$A$6,IF(SUM(Onderwerpen!$B$4:$B$6)+3=A45,Onderwerpen!$A$7,IF(SUM(Onderwerpen!$B$4:$B$7)+4=A45,Onderwerpen!$A$8,IF(SUM(Onderwerpen!$B$4:$B$8)+5=A45,Onderwerpen!$A$9,IF(SUM(Onderwerpen!$B$4:$B$9)+6=A45,Onderwerpen!$A$10,IF(SUM(Onderwerpen!$B$4:$B$10)+7=A45,Onderwerpen!$A$11,IF(SUM(Onderwerpen!$B$4:$B$11)+8=A45,Onderwerpen!$A$12,IF(SUM(Onderwerpen!$B$4:$B$12)+9=A45,Onderwerpen!$A$13,IF(SUM(Onderwerpen!$B$4:$B$13)+10=A45,Onderwerpen!$A$14,IF(SUM(Onderwerpen!$B$4:$B$14)+11=A45,Onderwerpen!$A$15,IF(SUM(Onderwerpen!$B$4:$B$15)+12=A45,Onderwerpen!$A$16,IF(SUM(Onderwerpen!$B$4:$B$16)+13=A45,Onderwerpen!$A$17,IF(SUM(Onderwerpen!$B$4:$B$17)+14=A45,Onderwerpen!$A$18,IF(SUM(Onderwerpen!$B$4:$B$18)+15=A45,Onderwerpen!$A$19,IF(SUM(Onderwerpen!$B$4:$B$19)+16=A45,Onderwerpen!$A$20,IF(SUM(Onderwerpen!$B$4:$B$20)+17=A45,Onderwerpen!$A$21,IF(SUM(Onderwerpen!$B$4:$B$21)+18=A45,Onderwerpen!$A$22,IF(SUM(Onderwerpen!$B$4:$B$22)+19=A45,Onderwerpen!$A$23,IFERROR((IF(A45<Onderwerpen!$D$4,A45,IF(AND(A45>Onderwerpen!$D$4,A45<Onderwerpen!$D$5),A45-1,IF(AND(A45>Onderwerpen!$D$5,A45<Onderwerpen!$D$6),A45-2,IF(AND(A45>Onderwerpen!$D$6,A45<Onderwerpen!$D$7),A45-3,IF(AND(A45>Onderwerpen!$D$7,A45<Onderwerpen!$D$8),A45-4,IF(AND(A45>Onderwerpen!$D$8,A45<Onderwerpen!$D$9),A45-5,IF(AND(A45>Onderwerpen!$D$9,A45<Onderwerpen!$D$10),A45-6,IF(AND(A45>Onderwerpen!$D$10,A45<Onderwerpen!$D$11),A45-7,IF(AND(A45>Onderwerpen!$D$11,A45<Onderwerpen!$D$12),A45-8,IF(AND(A45>Onderwerpen!$D$12,A45<Onderwerpen!$D$13),A45-9,IF(AND(A45>Onderwerpen!$D$13,A45<Onderwerpen!$D$14),A45-10,IF(AND(A45>Onderwerpen!$D$14,A45<Onderwerpen!$D$15),A45-11,IF(AND(A45>Onderwerpen!$D$15,A45<Onderwerpen!$D$16),A45-12,IF(AND(A45>Onderwerpen!$D$16,A45<Onderwerpen!$D$17),A45-13,IF(AND(A45>Onderwerpen!$D$17,A45<Onderwerpen!$D$18),A45-14,IF(AND(A45>Onderwerpen!$D$18,A45<Onderwerpen!$D$19),A45-15,IF(AND(A45>Onderwerpen!$D$19,A45<Onderwerpen!$D$20),A45-16,IF(AND(A45>Onderwerpen!$D$20,A45<Onderwerpen!$D$21),A45-17,IF(AND(A45>Onderwerpen!$D$21,A45<Onderwerpen!$D$22),A45-18,IF(A45>Onderwerpen!$D$22,A45-19,"X"))))))))))))))))))))),"")))))))))))))))))))) -> 4 Lawaai | D45: =IF(B45="",""&C45,LEFT(B45, FIND(" ",B45)-1) & "."&COUNTIF($B$8:B45,B45)) -> 4 Lawaai
A46: =IFERROR(IF(A45=Onderwerpen!$C$23+19,"",A45+1),"") -> 38 | B46: =IF(C46<=Onderwerpen!$C$4,Onderwerpen!$A$4,IF(C46<=Onderwerpen!$C$5,Onderwerpen!$A$5,IF(C46<=Onderwerpen!$C$6,Onderwerpen!$A$6,IF(C46<=Onderwerpen!$C$7,Onderwerpen!$A$7,IF(C46<=Onderwerpen!$C$8,Onderwerpen!$A$8,IF(C46<=Onderwerpen!$C$9,Onderwerpen!$A$9,IF(C46<=Onderwerpen!C$10,Onderwerpen!$A$10,IF(C46<=Onderwerpen!C$11,Onderwerpen!$A$11,IF(C46<=Onderwerpen!C$12,Onderwerpen!$A$12,IF(C46<=Onderwerpen!C$13,Onderwerpen!$A$13,IF(C46<=Onderwerpen!$C$14,Onderwerpen!$A$14,IF(C46<=Onderwerpen!$C$15,Onderwerpen!$A$15,IF(C46<=Onderwerpen!$C$16,Onderwerpen!$A$16,IF(C46<=Onderwerpen!$C$17,Onderwerpen!$A$17,IF(C46<=Onderwerpen!$C$18,Onderwerpen!$A$18,IF(C46<=Onderwerpen!$C$19,Onderwerpen!$A$19,IF(C46<=Onderwerpen!$C$20,Onderwerpen!$A$20,IF(C46<=Onderwerpen!$C$21,Onderwerpen!$A$21,IF(C46<=Onderwerpen!$C$22,Onderwerpen!$A$22,IF(C46<=Onderwerpen!$C$23,Onderwerpen!$A$22,"")))))))))))))))))))) -> 4 Lawaai | C46: =IF(Onderwerpen!$B$4+1=A46,Onderwerpen!$A$5,IF(SUM(Onderwerpen!$B$4:$B$5)+2=A46,Onderwerpen!$A$6,IF(SUM(Onderwerpen!$B$4:$B$6)+3=A46,Onderwerpen!$A$7,IF(SUM(Onderwerpen!$B$4:$B$7)+4=A46,Onderwerpen!$A$8,IF(SUM(Onderwerpen!$B$4:$B$8)+5=A46,Onderwerpen!$A$9,IF(SUM(Onderwerpen!$B$4:$B$9)+6=A46,Onderwerpen!$A$10,IF(SUM(Onderwerpen!$B$4:$B$10)+7=A46,Onderwerpen!$A$11,IF(SUM(Onderwerpen!$B$4:$B$11)+8=A46,Onderwerpen!$A$12,IF(SUM(Onderwerpen!$B$4:$B$12)+9=A46,Onderwerpen!$A$13,IF(SUM(Onderwerpen!$B$4:$B$13)+10=A46,Onderwerpen!$A$14,IF(SUM(Onderwerpen!$B$4:$B$14)+11=A46,Onderwerpen!$A$15,IF(SUM(Onderwerpen!$B$4:$B$15)+12=A46,Onderwerpen!$A$16,IF(SUM(Onderwerpen!$B$4:$B$16)+13=A46,Onderwerpen!$A$17,IF(SUM(Onderwerpen!$B$4:$B$17)+14=A46,Onderwerpen!$A$18,IF(SUM(Onderwerpen!$B$4:$B$18)+15=A46,Onderwerpen!$A$19,IF(SUM(Onderwerpen!$B$4:$B$19)+16=A46,Onderwerpen!$A$20,IF(SUM(Onderwerpen!$B$4:$B$20)+17=A46,Onderwerpen!$A$21,IF(SUM(Onderwerpen!$B$4:$B$21)+18=A46,Onderwerpen!$A$22,IF(SUM(Onderwerpen!$B$4:$B$22)+19=A46,Onderwerpen!$A$23,IFERROR((IF(A46<Onderwerpen!$D$4,A46,IF(AND(A46>Onderwerpen!$D$4,A46<Onderwerpen!$D$5),A46-1,IF(AND(A46>Onderwerpen!$D$5,A46<Onderwerpen!$D$6),A46-2,IF(AND(A46>Onderwerpen!$D$6,A46<Onderwerpen!$D$7),A46-3,IF(AND(A46>Onderwerpen!$D$7,A46<Onderwerpen!$D$8),A46-4,IF(AND(A46>Onderwerpen!$D$8,A46<Onderwerpen!$D$9),A46-5,IF(AND(A46>Onderwerpen!$D$9,A46<Onderwerpen!$D$10),A46-6,IF(AND(A46>Onderwerpen!$D$10,A46<Onderwerpen!$D$11),A46-7,IF(AND(A46>Onderwerpen!$D$11,A46<Onderwerpen!$D$12),A46-8,IF(AND(A46>Onderwerpen!$D$12,A46<Onderwerpen!$D$13),A46-9,IF(AND(A46>Onderwerpen!$D$13,A46<Onderwerpen!$D$14),A46-10,IF(AND(A46>Onderwerpen!$D$14,A46<Onderwerpen!$D$15),A46-11,IF(AND(A46>Onderwerpen!$D$15,A46<Onderwerpen!$D$16),A46-12,IF(AND(A46>Onderwerpen!$D$16,A46<Onderwerpen!$D$17),A46-13,IF(AND(A46>Onderwerpen!$D$17,A46<Onderwerpen!$D$18),A46-14,IF(AND(A46>Onderwerpen!$D$18,A46<Onderwerpen!$D$19),A46-15,IF(AND(A46>Onderwerpen!$D$19,A46<Onderwerpen!$D$20),A46-16,IF(AND(A46>Onderwerpen!$D$20,A46<Onderwerpen!$D$21),A46-17,IF(AND(A46>Onderwerpen!$D$21,A46<Onderwerpen!$D$22),A46-18,IF(A46>Onderwerpen!$D$22,A46-19,"X"))))))))))))))))))))),"")))))))))))))))))))) -> 35 | D46: =IF(B46="",""&C46,LEFT(B46, FIND(" ",B46)-1) & "."&COUNTIF($B$8:B46,B46)) -> 4.1 | E46: Zijn de lawaaizones gekend? | G46: x | J46: 4.1
A47: =IFERROR(IF(A46=Onderwerpen!$C$23+19,"",A46+1),"") -> 39 | B47: =IF(C47<=Onderwerpen!$C$4,Onderwerpen!$A$4,IF(C47<=Onderwerpen!$C$5,Onderwerpen!$A$5,IF(C47<=Onderwerpen!$C$6,Onderwerpen!$A$6,IF(C47<=Onderwerpen!$C$7,Onderwerpen!$A$7,IF(C47<=Onderwerpen!$C$8,Onderwerpen!$A$8,IF(C47<=Onderwerpen!$C$9,Onderwerpen!$A$9,IF(C47<=Onderwerpen!C$10,Onderwerpen!$A$10,IF(C47<=Onderwerpen!C$11,Onderwerpen!$A$11,IF(C47<=Onderwerpen!C$12,Onderwerpen!$A$12,IF(C47<=Onderwerpen!C$13,Onderwerpen!$A$13,IF(C47<=Onderwerpen!$C$14,Onderwerpen!$A$14,IF(C47<=Onderwerpen!$C$15,Onderwerpen!$A$15,IF(C47<=Onderwerpen!$C$16,Onderwerpen!$A$16,IF(C47<=Onderwerpen!$C$17,Onderwerpen!$A$17,IF(C47<=Onderwerpen!$C$18,Onderwerpen!$A$18,IF(C47<=Onderwerpen!$C$19,Onderwerpen!$A$19,IF(C47<=Onderwerpen!$C$20,Onderwerpen!$A$20,IF(C47<=Onderwerpen!$C$21,Onderwerpen!$A$21,IF(C47<=Onderwerpen!$C$22,Onderwerpen!$A$22,IF(C47<=Onderwerpen!$C$23,Onderwerpen!$A$22,"")))))))))))))))))))) -> 4 Lawaai | C47: =IF(Onderwerpen!$B$4+1=A47,Onderwerpen!$A$5,IF(SUM(Onderwerpen!$B$4:$B$5)+2=A47,Onderwerpen!$A$6,IF(SUM(Onderwerpen!$B$4:$B$6)+3=A47,Onderwerpen!$A$7,IF(SUM(Onderwerpen!$B$4:$B$7)+4=A47,Onderwerpen!$A$8,IF(SUM(Onderwerpen!$B$4:$B$8)+5=A47,Onderwerpen!$A$9,IF(SUM(Onderwerpen!$B$4:$B$9)+6=A47,Onderwerpen!$A$10,IF(SUM(Onderwerpen!$B$4:$B$10)+7=A47,Onderwerpen!$A$11,IF(SUM(Onderwerpen!$B$4:$B$11)+8=A47,Onderwerpen!$A$12,IF(SUM(Onderwerpen!$B$4:$B$12)+9=A47,Onderwerpen!$A$13,IF(SUM(Onderwerpen!$B$4:$B$13)+10=A47,Onderwerpen!$A$14,IF(SUM(Onderwerpen!$B$4:$B$14)+11=A47,Onderwerpen!$A$15,IF(SUM(Onderwerpen!$B$4:$B$15)+12=A47,Onderwerpen!$A$16,IF(SUM(Onderwerpen!$B$4:$B$16)+13=A47,Onderwerpen!$A$17,IF(SUM(Onderwerpen!$B$4:$B$17)+14=A47,Onderwerpen!$A$18,IF(SUM(Onderwerpen!$B$4:$B$18)+15=A47,Onderwerpen!$A$19,IF(SUM(Onderwerpen!$B$4:$B$19)+16=A47,Onderwerpen!$A$20,IF(SUM(Onderwerpen!$B$4:$B$20)+17=A47,Onderwerpen!$A$21,IF(SUM(Onderwerpen!$B$4:$B$21)+18=A47,Onderwerpen!$A$22,IF(SUM(Onderwerpen!$B$4:$B$22)+19=A47,Onderwerpen!$A$23,IFERROR((IF(A47<Onderwerpen!$D$4,A47,IF(AND(A47>Onderwerpen!$D$4,A47<Onderwerpen!$D$5),A47-1,IF(AND(A47>Onderwerpen!$D$5,A47<Onderwerpen!$D$6),A47-2,IF(AND(A47>Onderwerpen!$D$6,A47<Onderwerpen!$D$7),A47-3,IF(AND(A47>Onderwerpen!$D$7,A47<Onderwerpen!$D$8),A47-4,IF(AND(A47>Onderwerpen!$D$8,A47<Onderwerpen!$D$9),A47-5,IF(AND(A47>Onderwerpen!$D$9,A47<Onderwerpen!$D$10),A47-6,IF(AND(A47>Onderwerpen!$D$10,A47<Onderwerpen!$D$11),A47-7,IF(AND(A47>Onderwerpen!$D$11,A47<Onderwerpen!$D$12),A47-8,IF(AND(A47>Onderwerpen!$D$12,A47<Onderwerpen!$D$13),A47-9,IF(AND(A47>Onderwerpen!$D$13,A47<Onderwerpen!$D$14),A47-10,IF(AND(A47>Onderwerpen!$D$14,A47<Onderwerpen!$D$15),A47-11,IF(AND(A47>Onderwerpen!$D$15,A47<Onderwerpen!$D$16),A47-12,IF(AND(A47>Onderwerpen!$D$16,A47<Onderwerpen!$D$17),A47-13,IF(AND(A47>Onderwerpen!$D$17,A47<Onderwerpen!$D$18),A47-14,IF(AND(A47>Onderwerpen!$D$18,A47<Onderwerpen!$D$19),A47-15,IF(AND(A47>Onderwerpen!$D$19,A47<Onderwerpen!$D$20),A47-16,IF(AND(A47>Onderwerpen!$D$20,A47<Onderwerpen!$D$21),A47-17,IF(AND(A47>Onderwerpen!$D$21,A47<Onderwerpen!$D$22),A47-18,IF(A47>Onderwerpen!$D$22,A47-19,"X"))))))))))))))))))))),"")))))))))))))))))))) -> 36 | D47: =IF(B47="",""&C47,LEFT(B47, FIND(" ",B47)-1) & "."&COUNTIF($B$8:B47,B47)) -> 4.2 | E47: Worden lawaaierige activiteiten aan de bron beperkt? | G47: x | J47: 4.2
A48: =IFERROR(IF(A47=Onderwerpen!$C$23+19,"",A47+1),"") -> 40 | B48: =IF(C48<=Onderwerpen!$C$4,Onderwerpen!$A$4,IF(C48<=Onderwerpen!$C$5,Onderwerpen!$A$5,IF(C48<=Onderwerpen!$C$6,Onderwerpen!$A$6,IF(C48<=Onderwerpen!$C$7,Onderwerpen!$A$7,IF(C48<=Onderwerpen!$C$8,Onderwerpen!$A$8,IF(C48<=Onderwerpen!$C$9,Onderwerpen!$A$9,IF(C48<=Onderwerpen!C$10,Onderwerpen!$A$10,IF(C48<=Onderwerpen!C$11,Onderwerpen!$A$11,IF(C48<=Onderwerpen!C$12,Onderwerpen!$A$12,IF(C48<=Onderwerpen!C$13,Onderwerpen!$A$13,IF(C48<=Onderwerpen!$C$14,Onderwerpen!$A$14,IF(C48<=Onderwerpen!$C$15,Onderwerpen!$A$15,IF(C48<=Onderwerpen!$C$16,Onderwerpen!$A$16,IF(C48<=Onderwerpen!$C$17,Onderwerpen!$A$17,IF(C48<=Onderwerpen!$C$18,Onderwerpen!$A$18,IF(C48<=Onderwerpen!$C$19,Onderwerpen!$A$19,IF(C48<=Onderwerpen!$C$20,Onderwerpen!$A$20,IF(C48<=Onderwerpen!$C$21,Onderwerpen!$A$21,IF(C48<=Onderwerpen!$C$22,Onderwerpen!$A$22,IF(C48<=Onderwerpen!$C$23,Onderwerpen!$A$22,"")))))))))))))))))))) -> 4 Lawaai | C48: =IF(Onderwerpen!$B$4+1=A48,Onderwerpen!$A$5,IF(SUM(Onderwerpen!$B$4:$B$5)+2=A48,Onderwerpen!$A$6,IF(SUM(Onderwerpen!$B$4:$B$6)+3=A48,Onderwerpen!$A$7,IF(SUM(Onderwerpen!$B$4:$B$7)+4=A48,Onderwerpen!$A$8,IF(SUM(Onderwerpen!$B$4:$B$8)+5=A48,Onderwerpen!$A$9,IF(SUM(Onderwerpen!$B$4:$B$9)+6=A48,Onderwerpen!$A$10,IF(SUM(Onderwerpen!$B$4:$B$10)+7=A48,Onderwerpen!$A$11,IF(SUM(Onderwerpen!$B$4:$B$11)+8=A48,Onderwerpen!$A$12,IF(SUM(Onderwerpen!$B$4:$B$12)+9=A48,Onderwerpen!$A$13,IF(SUM(Onderwerpen!$B$4:$B$13)+10=A48,Onderwerpen!$A$14,IF(SUM(Onderwerpen!$B$4:$B$14)+11=A48,Onderwerpen!$A$15,IF(SUM(Onderwerpen!$B$4:$B$15)+12=A48,Onderwerpen!$A$16,IF(SUM(Onderwerpen!$B$4:$B$16)+13=A48,Onderwerpen!$A$17,IF(SUM(Onderwerpen!$B$4:$B$17)+14=A48,Onderwerpen!$A$18,IF(SUM(Onderwerpen!$B$4:$B$18)+15=A48,Onderwerpen!$A$19,IF(SUM(Onderwerpen!$B$4:$B$19)+16=A48,Onderwerpen!$A$20,IF(SUM(Onderwerpen!$B$4:$B$20)+17=A48,Onderwerpen!$A$21,IF(SUM(Onderwerpen!$B$4:$B$21)+18=A48,Onderwerpen!$A$22,IF(SUM(Onderwerpen!$B$4:$B$22)+19=A48,Onderwerpen!$A$23,IFERROR((IF(A48<Onderwerpen!$D$4,A48,IF(AND(A48>Onderwerpen!$D$4,A48<Onderwerpen!$D$5),A48-1,IF(AND(A48>Onderwerpen!$D$5,A48<Onderwerpen!$D$6),A48-2,IF(AND(A48>Onderwerpen!$D$6,A48<Onderwerpen!$D$7),A48-3,IF(AND(A48>Onderwerpen!$D$7,A48<Onderwerpen!$D$8),A48-4,IF(AND(A48>Onderwerpen!$D$8,A48<Onderwerpen!$D$9),A48-5,IF(AND(A48>Onderwerpen!$D$9,A48<Onderwerpen!$D$10),A48-6,IF(AND(A48>Onderwerpen!$D$10,A48<Onderwerpen!$D$11),A48-7,IF(AND(A48>Onderwerpen!$D$11,A48<Onderwerpen!$D$12),A48-8,IF(AND(A48>Onderwerpen!$D$12,A48<Onderwerpen!$D$13),A48-9,IF(AND(A48>Onderwerpen!$D$13,A48<Onderwerpen!$D$14),A48-10,IF(AND(A48>Onderwerpen!$D$14,A48<Onderwerpen!$D$15),A48-11,IF(AND(A48>Onderwerpen!$D$15,A48<Onderwerpen!$D$16),A48-12,IF(AND(A48>Onderwerpen!$D$16,A48<Onderwerpen!$D$17),A48-13,IF(AND(A48>Onderwerpen!$D$17,A48<Onderwerpen!$D$18),A48-14,IF(AND(A48>Onderwerpen!$D$18,A48<Onderwerpen!$D$19),A48-15,IF(AND(A48>Onderwerpen!$D$19,A48<Onderwerpen!$D$20),A48-16,IF(AND(A48>Onderwerpen!$D$20,A48<Onderwerpen!$D$21),A48-17,IF(AND(A48>Onderwerpen!$D$21,A48<Onderwerpen!$D$22),A48-18,IF(A48>Onderwerpen!$D$22,A48-19,"X"))))))))))))))))))))),"")))))))))))))))))))) -> 37 | D48: =IF(B48="",""&C48,LEFT(B48, FIND(" ",B48)-1) & "."&COUNTIF($B$8:B48,B48)) -> 4.3 | E48: Zijn de lawaaizones afgebakend? | G48: x | J48: 4.3
A49: =IFERROR(IF(A48=Onderwerpen!$C$23+19,"",A48+1),"") -> 41 | B49: =IF(C49<=Onderwerpen!$C$4,Onderwerpen!$A$4,IF(C49<=Onderwerpen!$C$5,Onderwerpen!$A$5,IF(C49<=Onderwerpen!$C$6,Onderwerpen!$A$6,IF(C49<=Onderwerpen!$C$7,Onderwerpen!$A$7,IF(C49<=Onderwerpen!$C$8,Onderwerpen!$A$8,IF(C49<=Onderwerpen!$C$9,Onderwerpen!$A$9,IF(C49<=Onderwerpen!C$10,Onderwerpen!$A$10,IF(C49<=Onderwerpen!C$11,Onderwerpen!$A$11,IF(C49<=Onderwerpen!C$12,Onderwerpen!$A$12,IF(C49<=Onderwerpen!C$13,Onderwerpen!$A$13,IF(C49<=Onderwerpen!$C$14,Onderwerpen!$A$14,IF(C49<=Onderwerpen!$C$15,Onderwerpen!$A$15,IF(C49<=Onderwerpen!$C$16,Onderwerpen!$A$16,IF(C49<=Onderwerpen!$C$17,Onderwerpen!$A$17,IF(C49<=Onderwerpen!$C$18,Onderwerpen!$A$18,IF(C49<=Onderwerpen!$C$19,Onderwerpen!$A$19,IF(C49<=Onderwerpen!$C$20,Onderwerpen!$A$20,IF(C49<=Onderwerpen!$C$21,Onderwerpen!$A$21,IF(C49<=Onderwerpen!$C$22,Onderwerpen!$A$22,IF(C49<=Onderwerpen!$C$23,Onderwerpen!$A$22,"")))))))))))))))))))) -> 4 Lawaai | C49: =IF(Onderwerpen!$B$4+1=A49,Onderwerpen!$A$5,IF(SUM(Onderwerpen!$B$4:$B$5)+2=A49,Onderwerpen!$A$6,IF(SUM(Onderwerpen!$B$4:$B$6)+3=A49,Onderwerpen!$A$7,IF(SUM(Onderwerpen!$B$4:$B$7)+4=A49,Onderwerpen!$A$8,IF(SUM(Onderwerpen!$B$4:$B$8)+5=A49,Onderwerpen!$A$9,IF(SUM(Onderwerpen!$B$4:$B$9)+6=A49,Onderwerpen!$A$10,IF(SUM(Onderwerpen!$B$4:$B$10)+7=A49,Onderwerpen!$A$11,IF(SUM(Onderwerpen!$B$4:$B$11)+8=A49,Onderwerpen!$A$12,IF(SUM(Onderwerpen!$B$4:$B$12)+9=A49,Onderwerpen!$A$13,IF(SUM(Onderwerpen!$B$4:$B$13)+10=A49,Onderwerpen!$A$14,IF(SUM(Onderwerpen!$B$4:$B$14)+11=A49,Onderwerpen!$A$15,IF(SUM(Onderwerpen!$B$4:$B$15)+12=A49,Onderwerpen!$A$16,IF(SUM(Onderwerpen!$B$4:$B$16)+13=A49,Onderwerpen!$A$17,IF(SUM(Onderwerpen!$B$4:$B$17)+14=A49,Onderwerpen!$A$18,IF(SUM(Onderwerpen!$B$4:$B$18)+15=A49,Onderwerpen!$A$19,IF(SUM(Onderwerpen!$B$4:$B$19)+16=A49,Onderwerpen!$A$20,IF(SUM(Onderwerpen!$B$4:$B$20)+17=A49,Onderwerpen!$A$21,IF(SUM(Onderwerpen!$B$4:$B$21)+18=A49,Onderwerpen!$A$22,IF(SUM(Onderwerpen!$B$4:$B$22)+19=A49,Onderwerpen!$A$23,IFERROR((IF(A49<Onderwerpen!$D$4,A49,IF(AND(A49>Onderwerpen!$D$4,A49<Onderwerpen!$D$5),A49-1,IF(AND(A49>Onderwerpen!$D$5,A49<Onderwerpen!$D$6),A49-2,IF(AND(A49>Onderwerpen!$D$6,A49<Onderwerpen!$D$7),A49-3,IF(AND(A49>Onderwerpen!$D$7,A49<Onderwerpen!$D$8),A49-4,IF(AND(A49>Onderwerpen!$D$8,A49<Onderwerpen!$D$9),A49-5,IF(AND(A49>Onderwerpen!$D$9,A49<Onderwerpen!$D$10),A49-6,IF(AND(A49>Onderwerpen!$D$10,A49<Onderwerpen!$D$11),A49-7,IF(AND(A49>Onderwerpen!$D$11,A49<Onderwerpen!$D$12),A49-8,IF(AND(A49>Onderwerpen!$D$12,A49<Onderwerpen!$D$13),A49-9,IF(AND(A49>Onderwerpen!$D$13,A49<Onderwerpen!$D$14),A49-10,IF(AND(A49>Onderwerpen!$D$14,A49<Onderwerpen!$D$15),A49-11,IF(AND(A49>Onderwerpen!$D$15,A49<Onderwerpen!$D$16),A49-12,IF(AND(A49>Onderwerpen!$D$16,A49<Onderwerpen!$D$17),A49-13,IF(AND(A49>Onderwerpen!$D$17,A49<Onderwerpen!$D$18),A49-14,IF(AND(A49>Onderwerpen!$D$18,A49<Onderwerpen!$D$19),A49-15,IF(AND(A49>Onderwerpen!$D$19,A49<Onderwerpen!$D$20),A49-16,IF(AND(A49>Onderwerpen!$D$20,A49<Onderwerpen!$D$21),A49-17,IF(AND(A49>Onderwerpen!$D$21,A49<Onderwerpen!$D$22),A49-18,IF(A49>Onderwerpen!$D$22,A49-19,"X"))))))))))))))))))))),"")))))))))))))))))))) -> 38 | D49: =IF(B49="",""&C49,LEFT(B49, FIND(" ",B49)-1) & "."&COUNTIF($B$8:B49,B49)) -> 4.4 | E49: Is er gehoorbescherming beschikbaar? | G49: x | J49: 4.4
A50: =IFERROR(IF(A49=Onderwerpen!$C$23+19,"",A49+1),"") -> 42 | B50: =IF(C50<=Onderwerpen!$C$4,Onderwerpen!$A$4,IF(C50<=Onderwerpen!$C$5,Onderwerpen!$A$5,IF(C50<=Onderwerpen!$C$6,Onderwerpen!$A$6,IF(C50<=Onderwerpen!$C$7,Onderwerpen!$A$7,IF(C50<=Onderwerpen!$C$8,Onderwerpen!$A$8,IF(C50<=Onderwerpen!$C$9,Onderwerpen!$A$9,IF(C50<=Onderwerpen!C$10,Onderwerpen!$A$10,IF(C50<=Onderwerpen!C$11,Onderwerpen!$A$11,IF(C50<=Onderwerpen!C$12,Onderwerpen!$A$12,IF(C50<=Onderwerpen!C$13,Onderwerpen!$A$13,IF(C50<=Onderwerpen!$C$14,Onderwerpen!$A$14,IF(C50<=Onderwerpen!$C$15,Onderwerpen!$A$15,IF(C50<=Onderwerpen!$C$16,Onderwerpen!$A$16,IF(C50<=Onderwerpen!$C$17,Onderwerpen!$A$17,IF(C50<=Onderwerpen!$C$18,Onderwerpen!$A$18,IF(C50<=Onderwerpen!$C$19,Onderwerpen!$A$19,IF(C50<=Onderwerpen!$C$20,Onderwerpen!$A$20,IF(C50<=Onderwerpen!$C$21,Onderwerpen!$A$21,IF(C50<=Onderwerpen!$C$22,Onderwerpen!$A$22,IF(C50<=Onderwerpen!$C$23,Onderwerpen!$A$22,"")))))))))))))))))))) ->  | C50: =IF(Onderwerpen!$B$4+1=A50,Onderwerpen!$A$5,IF(SUM(Onderwerpen!$B$4:$B$5)+2=A50,Onderwerpen!$A$6,IF(SUM(Onderwerpen!$B$4:$B$6)+3=A50,Onderwerpen!$A$7,IF(SUM(Onderwerpen!$B$4:$B$7)+4=A50,Onderwerpen!$A$8,IF(SUM(Onderwerpen!$B$4:$B$8)+5=A50,Onderwerpen!$A$9,IF(SUM(Onderwerpen!$B$4:$B$9)+6=A50,Onderwerpen!$A$10,IF(SUM(Onderwerpen!$B$4:$B$10)+7=A50,Onderwerpen!$A$11,IF(SUM(Onderwerpen!$B$4:$B$11)+8=A50,Onderwerpen!$A$12,IF(SUM(Onderwerpen!$B$4:$B$12)+9=A50,Onderwerpen!$A$13,IF(SUM(Onderwerpen!$B$4:$B$13)+10=A50,Onderwerpen!$A$14,IF(SUM(Onderwerpen!$B$4:$B$14)+11=A50,Onderwerpen!$A$15,IF(SUM(Onderwerpen!$B$4:$B$15)+12=A50,Onderwerpen!$A$16,IF(SUM(Onderwerpen!$B$4:$B$16)+13=A50,Onderwerpen!$A$17,IF(SUM(Onderwerpen!$B$4:$B$17)+14=A50,Onderwerpen!$A$18,IF(SUM(Onderwerpen!$B$4:$B$18)+15=A50,Onderwerpen!$A$19,IF(SUM(Onderwerpen!$B$4:$B$19)+16=A50,Onderwerpen!$A$20,IF(SUM(Onderwerpen!$B$4:$B$20)+17=A50,Onderwerpen!$A$21,IF(SUM(Onderwerpen!$B$4:$B$21)+18=A50,Onderwerpen!$A$22,IF(SUM(Onderwerpen!$B$4:$B$22)+19=A50,Onderwerpen!$A$23,IFERROR((IF(A50<Onderwerpen!$D$4,A50,IF(AND(A50>Onderwerpen!$D$4,A50<Onderwerpen!$D$5),A50-1,IF(AND(A50>Onderwerpen!$D$5,A50<Onderwerpen!$D$6),A50-2,IF(AND(A50>Onderwerpen!$D$6,A50<Onderwerpen!$D$7),A50-3,IF(AND(A50>Onderwerpen!$D$7,A50<Onderwerpen!$D$8),A50-4,IF(AND(A50>Onderwerpen!$D$8,A50<Onderwerpen!$D$9),A50-5,IF(AND(A50>Onderwerpen!$D$9,A50<Onderwerpen!$D$10),A50-6,IF(AND(A50>Onderwerpen!$D$10,A50<Onderwerpen!$D$11),A50-7,IF(AND(A50>Onderwerpen!$D$11,A50<Onderwerpen!$D$12),A50-8,IF(AND(A50>Onderwerpen!$D$12,A50<Onderwerpen!$D$13),A50-9,IF(AND(A50>Onderwerpen!$D$13,A50<Onderwerpen!$D$14),A50-10,IF(AND(A50>Onderwerpen!$D$14,A50<Onderwerpen!$D$15),A50-11,IF(AND(A50>Onderwerpen!$D$15,A50<Onderwerpen!$D$16),A50-12,IF(AND(A50>Onderwerpen!$D$16,A50<Onderwerpen!$D$17),A50-13,IF(AND(A50>Onderwerpen!$D$17,A50<Onderwerpen!$D$18),A50-14,IF(AND(A50>Onderwerpen!$D$18,A50<Onderwerpen!$D$19),A50-15,IF(AND(A50>Onderwerpen!$D$19,A50<Onderwerpen!$D$20),A50-16,IF(AND(A50>Onderwerpen!$D$20,A50<Onderwerpen!$D$21),A50-17,IF(AND(A50>Onderwerpen!$D$21,A50<Onderwerpen!$D$22),A50-18,IF(A50>Onderwerpen!$D$22,A50-19,"X"))))))))))))))))))))),"")))))))))))))))))))) -> 5 Ergonomie werkpost | D50: =IF(B50="",""&C50,LEFT(B50, FIND(" ",B50)-1) & "."&COUNTIF($B$8:B50,B50)) -> 5 Ergonomie werkpost
A51: =IFERROR(IF(A50=Onderwerpen!$C$23+19,"",A50+1),"") -> 43 | B51: =IF(C51<=Onderwerpen!$C$4,Onderwerpen!$A$4,IF(C51<=Onderwerpen!$C$5,Onderwerpen!$A$5,IF(C51<=Onderwerpen!$C$6,Onderwerpen!$A$6,IF(C51<=Onderwerpen!$C$7,Onderwerpen!$A$7,IF(C51<=Onderwerpen!$C$8,Onderwerpen!$A$8,IF(C51<=Onderwerpen!$C$9,Onderwerpen!$A$9,IF(C51<=Onderwerpen!C$10,Onderwerpen!$A$10,IF(C51<=Onderwerpen!C$11,Onderwerpen!$A$11,IF(C51<=Onderwerpen!C$12,Onderwerpen!$A$12,IF(C51<=Onderwerpen!C$13,Onderwerpen!$A$13,IF(C51<=Onderwerpen!$C$14,Onderwerpen!$A$14,IF(C51<=Onderwerpen!$C$15,Onderwerpen!$A$15,IF(C51<=Onderwerpen!$C$16,Onderwerpen!$A$16,IF(C51<=Onderwerpen!$C$17,Onderwerpen!$A$17,IF(C51<=Onderwerpen!$C$18,Onderwerpen!$A$18,IF(C51<=Onderwerpen!$C$19,Onderwerpen!$A$19,IF(C51<=Onderwerpen!$C$20,Onderwerpen!$A$20,IF(C51<=Onderwerpen!$C$21,Onderwerpen!$A$21,IF(C51<=Onderwerpen!$C$22,Onderwerpen!$A$22,IF(C51<=Onderwerpen!$C$23,Onderwerpen!$A$22,"")))))))))))))))))))) -> 5 Ergonomie werkpost | C51: =IF(Onderwerpen!$B$4+1=A51,Onderwerpen!$A$5,IF(SUM(Onderwerpen!$B$4:$B$5)+2=A51,Onderwerpen!$A$6,IF(SUM(Onderwerpen!$B$4:$B$6)+3=A51,Onderwerpen!$A$7,IF(SUM(Onderwerpen!$B$4:$B$7)+4=A51,Onderwerpen!$A$8,IF(SUM(Onderwerpen!$B$4:$B$8)+5=A51,Onderwerpen!$A$9,IF(SUM(Onderwerpen!$B$4:$B$9)+6=A51,Onderwerpen!$A$10,IF(SUM(Onderwerpen!$B$4:$B$10)+7=A51,Onderwerpen!$A$11,IF(SUM(Onderwerpen!$B$4:$B$11)+8=A51,Onderwerpen!$A$12,IF(SUM(Onderwerpen!$B$4:$B$12)+9=A51,Onderwerpen!$A$13,IF(SUM(Onderwerpen!$B$4:$B$13)+10=A51,Onderwerpen!$A$14,IF(SUM(Onderwerpen!$B$4:$B$14)+11=A51,Onderwerpen!$A$15,IF(SUM(Onderwerpen!$B$4:$B$15)+12=A51,Onderwerpen!$A$16,IF(SUM(Onderwerpen!$B$4:$B$16)+13=A51,Onderwerpen!$A$17,IF(SUM(Onderwerpen!$B$4:$B$17)+14=A51,Onderwerpen!$A$18,IF(SUM(Onderwerpen!$B$4:$B$18)+15=A51,Onderwerpen!$A$19,IF(SUM(Onderwerpen!$B$4:$B$19)+16=A51,Onderwerpen!$A$20,IF(SUM(Onderwerpen!$B$4:$B$20)+17=A51,Onderwerpen!$A$21,IF(SUM(Onderwerpen!$B$4:$B$21)+18=A51,Onderwerpen!$A$22,IF(SUM(Onderwerpen!$B$4:$B$22)+19=A51,Onderwerpen!$A$23,IFERROR((IF(A51<Onderwerpen!$D$4,A51,IF(AND(A51>Onderwerpen!$D$4,A51<Onderwerpen!$D$5),A51-1,IF(AND(A51>Onderwerpen!$D$5,A51<Onderwerpen!$D$6),A51-2,IF(AND(A51>Onderwerpen!$D$6,A51<Onderwerpen!$D$7),A51-3,IF(AND(A51>Onderwerpen!$D$7,A51<Onderwerpen!$D$8),A51-4,IF(AND(A51>Onderwerpen!$D$8,A51<Onderwerpen!$D$9),A51-5,IF(AND(A51>Onderwerpen!$D$9,A51<Onderwerpen!$D$10),A51-6,IF(AND(A51>Onderwerpen!$D$10,A51<Onderwerpen!$D$11),A51-7,IF(AND(A51>Onderwerpen!$D$11,A51<Onderwerpen!$D$12),A51-8,IF(AND(A51>Onderwerpen!$D$12,A51<Onderwerpen!$D$13),A51-9,IF(AND(A51>Onderwerpen!$D$13,A51<Onderwerpen!$D$14),A51-10,IF(AND(A51>Onderwerpen!$D$14,A51<Onderwerpen!$D$15),A51-11,IF(AND(A51>Onderwerpen!$D$15,A51<Onderwerpen!$D$16),A51-12,IF(AND(A51>Onderwerpen!$D$16,A51<Onderwerpen!$D$17),A51-13,IF(AND(A51>Onderwerpen!$D$17,A51<Onderwerpen!$D$18),A51-14,IF(AND(A51>Onderwerpen!$D$18,A51<Onderwerpen!$D$19),A51-15,IF(AND(A51>Onderwerpen!$D$19,A51<Onderwerpen!$D$20),A51-16,IF(AND(A51>Onderwerpen!$D$20,A51<Onderwerpen!$D$21),A51-17,IF(AND(A51>Onderwerpen!$D$21,A51<Onderwerpen!$D$22),A51-18,IF(A51>Onderwerpen!$D$22,A51-19,"X"))))))))))))))))))))),"")))))))))))))))))))) -> 39 | D51: =IF(B51="",""&C51,LEFT(B51, FIND(" ",B51)-1) & "."&COUNTIF($B$8:B51,B51)) -> 5.1 | E51: Is de werkhoogte van de werkpost aangepast?
A52: =IFERROR(IF(A51=Onderwerpen!$C$23+19,"",A51+1),"") -> 44 | B52: =IF(C52<=Onderwerpen!$C$4,Onderwerpen!$A$4,IF(C52<=Onderwerpen!$C$5,Onderwerpen!$A$5,IF(C52<=Onderwerpen!$C$6,Onderwerpen!$A$6,IF(C52<=Onderwerpen!$C$7,Onderwerpen!$A$7,IF(C52<=Onderwerpen!$C$8,Onderwerpen!$A$8,IF(C52<=Onderwerpen!$C$9,Onderwerpen!$A$9,IF(C52<=Onderwerpen!C$10,Onderwerpen!$A$10,IF(C52<=Onderwerpen!C$11,Onderwerpen!$A$11,IF(C52<=Onderwerpen!C$12,Onderwerpen!$A$12,IF(C52<=Onderwerpen!C$13,Onderwerpen!$A$13,IF(C52<=Onderwerpen!$C$14,Onderwerpen!$A$14,IF(C52<=Onderwerpen!$C$15,Onderwerpen!$A$15,IF(C52<=Onderwerpen!$C$16,Onderwerpen!$A$16,IF(C52<=Onderwerpen!$C$17,Onderwerpen!$A$17,IF(C52<=Onderwerpen!$C$18,Onderwerpen!$A$18,IF(C52<=Onderwerpen!$C$19,Onderwerpen!$A$19,IF(C52<=Onderwerpen!$C$20,Onderwerpen!$A$20,IF(C52<=Onderwerpen!$C$21,Onderwerpen!$A$21,IF(C52<=Onderwerpen!$C$22,Onderwerpen!$A$22,IF(C52<=Onderwerpen!$C$23,Onderwerpen!$A$22,"")))))))))))))))))))) -> 5 Ergonomie werkpost | C52: =IF(Onderwerpen!$B$4+1=A52,Onderwerpen!$A$5,IF(SUM(Onderwerpen!$B$4:$B$5)+2=A52,Onderwerpen!$A$6,IF(SUM(Onderwerpen!$B$4:$B$6)+3=A52,Onderwerpen!$A$7,IF(SUM(Onderwerpen!$B$4:$B$7)+4=A52,Onderwerpen!$A$8,IF(SUM(Onderwerpen!$B$4:$B$8)+5=A52,Onderwerpen!$A$9,IF(SUM(Onderwerpen!$B$4:$B$9)+6=A52,Onderwerpen!$A$10,IF(SUM(Onderwerpen!$B$4:$B$10)+7=A52,Onderwerpen!$A$11,IF(SUM(Onderwerpen!$B$4:$B$11)+8=A52,Onderwerpen!$A$12,IF(SUM(Onderwerpen!$B$4:$B$12)+9=A52,Onderwerpen!$A$13,IF(SUM(Onderwerpen!$B$4:$B$13)+10=A52,Onderwerpen!$A$14,IF(SUM(Onderwerpen!$B$4:$B$14)+11=A52,Onderwerpen!$A$15,IF(SUM(Onderwerpen!$B$4:$B$15)+12=A52,Onderwerpen!$A$16,IF(SUM(Onderwerpen!$B$4:$B$16)+13=A52,Onderwerpen!$A$17,IF(SUM(Onderwerpen!$B$4:$B$17)+14=A52,Onderwerpen!$A$18,IF(SUM(Onderwerpen!$B$4:$B$18)+15=A52,Onderwerpen!$A$19,IF(SUM(Onderwerpen!$B$4:$B$19)+16=A52,Onderwerpen!$A$20,IF(SUM(Onderwerpen!$B$4:$B$20)+17=A52,Onderwerpen!$A$21,IF(SUM(Onderwerpen!$B$4:$B$21)+18=A52,Onderwerpen!$A$22,IF(SUM(Onderwerpen!$B$4:$B$22)+19=A52,Onderwerpen!$A$23,IFERROR((IF(A52<Onderwerpen!$D$4,A52,IF(AND(A52>Onderwerpen!$D$4,A52<Onderwerpen!$D$5),A52-1,IF(AND(A52>Onderwerpen!$D$5,A52<Onderwerpen!$D$6),A52-2,IF(AND(A52>Onderwerpen!$D$6,A52<Onderwerpen!$D$7),A52-3,IF(AND(A52>Onderwerpen!$D$7,A52<Onderwerpen!$D$8),A52-4,IF(AND(A52>Onderwerpen!$D$8,A52<Onderwerpen!$D$9),A52-5,IF(AND(A52>Onderwerpen!$D$9,A52<Onderwerpen!$D$10),A52-6,IF(AND(A52>Onderwerpen!$D$10,A52<Onderwerpen!$D$11),A52-7,IF(AND(A52>Onderwerpen!$D$11,A52<Onderwerpen!$D$12),A52-8,IF(AND(A52>Onderwerpen!$D$12,A52<Onderwerpen!$D$13),A52-9,IF(AND(A52>Onderwerpen!$D$13,A52<Onderwerpen!$D$14),A52-10,IF(AND(A52>Onderwerpen!$D$14,A52<Onderwerpen!$D$15),A52-11,IF(AND(A52>Onderwerpen!$D$15,A52<Onderwerpen!$D$16),A52-12,IF(AND(A52>Onderwerpen!$D$16,A52<Onderwerpen!$D$17),A52-13,IF(AND(A52>Onderwerpen!$D$17,A52<Onderwerpen!$D$18),A52-14,IF(AND(A52>Onderwerpen!$D$18,A52<Onderwerpen!$D$19),A52-15,IF(AND(A52>Onderwerpen!$D$19,A52<Onderwerpen!$D$20),A52-16,IF(AND(A52>Onderwerpen!$D$20,A52<Onderwerpen!$D$21),A52-17,IF(AND(A52>Onderwerpen!$D$21,A52<Onderwerpen!$D$22),A52-18,IF(A52>Onderwerpen!$D$22,A52-19,"X"))))))))))))))))))))),"")))))))))))))))))))) -> 40 | D52: =IF(B52="",""&C52,LEFT(B52, FIND(" ",B52)-1) & "."&COUNTIF($B$8:B52,B52)) -> 5.2 | E52: Is de problematiek van heffen en tillen bestudeerd? | J52: =IF(G52="x",D52,"") -> 
A53: =IFERROR(IF(A52=Onderwerpen!$C$23+19,"",A52+1),"") -> 45 | B53: =IF(C53<=Onderwerpen!$C$4,Onderwerpen!$A$4,IF(C53<=Onderwerpen!$C$5,Onderwerpen!$A$5,IF(C53<=Onderwerpen!$C$6,Onderwerpen!$A$6,IF(C53<=Onderwerpen!$C$7,Onderwerpen!$A$7,IF(C53<=Onderwerpen!$C$8,Onderwerpen!$A$8,IF(C53<=Onderwerpen!$C$9,Onderwerpen!$A$9,IF(C53<=Onderwerpen!C$10,Onderwerpen!$A$10,IF(C53<=Onderwerpen!C$11,Onderwerpen!$A$11,IF(C53<=Onderwerpen!C$12,Onderwerpen!$A$12,IF(C53<=Onderwerpen!C$13,Onderwerpen!$A$13,IF(C53<=Onderwerpen!$C$14,Onderwerpen!$A$14,IF(C53<=Onderwerpen!$C$15,Onderwerpen!$A$15,IF(C53<=Onderwerpen!$C$16,Onderwerpen!$A$16,IF(C53<=Onderwerpen!$C$17,Onderwerpen!$A$17,IF(C53<=Onderwerpen!$C$18,Onderwerpen!$A$18,IF(C53<=Onderwerpen!$C$19,Onderwerpen!$A$19,IF(C53<=Onderwerpen!$C$20,Onderwerpen!$A$20,IF(C53<=Onderwerpen!$C$21,Onderwerpen!$A$21,IF(C53<=Onderwerpen!$C$22,Onderwerpen!$A$22,IF(C53<=Onderwerpen!$C$23,Onderwerpen!$A$22,"")))))))))))))))))))) -> 5 Ergonomie werkpost | C53: =IF(Onderwerpen!$B$4+1=A53,Onderwerpen!$A$5,IF(SUM(Onderwerpen!$B$4:$B$5)+2=A53,Onderwerpen!$A$6,IF(SUM(Onderwerpen!$B$4:$B$6)+3=A53,Onderwerpen!$A$7,IF(SUM(Onderwerpen!$B$4:$B$7)+4=A53,Onderwerpen!$A$8,IF(SUM(Onderwerpen!$B$4:$B$8)+5=A53,Onderwerpen!$A$9,IF(SUM(Onderwerpen!$B$4:$B$9)+6=A53,Onderwerpen!$A$10,IF(SUM(Onderwerpen!$B$4:$B$10)+7=A53,Onderwerpen!$A$11,IF(SUM(Onderwerpen!$B$4:$B$11)+8=A53,Onderwerpen!$A$12,IF(SUM(Onderwerpen!$B$4:$B$12)+9=A53,Onderwerpen!$A$13,IF(SUM(Onderwerpen!$B$4:$B$13)+10=A53,Onderwerpen!$A$14,IF(SUM(Onderwerpen!$B$4:$B$14)+11=A53,Onderwerpen!$A$15,IF(SUM(Onderwerpen!$B$4:$B$15)+12=A53,Onderwerpen!$A$16,IF(SUM(Onderwerpen!$B$4:$B$16)+13=A53,Onderwerpen!$A$17,IF(SUM(Onderwerpen!$B$4:$B$17)+14=A53,Onderwerpen!$A$18,IF(SUM(Onderwerpen!$B$4:$B$18)+15=A53,Onderwerpen!$A$19,IF(SUM(Onderwerpen!$B$4:$B$19)+16=A53,Onderwerpen!$A$20,IF(SUM(Onderwerpen!$B$4:$B$20)+17=A53,Onderwerpen!$A$21,IF(SUM(Onderwerpen!$B$4:$B$21)+18=A53,Onderwerpen!$A$22,IF(SUM(Onderwerpen!$B$4:$B$22)+19=A53,Onderwerpen!$A$23,IFERROR((IF(A53<Onderwerpen!$D$4,A53,IF(AND(A53>Onderwerpen!$D$4,A53<Onderwerpen!$D$5),A53-1,IF(AND(A53>Onderwerpen!$D$5,A53<Onderwerpen!$D$6),A53-2,IF(AND(A53>Onderwerpen!$D$6,A53<Onderwerpen!$D$7),A53-3,IF(AND(A53>Onderwerpen!$D$7,A53<Onderwerpen!$D$8),A53-4,IF(AND(A53>Onderwerpen!$D$8,A53<Onderwerpen!$D$9),A53-5,IF(AND(A53>Onderwerpen!$D$9,A53<Onderwerpen!$D$10),A53-6,IF(AND(A53>Onderwerpen!$D$10,A53<Onderwerpen!$D$11),A53-7,IF(AND(A53>Onderwerpen!$D$11,A53<Onderwerpen!$D$12),A53-8,IF(AND(A53>Onderwerpen!$D$12,A53<Onderwerpen!$D$13),A53-9,IF(AND(A53>Onderwerpen!$D$13,A53<Onderwerpen!$D$14),A53-10,IF(AND(A53>Onderwerpen!$D$14,A53<Onderwerpen!$D$15),A53-11,IF(AND(A53>Onderwerpen!$D$15,A53<Onderwerpen!$D$16),A53-12,IF(AND(A53>Onderwerpen!$D$16,A53<Onderwerpen!$D$17),A53-13,IF(AND(A53>Onderwerpen!$D$17,A53<Onderwerpen!$D$18),A53-14,IF(AND(A53>Onderwerpen!$D$18,A53<Onderwerpen!$D$19),A53-15,IF(AND(A53>Onderwerpen!$D$19,A53<Onderwerpen!$D$20),A53-16,IF(AND(A53>Onderwerpen!$D$20,A53<Onderwerpen!$D$21),A53-17,IF(AND(A53>Onderwerpen!$D$21,A53<Onderwerpen!$D$22),A53-18,IF(A53>Onderwerpen!$D$22,A53-19,"X"))))))))))))))))))))),"")))))))))))))))))))) -> 41 | D53: =IF(B53="",""&C53,LEFT(B53, FIND(" ",B53)-1) & "."&COUNTIF($B$8:B53,B53)) -> 5.3 | E53: Zijn er voldoende hulpmiddelen ter beschikking voor het tillen van lasten?
A54: =IFERROR(IF(A53=Onderwerpen!$C$23+19,"",A53+1),"") -> 46 | B54: =IF(C54<=Onderwerpen!$C$4,Onderwerpen!$A$4,IF(C54<=Onderwerpen!$C$5,Onderwerpen!$A$5,IF(C54<=Onderwerpen!$C$6,Onderwerpen!$A$6,IF(C54<=Onderwerpen!$C$7,Onderwerpen!$A$7,IF(C54<=Onderwerpen!$C$8,Onderwerpen!$A$8,IF(C54<=Onderwerpen!$C$9,Onderwerpen!$A$9,IF(C54<=Onderwerpen!C$10,Onderwerpen!$A$10,IF(C54<=Onderwerpen!C$11,Onderwerpen!$A$11,IF(C54<=Onderwerpen!C$12,Onderwerpen!$A$12,IF(C54<=Onderwerpen!C$13,Onderwerpen!$A$13,IF(C54<=Onderwerpen!$C$14,Onderwerpen!$A$14,IF(C54<=Onderwerpen!$C$15,Onderwerpen!$A$15,IF(C54<=Onderwerpen!$C$16,Onderwerpen!$A$16,IF(C54<=Onderwerpen!$C$17,Onderwerpen!$A$17,IF(C54<=Onderwerpen!$C$18,Onderwerpen!$A$18,IF(C54<=Onderwerpen!$C$19,Onderwerpen!$A$19,IF(C54<=Onderwerpen!$C$20,Onderwerpen!$A$20,IF(C54<=Onderwerpen!$C$21,Onderwerpen!$A$21,IF(C54<=Onderwerpen!$C$22,Onderwerpen!$A$22,IF(C54<=Onderwerpen!$C$23,Onderwerpen!$A$22,"")))))))))))))))))))) -> 5 Ergonomie werkpost | C54: =IF(Onderwerpen!$B$4+1=A54,Onderwerpen!$A$5,IF(SUM(Onderwerpen!$B$4:$B$5)+2=A54,Onderwerpen!$A$6,IF(SUM(Onderwerpen!$B$4:$B$6)+3=A54,Onderwerpen!$A$7,IF(SUM(Onderwerpen!$B$4:$B$7)+4=A54,Onderwerpen!$A$8,IF(SUM(Onderwerpen!$B$4:$B$8)+5=A54,Onderwerpen!$A$9,IF(SUM(Onderwerpen!$B$4:$B$9)+6=A54,Onderwerpen!$A$10,IF(SUM(Onderwerpen!$B$4:$B$10)+7=A54,Onderwerpen!$A$11,IF(SUM(Onderwerpen!$B$4:$B$11)+8=A54,Onderwerpen!$A$12,IF(SUM(Onderwerpen!$B$4:$B$12)+9=A54,Onderwerpen!$A$13,IF(SUM(Onderwerpen!$B$4:$B$13)+10=A54,Onderwerpen!$A$14,IF(SUM(Onderwerpen!$B$4:$B$14)+11=A54,Onderwerpen!$A$15,IF(SUM(Onderwerpen!$B$4:$B$15)+12=A54,Onderwerpen!$A$16,IF(SUM(Onderwerpen!$B$4:$B$16)+13=A54,Onderwerpen!$A$17,IF(SUM(Onderwerpen!$B$4:$B$17)+14=A54,Onderwerpen!$A$18,IF(SUM(Onderwerpen!$B$4:$B$18)+15=A54,Onderwerpen!$A$19,IF(SUM(Onderwerpen!$B$4:$B$19)+16=A54,Onderwerpen!$A$20,IF(SUM(Onderwerpen!$B$4:$B$20)+17=A54,Onderwerpen!$A$21,IF(SUM(Onderwerpen!$B$4:$B$21)+18=A54,Onderwerpen!$A$22,IF(SUM(Onderwerpen!$B$4:$B$22)+19=A54,Onderwerpen!$A$23,IFERROR((IF(A54<Onderwerpen!$D$4,A54,IF(AND(A54>Onderwerpen!$D$4,A54<Onderwerpen!$D$5),A54-1,IF(AND(A54>Onderwerpen!$D$5,A54<Onderwerpen!$D$6),A54-2,IF(AND(A54>Onderwerpen!$D$6,A54<Onderwerpen!$D$7),A54-3,IF(AND(A54>Onderwerpen!$D$7,A54<Onderwerpen!$D$8),A54-4,IF(AND(A54>Onderwerpen!$D$8,A54<Onderwerpen!$D$9),A54-5,IF(AND(A54>Onderwerpen!$D$9,A54<Onderwerpen!$D$10),A54-6,IF(AND(A54>Onderwerpen!$D$10,A54<Onderwerpen!$D$11),A54-7,IF(AND(A54>Onderwerpen!$D$11,A54<Onderwerpen!$D$12),A54-8,IF(AND(A54>Onderwerpen!$D$12,A54<Onderwerpen!$D$13),A54-9,IF(AND(A54>Onderwerpen!$D$13,A54<Onderwerpen!$D$14),A54-10,IF(AND(A54>Onderwerpen!$D$14,A54<Onderwerpen!$D$15),A54-11,IF(AND(A54>Onderwerpen!$D$15,A54<Onderwerpen!$D$16),A54-12,IF(AND(A54>Onderwerpen!$D$16,A54<Onderwerpen!$D$17),A54-13,IF(AND(A54>Onderwerpen!$D$17,A54<Onderwerpen!$D$18),A54-14,IF(AND(A54>Onderwerpen!$D$18,A54<Onderwerpen!$D$19),A54-15,IF(AND(A54>Onderwerpen!$D$19,A54<Onderwerpen!$D$20),A54-16,IF(AND(A54>Onderwerpen!$D$20,A54<Onderwerpen!$D$21),A54-17,IF(AND(A54>Onderwerpen!$D$21,A54<Onderwerpen!$D$22),A54-18,IF(A54>Onderwerpen!$D$22,A54-19,"X"))))))))))))))))))))),"")))))))))))))))))))) -> 42 | D54: =IF(B54="",""&C54,LEFT(B54, FIND(" ",B54)-1) & "."&COUNTIF($B$8:B54,B54)) -> 5.4 | E54: Zijn de doorgangen voldoende ruim en hoog, minimum 80 cm breed?
A55: =IFERROR(IF(A54=Onderwerpen!$C$23+19,"",A54+1),"") -> 47 | B55: =IF(C55<=Onderwerpen!$C$4,Onderwerpen!$A$4,IF(C55<=Onderwerpen!$C$5,Onderwerpen!$A$5,IF(C55<=Onderwerpen!$C$6,Onderwerpen!$A$6,IF(C55<=Onderwerpen!$C$7,Onderwerpen!$A$7,IF(C55<=Onderwerpen!$C$8,Onderwerpen!$A$8,IF(C55<=Onderwerpen!$C$9,Onderwerpen!$A$9,IF(C55<=Onderwerpen!C$10,Onderwerpen!$A$10,IF(C55<=Onderwerpen!C$11,Onderwerpen!$A$11,IF(C55<=Onderwerpen!C$12,Onderwerpen!$A$12,IF(C55<=Onderwerpen!C$13,Onderwerpen!$A$13,IF(C55<=Onderwerpen!$C$14,Onderwerpen!$A$14,IF(C55<=Onderwerpen!$C$15,Onderwerpen!$A$15,IF(C55<=Onderwerpen!$C$16,Onderwerpen!$A$16,IF(C55<=Onderwerpen!$C$17,Onderwerpen!$A$17,IF(C55<=Onderwerpen!$C$18,Onderwerpen!$A$18,IF(C55<=Onderwerpen!$C$19,Onderwerpen!$A$19,IF(C55<=Onderwerpen!$C$20,Onderwerpen!$A$20,IF(C55<=Onderwerpen!$C$21,Onderwerpen!$A$21,IF(C55<=Onderwerpen!$C$22,Onderwerpen!$A$22,IF(C55<=Onderwerpen!$C$23,Onderwerpen!$A$22,"")))))))))))))))))))) -> 5 Ergonomie werkpost | C55: =IF(Onderwerpen!$B$4+1=A55,Onderwerpen!$A$5,IF(SUM(Onderwerpen!$B$4:$B$5)+2=A55,Onderwerpen!$A$6,IF(SUM(Onderwerpen!$B$4:$B$6)+3=A55,Onderwerpen!$A$7,IF(SUM(Onderwerpen!$B$4:$B$7)+4=A55,Onderwerpen!$A$8,IF(SUM(Onderwerpen!$B$4:$B$8)+5=A55,Onderwerpen!$A$9,IF(SUM(Onderwerpen!$B$4:$B$9)+6=A55,Onderwerpen!$A$10,IF(SUM(Onderwerpen!$B$4:$B$10)+7=A55,Onderwerpen!$A$11,IF(SUM(Onderwerpen!$B$4:$B$11)+8=A55,Onderwerpen!$A$12,IF(SUM(Onderwerpen!$B$4:$B$12)+9=A55,Onderwerpen!$A$13,IF(SUM(Onderwerpen!$B$4:$B$13)+10=A55,Onderwerpen!$A$14,IF(SUM(Onderwerpen!$B$4:$B$14)+11=A55,Onderwerpen!$A$15,IF(SUM(Onderwerpen!$B$4:$B$15)+12=A55,Onderwerpen!$A$16,IF(SUM(Onderwerpen!$B$4:$B$16)+13=A55,Onderwerpen!$A$17,IF(SUM(Onderwerpen!$B$4:$B$17)+14=A55,Onderwerpen!$A$18,IF(SUM(Onderwerpen!$B$4:$B$18)+15=A55,Onderwerpen!$A$19,IF(SUM(Onderwerpen!$B$4:$B$19)+16=A55,Onderwerpen!$A$20,IF(SUM(Onderwerpen!$B$4:$B$20)+17=A55,Onderwerpen!$A$21,IF(SUM(Onderwerpen!$B$4:$B$21)+18=A55,Onderwerpen!$A$22,IF(SUM(Onderwerpen!$B$4:$B$22)+19=A55,Onderwerpen!$A$23,IFERROR((IF(A55<Onderwerpen!$D$4,A55,IF(AND(A55>Onderwerpen!$D$4,A55<Onderwerpen!$D$5),A55-1,IF(AND(A55>Onderwerpen!$D$5,A55<Onderwerpen!$D$6),A55-2,IF(AND(A55>Onderwerpen!$D$6,A55<Onderwerpen!$D$7),A55-3,IF(AND(A55>Onderwerpen!$D$7,A55<Onderwerpen!$D$8),A55-4,IF(AND(A55>Onderwerpen!$D$8,A55<Onderwerpen!$D$9),A55-5,IF(AND(A55>Onderwerpen!$D$9,A55<Onderwerpen!$D$10),A55-6,IF(AND(A55>Onderwerpen!$D$10,A55<Onderwerpen!$D$11),A55-7,IF(AND(A55>Onderwerpen!$D$11,A55<Onderwerpen!$D$12),A55-8,IF(AND(A55>Onderwerpen!$D$12,A55<Onderwerpen!$D$13),A55-9,IF(AND(A55>Onderwerpen!$D$13,A55<Onderwerpen!$D$14),A55-10,IF(AND(A55>Onderwerpen!$D$14,A55<Onderwerpen!$D$15),A55-11,IF(AND(A55>Onderwerpen!$D$15,A55<Onderwerpen!$D$16),A55-12,IF(AND(A55>Onderwerpen!$D$16,A55<Onderwerpen!$D$17),A55-13,IF(AND(A55>Onderwerpen!$D$17,A55<Onderwerpen!$D$18),A55-14,IF(AND(A55>Onderwerpen!$D$18,A55<Onderwerpen!$D$19),A55-15,IF(AND(A55>Onderwerpen!$D$19,A55<Onderwerpen!$D$20),A55-16,IF(AND(A55>Onderwerpen!$D$20,A55<Onderwerpen!$D$21),A55-17,IF(AND(A55>Onderwerpen!$D$21,A55<Onderwerpen!$D$22),A55-18,IF(A55>Onderwerpen!$D$22,A55-19,"X"))))))))))))))))))))),"")))))))))))))))))))) -> 43 | D55: =IF(B55="",""&C55,LEFT(B55, FIND(" ",B55)-1) & "."&COUNTIF($B$8:B55,B55)) -> 5.5 | E55: Is er voldoende en gelijkmatig verdeelde verlichting op de werkplaatsen?
A56: =IFERROR(IF(A55=Onderwerpen!$C$23+19,"",A55+1),"") -> 48 | B56: =IF(C56<=Onderwerpen!$C$4,Onderwerpen!$A$4,IF(C56<=Onderwerpen!$C$5,Onderwerpen!$A$5,IF(C56<=Onderwerpen!$C$6,Onderwerpen!$A$6,IF(C56<=Onderwerpen!$C$7,Onderwerpen!$A$7,IF(C56<=Onderwerpen!$C$8,Onderwerpen!$A$8,IF(C56<=Onderwerpen!$C$9,Onderwerpen!$A$9,IF(C56<=Onderwerpen!C$10,Onderwerpen!$A$10,IF(C56<=Onderwerpen!C$11,Onderwerpen!$A$11,IF(C56<=Onderwerpen!C$12,Onderwerpen!$A$12,IF(C56<=Onderwerpen!C$13,Onderwerpen!$A$13,IF(C56<=Onderwerpen!$C$14,Onderwerpen!$A$14,IF(C56<=Onderwerpen!$C$15,Onderwerpen!$A$15,IF(C56<=Onderwerpen!$C$16,Onderwerpen!$A$16,IF(C56<=Onderwerpen!$C$17,Onderwerpen!$A$17,IF(C56<=Onderwerpen!$C$18,Onderwerpen!$A$18,IF(C56<=Onderwerpen!$C$19,Onderwerpen!$A$19,IF(C56<=Onderwerpen!$C$20,Onderwerpen!$A$20,IF(C56<=Onderwerpen!$C$21,Onderwerpen!$A$21,IF(C56<=Onderwerpen!$C$22,Onderwerpen!$A$22,IF(C56<=Onderwerpen!$C$23,Onderwerpen!$A$22,"")))))))))))))))))))) -> 5 Ergonomie werkpost | C56: =IF(Onderwerpen!$B$4+1=A56,Onderwerpen!$A$5,IF(SUM(Onderwerpen!$B$4:$B$5)+2=A56,Onderwerpen!$A$6,IF(SUM(Onderwerpen!$B$4:$B$6)+3=A56,Onderwerpen!$A$7,IF(SUM(Onderwerpen!$B$4:$B$7)+4=A56,Onderwerpen!$A$8,IF(SUM(Onderwerpen!$B$4:$B$8)+5=A56,Onderwerpen!$A$9,IF(SUM(Onderwerpen!$B$4:$B$9)+6=A56,Onderwerpen!$A$10,IF(SUM(Onderwerpen!$B$4:$B$10)+7=A56,Onderwerpen!$A$11,IF(SUM(Onderwerpen!$B$4:$B$11)+8=A56,Onderwerpen!$A$12,IF(SUM(Onderwerpen!$B$4:$B$12)+9=A56,Onderwerpen!$A$13,IF(SUM(Onderwerpen!$B$4:$B$13)+10=A56,Onderwerpen!$A$14,IF(SUM(Onderwerpen!$B$4:$B$14)+11=A56,Onderwerpen!$A$15,IF(SUM(Onderwerpen!$B$4:$B$15)+12=A56,Onderwerpen!$A$16,IF(SUM(Onderwerpen!$B$4:$B$16)+13=A56,Onderwerpen!$A$17,IF(SUM(Onderwerpen!$B$4:$B$17)+14=A56,Onderwerpen!$A$18,IF(SUM(Onderwerpen!$B$4:$B$18)+15=A56,Onderwerpen!$A$19,IF(SUM(Onderwerpen!$B$4:$B$19)+16=A56,Onderwerpen!$A$20,IF(SUM(Onderwerpen!$B$4:$B$20)+17=A56,Onderwerpen!$A$21,IF(SUM(Onderwerpen!$B$4:$B$21)+18=A56,Onderwerpen!$A$22,IF(SUM(Onderwerpen!$B$4:$B$22)+19=A56,Onderwerpen!$A$23,IFERROR((IF(A56<Onderwerpen!$D$4,A56,IF(AND(A56>Onderwerpen!$D$4,A56<Onderwerpen!$D$5),A56-1,IF(AND(A56>Onderwerpen!$D$5,A56<Onderwerpen!$D$6),A56-2,IF(AND(A56>Onderwerpen!$D$6,A56<Onderwerpen!$D$7),A56-3,IF(AND(A56>Onderwerpen!$D$7,A56<Onderwerpen!$D$8),A56-4,IF(AND(A56>Onderwerpen!$D$8,A56<Onderwerpen!$D$9),A56-5,IF(AND(A56>Onderwerpen!$D$9,A56<Onderwerpen!$D$10),A56-6,IF(AND(A56>Onderwerpen!$D$10,A56<Onderwerpen!$D$11),A56-7,IF(AND(A56>Onderwerpen!$D$11,A56<Onderwerpen!$D$12),A56-8,IF(AND(A56>Onderwerpen!$D$12,A56<Onderwerpen!$D$13),A56-9,IF(AND(A56>Onderwerpen!$D$13,A56<Onderwerpen!$D$14),A56-10,IF(AND(A56>Onderwerpen!$D$14,A56<Onderwerpen!$D$15),A56-11,IF(AND(A56>Onderwerpen!$D$15,A56<Onderwerpen!$D$16),A56-12,IF(AND(A56>Onderwerpen!$D$16,A56<Onderwerpen!$D$17),A56-13,IF(AND(A56>Onderwerpen!$D$17,A56<Onderwerpen!$D$18),A56-14,IF(AND(A56>Onderwerpen!$D$18,A56<Onderwerpen!$D$19),A56-15,IF(AND(A56>Onderwerpen!$D$19,A56<Onderwerpen!$D$20),A56-16,IF(AND(A56>Onderwerpen!$D$20,A56<Onderwerpen!$D$21),A56-17,IF(AND(A56>Onderwerpen!$D$21,A56<Onderwerpen!$D$22),A56-18,IF(A56>Onderwerpen!$D$22,A56-19,"X"))))))))))))))))))))),"")))))))))))))))))))) -> 44 | D56: =IF(B56="",""&C56,LEFT(B56, FIND(" ",B56)-1) & "."&COUNTIF($B$8:B56,B56)) -> 5.6 | E56: Is er voldoende frisse op de werkplaatsen?
A57: =IFERROR(IF(A56=Onderwerpen!$C$23+19,"",A56+1),"") -> 49 | B57: =IF(C57<=Onderwerpen!$C$4,Onderwerpen!$A$4,IF(C57<=Onderwerpen!$C$5,Onderwerpen!$A$5,IF(C57<=Onderwerpen!$C$6,Onderwerpen!$A$6,IF(C57<=Onderwerpen!$C$7,Onderwerpen!$A$7,IF(C57<=Onderwerpen!$C$8,Onderwerpen!$A$8,IF(C57<=Onderwerpen!$C$9,Onderwerpen!$A$9,IF(C57<=Onderwerpen!C$10,Onderwerpen!$A$10,IF(C57<=Onderwerpen!C$11,Onderwerpen!$A$11,IF(C57<=Onderwerpen!C$12,Onderwerpen!$A$12,IF(C57<=Onderwerpen!C$13,Onderwerpen!$A$13,IF(C57<=Onderwerpen!$C$14,Onderwerpen!$A$14,IF(C57<=Onderwerpen!$C$15,Onderwerpen!$A$15,IF(C57<=Onderwerpen!$C$16,Onderwerpen!$A$16,IF(C57<=Onderwerpen!$C$17,Onderwerpen!$A$17,IF(C57<=Onderwerpen!$C$18,Onderwerpen!$A$18,IF(C57<=Onderwerpen!$C$19,Onderwerpen!$A$19,IF(C57<=Onderwerpen!$C$20,Onderwerpen!$A$20,IF(C57<=Onderwerpen!$C$21,Onderwerpen!$A$21,IF(C57<=Onderwerpen!$C$22,Onderwerpen!$A$22,IF(C57<=Onderwerpen!$C$23,Onderwerpen!$A$22,"")))))))))))))))))))) -> 5 Ergonomie werkpost | C57: =IF(Onderwerpen!$B$4+1=A57,Onderwerpen!$A$5,IF(SUM(Onderwerpen!$B$4:$B$5)+2=A57,Onderwerpen!$A$6,IF(SUM(Onderwerpen!$B$4:$B$6)+3=A57,Onderwerpen!$A$7,IF(SUM(Onderwerpen!$B$4:$B$7)+4=A57,Onderwerpen!$A$8,IF(SUM(Onderwerpen!$B$4:$B$8)+5=A57,Onderwerpen!$A$9,IF(SUM(Onderwerpen!$B$4:$B$9)+6=A57,Onderwerpen!$A$10,IF(SUM(Onderwerpen!$B$4:$B$10)+7=A57,Onderwerpen!$A$11,IF(SUM(Onderwerpen!$B$4:$B$11)+8=A57,Onderwerpen!$A$12,IF(SUM(Onderwerpen!$B$4:$B$12)+9=A57,Onderwerpen!$A$13,IF(SUM(Onderwerpen!$B$4:$B$13)+10=A57,Onderwerpen!$A$14,IF(SUM(Onderwerpen!$B$4:$B$14)+11=A57,Onderwerpen!$A$15,IF(SUM(Onderwerpen!$B$4:$B$15)+12=A57,Onderwerpen!$A$16,IF(SUM(Onderwerpen!$B$4:$B$16)+13=A57,Onderwerpen!$A$17,IF(SUM(Onderwerpen!$B$4:$B$17)+14=A57,Onderwerpen!$A$18,IF(SUM(Onderwerpen!$B$4:$B$18)+15=A57,Onderwerpen!$A$19,IF(SUM(Onderwerpen!$B$4:$B$19)+16=A57,Onderwerpen!$A$20,IF(SUM(Onderwerpen!$B$4:$B$20)+17=A57,Onderwerpen!$A$21,IF(SUM(Onderwerpen!$B$4:$B$21)+18=A57,Onderwerpen!$A$22,IF(SUM(Onderwerpen!$B$4:$B$22)+19=A57,Onderwerpen!$A$23,IFERROR((IF(A57<Onderwerpen!$D$4,A57,IF(AND(A57>Onderwerpen!$D$4,A57<Onderwerpen!$D$5),A57-1,IF(AND(A57>Onderwerpen!$D$5,A57<Onderwerpen!$D$6),A57-2,IF(AND(A57>Onderwerpen!$D$6,A57<Onderwerpen!$D$7),A57-3,IF(AND(A57>Onderwerpen!$D$7,A57<Onderwerpen!$D$8),A57-4,IF(AND(A57>Onderwerpen!$D$8,A57<Onderwerpen!$D$9),A57-5,IF(AND(A57>Onderwerpen!$D$9,A57<Onderwerpen!$D$10),A57-6,IF(AND(A57>Onderwerpen!$D$10,A57<Onderwerpen!$D$11),A57-7,IF(AND(A57>Onderwerpen!$D$11,A57<Onderwerpen!$D$12),A57-8,IF(AND(A57>Onderwerpen!$D$12,A57<Onderwerpen!$D$13),A57-9,IF(AND(A57>Onderwerpen!$D$13,A57<Onderwerpen!$D$14),A57-10,IF(AND(A57>Onderwerpen!$D$14,A57<Onderwerpen!$D$15),A57-11,IF(AND(A57>Onderwerpen!$D$15,A57<Onderwerpen!$D$16),A57-12,IF(AND(A57>Onderwerpen!$D$16,A57<Onderwerpen!$D$17),A57-13,IF(AND(A57>Onderwerpen!$D$17,A57<Onderwerpen!$D$18),A57-14,IF(AND(A57>Onderwerpen!$D$18,A57<Onderwerpen!$D$19),A57-15,IF(AND(A57>Onderwerpen!$D$19,A57<Onderwerpen!$D$20),A57-16,IF(AND(A57>Onderwerpen!$D$20,A57<Onderwerpen!$D$21),A57-17,IF(AND(A57>Onderwerpen!$D$21,A57<Onderwerpen!$D$22),A57-18,IF(A57>Onderwerpen!$D$22,A57-19,"X"))))))))))))))))))))),"")))))))))))))))))))) -> 45 | D57: =IF(B57="",""&C57,LEFT(B57, FIND(" ",B57)-1) & "."&COUNTIF($B$8:B57,B57)) -> 5.7 | E57: Is er voldoende vrije bewegingsruimte rond de werkposten?
A58: =IFERROR(IF(A57=Onderwerpen!$C$23+19,"",A57+1),"") -> 50 | B58: =IF(C58<=Onderwerpen!$C$4,Onderwerpen!$A$4,IF(C58<=Onderwerpen!$C$5,Onderwerpen!$A$5,IF(C58<=Onderwerpen!$C$6,Onderwerpen!$A$6,IF(C58<=Onderwerpen!$C$7,Onderwerpen!$A$7,IF(C58<=Onderwerpen!$C$8,Onderwerpen!$A$8,IF(C58<=Onderwerpen!$C$9,Onderwerpen!$A$9,IF(C58<=Onderwerpen!C$10,Onderwerpen!$A$10,IF(C58<=Onderwerpen!C$11,Onderwerpen!$A$11,IF(C58<=Onderwerpen!C$12,Onderwerpen!$A$12,IF(C58<=Onderwerpen!C$13,Onderwerpen!$A$13,IF(C58<=Onderwerpen!$C$14,Onderwerpen!$A$14,IF(C58<=Onderwerpen!$C$15,Onderwerpen!$A$15,IF(C58<=Onderwerpen!$C$16,Onderwerpen!$A$16,IF(C58<=Onderwerpen!$C$17,Onderwerpen!$A$17,IF(C58<=Onderwerpen!$C$18,Onderwerpen!$A$18,IF(C58<=Onderwerpen!$C$19,Onderwerpen!$A$19,IF(C58<=Onderwerpen!$C$20,Onderwerpen!$A$20,IF(C58<=Onderwerpen!$C$21,Onderwerpen!$A$21,IF(C58<=Onderwerpen!$C$22,Onderwerpen!$A$22,IF(C58<=Onderwerpen!$C$23,Onderwerpen!$A$22,"")))))))))))))))))))) ->  | C58: =IF(Onderwerpen!$B$4+1=A58,Onderwerpen!$A$5,IF(SUM(Onderwerpen!$B$4:$B$5)+2=A58,Onderwerpen!$A$6,IF(SUM(Onderwerpen!$B$4:$B$6)+3=A58,Onderwerpen!$A$7,IF(SUM(Onderwerpen!$B$4:$B$7)+4=A58,Onderwerpen!$A$8,IF(SUM(Onderwerpen!$B$4:$B$8)+5=A58,Onderwerpen!$A$9,IF(SUM(Onderwerpen!$B$4:$B$9)+6=A58,Onderwerpen!$A$10,IF(SUM(Onderwerpen!$B$4:$B$10)+7=A58,Onderwerpen!$A$11,IF(SUM(Onderwerpen!$B$4:$B$11)+8=A58,Onderwerpen!$A$12,IF(SUM(Onderwerpen!$B$4:$B$12)+9=A58,Onderwerpen!$A$13,IF(SUM(Onderwerpen!$B$4:$B$13)+10=A58,Onderwerpen!$A$14,IF(SUM(Onderwerpen!$B$4:$B$14)+11=A58,Onderwerpen!$A$15,IF(SUM(Onderwerpen!$B$4:$B$15)+12=A58,Onderwerpen!$A$16,IF(SUM(Onderwerpen!$B$4:$B$16)+13=A58,Onderwerpen!$A$17,IF(SUM(Onderwerpen!$B$4:$B$17)+14=A58,Onderwerpen!$A$18,IF(SUM(Onderwerpen!$B$4:$B$18)+15=A58,Onderwerpen!$A$19,IF(SUM(Onderwerpen!$B$4:$B$19)+16=A58,Onderwerpen!$A$20,IF(SUM(Onderwerpen!$B$4:$B$20)+17=A58,Onderwerpen!$A$21,IF(SUM(Onderwerpen!$B$4:$B$21)+18=A58,Onderwerpen!$A$22,IF(SUM(Onderwerpen!$B$4:$B$22)+19=A58,Onderwerpen!$A$23,IFERROR((IF(A58<Onderwerpen!$D$4,A58,IF(AND(A58>Onderwerpen!$D$4,A58<Onderwerpen!$D$5),A58-1,IF(AND(A58>Onderwerpen!$D$5,A58<Onderwerpen!$D$6),A58-2,IF(AND(A58>Onderwerpen!$D$6,A58<Onderwerpen!$D$7),A58-3,IF(AND(A58>Onderwerpen!$D$7,A58<Onderwerpen!$D$8),A58-4,IF(AND(A58>Onderwerpen!$D$8,A58<Onderwerpen!$D$9),A58-5,IF(AND(A58>Onderwerpen!$D$9,A58<Onderwerpen!$D$10),A58-6,IF(AND(A58>Onderwerpen!$D$10,A58<Onderwerpen!$D$11),A58-7,IF(AND(A58>Onderwerpen!$D$11,A58<Onderwerpen!$D$12),A58-8,IF(AND(A58>Onderwerpen!$D$12,A58<Onderwerpen!$D$13),A58-9,IF(AND(A58>Onderwerpen!$D$13,A58<Onderwerpen!$D$14),A58-10,IF(AND(A58>Onderwerpen!$D$14,A58<Onderwerpen!$D$15),A58-11,IF(AND(A58>Onderwerpen!$D$15,A58<Onderwerpen!$D$16),A58-12,IF(AND(A58>Onderwerpen!$D$16,A58<Onderwerpen!$D$17),A58-13,IF(AND(A58>Onderwerpen!$D$17,A58<Onderwerpen!$D$18),A58-14,IF(AND(A58>Onderwerpen!$D$18,A58<Onderwerpen!$D$19),A58-15,IF(AND(A58>Onderwerpen!$D$19,A58<Onderwerpen!$D$20),A58-16,IF(AND(A58>Onderwerpen!$D$20,A58<Onderwerpen!$D$21),A58-17,IF(AND(A58>Onderwerpen!$D$21,A58<Onderwerpen!$D$22),A58-18,IF(A58>Onderwerpen!$D$22,A58-19,"X"))))))))))))))))))))),"")))))))))))))))))))) -> 6 Psycho-sociale belasting | D58: =IF(B58="",""&C58,LEFT(B58, FIND(" ",B58)-1) & "."&COUNTIF($B$8:B58,B58)) -> 6 Psycho-sociale belasting
A59: =IFERROR(IF(A58=Onderwerpen!$C$23+19,"",A58+1),"") -> 51 | B59: =IF(C59<=Onderwerpen!$C$4,Onderwerpen!$A$4,IF(C59<=Onderwerpen!$C$5,Onderwerpen!$A$5,IF(C59<=Onderwerpen!$C$6,Onderwerpen!$A$6,IF(C59<=Onderwerpen!$C$7,Onderwerpen!$A$7,IF(C59<=Onderwerpen!$C$8,Onderwerpen!$A$8,IF(C59<=Onderwerpen!$C$9,Onderwerpen!$A$9,IF(C59<=Onderwerpen!C$10,Onderwerpen!$A$10,IF(C59<=Onderwerpen!C$11,Onderwerpen!$A$11,IF(C59<=Onderwerpen!C$12,Onderwerpen!$A$12,IF(C59<=Onderwerpen!C$13,Onderwerpen!$A$13,IF(C59<=Onderwerpen!$C$14,Onderwerpen!$A$14,IF(C59<=Onderwerpen!$C$15,Onderwerpen!$A$15,IF(C59<=Onderwerpen!$C$16,Onderwerpen!$A$16,IF(C59<=Onderwerpen!$C$17,Onderwerpen!$A$17,IF(C59<=Onderwerpen!$C$18,Onderwerpen!$A$18,IF(C59<=Onderwerpen!$C$19,Onderwerpen!$A$19,IF(C59<=Onderwerpen!$C$20,Onderwerpen!$A$20,IF(C59<=Onderwerpen!$C$21,Onderwerpen!$A$21,IF(C59<=Onderwerpen!$C$22,Onderwerpen!$A$22,IF(C59<=Onderwerpen!$C$23,Onderwerpen!$A$22,"")))))))))))))))))))) -> 6 Psycho-sociale belasting | C59: =IF(Onderwerpen!$B$4+1=A59,Onderwerpen!$A$5,IF(SUM(Onderwerpen!$B$4:$B$5)+2=A59,Onderwerpen!$A$6,IF(SUM(Onderwerpen!$B$4:$B$6)+3=A59,Onderwerpen!$A$7,IF(SUM(Onderwerpen!$B$4:$B$7)+4=A59,Onderwerpen!$A$8,IF(SUM(Onderwerpen!$B$4:$B$8)+5=A59,Onderwerpen!$A$9,IF(SUM(Onderwerpen!$B$4:$B$9)+6=A59,Onderwerpen!$A$10,IF(SUM(Onderwerpen!$B$4:$B$10)+7=A59,Onderwerpen!$A$11,IF(SUM(Onderwerpen!$B$4:$B$11)+8=A59,Onderwerpen!$A$12,IF(SUM(Onderwerpen!$B$4:$B$12)+9=A59,Onderwerpen!$A$13,IF(SUM(Onderwerpen!$B$4:$B$13)+10=A59,Onderwerpen!$A$14,IF(SUM(Onderwerpen!$B$4:$B$14)+11=A59,Onderwerpen!$A$15,IF(SUM(Onderwerpen!$B$4:$B$15)+12=A59,Onderwerpen!$A$16,IF(SUM(Onderwerpen!$B$4:$B$16)+13=A59,Onderwerpen!$A$17,IF(SUM(Onderwerpen!$B$4:$B$17)+14=A59,Onderwerpen!$A$18,IF(SUM(Onderwerpen!$B$4:$B$18)+15=A59,Onderwerpen!$A$19,IF(SUM(Onderwerpen!$B$4:$B$19)+16=A59,Onderwerpen!$A$20,IF(SUM(Onderwerpen!$B$4:$B$20)+17=A59,Onderwerpen!$A$21,IF(SUM(Onderwerpen!$B$4:$B$21)+18=A59,Onderwerpen!$A$22,IF(SUM(Onderwerpen!$B$4:$B$22)+19=A59,Onderwerpen!$A$23,IFERROR((IF(A59<Onderwerpen!$D$4,A59,IF(AND(A59>Onderwerpen!$D$4,A59<Onderwerpen!$D$5),A59-1,IF(AND(A59>Onderwerpen!$D$5,A59<Onderwerpen!$D$6),A59-2,IF(AND(A59>Onderwerpen!$D$6,A59<Onderwerpen!$D$7),A59-3,IF(AND(A59>Onderwerpen!$D$7,A59<Onderwerpen!$D$8),A59-4,IF(AND(A59>Onderwerpen!$D$8,A59<Onderwerpen!$D$9),A59-5,IF(AND(A59>Onderwerpen!$D$9,A59<Onderwerpen!$D$10),A59-6,IF(AND(A59>Onderwerpen!$D$10,A59<Onderwerpen!$D$11),A59-7,IF(AND(A59>Onderwerpen!$D$11,A59<Onderwerpen!$D$12),A59-8,IF(AND(A59>Onderwerpen!$D$12,A59<Onderwerpen!$D$13),A59-9,IF(AND(A59>Onderwerpen!$D$13,A59<Onderwerpen!$D$14),A59-10,IF(AND(A59>Onderwerpen!$D$14,A59<Onderwerpen!$D$15),A59-11,IF(AND(A59>Onderwerpen!$D$15,A59<Onderwerpen!$D$16),A59-12,IF(AND(A59>Onderwerpen!$D$16,A59<Onderwerpen!$D$17),A59-13,IF(AND(A59>Onderwerpen!$D$17,A59<Onderwerpen!$D$18),A59-14,IF(AND(A59>Onderwerpen!$D$18,A59<Onderwerpen!$D$19),A59-15,IF(AND(A59>Onderwerpen!$D$19,A59<Onderwerpen!$D$20),A59-16,IF(AND(A59>Onderwerpen!$D$20,A59<Onderwerpen!$D$21),A59-17,IF(AND(A59>Onderwerpen!$D$21,A59<Onderwerpen!$D$22),A59-18,IF(A59>Onderwerpen!$D$22,A59-19,"X"))))))))))))))))))))),"")))))))))))))))))))) -> 46 | D59: =IF(B59="",""&C59,LEFT(B59, FIND(" ",B59)-1) & "."&COUNTIF($B$8:B59,B59)) -> 6.1 | E59: Is er binnen het bedrijf een vertrouwenspersoon aangesteld?
A60: =IFERROR(IF(A59=Onderwerpen!$C$23+19,"",A59+1),"") -> 52 | B60: =IF(C60<=Onderwerpen!$C$4,Onderwerpen!$A$4,IF(C60<=Onderwerpen!$C$5,Onderwerpen!$A$5,IF(C60<=Onderwerpen!$C$6,Onderwerpen!$A$6,IF(C60<=Onderwerpen!$C$7,Onderwerpen!$A$7,IF(C60<=Onderwerpen!$C$8,Onderwerpen!$A$8,IF(C60<=Onderwerpen!$C$9,Onderwerpen!$A$9,IF(C60<=Onderwerpen!C$10,Onderwerpen!$A$10,IF(C60<=Onderwerpen!C$11,Onderwerpen!$A$11,IF(C60<=Onderwerpen!C$12,Onderwerpen!$A$12,IF(C60<=Onderwerpen!C$13,Onderwerpen!$A$13,IF(C60<=Onderwerpen!$C$14,Onderwerpen!$A$14,IF(C60<=Onderwerpen!$C$15,Onderwerpen!$A$15,IF(C60<=Onderwerpen!$C$16,Onderwerpen!$A$16,IF(C60<=Onderwerpen!$C$17,Onderwerpen!$A$17,IF(C60<=Onderwerpen!$C$18,Onderwerpen!$A$18,IF(C60<=Onderwerpen!$C$19,Onderwerpen!$A$19,IF(C60<=Onderwerpen!$C$20,Onderwerpen!$A$20,IF(C60<=Onderwerpen!$C$21,Onderwerpen!$A$21,IF(C60<=Onderwerpen!$C$22,Onderwerpen!$A$22,IF(C60<=Onderwerpen!$C$23,Onderwerpen!$A$22,"")))))))))))))))))))) -> 6 Psycho-sociale belasting | C60: =IF(Onderwerpen!$B$4+1=A60,Onderwerpen!$A$5,IF(SUM(Onderwerpen!$B$4:$B$5)+2=A60,Onderwerpen!$A$6,IF(SUM(Onderwerpen!$B$4:$B$6)+3=A60,Onderwerpen!$A$7,IF(SUM(Onderwerpen!$B$4:$B$7)+4=A60,Onderwerpen!$A$8,IF(SUM(Onderwerpen!$B$4:$B$8)+5=A60,Onderwerpen!$A$9,IF(SUM(Onderwerpen!$B$4:$B$9)+6=A60,Onderwerpen!$A$10,IF(SUM(Onderwerpen!$B$4:$B$10)+7=A60,Onderwerpen!$A$11,IF(SUM(Onderwerpen!$B$4:$B$11)+8=A60,Onderwerpen!$A$12,IF(SUM(Onderwerpen!$B$4:$B$12)+9=A60,Onderwerpen!$A$13,IF(SUM(Onderwerpen!$B$4:$B$13)+10=A60,Onderwerpen!$A$14,IF(SUM(Onderwerpen!$B$4:$B$14)+11=A60,Onderwerpen!$A$15,IF(SUM(Onderwerpen!$B$4:$B$15)+12=A60,Onderwerpen!$A$16,IF(SUM(Onderwerpen!$B$4:$B$16)+13=A60,Onderwerpen!$A$17,IF(SUM(Onderwerpen!$B$4:$B$17)+14=A60,Onderwerpen!$A$18,IF(SUM(Onderwerpen!$B$4:$B$18)+15=A60,Onderwerpen!$A$19,IF(SUM(Onderwerpen!$B$4:$B$19)+16=A60,Onderwerpen!$A$20,IF(SUM(Onderwerpen!$B$4:$B$20)+17=A60,Onderwerpen!$A$21,IF(SUM(Onderwerpen!$B$4:$B$21)+18=A60,Onderwerpen!$A$22,IF(SUM(Onderwerpen!$B$4:$B$22)+19=A60,Onderwerpen!$A$23,IFERROR((IF(A60<Onderwerpen!$D$4,A60,IF(AND(A60>Onderwerpen!$D$4,A60<Onderwerpen!$D$5),A60-1,IF(AND(A60>Onderwerpen!$D$5,A60<Onderwerpen!$D$6),A60-2,IF(AND(A60>Onderwerpen!$D$6,A60<Onderwerpen!$D$7),A60-3,IF(AND(A60>Onderwerpen!$D$7,A60<Onderwerpen!$D$8),A60-4,IF(AND(A60>Onderwerpen!$D$8,A60<Onderwerpen!$D$9),A60-5,IF(AND(A60>Onderwerpen!$D$9,A60<Onderwerpen!$D$10),A60-6,IF(AND(A60>Onderwerpen!$D$10,A60<Onderwerpen!$D$11),A60-7,IF(AND(A60>Onderwerpen!$D$11,A60<Onderwerpen!$D$12),A60-8,IF(AND(A60>Onderwerpen!$D$12,A60<Onderwerpen!$D$13),A60-9,IF(AND(A60>Onderwerpen!$D$13,A60<Onderwerpen!$D$14),A60-10,IF(AND(A60>Onderwerpen!$D$14,A60<Onderwerpen!$D$15),A60-11,IF(AND(A60>Onderwerpen!$D$15,A60<Onderwerpen!$D$16),A60-12,IF(AND(A60>Onderwerpen!$D$16,A60<Onderwerpen!$D$17),A60-13,IF(AND(A60>Onderwerpen!$D$17,A60<Onderwerpen!$D$18),A60-14,IF(AND(A60>Onderwerpen!$D$18,A60<Onderwerpen!$D$19),A60-15,IF(AND(A60>Onderwerpen!$D$19,A60<Onderwerpen!$D$20),A60-16,IF(AND(A60>Onderwerpen!$D$20,A60<Onderwerpen!$D$21),A60-17,IF(AND(A60>Onderwerpen!$D$21,A60<Onderwerpen!$D$22),A60-18,IF(A60>Onderwerpen!$D$22,A60-19,"X"))))))))))))))))))))),"")))))))))))))))))))) -> 47 | D60: =IF(B60="",""&C60,LEFT(B60, FIND(" ",B60)-1) & "."&COUNTIF($B$8:B60,B60)) -> 6.2 | E60: Is er een extern preventieadviseur, Geweld-Pesten-Ongewenst Seksueel gedrag aangesteld? GePOS
A61: =IFERROR(IF(A60=Onderwerpen!$C$23+19,"",A60+1),"") -> 53 | B61: =IF(C61<=Onderwerpen!$C$4,Onderwerpen!$A$4,IF(C61<=Onderwerpen!$C$5,Onderwerpen!$A$5,IF(C61<=Onderwerpen!$C$6,Onderwerpen!$A$6,IF(C61<=Onderwerpen!$C$7,Onderwerpen!$A$7,IF(C61<=Onderwerpen!$C$8,Onderwerpen!$A$8,IF(C61<=Onderwerpen!$C$9,Onderwerpen!$A$9,IF(C61<=Onderwerpen!C$10,Onderwerpen!$A$10,IF(C61<=Onderwerpen!C$11,Onderwerpen!$A$11,IF(C61<=Onderwerpen!C$12,Onderwerpen!$A$12,IF(C61<=Onderwerpen!C$13,Onderwerpen!$A$13,IF(C61<=Onderwerpen!$C$14,Onderwerpen!$A$14,IF(C61<=Onderwerpen!$C$15,Onderwerpen!$A$15,IF(C61<=Onderwerpen!$C$16,Onderwerpen!$A$16,IF(C61<=Onderwerpen!$C$17,Onderwerpen!$A$17,IF(C61<=Onderwerpen!$C$18,Onderwerpen!$A$18,IF(C61<=Onderwerpen!$C$19,Onderwerpen!$A$19,IF(C61<=Onderwerpen!$C$20,Onderwerpen!$A$20,IF(C61<=Onderwerpen!$C$21,Onderwerpen!$A$21,IF(C61<=Onderwerpen!$C$22,Onderwerpen!$A$22,IF(C61<=Onderwerpen!$C$23,Onderwerpen!$A$22,"")))))))))))))))))))) -> 6 Psycho-sociale belasting | C61: =IF(Onderwerpen!$B$4+1=A61,Onderwerpen!$A$5,IF(SUM(Onderwerpen!$B$4:$B$5)+2=A61,Onderwerpen!$A$6,IF(SUM(Onderwerpen!$B$4:$B$6)+3=A61,Onderwerpen!$A$7,IF(SUM(Onderwerpen!$B$4:$B$7)+4=A61,Onderwerpen!$A$8,IF(SUM(Onderwerpen!$B$4:$B$8)+5=A61,Onderwerpen!$A$9,IF(SUM(Onderwerpen!$B$4:$B$9)+6=A61,Onderwerpen!$A$10,IF(SUM(Onderwerpen!$B$4:$B$10)+7=A61,Onderwerpen!$A$11,IF(SUM(Onderwerpen!$B$4:$B$11)+8=A61,Onderwerpen!$A$12,IF(SUM(Onderwerpen!$B$4:$B$12)+9=A61,Onderwerpen!$A$13,IF(SUM(Onderwerpen!$B$4:$B$13)+10=A61,Onderwerpen!$A$14,IF(SUM(Onderwerpen!$B$4:$B$14)+11=A61,Onderwerpen!$A$15,IF(SUM(Onderwerpen!$B$4:$B$15)+12=A61,Onderwerpen!$A$16,IF(SUM(Onderwerpen!$B$4:$B$16)+13=A61,Onderwerpen!$A$17,IF(SUM(Onderwerpen!$B$4:$B$17)+14=A61,Onderwerpen!$A$18,IF(SUM(Onderwerpen!$B$4:$B$18)+15=A61,Onderwerpen!$A$19,IF(SUM(Onderwerpen!$B$4:$B$19)+16=A61,Onderwerpen!$A$20,IF(SUM(Onderwerpen!$B$4:$B$20)+17=A61,Onderwerpen!$A$21,IF(SUM(Onderwerpen!$B$4:$B$21)+18=A61,Onderwerpen!$A$22,IF(SUM(Onderwerpen!$B$4:$B$22)+19=A61,Onderwerpen!$A$23,IFERROR((IF(A61<Onderwerpen!$D$4,A61,IF(AND(A61>Onderwerpen!$D$4,A61<Onderwerpen!$D$5),A61-1,IF(AND(A61>Onderwerpen!$D$5,A61<Onderwerpen!$D$6),A61-2,IF(AND(A61>Onderwerpen!$D$6,A61<Onderwerpen!$D$7),A61-3,IF(AND(A61>Onderwerpen!$D$7,A61<Onderwerpen!$D$8),A61-4,IF(AND(A61>Onderwerpen!$D$8,A61<Onderwerpen!$D$9),A61-5,IF(AND(A61>Onderwerpen!$D$9,A61<Onderwerpen!$D$10),A61-6,IF(AND(A61>Onderwerpen!$D$10,A61<Onderwerpen!$D$11),A61-7,IF(AND(A61>Onderwerpen!$D$11,A61<Onderwerpen!$D$12),A61-8,IF(AND(A61>Onderwerpen!$D$12,A61<Onderwerpen!$D$13),A61-9,IF(AND(A61>Onderwerpen!$D$13,A61<Onderwerpen!$D$14),A61-10,IF(AND(A61>Onderwerpen!$D$14,A61<Onderwerpen!$D$15),A61-11,IF(AND(A61>Onderwerpen!$D$15,A61<Onderwerpen!$D$16),A61-12,IF(AND(A61>Onderwerpen!$D$16,A61<Onderwerpen!$D$17),A61-13,IF(AND(A61>Onderwerpen!$D$17,A61<Onderwerpen!$D$18),A61-14,IF(AND(A61>Onderwerpen!$D$18,A61<Onderwerpen!$D$19),A61-15,IF(AND(A61>Onderwerpen!$D$19,A61<Onderwerpen!$D$20),A61-16,IF(AND(A61>Onderwerpen!$D$20,A61<Onderwerpen!$D$21),A61-17,IF(AND(A61>Onderwerpen!$D$21,A61<Onderwerpen!$D$22),A61-18,IF(A61>Onderwerpen!$D$22,A61-19,"X"))))))))))))))))))))),"")))))))))))))))))))) -> 48 | D61: =IF(B61="",""&C61,LEFT(B61, FIND(" ",B61)-1) & "."&COUNTIF($B$8:B61,B61)) -> 6.3 | E61: Zijn de contactpersonen GePOS en de manier om contact op te nemen door het personeel gekend?
A62: =IFERROR(IF(A61=Onderwerpen!$C$23+19,"",A61+1),"") -> 54 | B62: =IF(C62<=Onderwerpen!$C$4,Onderwerpen!$A$4,IF(C62<=Onderwerpen!$C$5,Onderwerpen!$A$5,IF(C62<=Onderwerpen!$C$6,Onderwerpen!$A$6,IF(C62<=Onderwerpen!$C$7,Onderwerpen!$A$7,IF(C62<=Onderwerpen!$C$8,Onderwerpen!$A$8,IF(C62<=Onderwerpen!$C$9,Onderwerpen!$A$9,IF(C62<=Onderwerpen!C$10,Onderwerpen!$A$10,IF(C62<=Onderwerpen!C$11,Onderwerpen!$A$11,IF(C62<=Onderwerpen!C$12,Onderwerpen!$A$12,IF(C62<=Onderwerpen!C$13,Onderwerpen!$A$13,IF(C62<=Onderwerpen!$C$14,Onderwerpen!$A$14,IF(C62<=Onderwerpen!$C$15,Onderwerpen!$A$15,IF(C62<=Onderwerpen!$C$16,Onderwerpen!$A$16,IF(C62<=Onderwerpen!$C$17,Onderwerpen!$A$17,IF(C62<=Onderwerpen!$C$18,Onderwerpen!$A$18,IF(C62<=Onderwerpen!$C$19,Onderwerpen!$A$19,IF(C62<=Onderwerpen!$C$20,Onderwerpen!$A$20,IF(C62<=Onderwerpen!$C$21,Onderwerpen!$A$21,IF(C62<=Onderwerpen!$C$22,Onderwerpen!$A$22,IF(C62<=Onderwerpen!$C$23,Onderwerpen!$A$22,"")))))))))))))))))))) -> 6 Psycho-sociale belasting | C62: =IF(Onderwerpen!$B$4+1=A62,Onderwerpen!$A$5,IF(SUM(Onderwerpen!$B$4:$B$5)+2=A62,Onderwerpen!$A$6,IF(SUM(Onderwerpen!$B$4:$B$6)+3=A62,Onderwerpen!$A$7,IF(SUM(Onderwerpen!$B$4:$B$7)+4=A62,Onderwerpen!$A$8,IF(SUM(Onderwerpen!$B$4:$B$8)+5=A62,Onderwerpen!$A$9,IF(SUM(Onderwerpen!$B$4:$B$9)+6=A62,Onderwerpen!$A$10,IF(SUM(Onderwerpen!$B$4:$B$10)+7=A62,Onderwerpen!$A$11,IF(SUM(Onderwerpen!$B$4:$B$11)+8=A62,Onderwerpen!$A$12,IF(SUM(Onderwerpen!$B$4:$B$12)+9=A62,Onderwerpen!$A$13,IF(SUM(Onderwerpen!$B$4:$B$13)+10=A62,Onderwerpen!$A$14,IF(SUM(Onderwerpen!$B$4:$B$14)+11=A62,Onderwerpen!$A$15,IF(SUM(Onderwerpen!$B$4:$B$15)+12=A62,Onderwerpen!$A$16,IF(SUM(Onderwerpen!$B$4:$B$16)+13=A62,Onderwerpen!$A$17,IF(SUM(Onderwerpen!$B$4:$B$17)+14=A62,Onderwerpen!$A$18,IF(SUM(Onderwerpen!$B$4:$B$18)+15=A62,Onderwerpen!$A$19,IF(SUM(Onderwerpen!$B$4:$B$19)+16=A62,Onderwerpen!$A$20,IF(SUM(Onderwerpen!$B$4:$B$20)+17=A62,Onderwerpen!$A$21,IF(SUM(Onderwerpen!$B$4:$B$21)+18=A62,Onderwerpen!$A$22,IF(SUM(Onderwerpen!$B$4:$B$22)+19=A62,Onderwerpen!$A$23,IFERROR((IF(A62<Onderwerpen!$D$4,A62,IF(AND(A62>Onderwerpen!$D$4,A62<Onderwerpen!$D$5),A62-1,IF(AND(A62>Onderwerpen!$D$5,A62<Onderwerpen!$D$6),A62-2,IF(AND(A62>Onderwerpen!$D$6,A62<Onderwerpen!$D$7),A62-3,IF(AND(A62>Onderwerpen!$D$7,A62<Onderwerpen!$D$8),A62-4,IF(AND(A62>Onderwerpen!$D$8,A62<Onderwerpen!$D$9),A62-5,IF(AND(A62>Onderwerpen!$D$9,A62<Onderwerpen!$D$10),A62-6,IF(AND(A62>Onderwerpen!$D$10,A62<Onderwerpen!$D$11),A62-7,IF(AND(A62>Onderwerpen!$D$11,A62<Onderwerpen!$D$12),A62-8,IF(AND(A62>Onderwerpen!$D$12,A62<Onderwerpen!$D$13),A62-9,IF(AND(A62>Onderwerpen!$D$13,A62<Onderwerpen!$D$14),A62-10,IF(AND(A62>Onderwerpen!$D$14,A62<Onderwerpen!$D$15),A62-11,IF(AND(A62>Onderwerpen!$D$15,A62<Onderwerpen!$D$16),A62-12,IF(AND(A62>Onderwerpen!$D$16,A62<Onderwerpen!$D$17),A62-13,IF(AND(A62>Onderwerpen!$D$17,A62<Onderwerpen!$D$18),A62-14,IF(AND(A62>Onderwerpen!$D$18,A62<Onderwerpen!$D$19),A62-15,IF(AND(A62>Onderwerpen!$D$19,A62<Onderwerpen!$D$20),A62-16,IF(AND(A62>Onderwerpen!$D$20,A62<Onderwerpen!$D$21),A62-17,IF(AND(A62>Onderwerpen!$D$21,A62<Onderwerpen!$D$22),A62-18,IF(A62>Onderwerpen!$D$22,A62-19,"X"))))))))))))))))))))),"")))))))))))))))))))) -> 49 | D62: =IF(B62="",""&C62,LEFT(B62, FIND(" ",B62)-1) & "."&COUNTIF($B$8:B62,B62)) -> 6.4 | E62: Worden de signalen en /of de vragen m.b.t. GePOS ernstig genomen en onderzocht?
A63: =IFERROR(IF(A62=Onderwerpen!$C$23+19,"",A62+1),"") -> 55 | B63: =IF(C63<=Onderwerpen!$C$4,Onderwerpen!$A$4,IF(C63<=Onderwerpen!$C$5,Onderwerpen!$A$5,IF(C63<=Onderwerpen!$C$6,Onderwerpen!$A$6,IF(C63<=Onderwerpen!$C$7,Onderwerpen!$A$7,IF(C63<=Onderwerpen!$C$8,Onderwerpen!$A$8,IF(C63<=Onderwerpen!$C$9,Onderwerpen!$A$9,IF(C63<=Onderwerpen!C$10,Onderwerpen!$A$10,IF(C63<=Onderwerpen!C$11,Onderwerpen!$A$11,IF(C63<=Onderwerpen!C$12,Onderwerpen!$A$12,IF(C63<=Onderwerpen!C$13,Onderwerpen!$A$13,IF(C63<=Onderwerpen!$C$14,Onderwerpen!$A$14,IF(C63<=Onderwerpen!$C$15,Onderwerpen!$A$15,IF(C63<=Onderwerpen!$C$16,Onderwerpen!$A$16,IF(C63<=Onderwerpen!$C$17,Onderwerpen!$A$17,IF(C63<=Onderwerpen!$C$18,Onderwerpen!$A$18,IF(C63<=Onderwerpen!$C$19,Onderwerpen!$A$19,IF(C63<=Onderwerpen!$C$20,Onderwerpen!$A$20,IF(C63<=Onderwerpen!$C$21,Onderwerpen!$A$21,IF(C63<=Onderwerpen!$C$22,Onderwerpen!$A$22,IF(C63<=Onderwerpen!$C$23,Onderwerpen!$A$22,"")))))))))))))))))))) -> 6 Psycho-sociale belasting | C63: =IF(Onderwerpen!$B$4+1=A63,Onderwerpen!$A$5,IF(SUM(Onderwerpen!$B$4:$B$5)+2=A63,Onderwerpen!$A$6,IF(SUM(Onderwerpen!$B$4:$B$6)+3=A63,Onderwerpen!$A$7,IF(SUM(Onderwerpen!$B$4:$B$7)+4=A63,Onderwerpen!$A$8,IF(SUM(Onderwerpen!$B$4:$B$8)+5=A63,Onderwerpen!$A$9,IF(SUM(Onderwerpen!$B$4:$B$9)+6=A63,Onderwerpen!$A$10,IF(SUM(Onderwerpen!$B$4:$B$10)+7=A63,Onderwerpen!$A$11,IF(SUM(Onderwerpen!$B$4:$B$11)+8=A63,Onderwerpen!$A$12,IF(SUM(Onderwerpen!$B$4:$B$12)+9=A63,Onderwerpen!$A$13,IF(SUM(Onderwerpen!$B$4:$B$13)+10=A63,Onderwerpen!$A$14,IF(SUM(Onderwerpen!$B$4:$B$14)+11=A63,Onderwerpen!$A$15,IF(SUM(Onderwerpen!$B$4:$B$15)+12=A63,Onderwerpen!$A$16,IF(SUM(Onderwerpen!$B$4:$B$16)+13=A63,Onderwerpen!$A$17,IF(SUM(Onderwerpen!$B$4:$B$17)+14=A63,Onderwerpen!$A$18,IF(SUM(Onderwerpen!$B$4:$B$18)+15=A63,Onderwerpen!$A$19,IF(SUM(Onderwerpen!$B$4:$B$19)+16=A63,Onderwerpen!$A$20,IF(SUM(Onderwerpen!$B$4:$B$20)+17=A63,Onderwerpen!$A$21,IF(SUM(Onderwerpen!$B$4:$B$21)+18=A63,Onderwerpen!$A$22,IF(SUM(Onderwerpen!$B$4:$B$22)+19=A63,Onderwerpen!$A$23,IFERROR((IF(A63<Onderwerpen!$D$4,A63,IF(AND(A63>Onderwerpen!$D$4,A63<Onderwerpen!$D$5),A63-1,IF(AND(A63>Onderwerpen!$D$5,A63<Onderwerpen!$D$6),A63-2,IF(AND(A63>Onderwerpen!$D$6,A63<Onderwerpen!$D$7),A63-3,IF(AND(A63>Onderwerpen!$D$7,A63<Onderwerpen!$D$8),A63-4,IF(AND(A63>Onderwerpen!$D$8,A63<Onderwerpen!$D$9),A63-5,IF(AND(A63>Onderwerpen!$D$9,A63<Onderwerpen!$D$10),A63-6,IF(AND(A63>Onderwerpen!$D$10,A63<Onderwerpen!$D$11),A63-7,IF(AND(A63>Onderwerpen!$D$11,A63<Onderwerpen!$D$12),A63-8,IF(AND(A63>Onderwerpen!$D$12,A63<Onderwerpen!$D$13),A63-9,IF(AND(A63>Onderwerpen!$D$13,A63<Onderwerpen!$D$14),A63-10,IF(AND(A63>Onderwerpen!$D$14,A63<Onderwerpen!$D$15),A63-11,IF(AND(A63>Onderwerpen!$D$15,A63<Onderwerpen!$D$16),A63-12,IF(AND(A63>Onderwerpen!$D$16,A63<Onderwerpen!$D$17),A63-13,IF(AND(A63>Onderwerpen!$D$17,A63<Onderwerpen!$D$18),A63-14,IF(AND(A63>Onderwerpen!$D$18,A63<Onderwerpen!$D$19),A63-15,IF(AND(A63>Onderwerpen!$D$19,A63<Onderwerpen!$D$20),A63-16,IF(AND(A63>Onderwerpen!$D$20,A63<Onderwerpen!$D$21),A63-17,IF(AND(A63>Onderwerpen!$D$21,A63<Onderwerpen!$D$22),A63-18,IF(A63>Onderwerpen!$D$22,A63-19,"X"))))))))))))))))))))),"")))))))))))))))))))) -> 50 | D63: =IF(B63="",""&C63,LEFT(B63, FIND(" ",B63)-1) & "."&COUNTIF($B$8:B63,B63)) -> 6.5 | E63: Wordt er aandacht besteed aan wrijvingen en conflicten tussen het personeel?
A64: =IFERROR(IF(A63=Onderwerpen!$C$23+19,"",A63+1),"") -> 56 | B64: =IF(C64<=Onderwerpen!$C$4,Onderwerpen!$A$4,IF(C64<=Onderwerpen!$C$5,Onderwerpen!$A$5,IF(C64<=Onderwerpen!$C$6,Onderwerpen!$A$6,IF(C64<=Onderwerpen!$C$7,Onderwerpen!$A$7,IF(C64<=Onderwerpen!$C$8,Onderwerpen!$A$8,IF(C64<=Onderwerpen!$C$9,Onderwerpen!$A$9,IF(C64<=Onderwerpen!C$10,Onderwerpen!$A$10,IF(C64<=Onderwerpen!C$11,Onderwerpen!$A$11,IF(C64<=Onderwerpen!C$12,Onderwerpen!$A$12,IF(C64<=Onderwerpen!C$13,Onderwerpen!$A$13,IF(C64<=Onderwerpen!$C$14,Onderwerpen!$A$14,IF(C64<=Onderwerpen!$C$15,Onderwerpen!$A$15,IF(C64<=Onderwerpen!$C$16,Onderwerpen!$A$16,IF(C64<=Onderwerpen!$C$17,Onderwerpen!$A$17,IF(C64<=Onderwerpen!$C$18,Onderwerpen!$A$18,IF(C64<=Onderwerpen!$C$19,Onderwerpen!$A$19,IF(C64<=Onderwerpen!$C$20,Onderwerpen!$A$20,IF(C64<=Onderwerpen!$C$21,Onderwerpen!$A$21,IF(C64<=Onderwerpen!$C$22,Onderwerpen!$A$22,IF(C64<=Onderwerpen!$C$23,Onderwerpen!$A$22,"")))))))))))))))))))) -> 6 Psycho-sociale belasting | C64: =IF(Onderwerpen!$B$4+1=A64,Onderwerpen!$A$5,IF(SUM(Onderwerpen!$B$4:$B$5)+2=A64,Onderwerpen!$A$6,IF(SUM(Onderwerpen!$B$4:$B$6)+3=A64,Onderwerpen!$A$7,IF(SUM(Onderwerpen!$B$4:$B$7)+4=A64,Onderwerpen!$A$8,IF(SUM(Onderwerpen!$B$4:$B$8)+5=A64,Onderwerpen!$A$9,IF(SUM(Onderwerpen!$B$4:$B$9)+6=A64,Onderwerpen!$A$10,IF(SUM(Onderwerpen!$B$4:$B$10)+7=A64,Onderwerpen!$A$11,IF(SUM(Onderwerpen!$B$4:$B$11)+8=A64,Onderwerpen!$A$12,IF(SUM(Onderwerpen!$B$4:$B$12)+9=A64,Onderwerpen!$A$13,IF(SUM(Onderwerpen!$B$4:$B$13)+10=A64,Onderwerpen!$A$14,IF(SUM(Onderwerpen!$B$4:$B$14)+11=A64,Onderwerpen!$A$15,IF(SUM(Onderwerpen!$B$4:$B$15)+12=A64,Onderwerpen!$A$16,IF(SUM(Onderwerpen!$B$4:$B$16)+13=A64,Onderwerpen!$A$17,IF(SUM(Onderwerpen!$B$4:$B$17)+14=A64,Onderwerpen!$A$18,IF(SUM(Onderwerpen!$B$4:$B$18)+15=A64,Onderwerpen!$A$19,IF(SUM(Onderwerpen!$B$4:$B$19)+16=A64,Onderwerpen!$A$20,IF(SUM(Onderwerpen!$B$4:$B$20)+17=A64,Onderwerpen!$A$21,IF(SUM(Onderwerpen!$B$4:$B$21)+18=A64,Onderwerpen!$A$22,IF(SUM(Onderwerpen!$B$4:$B$22)+19=A64,Onderwerpen!$A$23,IFERROR((IF(A64<Onderwerpen!$D$4,A64,IF(AND(A64>Onderwerpen!$D$4,A64<Onderwerpen!$D$5),A64-1,IF(AND(A64>Onderwerpen!$D$5,A64<Onderwerpen!$D$6),A64-2,IF(AND(A64>Onderwerpen!$D$6,A64<Onderwerpen!$D$7),A64-3,IF(AND(A64>Onderwerpen!$D$7,A64<Onderwerpen!$D$8),A64-4,IF(AND(A64>Onderwerpen!$D$8,A64<Onderwerpen!$D$9),A64-5,IF(AND(A64>Onderwerpen!$D$9,A64<Onderwerpen!$D$10),A64-6,IF(AND(A64>Onderwerpen!$D$10,A64<Onderwerpen!$D$11),A64-7,IF(AND(A64>Onderwerpen!$D$11,A64<Onderwerpen!$D$12),A64-8,IF(AND(A64>Onderwerpen!$D$12,A64<Onderwerpen!$D$13),A64-9,IF(AND(A64>Onderwerpen!$D$13,A64<Onderwerpen!$D$14),A64-10,IF(AND(A64>Onderwerpen!$D$14,A64<Onderwerpen!$D$15),A64-11,IF(AND(A64>Onderwerpen!$D$15,A64<Onderwerpen!$D$16),A64-12,IF(AND(A64>Onderwerpen!$D$16,A64<Onderwerpen!$D$17),A64-13,IF(AND(A64>Onderwerpen!$D$17,A64<Onderwerpen!$D$18),A64-14,IF(AND(A64>Onderwerpen!$D$18,A64<Onderwerpen!$D$19),A64-15,IF(AND(A64>Onderwerpen!$D$19,A64<Onderwerpen!$D$20),A64-16,IF(AND(A64>Onderwerpen!$D$20,A64<Onderwerpen!$D$21),A64-17,IF(AND(A64>Onderwerpen!$D$21,A64<Onderwerpen!$D$22),A64-18,IF(A64>Onderwerpen!$D$22,A64-19,"X"))))))))))))))))))))),"")))))))))))))))))))) -> 51 | D64: =IF(B64="",""&C64,LEFT(B64, FIND(" ",B64)-1) & "."&COUNTIF($B$8:B64,B64)) -> 6.6 | E64: Beschikt u over een procedure om klachten op te vangen en te onderzoeken?
A65: =IFERROR(IF(A64=Onderwerpen!$C$23+19,"",A64+1),"") -> 57 | B65: =IF(C65<=Onderwerpen!$C$4,Onderwerpen!$A$4,IF(C65<=Onderwerpen!$C$5,Onderwerpen!$A$5,IF(C65<=Onderwerpen!$C$6,Onderwerpen!$A$6,IF(C65<=Onderwerpen!$C$7,Onderwerpen!$A$7,IF(C65<=Onderwerpen!$C$8,Onderwerpen!$A$8,IF(C65<=Onderwerpen!$C$9,Onderwerpen!$A$9,IF(C65<=Onderwerpen!C$10,Onderwerpen!$A$10,IF(C65<=Onderwerpen!C$11,Onderwerpen!$A$11,IF(C65<=Onderwerpen!C$12,Onderwerpen!$A$12,IF(C65<=Onderwerpen!C$13,Onderwerpen!$A$13,IF(C65<=Onderwerpen!$C$14,Onderwerpen!$A$14,IF(C65<=Onderwerpen!$C$15,Onderwerpen!$A$15,IF(C65<=Onderwerpen!$C$16,Onderwerpen!$A$16,IF(C65<=Onderwerpen!$C$17,Onderwerpen!$A$17,IF(C65<=Onderwerpen!$C$18,Onderwerpen!$A$18,IF(C65<=Onderwerpen!$C$19,Onderwerpen!$A$19,IF(C65<=Onderwerpen!$C$20,Onderwerpen!$A$20,IF(C65<=Onderwerpen!$C$21,Onderwerpen!$A$21,IF(C65<=Onderwerpen!$C$22,Onderwerpen!$A$22,IF(C65<=Onderwerpen!$C$23,Onderwerpen!$A$22,"")))))))))))))))))))) -> 6 Psycho-sociale belasting | C65: =IF(Onderwerpen!$B$4+1=A65,Onderwerpen!$A$5,IF(SUM(Onderwerpen!$B$4:$B$5)+2=A65,Onderwerpen!$A$6,IF(SUM(Onderwerpen!$B$4:$B$6)+3=A65,Onderwerpen!$A$7,IF(SUM(Onderwerpen!$B$4:$B$7)+4=A65,Onderwerpen!$A$8,IF(SUM(Onderwerpen!$B$4:$B$8)+5=A65,Onderwerpen!$A$9,IF(SUM(Onderwerpen!$B$4:$B$9)+6=A65,Onderwerpen!$A$10,IF(SUM(Onderwerpen!$B$4:$B$10)+7=A65,Onderwerpen!$A$11,IF(SUM(Onderwerpen!$B$4:$B$11)+8=A65,Onderwerpen!$A$12,IF(SUM(Onderwerpen!$B$4:$B$12)+9=A65,Onderwerpen!$A$13,IF(SUM(Onderwerpen!$B$4:$B$13)+10=A65,Onderwerpen!$A$14,IF(SUM(Onderwerpen!$B$4:$B$14)+11=A65,Onderwerpen!$A$15,IF(SUM(Onderwerpen!$B$4:$B$15)+12=A65,Onderwerpen!$A$16,IF(SUM(Onderwerpen!$B$4:$B$16)+13=A65,Onderwerpen!$A$17,IF(SUM(Onderwerpen!$B$4:$B$17)+14=A65,Onderwerpen!$A$18,IF(SUM(Onderwerpen!$B$4:$B$18)+15=A65,Onderwerpen!$A$19,IF(SUM(Onderwerpen!$B$4:$B$19)+16=A65,Onderwerpen!$A$20,IF(SUM(Onderwerpen!$B$4:$B$20)+17=A65,Onderwerpen!$A$21,IF(SUM(Onderwerpen!$B$4:$B$21)+18=A65,Onderwerpen!$A$22,IF(SUM(Onderwerpen!$B$4:$B$22)+19=A65,Onderwerpen!$A$23,IFERROR((IF(A65<Onderwerpen!$D$4,A65,IF(AND(A65>Onderwerpen!$D$4,A65<Onderwerpen!$D$5),A65-1,IF(AND(A65>Onderwerpen!$D$5,A65<Onderwerpen!$D$6),A65-2,IF(AND(A65>Onderwerpen!$D$6,A65<Onderwerpen!$D$7),A65-3,IF(AND(A65>Onderwerpen!$D$7,A65<Onderwerpen!$D$8),A65-4,IF(AND(A65>Onderwerpen!$D$8,A65<Onderwerpen!$D$9),A65-5,IF(AND(A65>Onderwerpen!$D$9,A65<Onderwerpen!$D$10),A65-6,IF(AND(A65>Onderwerpen!$D$10,A65<Onderwerpen!$D$11),A65-7,IF(AND(A65>Onderwerpen!$D$11,A65<Onderwerpen!$D$12),A65-8,IF(AND(A65>Onderwerpen!$D$12,A65<Onderwerpen!$D$13),A65-9,IF(AND(A65>Onderwerpen!$D$13,A65<Onderwerpen!$D$14),A65-10,IF(AND(A65>Onderwerpen!$D$14,A65<Onderwerpen!$D$15),A65-11,IF(AND(A65>Onderwerpen!$D$15,A65<Onderwerpen!$D$16),A65-12,IF(AND(A65>Onderwerpen!$D$16,A65<Onderwerpen!$D$17),A65-13,IF(AND(A65>Onderwerpen!$D$17,A65<Onderwerpen!$D$18),A65-14,IF(AND(A65>Onderwerpen!$D$18,A65<Onderwerpen!$D$19),A65-15,IF(AND(A65>Onderwerpen!$D$19,A65<Onderwerpen!$D$20),A65-16,IF(AND(A65>Onderwerpen!$D$20,A65<Onderwerpen!$D$21),A65-17,IF(AND(A65>Onderwerpen!$D$21,A65<Onderwerpen!$D$22),A65-18,IF(A65>Onderwerpen!$D$22,A65-19,"X"))))))))))))))))))))),"")))))))))))))))))))) -> 52 | D65: =IF(B65="",""&C65,LEFT(B65, FIND(" ",B65)-1) & "."&COUNTIF($B$8:B65,B65)) -> 6.7 | E65: Zijn alle sluimerende conflicten reeds weggewerkt?
A66: =IFERROR(IF(A65=Onderwerpen!$C$23+19,"",A65+1),"") -> 58 | B66: =IF(C66<=Onderwerpen!$C$4,Onderwerpen!$A$4,IF(C66<=Onderwerpen!$C$5,Onderwerpen!$A$5,IF(C66<=Onderwerpen!$C$6,Onderwerpen!$A$6,IF(C66<=Onderwerpen!$C$7,Onderwerpen!$A$7,IF(C66<=Onderwerpen!$C$8,Onderwerpen!$A$8,IF(C66<=Onderwerpen!$C$9,Onderwerpen!$A$9,IF(C66<=Onderwerpen!C$10,Onderwerpen!$A$10,IF(C66<=Onderwerpen!C$11,Onderwerpen!$A$11,IF(C66<=Onderwerpen!C$12,Onderwerpen!$A$12,IF(C66<=Onderwerpen!C$13,Onderwerpen!$A$13,IF(C66<=Onderwerpen!$C$14,Onderwerpen!$A$14,IF(C66<=Onderwerpen!$C$15,Onderwerpen!$A$15,IF(C66<=Onderwerpen!$C$16,Onderwerpen!$A$16,IF(C66<=Onderwerpen!$C$17,Onderwerpen!$A$17,IF(C66<=Onderwerpen!$C$18,Onderwerpen!$A$18,IF(C66<=Onderwerpen!$C$19,Onderwerpen!$A$19,IF(C66<=Onderwerpen!$C$20,Onderwerpen!$A$20,IF(C66<=Onderwerpen!$C$21,Onderwerpen!$A$21,IF(C66<=Onderwerpen!$C$22,Onderwerpen!$A$22,IF(C66<=Onderwerpen!$C$23,Onderwerpen!$A$22,"")))))))))))))))))))) ->  | C66: =IF(Onderwerpen!$B$4+1=A66,Onderwerpen!$A$5,IF(SUM(Onderwerpen!$B$4:$B$5)+2=A66,Onderwerpen!$A$6,IF(SUM(Onderwerpen!$B$4:$B$6)+3=A66,Onderwerpen!$A$7,IF(SUM(Onderwerpen!$B$4:$B$7)+4=A66,Onderwerpen!$A$8,IF(SUM(Onderwerpen!$B$4:$B$8)+5=A66,Onderwerpen!$A$9,IF(SUM(Onderwerpen!$B$4:$B$9)+6=A66,Onderwerpen!$A$10,IF(SUM(Onderwerpen!$B$4:$B$10)+7=A66,Onderwerpen!$A$11,IF(SUM(Onderwerpen!$B$4:$B$11)+8=A66,Onderwerpen!$A$12,IF(SUM(Onderwerpen!$B$4:$B$12)+9=A66,Onderwerpen!$A$13,IF(SUM(Onderwerpen!$B$4:$B$13)+10=A66,Onderwerpen!$A$14,IF(SUM(Onderwerpen!$B$4:$B$14)+11=A66,Onderwerpen!$A$15,IF(SUM(Onderwerpen!$B$4:$B$15)+12=A66,Onderwerpen!$A$16,IF(SUM(Onderwerpen!$B$4:$B$16)+13=A66,Onderwerpen!$A$17,IF(SUM(Onderwerpen!$B$4:$B$17)+14=A66,Onderwerpen!$A$18,IF(SUM(Onderwerpen!$B$4:$B$18)+15=A66,Onderwerpen!$A$19,IF(SUM(Onderwerpen!$B$4:$B$19)+16=A66,Onderwerpen!$A$20,IF(SUM(Onderwerpen!$B$4:$B$20)+17=A66,Onderwerpen!$A$21,IF(SUM(Onderwerpen!$B$4:$B$21)+18=A66,Onderwerpen!$A$22,IF(SUM(Onderwerpen!$B$4:$B$22)+19=A66,Onderwerpen!$A$23,IFERROR((IF(A66<Onderwerpen!$D$4,A66,IF(AND(A66>Onderwerpen!$D$4,A66<Onderwerpen!$D$5),A66-1,IF(AND(A66>Onderwerpen!$D$5,A66<Onderwerpen!$D$6),A66-2,IF(AND(A66>Onderwerpen!$D$6,A66<Onderwerpen!$D$7),A66-3,IF(AND(A66>Onderwerpen!$D$7,A66<Onderwerpen!$D$8),A66-4,IF(AND(A66>Onderwerpen!$D$8,A66<Onderwerpen!$D$9),A66-5,IF(AND(A66>Onderwerpen!$D$9,A66<Onderwerpen!$D$10),A66-6,IF(AND(A66>Onderwerpen!$D$10,A66<Onderwerpen!$D$11),A66-7,IF(AND(A66>Onderwerpen!$D$11,A66<Onderwerpen!$D$12),A66-8,IF(AND(A66>Onderwerpen!$D$12,A66<Onderwerpen!$D$13),A66-9,IF(AND(A66>Onderwerpen!$D$13,A66<Onderwerpen!$D$14),A66-10,IF(AND(A66>Onderwerpen!$D$14,A66<Onderwerpen!$D$15),A66-11,IF(AND(A66>Onderwerpen!$D$15,A66<Onderwerpen!$D$16),A66-12,IF(AND(A66>Onderwerpen!$D$16,A66<Onderwerpen!$D$17),A66-13,IF(AND(A66>Onderwerpen!$D$17,A66<Onderwerpen!$D$18),A66-14,IF(AND(A66>Onderwerpen!$D$18,A66<Onderwerpen!$D$19),A66-15,IF(AND(A66>Onderwerpen!$D$19,A66<Onderwerpen!$D$20),A66-16,IF(AND(A66>Onderwerpen!$D$20,A66<Onderwerpen!$D$21),A66-17,IF(AND(A66>Onderwerpen!$D$21,A66<Onderwerpen!$D$22),A66-18,IF(A66>Onderwerpen!$D$22,A66-19,"X"))))))))))))))))))))),"")))))))))))))))))))) -> 7 Sociale ruimten | D66: =IF(B66="",""&C66,LEFT(B66, FIND(" ",B66)-1) & "."&COUNTIF($B$8:B66,B66)) -> 7 Sociale ruimten
A67: =IFERROR(IF(A66=Onderwerpen!$C$23+19,"",A66+1),"") -> 59 | B67: =IF(C67<=Onderwerpen!$C$4,Onderwerpen!$A$4,IF(C67<=Onderwerpen!$C$5,Onderwerpen!$A$5,IF(C67<=Onderwerpen!$C$6,Onderwerpen!$A$6,IF(C67<=Onderwerpen!$C$7,Onderwerpen!$A$7,IF(C67<=Onderwerpen!$C$8,Onderwerpen!$A$8,IF(C67<=Onderwerpen!$C$9,Onderwerpen!$A$9,IF(C67<=Onderwerpen!C$10,Onderwerpen!$A$10,IF(C67<=Onderwerpen!C$11,Onderwerpen!$A$11,IF(C67<=Onderwerpen!C$12,Onderwerpen!$A$12,IF(C67<=Onderwerpen!C$13,Onderwerpen!$A$13,IF(C67<=Onderwerpen!$C$14,Onderwerpen!$A$14,IF(C67<=Onderwerpen!$C$15,Onderwerpen!$A$15,IF(C67<=Onderwerpen!$C$16,Onderwerpen!$A$16,IF(C67<=Onderwerpen!$C$17,Onderwerpen!$A$17,IF(C67<=Onderwerpen!$C$18,Onderwerpen!$A$18,IF(C67<=Onderwerpen!$C$19,Onderwerpen!$A$19,IF(C67<=Onderwerpen!$C$20,Onderwerpen!$A$20,IF(C67<=Onderwerpen!$C$21,Onderwerpen!$A$21,IF(C67<=Onderwerpen!$C$22,Onderwerpen!$A$22,IF(C67<=Onderwerpen!$C$23,Onderwerpen!$A$22,"")))))))))))))))))))) -> 7 Sociale ruimten | C67: =IF(Onderwerpen!$B$4+1=A67,Onderwerpen!$A$5,IF(SUM(Onderwerpen!$B$4:$B$5)+2=A67,Onderwerpen!$A$6,IF(SUM(Onderwerpen!$B$4:$B$6)+3=A67,Onderwerpen!$A$7,IF(SUM(Onderwerpen!$B$4:$B$7)+4=A67,Onderwerpen!$A$8,IF(SUM(Onderwerpen!$B$4:$B$8)+5=A67,Onderwerpen!$A$9,IF(SUM(Onderwerpen!$B$4:$B$9)+6=A67,Onderwerpen!$A$10,IF(SUM(Onderwerpen!$B$4:$B$10)+7=A67,Onderwerpen!$A$11,IF(SUM(Onderwerpen!$B$4:$B$11)+8=A67,Onderwerpen!$A$12,IF(SUM(Onderwerpen!$B$4:$B$12)+9=A67,Onderwerpen!$A$13,IF(SUM(Onderwerpen!$B$4:$B$13)+10=A67,Onderwerpen!$A$14,IF(SUM(Onderwerpen!$B$4:$B$14)+11=A67,Onderwerpen!$A$15,IF(SUM(Onderwerpen!$B$4:$B$15)+12=A67,Onderwerpen!$A$16,IF(SUM(Onderwerpen!$B$4:$B$16)+13=A67,Onderwerpen!$A$17,IF(SUM(Onderwerpen!$B$4:$B$17)+14=A67,Onderwerpen!$A$18,IF(SUM(Onderwerpen!$B$4:$B$18)+15=A67,Onderwerpen!$A$19,IF(SUM(Onderwerpen!$B$4:$B$19)+16=A67,Onderwerpen!$A$20,IF(SUM(Onderwerpen!$B$4:$B$20)+17=A67,Onderwerpen!$A$21,IF(SUM(Onderwerpen!$B$4:$B$21)+18=A67,Onderwerpen!$A$22,IF(SUM(Onderwerpen!$B$4:$B$22)+19=A67,Onderwerpen!$A$23,IFERROR((IF(A67<Onderwerpen!$D$4,A67,IF(AND(A67>Onderwerpen!$D$4,A67<Onderwerpen!$D$5),A67-1,IF(AND(A67>Onderwerpen!$D$5,A67<Onderwerpen!$D$6),A67-2,IF(AND(A67>Onderwerpen!$D$6,A67<Onderwerpen!$D$7),A67-3,IF(AND(A67>Onderwerpen!$D$7,A67<Onderwerpen!$D$8),A67-4,IF(AND(A67>Onderwerpen!$D$8,A67<Onderwerpen!$D$9),A67-5,IF(AND(A67>Onderwerpen!$D$9,A67<Onderwerpen!$D$10),A67-6,IF(AND(A67>Onderwerpen!$D$10,A67<Onderwerpen!$D$11),A67-7,IF(AND(A67>Onderwerpen!$D$11,A67<Onderwerpen!$D$12),A67-8,IF(AND(A67>Onderwerpen!$D$12,A67<Onderwerpen!$D$13),A67-9,IF(AND(A67>Onderwerpen!$D$13,A67<Onderwerpen!$D$14),A67-10,IF(AND(A67>Onderwerpen!$D$14,A67<Onderwerpen!$D$15),A67-11,IF(AND(A67>Onderwerpen!$D$15,A67<Onderwerpen!$D$16),A67-12,IF(AND(A67>Onderwerpen!$D$16,A67<Onderwerpen!$D$17),A67-13,IF(AND(A67>Onderwerpen!$D$17,A67<Onderwerpen!$D$18),A67-14,IF(AND(A67>Onderwerpen!$D$18,A67<Onderwerpen!$D$19),A67-15,IF(AND(A67>Onderwerpen!$D$19,A67<Onderwerpen!$D$20),A67-16,IF(AND(A67>Onderwerpen!$D$20,A67<Onderwerpen!$D$21),A67-17,IF(AND(A67>Onderwerpen!$D$21,A67<Onderwerpen!$D$22),A67-18,IF(A67>Onderwerpen!$D$22,A67-19,"X"))))))))))))))))))))),"")))))))))))))))))))) -> 53 | D67: =IF(B67="",""&C67,LEFT(B67, FIND(" ",B67)-1) & "."&COUNTIF($B$8:B67,B67)) -> 7.1 | E67: Is er voldoende wasgelegenheid?
A68: =IFERROR(IF(A67=Onderwerpen!$C$23+19,"",A67+1),"") -> 60 | B68: =IF(C68<=Onderwerpen!$C$4,Onderwerpen!$A$4,IF(C68<=Onderwerpen!$C$5,Onderwerpen!$A$5,IF(C68<=Onderwerpen!$C$6,Onderwerpen!$A$6,IF(C68<=Onderwerpen!$C$7,Onderwerpen!$A$7,IF(C68<=Onderwerpen!$C$8,Onderwerpen!$A$8,IF(C68<=Onderwerpen!$C$9,Onderwerpen!$A$9,IF(C68<=Onderwerpen!C$10,Onderwerpen!$A$10,IF(C68<=Onderwerpen!C$11,Onderwerpen!$A$11,IF(C68<=Onderwerpen!C$12,Onderwerpen!$A$12,IF(C68<=Onderwerpen!C$13,Onderwerpen!$A$13,IF(C68<=Onderwerpen!$C$14,Onderwerpen!$A$14,IF(C68<=Onderwerpen!$C$15,Onderwerpen!$A$15,IF(C68<=Onderwerpen!$C$16,Onderwerpen!$A$16,IF(C68<=Onderwerpen!$C$17,Onderwerpen!$A$17,IF(C68<=Onderwerpen!$C$18,Onderwerpen!$A$18,IF(C68<=Onderwerpen!$C$19,Onderwerpen!$A$19,IF(C68<=Onderwerpen!$C$20,Onderwerpen!$A$20,IF(C68<=Onderwerpen!$C$21,Onderwerpen!$A$21,IF(C68<=Onderwerpen!$C$22,Onderwerpen!$A$22,IF(C68<=Onderwerpen!$C$23,Onderwerpen!$A$22,"")))))))))))))))))))) -> 7 Sociale ruimten | C68: =IF(Onderwerpen!$B$4+1=A68,Onderwerpen!$A$5,IF(SUM(Onderwerpen!$B$4:$B$5)+2=A68,Onderwerpen!$A$6,IF(SUM(Onderwerpen!$B$4:$B$6)+3=A68,Onderwerpen!$A$7,IF(SUM(Onderwerpen!$B$4:$B$7)+4=A68,Onderwerpen!$A$8,IF(SUM(Onderwerpen!$B$4:$B$8)+5=A68,Onderwerpen!$A$9,IF(SUM(Onderwerpen!$B$4:$B$9)+6=A68,Onderwerpen!$A$10,IF(SUM(Onderwerpen!$B$4:$B$10)+7=A68,Onderwerpen!$A$11,IF(SUM(Onderwerpen!$B$4:$B$11)+8=A68,Onderwerpen!$A$12,IF(SUM(Onderwerpen!$B$4:$B$12)+9=A68,Onderwerpen!$A$13,IF(SUM(Onderwerpen!$B$4:$B$13)+10=A68,Onderwerpen!$A$14,IF(SUM(Onderwerpen!$B$4:$B$14)+11=A68,Onderwerpen!$A$15,IF(SUM(Onderwerpen!$B$4:$B$15)+12=A68,Onderwerpen!$A$16,IF(SUM(Onderwerpen!$B$4:$B$16)+13=A68,Onderwerpen!$A$17,IF(SUM(Onderwerpen!$B$4:$B$17)+14=A68,Onderwerpen!$A$18,IF(SUM(Onderwerpen!$B$4:$B$18)+15=A68,Onderwerpen!$A$19,IF(SUM(Onderwerpen!$B$4:$B$19)+16=A68,Onderwerpen!$A$20,IF(SUM(Onderwerpen!$B$4:$B$20)+17=A68,Onderwerpen!$A$21,IF(SUM(Onderwerpen!$B$4:$B$21)+18=A68,Onderwerpen!$A$22,IF(SUM(Onderwerpen!$B$4:$B$22)+19=A68,Onderwerpen!$A$23,IFERROR((IF(A68<Onderwerpen!$D$4,A68,IF(AND(A68>Onderwerpen!$D$4,A68<Onderwerpen!$D$5),A68-1,IF(AND(A68>Onderwerpen!$D$5,A68<Onderwerpen!$D$6),A68-2,IF(AND(A68>Onderwerpen!$D$6,A68<Onderwerpen!$D$7),A68-3,IF(AND(A68>Onderwerpen!$D$7,A68<Onderwerpen!$D$8),A68-4,IF(AND(A68>Onderwerpen!$D$8,A68<Onderwerpen!$D$9),A68-5,IF(AND(A68>Onderwerpen!$D$9,A68<Onderwerpen!$D$10),A68-6,IF(AND(A68>Onderwerpen!$D$10,A68<Onderwerpen!$D$11),A68-7,IF(AND(A68>Onderwerpen!$D$11,A68<Onderwerpen!$D$12),A68-8,IF(AND(A68>Onderwerpen!$D$12,A68<Onderwerpen!$D$13),A68-9,IF(AND(A68>Onderwerpen!$D$13,A68<Onderwerpen!$D$14),A68-10,IF(AND(A68>Onderwerpen!$D$14,A68<Onderwerpen!$D$15),A68-11,IF(AND(A68>Onderwerpen!$D$15,A68<Onderwerpen!$D$16),A68-12,IF(AND(A68>Onderwerpen!$D$16,A68<Onderwerpen!$D$17),A68-13,IF(AND(A68>Onderwerpen!$D$17,A68<Onderwerpen!$D$18),A68-14,IF(AND(A68>Onderwerpen!$D$18,A68<Onderwerpen!$D$19),A68-15,IF(AND(A68>Onderwerpen!$D$19,A68<Onderwerpen!$D$20),A68-16,IF(AND(A68>Onderwerpen!$D$20,A68<Onderwerpen!$D$21),A68-17,IF(AND(A68>Onderwerpen!$D$21,A68<Onderwerpen!$D$22),A68-18,IF(A68>Onderwerpen!$D$22,A68-19,"X"))))))))))))))))))))),"")))))))))))))))))))) -> 54 | D68: =IF(B68="",""&C68,LEFT(B68, FIND(" ",B68)-1) & "."&COUNTIF($B$8:B68,B68)) -> 7.2 | E68: Is de refter voldoende uitgerust?
A69: =IFERROR(IF(A68=Onderwerpen!$C$23+19,"",A68+1),"") -> 61 | B69: =IF(C69<=Onderwerpen!$C$4,Onderwerpen!$A$4,IF(C69<=Onderwerpen!$C$5,Onderwerpen!$A$5,IF(C69<=Onderwerpen!$C$6,Onderwerpen!$A$6,IF(C69<=Onderwerpen!$C$7,Onderwerpen!$A$7,IF(C69<=Onderwerpen!$C$8,Onderwerpen!$A$8,IF(C69<=Onderwerpen!$C$9,Onderwerpen!$A$9,IF(C69<=Onderwerpen!C$10,Onderwerpen!$A$10,IF(C69<=Onderwerpen!C$11,Onderwerpen!$A$11,IF(C69<=Onderwerpen!C$12,Onderwerpen!$A$12,IF(C69<=Onderwerpen!C$13,Onderwerpen!$A$13,IF(C69<=Onderwerpen!$C$14,Onderwerpen!$A$14,IF(C69<=Onderwerpen!$C$15,Onderwerpen!$A$15,IF(C69<=Onderwerpen!$C$16,Onderwerpen!$A$16,IF(C69<=Onderwerpen!$C$17,Onderwerpen!$A$17,IF(C69<=Onderwerpen!$C$18,Onderwerpen!$A$18,IF(C69<=Onderwerpen!$C$19,Onderwerpen!$A$19,IF(C69<=Onderwerpen!$C$20,Onderwerpen!$A$20,IF(C69<=Onderwerpen!$C$21,Onderwerpen!$A$21,IF(C69<=Onderwerpen!$C$22,Onderwerpen!$A$22,IF(C69<=Onderwerpen!$C$23,Onderwerpen!$A$22,"")))))))))))))))))))) -> 7 Sociale ruimten | C69: =IF(Onderwerpen!$B$4+1=A69,Onderwerpen!$A$5,IF(SUM(Onderwerpen!$B$4:$B$5)+2=A69,Onderwerpen!$A$6,IF(SUM(Onderwerpen!$B$4:$B$6)+3=A69,Onderwerpen!$A$7,IF(SUM(Onderwerpen!$B$4:$B$7)+4=A69,Onderwerpen!$A$8,IF(SUM(Onderwerpen!$B$4:$B$8)+5=A69,Onderwerpen!$A$9,IF(SUM(Onderwerpen!$B$4:$B$9)+6=A69,Onderwerpen!$A$10,IF(SUM(Onderwerpen!$B$4:$B$10)+7=A69,Onderwerpen!$A$11,IF(SUM(Onderwerpen!$B$4:$B$11)+8=A69,Onderwerpen!$A$12,IF(SUM(Onderwerpen!$B$4:$B$12)+9=A69,Onderwerpen!$A$13,IF(SUM(Onderwerpen!$B$4:$B$13)+10=A69,Onderwerpen!$A$14,IF(SUM(Onderwerpen!$B$4:$B$14)+11=A69,Onderwerpen!$A$15,IF(SUM(Onderwerpen!$B$4:$B$15)+12=A69,Onderwerpen!$A$16,IF(SUM(Onderwerpen!$B$4:$B$16)+13=A69,Onderwerpen!$A$17,IF(SUM(Onderwerpen!$B$4:$B$17)+14=A69,Onderwerpen!$A$18,IF(SUM(Onderwerpen!$B$4:$B$18)+15=A69,Onderwerpen!$A$19,IF(SUM(Onderwerpen!$B$4:$B$19)+16=A69,Onderwerpen!$A$20,IF(SUM(Onderwerpen!$B$4:$B$20)+17=A69,Onderwerpen!$A$21,IF(SUM(Onderwerpen!$B$4:$B$21)+18=A69,Onderwerpen!$A$22,IF(SUM(Onderwerpen!$B$4:$B$22)+19=A69,Onderwerpen!$A$23,IFERROR((IF(A69<Onderwerpen!$D$4,A69,IF(AND(A69>Onderwerpen!$D$4,A69<Onderwerpen!$D$5),A69-1,IF(AND(A69>Onderwerpen!$D$5,A69<Onderwerpen!$D$6),A69-2,IF(AND(A69>Onderwerpen!$D$6,A69<Onderwerpen!$D$7),A69-3,IF(AND(A69>Onderwerpen!$D$7,A69<Onderwerpen!$D$8),A69-4,IF(AND(A69>Onderwerpen!$D$8,A69<Onderwerpen!$D$9),A69-5,IF(AND(A69>Onderwerpen!$D$9,A69<Onderwerpen!$D$10),A69-6,IF(AND(A69>Onderwerpen!$D$10,A69<Onderwerpen!$D$11),A69-7,IF(AND(A69>Onderwerpen!$D$11,A69<Onderwerpen!$D$12),A69-8,IF(AND(A69>Onderwerpen!$D$12,A69<Onderwerpen!$D$13),A69-9,IF(AND(A69>Onderwerpen!$D$13,A69<Onderwerpen!$D$14),A69-10,IF(AND(A69>Onderwerpen!$D$14,A69<Onderwerpen!$D$15),A69-11,IF(AND(A69>Onderwerpen!$D$15,A69<Onderwerpen!$D$16),A69-12,IF(AND(A69>Onderwerpen!$D$16,A69<Onderwerpen!$D$17),A69-13,IF(AND(A69>Onderwerpen!$D$17,A69<Onderwerpen!$D$18),A69-14,IF(AND(A69>Onderwerpen!$D$18,A69<Onderwerpen!$D$19),A69-15,IF(AND(A69>Onderwerpen!$D$19,A69<Onderwerpen!$D$20),A69-16,IF(AND(A69>Onderwerpen!$D$20,A69<Onderwerpen!$D$21),A69-17,IF(AND(A69>Onderwerpen!$D$21,A69<Onderwerpen!$D$22),A69-18,IF(A69>Onderwerpen!$D$22,A69-19,"X"))))))))))))))))))))),"")))))))))))))))))))) -> 55 | D69: =IF(B69="",""&C69,LEFT(B69, FIND(" ",B69)-1) & "."&COUNTIF($B$8:B69,B69)) -> 7.3 | E69: Is er een eetverbod in de werkplaats, op de werkpost?
A70: =IFERROR(IF(A69=Onderwerpen!$C$23+19,"",A69+1),"") -> 62 | B70: =IF(C70<=Onderwerpen!$C$4,Onderwerpen!$A$4,IF(C70<=Onderwerpen!$C$5,Onderwerpen!$A$5,IF(C70<=Onderwerpen!$C$6,Onderwerpen!$A$6,IF(C70<=Onderwerpen!$C$7,Onderwerpen!$A$7,IF(C70<=Onderwerpen!$C$8,Onderwerpen!$A$8,IF(C70<=Onderwerpen!$C$9,Onderwerpen!$A$9,IF(C70<=Onderwerpen!C$10,Onderwerpen!$A$10,IF(C70<=Onderwerpen!C$11,Onderwerpen!$A$11,IF(C70<=Onderwerpen!C$12,Onderwerpen!$A$12,IF(C70<=Onderwerpen!C$13,Onderwerpen!$A$13,IF(C70<=Onderwerpen!$C$14,Onderwerpen!$A$14,IF(C70<=Onderwerpen!$C$15,Onderwerpen!$A$15,IF(C70<=Onderwerpen!$C$16,Onderwerpen!$A$16,IF(C70<=Onderwerpen!$C$17,Onderwerpen!$A$17,IF(C70<=Onderwerpen!$C$18,Onderwerpen!$A$18,IF(C70<=Onderwerpen!$C$19,Onderwerpen!$A$19,IF(C70<=Onderwerpen!$C$20,Onderwerpen!$A$20,IF(C70<=Onderwerpen!$C$21,Onderwerpen!$A$21,IF(C70<=Onderwerpen!$C$22,Onderwerpen!$A$22,IF(C70<=Onderwerpen!$C$23,Onderwerpen!$A$22,"")))))))))))))))))))) -> 7 Sociale ruimten | C70: =IF(Onderwerpen!$B$4+1=A70,Onderwerpen!$A$5,IF(SUM(Onderwerpen!$B$4:$B$5)+2=A70,Onderwerpen!$A$6,IF(SUM(Onderwerpen!$B$4:$B$6)+3=A70,Onderwerpen!$A$7,IF(SUM(Onderwerpen!$B$4:$B$7)+4=A70,Onderwerpen!$A$8,IF(SUM(Onderwerpen!$B$4:$B$8)+5=A70,Onderwerpen!$A$9,IF(SUM(Onderwerpen!$B$4:$B$9)+6=A70,Onderwerpen!$A$10,IF(SUM(Onderwerpen!$B$4:$B$10)+7=A70,Onderwerpen!$A$11,IF(SUM(Onderwerpen!$B$4:$B$11)+8=A70,Onderwerpen!$A$12,IF(SUM(Onderwerpen!$B$4:$B$12)+9=A70,Onderwerpen!$A$13,IF(SUM(Onderwerpen!$B$4:$B$13)+10=A70,Onderwerpen!$A$14,IF(SUM(Onderwerpen!$B$4:$B$14)+11=A70,Onderwerpen!$A$15,IF(SUM(Onderwerpen!$B$4:$B$15)+12=A70,Onderwerpen!$A$16,IF(SUM(Onderwerpen!$B$4:$B$16)+13=A70,Onderwerpen!$A$17,IF(SUM(Onderwerpen!$B$4:$B$17)+14=A70,Onderwerpen!$A$18,IF(SUM(Onderwerpen!$B$4:$B$18)+15=A70,Onderwerpen!$A$19,IF(SUM(Onderwerpen!$B$4:$B$19)+16=A70,Onderwerpen!$A$20,IF(SUM(Onderwerpen!$B$4:$B$20)+17=A70,Onderwerpen!$A$21,IF(SUM(Onderwerpen!$B$4:$B$21)+18=A70,Onderwerpen!$A$22,IF(SUM(Onderwerpen!$B$4:$B$22)+19=A70,Onderwerpen!$A$23,IFERROR((IF(A70<Onderwerpen!$D$4,A70,IF(AND(A70>Onderwerpen!$D$4,A70<Onderwerpen!$D$5),A70-1,IF(AND(A70>Onderwerpen!$D$5,A70<Onderwerpen!$D$6),A70-2,IF(AND(A70>Onderwerpen!$D$6,A70<Onderwerpen!$D$7),A70-3,IF(AND(A70>Onderwerpen!$D$7,A70<Onderwerpen!$D$8),A70-4,IF(AND(A70>Onderwerpen!$D$8,A70<Onderwerpen!$D$9),A70-5,IF(AND(A70>Onderwerpen!$D$9,A70<Onderwerpen!$D$10),A70-6,IF(AND(A70>Onderwerpen!$D$10,A70<Onderwerpen!$D$11),A70-7,IF(AND(A70>Onderwerpen!$D$11,A70<Onderwerpen!$D$12),A70-8,IF(AND(A70>Onderwerpen!$D$12,A70<Onderwerpen!$D$13),A70-9,IF(AND(A70>Onderwerpen!$D$13,A70<Onderwerpen!$D$14),A70-10,IF(AND(A70>Onderwerpen!$D$14,A70<Onderwerpen!$D$15),A70-11,IF(AND(A70>Onderwerpen!$D$15,A70<Onderwerpen!$D$16),A70-12,IF(AND(A70>Onderwerpen!$D$16,A70<Onderwerpen!$D$17),A70-13,IF(AND(A70>Onderwerpen!$D$17,A70<Onderwerpen!$D$18),A70-14,IF(AND(A70>Onderwerpen!$D$18,A70<Onderwerpen!$D$19),A70-15,IF(AND(A70>Onderwerpen!$D$19,A70<Onderwerpen!$D$20),A70-16,IF(AND(A70>Onderwerpen!$D$20,A70<Onderwerpen!$D$21),A70-17,IF(AND(A70>Onderwerpen!$D$21,A70<Onderwerpen!$D$22),A70-18,IF(A70>Onderwerpen!$D$22,A70-19,"X"))))))))))))))))))))),"")))))))))))))))))))) -> 56 | D70: =IF(B70="",""&C70,LEFT(B70, FIND(" ",B70)-1) & "."&COUNTIF($B$8:B70,B70)) -> 7.4 | E70: Is er voldoende kleedruimte beschikbaar?
A71: =IFERROR(IF(A70=Onderwerpen!$C$23+19,"",A70+1),"") -> 63 | B71: =IF(C71<=Onderwerpen!$C$4,Onderwerpen!$A$4,IF(C71<=Onderwerpen!$C$5,Onderwerpen!$A$5,IF(C71<=Onderwerpen!$C$6,Onderwerpen!$A$6,IF(C71<=Onderwerpen!$C$7,Onderwerpen!$A$7,IF(C71<=Onderwerpen!$C$8,Onderwerpen!$A$8,IF(C71<=Onderwerpen!$C$9,Onderwerpen!$A$9,IF(C71<=Onderwerpen!C$10,Onderwerpen!$A$10,IF(C71<=Onderwerpen!C$11,Onderwerpen!$A$11,IF(C71<=Onderwerpen!C$12,Onderwerpen!$A$12,IF(C71<=Onderwerpen!C$13,Onderwerpen!$A$13,IF(C71<=Onderwerpen!$C$14,Onderwerpen!$A$14,IF(C71<=Onderwerpen!$C$15,Onderwerpen!$A$15,IF(C71<=Onderwerpen!$C$16,Onderwerpen!$A$16,IF(C71<=Onderwerpen!$C$17,Onderwerpen!$A$17,IF(C71<=Onderwerpen!$C$18,Onderwerpen!$A$18,IF(C71<=Onderwerpen!$C$19,Onderwerpen!$A$19,IF(C71<=Onderwerpen!$C$20,Onderwerpen!$A$20,IF(C71<=Onderwerpen!$C$21,Onderwerpen!$A$21,IF(C71<=Onderwerpen!$C$22,Onderwerpen!$A$22,IF(C71<=Onderwerpen!$C$23,Onderwerpen!$A$22,"")))))))))))))))))))) -> 7 Sociale ruimten | C71: =IF(Onderwerpen!$B$4+1=A71,Onderwerpen!$A$5,IF(SUM(Onderwerpen!$B$4:$B$5)+2=A71,Onderwerpen!$A$6,IF(SUM(Onderwerpen!$B$4:$B$6)+3=A71,Onderwerpen!$A$7,IF(SUM(Onderwerpen!$B$4:$B$7)+4=A71,Onderwerpen!$A$8,IF(SUM(Onderwerpen!$B$4:$B$8)+5=A71,Onderwerpen!$A$9,IF(SUM(Onderwerpen!$B$4:$B$9)+6=A71,Onderwerpen!$A$10,IF(SUM(Onderwerpen!$B$4:$B$10)+7=A71,Onderwerpen!$A$11,IF(SUM(Onderwerpen!$B$4:$B$11)+8=A71,Onderwerpen!$A$12,IF(SUM(Onderwerpen!$B$4:$B$12)+9=A71,Onderwerpen!$A$13,IF(SUM(Onderwerpen!$B$4:$B$13)+10=A71,Onderwerpen!$A$14,IF(SUM(Onderwerpen!$B$4:$B$14)+11=A71,Onderwerpen!$A$15,IF(SUM(Onderwerpen!$B$4:$B$15)+12=A71,Onderwerpen!$A$16,IF(SUM(Onderwerpen!$B$4:$B$16)+13=A71,Onderwerpen!$A$17,IF(SUM(Onderwerpen!$B$4:$B$17)+14=A71,Onderwerpen!$A$18,IF(SUM(Onderwerpen!$B$4:$B$18)+15=A71,Onderwerpen!$A$19,IF(SUM(Onderwerpen!$B$4:$B$19)+16=A71,Onderwerpen!$A$20,IF(SUM(Onderwerpen!$B$4:$B$20)+17=A71,Onderwerpen!$A$21,IF(SUM(Onderwerpen!$B$4:$B$21)+18=A71,Onderwerpen!$A$22,IF(SUM(Onderwerpen!$B$4:$B$22)+19=A71,Onderwerpen!$A$23,IFERROR((IF(A71<Onderwerpen!$D$4,A71,IF(AND(A71>Onderwerpen!$D$4,A71<Onderwerpen!$D$5),A71-1,IF(AND(A71>Onderwerpen!$D$5,A71<Onderwerpen!$D$6),A71-2,IF(AND(A71>Onderwerpen!$D$6,A71<Onderwerpen!$D$7),A71-3,IF(AND(A71>Onderwerpen!$D$7,A71<Onderwerpen!$D$8),A71-4,IF(AND(A71>Onderwerpen!$D$8,A71<Onderwerpen!$D$9),A71-5,IF(AND(A71>Onderwerpen!$D$9,A71<Onderwerpen!$D$10),A71-6,IF(AND(A71>Onderwerpen!$D$10,A71<Onderwerpen!$D$11),A71-7,IF(AND(A71>Onderwerpen!$D$11,A71<Onderwerpen!$D$12),A71-8,IF(AND(A71>Onderwerpen!$D$12,A71<Onderwerpen!$D$13),A71-9,IF(AND(A71>Onderwerpen!$D$13,A71<Onderwerpen!$D$14),A71-10,IF(AND(A71>Onderwerpen!$D$14,A71<Onderwerpen!$D$15),A71-11,IF(AND(A71>Onderwerpen!$D$15,A71<Onderwerpen!$D$16),A71-12,IF(AND(A71>Onderwerpen!$D$16,A71<Onderwerpen!$D$17),A71-13,IF(AND(A71>Onderwerpen!$D$17,A71<Onderwerpen!$D$18),A71-14,IF(AND(A71>Onderwerpen!$D$18,A71<Onderwerpen!$D$19),A71-15,IF(AND(A71>Onderwerpen!$D$19,A71<Onderwerpen!$D$20),A71-16,IF(AND(A71>Onderwerpen!$D$20,A71<Onderwerpen!$D$21),A71-17,IF(AND(A71>Onderwerpen!$D$21,A71<Onderwerpen!$D$22),A71-18,IF(A71>Onderwerpen!$D$22,A71-19,"X"))))))))))))))))))))),"")))))))))))))))))))) -> 57 | D71: =IF(B71="",""&C71,LEFT(B71, FIND(" ",B71)-1) & "."&COUNTIF($B$8:B71,B71)) -> 7.5 | E71: Zijn er voldoende toiletten voor mannen en vrouwen?
A72: =IFERROR(IF(A71=Onderwerpen!$C$23+19,"",A71+1),"") -> 64 | B72: =IF(C72<=Onderwerpen!$C$4,Onderwerpen!$A$4,IF(C72<=Onderwerpen!$C$5,Onderwerpen!$A$5,IF(C72<=Onderwerpen!$C$6,Onderwerpen!$A$6,IF(C72<=Onderwerpen!$C$7,Onderwerpen!$A$7,IF(C72<=Onderwerpen!$C$8,Onderwerpen!$A$8,IF(C72<=Onderwerpen!$C$9,Onderwerpen!$A$9,IF(C72<=Onderwerpen!C$10,Onderwerpen!$A$10,IF(C72<=Onderwerpen!C$11,Onderwerpen!$A$11,IF(C72<=Onderwerpen!C$12,Onderwerpen!$A$12,IF(C72<=Onderwerpen!C$13,Onderwerpen!$A$13,IF(C72<=Onderwerpen!$C$14,Onderwerpen!$A$14,IF(C72<=Onderwerpen!$C$15,Onderwerpen!$A$15,IF(C72<=Onderwerpen!$C$16,Onderwerpen!$A$16,IF(C72<=Onderwerpen!$C$17,Onderwerpen!$A$17,IF(C72<=Onderwerpen!$C$18,Onderwerpen!$A$18,IF(C72<=Onderwerpen!$C$19,Onderwerpen!$A$19,IF(C72<=Onderwerpen!$C$20,Onderwerpen!$A$20,IF(C72<=Onderwerpen!$C$21,Onderwerpen!$A$21,IF(C72<=Onderwerpen!$C$22,Onderwerpen!$A$22,IF(C72<=Onderwerpen!$C$23,Onderwerpen!$A$22,"")))))))))))))))))))) -> 7 Sociale ruimten | C72: =IF(Onderwerpen!$B$4+1=A72,Onderwerpen!$A$5,IF(SUM(Onderwerpen!$B$4:$B$5)+2=A72,Onderwerpen!$A$6,IF(SUM(Onderwerpen!$B$4:$B$6)+3=A72,Onderwerpen!$A$7,IF(SUM(Onderwerpen!$B$4:$B$7)+4=A72,Onderwerpen!$A$8,IF(SUM(Onderwerpen!$B$4:$B$8)+5=A72,Onderwerpen!$A$9,IF(SUM(Onderwerpen!$B$4:$B$9)+6=A72,Onderwerpen!$A$10,IF(SUM(Onderwerpen!$B$4:$B$10)+7=A72,Onderwerpen!$A$11,IF(SUM(Onderwerpen!$B$4:$B$11)+8=A72,Onderwerpen!$A$12,IF(SUM(Onderwerpen!$B$4:$B$12)+9=A72,Onderwerpen!$A$13,IF(SUM(Onderwerpen!$B$4:$B$13)+10=A72,Onderwerpen!$A$14,IF(SUM(Onderwerpen!$B$4:$B$14)+11=A72,Onderwerpen!$A$15,IF(SUM(Onderwerpen!$B$4:$B$15)+12=A72,Onderwerpen!$A$16,IF(SUM(Onderwerpen!$B$4:$B$16)+13=A72,Onderwerpen!$A$17,IF(SUM(Onderwerpen!$B$4:$B$17)+14=A72,Onderwerpen!$A$18,IF(SUM(Onderwerpen!$B$4:$B$18)+15=A72,Onderwerpen!$A$19,IF(SUM(Onderwerpen!$B$4:$B$19)+16=A72,Onderwerpen!$A$20,IF(SUM(Onderwerpen!$B$4:$B$20)+17=A72,Onderwerpen!$A$21,IF(SUM(Onderwerpen!$B$4:$B$21)+18=A72,Onderwerpen!$A$22,IF(SUM(Onderwerpen!$B$4:$B$22)+19=A72,Onderwerpen!$A$23,IFERROR((IF(A72<Onderwerpen!$D$4,A72,IF(AND(A72>Onderwerpen!$D$4,A72<Onderwerpen!$D$5),A72-1,IF(AND(A72>Onderwerpen!$D$5,A72<Onderwerpen!$D$6),A72-2,IF(AND(A72>Onderwerpen!$D$6,A72<Onderwerpen!$D$7),A72-3,IF(AND(A72>Onderwerpen!$D$7,A72<Onderwerpen!$D$8),A72-4,IF(AND(A72>Onderwerpen!$D$8,A72<Onderwerpen!$D$9),A72-5,IF(AND(A72>Onderwerpen!$D$9,A72<Onderwerpen!$D$10),A72-6,IF(AND(A72>Onderwerpen!$D$10,A72<Onderwerpen!$D$11),A72-7,IF(AND(A72>Onderwerpen!$D$11,A72<Onderwerpen!$D$12),A72-8,IF(AND(A72>Onderwerpen!$D$12,A72<Onderwerpen!$D$13),A72-9,IF(AND(A72>Onderwerpen!$D$13,A72<Onderwerpen!$D$14),A72-10,IF(AND(A72>Onderwerpen!$D$14,A72<Onderwerpen!$D$15),A72-11,IF(AND(A72>Onderwerpen!$D$15,A72<Onderwerpen!$D$16),A72-12,IF(AND(A72>Onderwerpen!$D$16,A72<Onderwerpen!$D$17),A72-13,IF(AND(A72>Onderwerpen!$D$17,A72<Onderwerpen!$D$18),A72-14,IF(AND(A72>Onderwerpen!$D$18,A72<Onderwerpen!$D$19),A72-15,IF(AND(A72>Onderwerpen!$D$19,A72<Onderwerpen!$D$20),A72-16,IF(AND(A72>Onderwerpen!$D$20,A72<Onderwerpen!$D$21),A72-17,IF(AND(A72>Onderwerpen!$D$21,A72<Onderwerpen!$D$22),A72-18,IF(A72>Onderwerpen!$D$22,A72-19,"X"))))))))))))))))))))),"")))))))))))))))))))) -> 58 | D72: =IF(B72="",""&C72,LEFT(B72, FIND(" ",B72)-1) & "."&COUNTIF($B$8:B72,B72)) -> 7.6 | E72: Zijn de toiletten afgescheiden van de werkplaats?
A73: =IFERROR(IF(A72=Onderwerpen!$C$23+19,"",A72+1),"") -> 65 | B73: =IF(C73<=Onderwerpen!$C$4,Onderwerpen!$A$4,IF(C73<=Onderwerpen!$C$5,Onderwerpen!$A$5,IF(C73<=Onderwerpen!$C$6,Onderwerpen!$A$6,IF(C73<=Onderwerpen!$C$7,Onderwerpen!$A$7,IF(C73<=Onderwerpen!$C$8,Onderwerpen!$A$8,IF(C73<=Onderwerpen!$C$9,Onderwerpen!$A$9,IF(C73<=Onderwerpen!C$10,Onderwerpen!$A$10,IF(C73<=Onderwerpen!C$11,Onderwerpen!$A$11,IF(C73<=Onderwerpen!C$12,Onderwerpen!$A$12,IF(C73<=Onderwerpen!C$13,Onderwerpen!$A$13,IF(C73<=Onderwerpen!$C$14,Onderwerpen!$A$14,IF(C73<=Onderwerpen!$C$15,Onderwerpen!$A$15,IF(C73<=Onderwerpen!$C$16,Onderwerpen!$A$16,IF(C73<=Onderwerpen!$C$17,Onderwerpen!$A$17,IF(C73<=Onderwerpen!$C$18,Onderwerpen!$A$18,IF(C73<=Onderwerpen!$C$19,Onderwerpen!$A$19,IF(C73<=Onderwerpen!$C$20,Onderwerpen!$A$20,IF(C73<=Onderwerpen!$C$21,Onderwerpen!$A$21,IF(C73<=Onderwerpen!$C$22,Onderwerpen!$A$22,IF(C73<=Onderwerpen!$C$23,Onderwerpen!$A$22,"")))))))))))))))))))) -> 7 Sociale ruimten | C73: =IF(Onderwerpen!$B$4+1=A73,Onderwerpen!$A$5,IF(SUM(Onderwerpen!$B$4:$B$5)+2=A73,Onderwerpen!$A$6,IF(SUM(Onderwerpen!$B$4:$B$6)+3=A73,Onderwerpen!$A$7,IF(SUM(Onderwerpen!$B$4:$B$7)+4=A73,Onderwerpen!$A$8,IF(SUM(Onderwerpen!$B$4:$B$8)+5=A73,Onderwerpen!$A$9,IF(SUM(Onderwerpen!$B$4:$B$9)+6=A73,Onderwerpen!$A$10,IF(SUM(Onderwerpen!$B$4:$B$10)+7=A73,Onderwerpen!$A$11,IF(SUM(Onderwerpen!$B$4:$B$11)+8=A73,Onderwerpen!$A$12,IF(SUM(Onderwerpen!$B$4:$B$12)+9=A73,Onderwerpen!$A$13,IF(SUM(Onderwerpen!$B$4:$B$13)+10=A73,Onderwerpen!$A$14,IF(SUM(Onderwerpen!$B$4:$B$14)+11=A73,Onderwerpen!$A$15,IF(SUM(Onderwerpen!$B$4:$B$15)+12=A73,Onderwerpen!$A$16,IF(SUM(Onderwerpen!$B$4:$B$16)+13=A73,Onderwerpen!$A$17,IF(SUM(Onderwerpen!$B$4:$B$17)+14=A73,Onderwerpen!$A$18,IF(SUM(Onderwerpen!$B$4:$B$18)+15=A73,Onderwerpen!$A$19,IF(SUM(Onderwerpen!$B$4:$B$19)+16=A73,Onderwerpen!$A$20,IF(SUM(Onderwerpen!$B$4:$B$20)+17=A73,Onderwerpen!$A$21,IF(SUM(Onderwerpen!$B$4:$B$21)+18=A73,Onderwerpen!$A$22,IF(SUM(Onderwerpen!$B$4:$B$22)+19=A73,Onderwerpen!$A$23,IFERROR((IF(A73<Onderwerpen!$D$4,A73,IF(AND(A73>Onderwerpen!$D$4,A73<Onderwerpen!$D$5),A73-1,IF(AND(A73>Onderwerpen!$D$5,A73<Onderwerpen!$D$6),A73-2,IF(AND(A73>Onderwerpen!$D$6,A73<Onderwerpen!$D$7),A73-3,IF(AND(A73>Onderwerpen!$D$7,A73<Onderwerpen!$D$8),A73-4,IF(AND(A73>Onderwerpen!$D$8,A73<Onderwerpen!$D$9),A73-5,IF(AND(A73>Onderwerpen!$D$9,A73<Onderwerpen!$D$10),A73-6,IF(AND(A73>Onderwerpen!$D$10,A73<Onderwerpen!$D$11),A73-7,IF(AND(A73>Onderwerpen!$D$11,A73<Onderwerpen!$D$12),A73-8,IF(AND(A73>Onderwerpen!$D$12,A73<Onderwerpen!$D$13),A73-9,IF(AND(A73>Onderwerpen!$D$13,A73<Onderwerpen!$D$14),A73-10,IF(AND(A73>Onderwerpen!$D$14,A73<Onderwerpen!$D$15),A73-11,IF(AND(A73>Onderwerpen!$D$15,A73<Onderwerpen!$D$16),A73-12,IF(AND(A73>Onderwerpen!$D$16,A73<Onderwerpen!$D$17),A73-13,IF(AND(A73>Onderwerpen!$D$17,A73<Onderwerpen!$D$18),A73-14,IF(AND(A73>Onderwerpen!$D$18,A73<Onderwerpen!$D$19),A73-15,IF(AND(A73>Onderwerpen!$D$19,A73<Onderwerpen!$D$20),A73-16,IF(AND(A73>Onderwerpen!$D$20,A73<Onderwerpen!$D$21),A73-17,IF(AND(A73>Onderwerpen!$D$21,A73<Onderwerpen!$D$22),A73-18,IF(A73>Onderwerpen!$D$22,A73-19,"X"))))))))))))))))))))),"")))))))))))))))))))) -> 59 | D73: =IF(B73="",""&C73,LEFT(B73, FIND(" ",B73)-1) & "."&COUNTIF($B$8:B73,B73)) -> 7.7 | E73: Zijn de sociale ruimtes goed onderhouden?
A74: =IFERROR(IF(A73=Onderwerpen!$C$23+19,"",A73+1),"") -> 66 | B74: =IF(C74<=Onderwerpen!$C$4,Onderwerpen!$A$4,IF(C74<=Onderwerpen!$C$5,Onderwerpen!$A$5,IF(C74<=Onderwerpen!$C$6,Onderwerpen!$A$6,IF(C74<=Onderwerpen!$C$7,Onderwerpen!$A$7,IF(C74<=Onderwerpen!$C$8,Onderwerpen!$A$8,IF(C74<=Onderwerpen!$C$9,Onderwerpen!$A$9,IF(C74<=Onderwerpen!C$10,Onderwerpen!$A$10,IF(C74<=Onderwerpen!C$11,Onderwerpen!$A$11,IF(C74<=Onderwerpen!C$12,Onderwerpen!$A$12,IF(C74<=Onderwerpen!C$13,Onderwerpen!$A$13,IF(C74<=Onderwerpen!$C$14,Onderwerpen!$A$14,IF(C74<=Onderwerpen!$C$15,Onderwerpen!$A$15,IF(C74<=Onderwerpen!$C$16,Onderwerpen!$A$16,IF(C74<=Onderwerpen!$C$17,Onderwerpen!$A$17,IF(C74<=Onderwerpen!$C$18,Onderwerpen!$A$18,IF(C74<=Onderwerpen!$C$19,Onderwerpen!$A$19,IF(C74<=Onderwerpen!$C$20,Onderwerpen!$A$20,IF(C74<=Onderwerpen!$C$21,Onderwerpen!$A$21,IF(C74<=Onderwerpen!$C$22,Onderwerpen!$A$22,IF(C74<=Onderwerpen!$C$23,Onderwerpen!$A$22,"")))))))))))))))))))) ->  | C74: =IF(Onderwerpen!$B$4+1=A74,Onderwerpen!$A$5,IF(SUM(Onderwerpen!$B$4:$B$5)+2=A74,Onderwerpen!$A$6,IF(SUM(Onderwerpen!$B$4:$B$6)+3=A74,Onderwerpen!$A$7,IF(SUM(Onderwerpen!$B$4:$B$7)+4=A74,Onderwerpen!$A$8,IF(SUM(Onderwerpen!$B$4:$B$8)+5=A74,Onderwerpen!$A$9,IF(SUM(Onderwerpen!$B$4:$B$9)+6=A74,Onderwerpen!$A$10,IF(SUM(Onderwerpen!$B$4:$B$10)+7=A74,Onderwerpen!$A$11,IF(SUM(Onderwerpen!$B$4:$B$11)+8=A74,Onderwerpen!$A$12,IF(SUM(Onderwerpen!$B$4:$B$12)+9=A74,Onderwerpen!$A$13,IF(SUM(Onderwerpen!$B$4:$B$13)+10=A74,Onderwerpen!$A$14,IF(SUM(Onderwerpen!$B$4:$B$14)+11=A74,Onderwerpen!$A$15,IF(SUM(Onderwerpen!$B$4:$B$15)+12=A74,Onderwerpen!$A$16,IF(SUM(Onderwerpen!$B$4:$B$16)+13=A74,Onderwerpen!$A$17,IF(SUM(Onderwerpen!$B$4:$B$17)+14=A74,Onderwerpen!$A$18,IF(SUM(Onderwerpen!$B$4:$B$18)+15=A74,Onderwerpen!$A$19,IF(SUM(Onderwerpen!$B$4:$B$19)+16=A74,Onderwerpen!$A$20,IF(SUM(Onderwerpen!$B$4:$B$20)+17=A74,Onderwerpen!$A$21,IF(SUM(Onderwerpen!$B$4:$B$21)+18=A74,Onderwerpen!$A$22,IF(SUM(Onderwerpen!$B$4:$B$22)+19=A74,Onderwerpen!$A$23,IFERROR((IF(A74<Onderwerpen!$D$4,A74,IF(AND(A74>Onderwerpen!$D$4,A74<Onderwerpen!$D$5),A74-1,IF(AND(A74>Onderwerpen!$D$5,A74<Onderwerpen!$D$6),A74-2,IF(AND(A74>Onderwerpen!$D$6,A74<Onderwerpen!$D$7),A74-3,IF(AND(A74>Onderwerpen!$D$7,A74<Onderwerpen!$D$8),A74-4,IF(AND(A74>Onderwerpen!$D$8,A74<Onderwerpen!$D$9),A74-5,IF(AND(A74>Onderwerpen!$D$9,A74<Onderwerpen!$D$10),A74-6,IF(AND(A74>Onderwerpen!$D$10,A74<Onderwerpen!$D$11),A74-7,IF(AND(A74>Onderwerpen!$D$11,A74<Onderwerpen!$D$12),A74-8,IF(AND(A74>Onderwerpen!$D$12,A74<Onderwerpen!$D$13),A74-9,IF(AND(A74>Onderwerpen!$D$13,A74<Onderwerpen!$D$14),A74-10,IF(AND(A74>Onderwerpen!$D$14,A74<Onderwerpen!$D$15),A74-11,IF(AND(A74>Onderwerpen!$D$15,A74<Onderwerpen!$D$16),A74-12,IF(AND(A74>Onderwerpen!$D$16,A74<Onderwerpen!$D$17),A74-13,IF(AND(A74>Onderwerpen!$D$17,A74<Onderwerpen!$D$18),A74-14,IF(AND(A74>Onderwerpen!$D$18,A74<Onderwerpen!$D$19),A74-15,IF(AND(A74>Onderwerpen!$D$19,A74<Onderwerpen!$D$20),A74-16,IF(AND(A74>Onderwerpen!$D$20,A74<Onderwerpen!$D$21),A74-17,IF(AND(A74>Onderwerpen!$D$21,A74<Onderwerpen!$D$22),A74-18,IF(A74>Onderwerpen!$D$22,A74-19,"X"))))))))))))))))))))),"")))))))))))))))))))) -> 8 Gevaarlijke producten | D74: =IF(B74="",""&C74,LEFT(B74, FIND(" ",B74)-1) & "."&COUNTIF($B$8:B74,B74)) -> 8 Gevaarlijke producten | J74: =IF(G74="x",D74,"") ->  | P74: =IF(M74="x",D74,"") ->  | V74: =IF(S74="x",D74,"") ->  | AB74: =IF(Y74="x",D74,"") ->  | AH74: =IF(AE74="x",D74,"") -> 
A75: =IFERROR(IF(A74=Onderwerpen!$C$23+19,"",A74+1),"") -> 67 | B75: =IF(C75<=Onderwerpen!$C$4,Onderwerpen!$A$4,IF(C75<=Onderwerpen!$C$5,Onderwerpen!$A$5,IF(C75<=Onderwerpen!$C$6,Onderwerpen!$A$6,IF(C75<=Onderwerpen!$C$7,Onderwerpen!$A$7,IF(C75<=Onderwerpen!$C$8,Onderwerpen!$A$8,IF(C75<=Onderwerpen!$C$9,Onderwerpen!$A$9,IF(C75<=Onderwerpen!C$10,Onderwerpen!$A$10,IF(C75<=Onderwerpen!C$11,Onderwerpen!$A$11,IF(C75<=Onderwerpen!C$12,Onderwerpen!$A$12,IF(C75<=Onderwerpen!C$13,Onderwerpen!$A$13,IF(C75<=Onderwerpen!$C$14,Onderwerpen!$A$14,IF(C75<=Onderwerpen!$C$15,Onderwerpen!$A$15,IF(C75<=Onderwerpen!$C$16,Onderwerpen!$A$16,IF(C75<=Onderwerpen!$C$17,Onderwerpen!$A$17,IF(C75<=Onderwerpen!$C$18,Onderwerpen!$A$18,IF(C75<=Onderwerpen!$C$19,Onderwerpen!$A$19,IF(C75<=Onderwerpen!$C$20,Onderwerpen!$A$20,IF(C75<=Onderwerpen!$C$21,Onderwerpen!$A$21,IF(C75<=Onderwerpen!$C$22,Onderwerpen!$A$22,IF(C75<=Onderwerpen!$C$23,Onderwerpen!$A$22,"")))))))))))))))))))) -> 8 Gevaarlijke producten | C75: =IF(Onderwerpen!$B$4+1=A75,Onderwerpen!$A$5,IF(SUM(Onderwerpen!$B$4:$B$5)+2=A75,Onderwerpen!$A$6,IF(SUM(Onderwerpen!$B$4:$B$6)+3=A75,Onderwerpen!$A$7,IF(SUM(Onderwerpen!$B$4:$B$7)+4=A75,Onderwerpen!$A$8,IF(SUM(Onderwerpen!$B$4:$B$8)+5=A75,Onderwerpen!$A$9,IF(SUM(Onderwerpen!$B$4:$B$9)+6=A75,Onderwerpen!$A$10,IF(SUM(Onderwerpen!$B$4:$B$10)+7=A75,Onderwerpen!$A$11,IF(SUM(Onderwerpen!$B$4:$B$11)+8=A75,Onderwerpen!$A$12,IF(SUM(Onderwerpen!$B$4:$B$12)+9=A75,Onderwerpen!$A$13,IF(SUM(Onderwerpen!$B$4:$B$13)+10=A75,Onderwerpen!$A$14,IF(SUM(Onderwerpen!$B$4:$B$14)+11=A75,Onderwerpen!$A$15,IF(SUM(Onderwerpen!$B$4:$B$15)+12=A75,Onderwerpen!$A$16,IF(SUM(Onderwerpen!$B$4:$B$16)+13=A75,Onderwerpen!$A$17,IF(SUM(Onderwerpen!$B$4:$B$17)+14=A75,Onderwerpen!$A$18,IF(SUM(Onderwerpen!$B$4:$B$18)+15=A75,Onderwerpen!$A$19,IF(SUM(Onderwerpen!$B$4:$B$19)+16=A75,Onderwerpen!$A$20,IF(SUM(Onderwerpen!$B$4:$B$20)+17=A75,Onderwerpen!$A$21,IF(SUM(Onderwerpen!$B$4:$B$21)+18=A75,Onderwerpen!$A$22,IF(SUM(Onderwerpen!$B$4:$B$22)+19=A75,Onderwerpen!$A$23,IFERROR((IF(A75<Onderwerpen!$D$4,A75,IF(AND(A75>Onderwerpen!$D$4,A75<Onderwerpen!$D$5),A75-1,IF(AND(A75>Onderwerpen!$D$5,A75<Onderwerpen!$D$6),A75-2,IF(AND(A75>Onderwerpen!$D$6,A75<Onderwerpen!$D$7),A75-3,IF(AND(A75>Onderwerpen!$D$7,A75<Onderwerpen!$D$8),A75-4,IF(AND(A75>Onderwerpen!$D$8,A75<Onderwerpen!$D$9),A75-5,IF(AND(A75>Onderwerpen!$D$9,A75<Onderwerpen!$D$10),A75-6,IF(AND(A75>Onderwerpen!$D$10,A75<Onderwerpen!$D$11),A75-7,IF(AND(A75>Onderwerpen!$D$11,A75<Onderwerpen!$D$12),A75-8,IF(AND(A75>Onderwerpen!$D$12,A75<Onderwerpen!$D$13),A75-9,IF(AND(A75>Onderwerpen!$D$13,A75<Onderwerpen!$D$14),A75-10,IF(AND(A75>Onderwerpen!$D$14,A75<Onderwerpen!$D$15),A75-11,IF(AND(A75>Onderwerpen!$D$15,A75<Onderwerpen!$D$16),A75-12,IF(AND(A75>Onderwerpen!$D$16,A75<Onderwerpen!$D$17),A75-13,IF(AND(A75>Onderwerpen!$D$17,A75<Onderwerpen!$D$18),A75-14,IF(AND(A75>Onderwerpen!$D$18,A75<Onderwerpen!$D$19),A75-15,IF(AND(A75>Onderwerpen!$D$19,A75<Onderwerpen!$D$20),A75-16,IF(AND(A75>Onderwerpen!$D$20,A75<Onderwerpen!$D$21),A75-17,IF(AND(A75>Onderwerpen!$D$21,A75<Onderwerpen!$D$22),A75-18,IF(A75>Onderwerpen!$D$22,A75-19,"X"))))))))))))))))))))),"")))))))))))))))))))) -> 60 | D75: =IF(B75="",""&C75,LEFT(B75, FIND(" ",B75)-1) & "."&COUNTIF($B$8:B75,B75)) -> 8.1 | E75: Bestaat er een inventaris van alle gevaarlijke goederen?
A76: =IFERROR(IF(A75=Onderwerpen!$C$23+19,"",A75+1),"") -> 68 | B76: =IF(C76<=Onderwerpen!$C$4,Onderwerpen!$A$4,IF(C76<=Onderwerpen!$C$5,Onderwerpen!$A$5,IF(C76<=Onderwerpen!$C$6,Onderwerpen!$A$6,IF(C76<=Onderwerpen!$C$7,Onderwerpen!$A$7,IF(C76<=Onderwerpen!$C$8,Onderwerpen!$A$8,IF(C76<=Onderwerpen!$C$9,Onderwerpen!$A$9,IF(C76<=Onderwerpen!C$10,Onderwerpen!$A$10,IF(C76<=Onderwerpen!C$11,Onderwerpen!$A$11,IF(C76<=Onderwerpen!C$12,Onderwerpen!$A$12,IF(C76<=Onderwerpen!C$13,Onderwerpen!$A$13,IF(C76<=Onderwerpen!$C$14,Onderwerpen!$A$14,IF(C76<=Onderwerpen!$C$15,Onderwerpen!$A$15,IF(C76<=Onderwerpen!$C$16,Onderwerpen!$A$16,IF(C76<=Onderwerpen!$C$17,Onderwerpen!$A$17,IF(C76<=Onderwerpen!$C$18,Onderwerpen!$A$18,IF(C76<=Onderwerpen!$C$19,Onderwerpen!$A$19,IF(C76<=Onderwerpen!$C$20,Onderwerpen!$A$20,IF(C76<=Onderwerpen!$C$21,Onderwerpen!$A$21,IF(C76<=Onderwerpen!$C$22,Onderwerpen!$A$22,IF(C76<=Onderwerpen!$C$23,Onderwerpen!$A$22,"")))))))))))))))))))) -> 8 Gevaarlijke producten | C76: =IF(Onderwerpen!$B$4+1=A76,Onderwerpen!$A$5,IF(SUM(Onderwerpen!$B$4:$B$5)+2=A76,Onderwerpen!$A$6,IF(SUM(Onderwerpen!$B$4:$B$6)+3=A76,Onderwerpen!$A$7,IF(SUM(Onderwerpen!$B$4:$B$7)+4=A76,Onderwerpen!$A$8,IF(SUM(Onderwerpen!$B$4:$B$8)+5=A76,Onderwerpen!$A$9,IF(SUM(Onderwerpen!$B$4:$B$9)+6=A76,Onderwerpen!$A$10,IF(SUM(Onderwerpen!$B$4:$B$10)+7=A76,Onderwerpen!$A$11,IF(SUM(Onderwerpen!$B$4:$B$11)+8=A76,Onderwerpen!$A$12,IF(SUM(Onderwerpen!$B$4:$B$12)+9=A76,Onderwerpen!$A$13,IF(SUM(Onderwerpen!$B$4:$B$13)+10=A76,Onderwerpen!$A$14,IF(SUM(Onderwerpen!$B$4:$B$14)+11=A76,Onderwerpen!$A$15,IF(SUM(Onderwerpen!$B$4:$B$15)+12=A76,Onderwerpen!$A$16,IF(SUM(Onderwerpen!$B$4:$B$16)+13=A76,Onderwerpen!$A$17,IF(SUM(Onderwerpen!$B$4:$B$17)+14=A76,Onderwerpen!$A$18,IF(SUM(Onderwerpen!$B$4:$B$18)+15=A76,Onderwerpen!$A$19,IF(SUM(Onderwerpen!$B$4:$B$19)+16=A76,Onderwerpen!$A$20,IF(SUM(Onderwerpen!$B$4:$B$20)+17=A76,Onderwerpen!$A$21,IF(SUM(Onderwerpen!$B$4:$B$21)+18=A76,Onderwerpen!$A$22,IF(SUM(Onderwerpen!$B$4:$B$22)+19=A76,Onderwerpen!$A$23,IFERROR((IF(A76<Onderwerpen!$D$4,A76,IF(AND(A76>Onderwerpen!$D$4,A76<Onderwerpen!$D$5),A76-1,IF(AND(A76>Onderwerpen!$D$5,A76<Onderwerpen!$D$6),A76-2,IF(AND(A76>Onderwerpen!$D$6,A76<Onderwerpen!$D$7),A76-3,IF(AND(A76>Onderwerpen!$D$7,A76<Onderwerpen!$D$8),A76-4,IF(AND(A76>Onderwerpen!$D$8,A76<Onderwerpen!$D$9),A76-5,IF(AND(A76>Onderwerpen!$D$9,A76<Onderwerpen!$D$10),A76-6,IF(AND(A76>Onderwerpen!$D$10,A76<Onderwerpen!$D$11),A76-7,IF(AND(A76>Onderwerpen!$D$11,A76<Onderwerpen!$D$12),A76-8,IF(AND(A76>Onderwerpen!$D$12,A76<Onderwerpen!$D$13),A76-9,IF(AND(A76>Onderwerpen!$D$13,A76<Onderwerpen!$D$14),A76-10,IF(AND(A76>Onderwerpen!$D$14,A76<Onderwerpen!$D$15),A76-11,IF(AND(A76>Onderwerpen!$D$15,A76<Onderwerpen!$D$16),A76-12,IF(AND(A76>Onderwerpen!$D$16,A76<Onderwerpen!$D$17),A76-13,IF(AND(A76>Onderwerpen!$D$17,A76<Onderwerpen!$D$18),A76-14,IF(AND(A76>Onderwerpen!$D$18,A76<Onderwerpen!$D$19),A76-15,IF(AND(A76>Onderwerpen!$D$19,A76<Onderwerpen!$D$20),A76-16,IF(AND(A76>Onderwerpen!$D$20,A76<Onderwerpen!$D$21),A76-17,IF(AND(A76>Onderwerpen!$D$21,A76<Onderwerpen!$D$22),A76-18,IF(A76>Onderwerpen!$D$22,A76-19,"X"))))))))))))))))))))),"")))))))))))))))))))) -> 61 | D76: =IF(B76="",""&C76,LEFT(B76, FIND(" ",B76)-1) & "."&COUNTIF($B$8:B76,B76)) -> 8.2 | E76: Heeft u van ieder gevaarlijk product een veiligheids- en gezondheidskaart? SDS's
A77: =IFERROR(IF(A76=Onderwerpen!$C$23+19,"",A76+1),"") -> 69 | B77: =IF(C77<=Onderwerpen!$C$4,Onderwerpen!$A$4,IF(C77<=Onderwerpen!$C$5,Onderwerpen!$A$5,IF(C77<=Onderwerpen!$C$6,Onderwerpen!$A$6,IF(C77<=Onderwerpen!$C$7,Onderwerpen!$A$7,IF(C77<=Onderwerpen!$C$8,Onderwerpen!$A$8,IF(C77<=Onderwerpen!$C$9,Onderwerpen!$A$9,IF(C77<=Onderwerpen!C$10,Onderwerpen!$A$10,IF(C77<=Onderwerpen!C$11,Onderwerpen!$A$11,IF(C77<=Onderwerpen!C$12,Onderwerpen!$A$12,IF(C77<=Onderwerpen!C$13,Onderwerpen!$A$13,IF(C77<=Onderwerpen!$C$14,Onderwerpen!$A$14,IF(C77<=Onderwerpen!$C$15,Onderwerpen!$A$15,IF(C77<=Onderwerpen!$C$16,Onderwerpen!$A$16,IF(C77<=Onderwerpen!$C$17,Onderwerpen!$A$17,IF(C77<=Onderwerpen!$C$18,Onderwerpen!$A$18,IF(C77<=Onderwerpen!$C$19,Onderwerpen!$A$19,IF(C77<=Onderwerpen!$C$20,Onderwerpen!$A$20,IF(C77<=Onderwerpen!$C$21,Onderwerpen!$A$21,IF(C77<=Onderwerpen!$C$22,Onderwerpen!$A$22,IF(C77<=Onderwerpen!$C$23,Onderwerpen!$A$22,"")))))))))))))))))))) -> 8 Gevaarlijke producten | C77: =IF(Onderwerpen!$B$4+1=A77,Onderwerpen!$A$5,IF(SUM(Onderwerpen!$B$4:$B$5)+2=A77,Onderwerpen!$A$6,IF(SUM(Onderwerpen!$B$4:$B$6)+3=A77,Onderwerpen!$A$7,IF(SUM(Onderwerpen!$B$4:$B$7)+4=A77,Onderwerpen!$A$8,IF(SUM(Onderwerpen!$B$4:$B$8)+5=A77,Onderwerpen!$A$9,IF(SUM(Onderwerpen!$B$4:$B$9)+6=A77,Onderwerpen!$A$10,IF(SUM(Onderwerpen!$B$4:$B$10)+7=A77,Onderwerpen!$A$11,IF(SUM(Onderwerpen!$B$4:$B$11)+8=A77,Onderwerpen!$A$12,IF(SUM(Onderwerpen!$B$4:$B$12)+9=A77,Onderwerpen!$A$13,IF(SUM(Onderwerpen!$B$4:$B$13)+10=A77,Onderwerpen!$A$14,IF(SUM(Onderwerpen!$B$4:$B$14)+11=A77,Onderwerpen!$A$15,IF(SUM(Onderwerpen!$B$4:$B$15)+12=A77,Onderwerpen!$A$16,IF(SUM(Onderwerpen!$B$4:$B$16)+13=A77,Onderwerpen!$A$17,IF(SUM(Onderwerpen!$B$4:$B$17)+14=A77,Onderwerpen!$A$18,IF(SUM(Onderwerpen!$B$4:$B$18)+15=A77,Onderwerpen!$A$19,IF(SUM(Onderwerpen!$B$4:$B$19)+16=A77,Onderwerpen!$A$20,IF(SUM(Onderwerpen!$B$4:$B$20)+17=A77,Onderwerpen!$A$21,IF(SUM(Onderwerpen!$B$4:$B$21)+18=A77,Onderwerpen!$A$22,IF(SUM(Onderwerpen!$B$4:$B$22)+19=A77,Onderwerpen!$A$23,IFERROR((IF(A77<Onderwerpen!$D$4,A77,IF(AND(A77>Onderwerpen!$D$4,A77<Onderwerpen!$D$5),A77-1,IF(AND(A77>Onderwerpen!$D$5,A77<Onderwerpen!$D$6),A77-2,IF(AND(A77>Onderwerpen!$D$6,A77<Onderwerpen!$D$7),A77-3,IF(AND(A77>Onderwerpen!$D$7,A77<Onderwerpen!$D$8),A77-4,IF(AND(A77>Onderwerpen!$D$8,A77<Onderwerpen!$D$9),A77-5,IF(AND(A77>Onderwerpen!$D$9,A77<Onderwerpen!$D$10),A77-6,IF(AND(A77>Onderwerpen!$D$10,A77<Onderwerpen!$D$11),A77-7,IF(AND(A77>Onderwerpen!$D$11,A77<Onderwerpen!$D$12),A77-8,IF(AND(A77>Onderwerpen!$D$12,A77<Onderwerpen!$D$13),A77-9,IF(AND(A77>Onderwerpen!$D$13,A77<Onderwerpen!$D$14),A77-10,IF(AND(A77>Onderwerpen!$D$14,A77<Onderwerpen!$D$15),A77-11,IF(AND(A77>Onderwerpen!$D$15,A77<Onderwerpen!$D$16),A77-12,IF(AND(A77>Onderwerpen!$D$16,A77<Onderwerpen!$D$17),A77-13,IF(AND(A77>Onderwerpen!$D$17,A77<Onderwerpen!$D$18),A77-14,IF(AND(A77>Onderwerpen!$D$18,A77<Onderwerpen!$D$19),A77-15,IF(AND(A77>Onderwerpen!$D$19,A77<Onderwerpen!$D$20),A77-16,IF(AND(A77>Onderwerpen!$D$20,A77<Onderwerpen!$D$21),A77-17,IF(AND(A77>Onderwerpen!$D$21,A77<Onderwerpen!$D$22),A77-18,IF(A77>Onderwerpen!$D$22,A77-19,"X"))))))))))))))))))))),"")))))))))))))))))))) -> 62 | D77: =IF(B77="",""&C77,LEFT(B77, FIND(" ",B77)-1) & "."&COUNTIF($B$8:B77,B77)) -> 8.3 | E77: Voldoet de opslagplaats van de gevaarlijke producten aan de wetgeving?
A78: =IFERROR(IF(A77=Onderwerpen!$C$23+19,"",A77+1),"") -> 70 | B78: =IF(C78<=Onderwerpen!$C$4,Onderwerpen!$A$4,IF(C78<=Onderwerpen!$C$5,Onderwerpen!$A$5,IF(C78<=Onderwerpen!$C$6,Onderwerpen!$A$6,IF(C78<=Onderwerpen!$C$7,Onderwerpen!$A$7,IF(C78<=Onderwerpen!$C$8,Onderwerpen!$A$8,IF(C78<=Onderwerpen!$C$9,Onderwerpen!$A$9,IF(C78<=Onderwerpen!C$10,Onderwerpen!$A$10,IF(C78<=Onderwerpen!C$11,Onderwerpen!$A$11,IF(C78<=Onderwerpen!C$12,Onderwerpen!$A$12,IF(C78<=Onderwerpen!C$13,Onderwerpen!$A$13,IF(C78<=Onderwerpen!$C$14,Onderwerpen!$A$14,IF(C78<=Onderwerpen!$C$15,Onderwerpen!$A$15,IF(C78<=Onderwerpen!$C$16,Onderwerpen!$A$16,IF(C78<=Onderwerpen!$C$17,Onderwerpen!$A$17,IF(C78<=Onderwerpen!$C$18,Onderwerpen!$A$18,IF(C78<=Onderwerpen!$C$19,Onderwerpen!$A$19,IF(C78<=Onderwerpen!$C$20,Onderwerpen!$A$20,IF(C78<=Onderwerpen!$C$21,Onderwerpen!$A$21,IF(C78<=Onderwerpen!$C$22,Onderwerpen!$A$22,IF(C78<=Onderwerpen!$C$23,Onderwerpen!$A$22,"")))))))))))))))))))) -> 8 Gevaarlijke producten | C78: =IF(Onderwerpen!$B$4+1=A78,Onderwerpen!$A$5,IF(SUM(Onderwerpen!$B$4:$B$5)+2=A78,Onderwerpen!$A$6,IF(SUM(Onderwerpen!$B$4:$B$6)+3=A78,Onderwerpen!$A$7,IF(SUM(Onderwerpen!$B$4:$B$7)+4=A78,Onderwerpen!$A$8,IF(SUM(Onderwerpen!$B$4:$B$8)+5=A78,Onderwerpen!$A$9,IF(SUM(Onderwerpen!$B$4:$B$9)+6=A78,Onderwerpen!$A$10,IF(SUM(Onderwerpen!$B$4:$B$10)+7=A78,Onderwerpen!$A$11,IF(SUM(Onderwerpen!$B$4:$B$11)+8=A78,Onderwerpen!$A$12,IF(SUM(Onderwerpen!$B$4:$B$12)+9=A78,Onderwerpen!$A$13,IF(SUM(Onderwerpen!$B$4:$B$13)+10=A78,Onderwerpen!$A$14,IF(SUM(Onderwerpen!$B$4:$B$14)+11=A78,Onderwerpen!$A$15,IF(SUM(Onderwerpen!$B$4:$B$15)+12=A78,Onderwerpen!$A$16,IF(SUM(Onderwerpen!$B$4:$B$16)+13=A78,Onderwerpen!$A$17,IF(SUM(Onderwerpen!$B$4:$B$17)+14=A78,Onderwerpen!$A$18,IF(SUM(Onderwerpen!$B$4:$B$18)+15=A78,Onderwerpen!$A$19,IF(SUM(Onderwerpen!$B$4:$B$19)+16=A78,Onderwerpen!$A$20,IF(SUM(Onderwerpen!$B$4:$B$20)+17=A78,Onderwerpen!$A$21,IF(SUM(Onderwerpen!$B$4:$B$21)+18=A78,Onderwerpen!$A$22,IF(SUM(Onderwerpen!$B$4:$B$22)+19=A78,Onderwerpen!$A$23,IFERROR((IF(A78<Onderwerpen!$D$4,A78,IF(AND(A78>Onderwerpen!$D$4,A78<Onderwerpen!$D$5),A78-1,IF(AND(A78>Onderwerpen!$D$5,A78<Onderwerpen!$D$6),A78-2,IF(AND(A78>Onderwerpen!$D$6,A78<Onderwerpen!$D$7),A78-3,IF(AND(A78>Onderwerpen!$D$7,A78<Onderwerpen!$D$8),A78-4,IF(AND(A78>Onderwerpen!$D$8,A78<Onderwerpen!$D$9),A78-5,IF(AND(A78>Onderwerpen!$D$9,A78<Onderwerpen!$D$10),A78-6,IF(AND(A78>Onderwerpen!$D$10,A78<Onderwerpen!$D$11),A78-7,IF(AND(A78>Onderwerpen!$D$11,A78<Onderwerpen!$D$12),A78-8,IF(AND(A78>Onderwerpen!$D$12,A78<Onderwerpen!$D$13),A78-9,IF(AND(A78>Onderwerpen!$D$13,A78<Onderwerpen!$D$14),A78-10,IF(AND(A78>Onderwerpen!$D$14,A78<Onderwerpen!$D$15),A78-11,IF(AND(A78>Onderwerpen!$D$15,A78<Onderwerpen!$D$16),A78-12,IF(AND(A78>Onderwerpen!$D$16,A78<Onderwerpen!$D$17),A78-13,IF(AND(A78>Onderwerpen!$D$17,A78<Onderwerpen!$D$18),A78-14,IF(AND(A78>Onderwerpen!$D$18,A78<Onderwerpen!$D$19),A78-15,IF(AND(A78>Onderwerpen!$D$19,A78<Onderwerpen!$D$20),A78-16,IF(AND(A78>Onderwerpen!$D$20,A78<Onderwerpen!$D$21),A78-17,IF(AND(A78>Onderwerpen!$D$21,A78<Onderwerpen!$D$22),A78-18,IF(A78>Onderwerpen!$D$22,A78-19,"X"))))))))))))))))))))),"")))))))))))))))))))) -> 63 | D78: =IF(B78="",""&C78,LEFT(B78, FIND(" ",B78)-1) & "."&COUNTIF($B$8:B78,B78)) -> 8.4 | E78: Worden de werknemers ingelicht over de gevaarlijke stoffen m.b.t. risico's, gebruiksaanwijzing, PBM'S, EH,
A79: =IFERROR(IF(A78=Onderwerpen!$C$23+19,"",A78+1),"") -> 71 | B79: =IF(C79<=Onderwerpen!$C$4,Onderwerpen!$A$4,IF(C79<=Onderwerpen!$C$5,Onderwerpen!$A$5,IF(C79<=Onderwerpen!$C$6,Onderwerpen!$A$6,IF(C79<=Onderwerpen!$C$7,Onderwerpen!$A$7,IF(C79<=Onderwerpen!$C$8,Onderwerpen!$A$8,IF(C79<=Onderwerpen!$C$9,Onderwerpen!$A$9,IF(C79<=Onderwerpen!C$10,Onderwerpen!$A$10,IF(C79<=Onderwerpen!C$11,Onderwerpen!$A$11,IF(C79<=Onderwerpen!C$12,Onderwerpen!$A$12,IF(C79<=Onderwerpen!C$13,Onderwerpen!$A$13,IF(C79<=Onderwerpen!$C$14,Onderwerpen!$A$14,IF(C79<=Onderwerpen!$C$15,Onderwerpen!$A$15,IF(C79<=Onderwerpen!$C$16,Onderwerpen!$A$16,IF(C79<=Onderwerpen!$C$17,Onderwerpen!$A$17,IF(C79<=Onderwerpen!$C$18,Onderwerpen!$A$18,IF(C79<=Onderwerpen!$C$19,Onderwerpen!$A$19,IF(C79<=Onderwerpen!$C$20,Onderwerpen!$A$20,IF(C79<=Onderwerpen!$C$21,Onderwerpen!$A$21,IF(C79<=Onderwerpen!$C$22,Onderwerpen!$A$22,IF(C79<=Onderwerpen!$C$23,Onderwerpen!$A$22,"")))))))))))))))))))) -> 8 Gevaarlijke producten | C79: =IF(Onderwerpen!$B$4+1=A79,Onderwerpen!$A$5,IF(SUM(Onderwerpen!$B$4:$B$5)+2=A79,Onderwerpen!$A$6,IF(SUM(Onderwerpen!$B$4:$B$6)+3=A79,Onderwerpen!$A$7,IF(SUM(Onderwerpen!$B$4:$B$7)+4=A79,Onderwerpen!$A$8,IF(SUM(Onderwerpen!$B$4:$B$8)+5=A79,Onderwerpen!$A$9,IF(SUM(Onderwerpen!$B$4:$B$9)+6=A79,Onderwerpen!$A$10,IF(SUM(Onderwerpen!$B$4:$B$10)+7=A79,Onderwerpen!$A$11,IF(SUM(Onderwerpen!$B$4:$B$11)+8=A79,Onderwerpen!$A$12,IF(SUM(Onderwerpen!$B$4:$B$12)+9=A79,Onderwerpen!$A$13,IF(SUM(Onderwerpen!$B$4:$B$13)+10=A79,Onderwerpen!$A$14,IF(SUM(Onderwerpen!$B$4:$B$14)+11=A79,Onderwerpen!$A$15,IF(SUM(Onderwerpen!$B$4:$B$15)+12=A79,Onderwerpen!$A$16,IF(SUM(Onderwerpen!$B$4:$B$16)+13=A79,Onderwerpen!$A$17,IF(SUM(Onderwerpen!$B$4:$B$17)+14=A79,Onderwerpen!$A$18,IF(SUM(Onderwerpen!$B$4:$B$18)+15=A79,Onderwerpen!$A$19,IF(SUM(Onderwerpen!$B$4:$B$19)+16=A79,Onderwerpen!$A$20,IF(SUM(Onderwerpen!$B$4:$B$20)+17=A79,Onderwerpen!$A$21,IF(SUM(Onderwerpen!$B$4:$B$21)+18=A79,Onderwerpen!$A$22,IF(SUM(Onderwerpen!$B$4:$B$22)+19=A79,Onderwerpen!$A$23,IFERROR((IF(A79<Onderwerpen!$D$4,A79,IF(AND(A79>Onderwerpen!$D$4,A79<Onderwerpen!$D$5),A79-1,IF(AND(A79>Onderwerpen!$D$5,A79<Onderwerpen!$D$6),A79-2,IF(AND(A79>Onderwerpen!$D$6,A79<Onderwerpen!$D$7),A79-3,IF(AND(A79>Onderwerpen!$D$7,A79<Onderwerpen!$D$8),A79-4,IF(AND(A79>Onderwerpen!$D$8,A79<Onderwerpen!$D$9),A79-5,IF(AND(A79>Onderwerpen!$D$9,A79<Onderwerpen!$D$10),A79-6,IF(AND(A79>Onderwerpen!$D$10,A79<Onderwerpen!$D$11),A79-7,IF(AND(A79>Onderwerpen!$D$11,A79<Onderwerpen!$D$12),A79-8,IF(AND(A79>Onderwerpen!$D$12,A79<Onderwerpen!$D$13),A79-9,IF(AND(A79>Onderwerpen!$D$13,A79<Onderwerpen!$D$14),A79-10,IF(AND(A79>Onderwerpen!$D$14,A79<Onderwerpen!$D$15),A79-11,IF(AND(A79>Onderwerpen!$D$15,A79<Onderwerpen!$D$16),A79-12,IF(AND(A79>Onderwerpen!$D$16,A79<Onderwerpen!$D$17),A79-13,IF(AND(A79>Onderwerpen!$D$17,A79<Onderwerpen!$D$18),A79-14,IF(AND(A79>Onderwerpen!$D$18,A79<Onderwerpen!$D$19),A79-15,IF(AND(A79>Onderwerpen!$D$19,A79<Onderwerpen!$D$20),A79-16,IF(AND(A79>Onderwerpen!$D$20,A79<Onderwerpen!$D$21),A79-17,IF(AND(A79>Onderwerpen!$D$21,A79<Onderwerpen!$D$22),A79-18,IF(A79>Onderwerpen!$D$22,A79-19,"X"))))))))))))))))))))),"")))))))))))))))))))) -> 64 | D79: =IF(B79="",""&C79,LEFT(B79, FIND(" ",B79)-1) & "."&COUNTIF($B$8:B79,B79)) -> 8.5 | E79: Is de opslag op de werkvloer kleiner dan of gelijk aan het dag verbruik?
A80: =IFERROR(IF(A79=Onderwerpen!$C$23+19,"",A79+1),"") -> 72 | B80: =IF(C80<=Onderwerpen!$C$4,Onderwerpen!$A$4,IF(C80<=Onderwerpen!$C$5,Onderwerpen!$A$5,IF(C80<=Onderwerpen!$C$6,Onderwerpen!$A$6,IF(C80<=Onderwerpen!$C$7,Onderwerpen!$A$7,IF(C80<=Onderwerpen!$C$8,Onderwerpen!$A$8,IF(C80<=Onderwerpen!$C$9,Onderwerpen!$A$9,IF(C80<=Onderwerpen!C$10,Onderwerpen!$A$10,IF(C80<=Onderwerpen!C$11,Onderwerpen!$A$11,IF(C80<=Onderwerpen!C$12,Onderwerpen!$A$12,IF(C80<=Onderwerpen!C$13,Onderwerpen!$A$13,IF(C80<=Onderwerpen!$C$14,Onderwerpen!$A$14,IF(C80<=Onderwerpen!$C$15,Onderwerpen!$A$15,IF(C80<=Onderwerpen!$C$16,Onderwerpen!$A$16,IF(C80<=Onderwerpen!$C$17,Onderwerpen!$A$17,IF(C80<=Onderwerpen!$C$18,Onderwerpen!$A$18,IF(C80<=Onderwerpen!$C$19,Onderwerpen!$A$19,IF(C80<=Onderwerpen!$C$20,Onderwerpen!$A$20,IF(C80<=Onderwerpen!$C$21,Onderwerpen!$A$21,IF(C80<=Onderwerpen!$C$22,Onderwerpen!$A$22,IF(C80<=Onderwerpen!$C$23,Onderwerpen!$A$22,"")))))))))))))))))))) -> 8 Gevaarlijke producten | C80: =IF(Onderwerpen!$B$4+1=A80,Onderwerpen!$A$5,IF(SUM(Onderwerpen!$B$4:$B$5)+2=A80,Onderwerpen!$A$6,IF(SUM(Onderwerpen!$B$4:$B$6)+3=A80,Onderwerpen!$A$7,IF(SUM(Onderwerpen!$B$4:$B$7)+4=A80,Onderwerpen!$A$8,IF(SUM(Onderwerpen!$B$4:$B$8)+5=A80,Onderwerpen!$A$9,IF(SUM(Onderwerpen!$B$4:$B$9)+6=A80,Onderwerpen!$A$10,IF(SUM(Onderwerpen!$B$4:$B$10)+7=A80,Onderwerpen!$A$11,IF(SUM(Onderwerpen!$B$4:$B$11)+8=A80,Onderwerpen!$A$12,IF(SUM(Onderwerpen!$B$4:$B$12)+9=A80,Onderwerpen!$A$13,IF(SUM(Onderwerpen!$B$4:$B$13)+10=A80,Onderwerpen!$A$14,IF(SUM(Onderwerpen!$B$4:$B$14)+11=A80,Onderwerpen!$A$15,IF(SUM(Onderwerpen!$B$4:$B$15)+12=A80,Onderwerpen!$A$16,IF(SUM(Onderwerpen!$B$4:$B$16)+13=A80,Onderwerpen!$A$17,IF(SUM(Onderwerpen!$B$4:$B$17)+14=A80,Onderwerpen!$A$18,IF(SUM(Onderwerpen!$B$4:$B$18)+15=A80,Onderwerpen!$A$19,IF(SUM(Onderwerpen!$B$4:$B$19)+16=A80,Onderwerpen!$A$20,IF(SUM(Onderwerpen!$B$4:$B$20)+17=A80,Onderwerpen!$A$21,IF(SUM(Onderwerpen!$B$4:$B$21)+18=A80,Onderwerpen!$A$22,IF(SUM(Onderwerpen!$B$4:$B$22)+19=A80,Onderwerpen!$A$23,IFERROR((IF(A80<Onderwerpen!$D$4,A80,IF(AND(A80>Onderwerpen!$D$4,A80<Onderwerpen!$D$5),A80-1,IF(AND(A80>Onderwerpen!$D$5,A80<Onderwerpen!$D$6),A80-2,IF(AND(A80>Onderwerpen!$D$6,A80<Onderwerpen!$D$7),A80-3,IF(AND(A80>Onderwerpen!$D$7,A80<Onderwerpen!$D$8),A80-4,IF(AND(A80>Onderwerpen!$D$8,A80<Onderwerpen!$D$9),A80-5,IF(AND(A80>Onderwerpen!$D$9,A80<Onderwerpen!$D$10),A80-6,IF(AND(A80>Onderwerpen!$D$10,A80<Onderwerpen!$D$11),A80-7,IF(AND(A80>Onderwerpen!$D$11,A80<Onderwerpen!$D$12),A80-8,IF(AND(A80>Onderwerpen!$D$12,A80<Onderwerpen!$D$13),A80-9,IF(AND(A80>Onderwerpen!$D$13,A80<Onderwerpen!$D$14),A80-10,IF(AND(A80>Onderwerpen!$D$14,A80<Onderwerpen!$D$15),A80-11,IF(AND(A80>Onderwerpen!$D$15,A80<Onderwerpen!$D$16),A80-12,IF(AND(A80>Onderwerpen!$D$16,A80<Onderwerpen!$D$17),A80-13,IF(AND(A80>Onderwerpen!$D$17,A80<Onderwerpen!$D$18),A80-14,IF(AND(A80>Onderwerpen!$D$18,A80<Onderwerpen!$D$19),A80-15,IF(AND(A80>Onderwerpen!$D$19,A80<Onderwerpen!$D$20),A80-16,IF(AND(A80>Onderwerpen!$D$20,A80<Onderwerpen!$D$21),A80-17,IF(AND(A80>Onderwerpen!$D$21,A80<Onderwerpen!$D$22),A80-18,IF(A80>Onderwerpen!$D$22,A80-19,"X"))))))))))))))))))))),"")))))))))))))))))))) -> 65 | D80: =IF(B80="",""&C80,LEFT(B80, FIND(" ",B80)-1) & "."&COUNTIF($B$8:B80,B80)) -> 8.6 | E80: Dragen de gevaarlijke producten een conform etiket, ook na het eventueel overgieten in een ander recipiënt?
A81: =IFERROR(IF(A80=Onderwerpen!$C$23+19,"",A80+1),"") -> 73 | B81: =IF(C81<=Onderwerpen!$C$4,Onderwerpen!$A$4,IF(C81<=Onderwerpen!$C$5,Onderwerpen!$A$5,IF(C81<=Onderwerpen!$C$6,Onderwerpen!$A$6,IF(C81<=Onderwerpen!$C$7,Onderwerpen!$A$7,IF(C81<=Onderwerpen!$C$8,Onderwerpen!$A$8,IF(C81<=Onderwerpen!$C$9,Onderwerpen!$A$9,IF(C81<=Onderwerpen!C$10,Onderwerpen!$A$10,IF(C81<=Onderwerpen!C$11,Onderwerpen!$A$11,IF(C81<=Onderwerpen!C$12,Onderwerpen!$A$12,IF(C81<=Onderwerpen!C$13,Onderwerpen!$A$13,IF(C81<=Onderwerpen!$C$14,Onderwerpen!$A$14,IF(C81<=Onderwerpen!$C$15,Onderwerpen!$A$15,IF(C81<=Onderwerpen!$C$16,Onderwerpen!$A$16,IF(C81<=Onderwerpen!$C$17,Onderwerpen!$A$17,IF(C81<=Onderwerpen!$C$18,Onderwerpen!$A$18,IF(C81<=Onderwerpen!$C$19,Onderwerpen!$A$19,IF(C81<=Onderwerpen!$C$20,Onderwerpen!$A$20,IF(C81<=Onderwerpen!$C$21,Onderwerpen!$A$21,IF(C81<=Onderwerpen!$C$22,Onderwerpen!$A$22,IF(C81<=Onderwerpen!$C$23,Onderwerpen!$A$22,"")))))))))))))))))))) -> 8 Gevaarlijke producten | C81: =IF(Onderwerpen!$B$4+1=A81,Onderwerpen!$A$5,IF(SUM(Onderwerpen!$B$4:$B$5)+2=A81,Onderwerpen!$A$6,IF(SUM(Onderwerpen!$B$4:$B$6)+3=A81,Onderwerpen!$A$7,IF(SUM(Onderwerpen!$B$4:$B$7)+4=A81,Onderwerpen!$A$8,IF(SUM(Onderwerpen!$B$4:$B$8)+5=A81,Onderwerpen!$A$9,IF(SUM(Onderwerpen!$B$4:$B$9)+6=A81,Onderwerpen!$A$10,IF(SUM(Onderwerpen!$B$4:$B$10)+7=A81,Onderwerpen!$A$11,IF(SUM(Onderwerpen!$B$4:$B$11)+8=A81,Onderwerpen!$A$12,IF(SUM(Onderwerpen!$B$4:$B$12)+9=A81,Onderwerpen!$A$13,IF(SUM(Onderwerpen!$B$4:$B$13)+10=A81,Onderwerpen!$A$14,IF(SUM(Onderwerpen!$B$4:$B$14)+11=A81,Onderwerpen!$A$15,IF(SUM(Onderwerpen!$B$4:$B$15)+12=A81,Onderwerpen!$A$16,IF(SUM(Onderwerpen!$B$4:$B$16)+13=A81,Onderwerpen!$A$17,IF(SUM(Onderwerpen!$B$4:$B$17)+14=A81,Onderwerpen!$A$18,IF(SUM(Onderwerpen!$B$4:$B$18)+15=A81,Onderwerpen!$A$19,IF(SUM(Onderwerpen!$B$4:$B$19)+16=A81,Onderwerpen!$A$20,IF(SUM(Onderwerpen!$B$4:$B$20)+17=A81,Onderwerpen!$A$21,IF(SUM(Onderwerpen!$B$4:$B$21)+18=A81,Onderwerpen!$A$22,IF(SUM(Onderwerpen!$B$4:$B$22)+19=A81,Onderwerpen!$A$23,IFERROR((IF(A81<Onderwerpen!$D$4,A81,IF(AND(A81>Onderwerpen!$D$4,A81<Onderwerpen!$D$5),A81-1,IF(AND(A81>Onderwerpen!$D$5,A81<Onderwerpen!$D$6),A81-2,IF(AND(A81>Onderwerpen!$D$6,A81<Onderwerpen!$D$7),A81-3,IF(AND(A81>Onderwerpen!$D$7,A81<Onderwerpen!$D$8),A81-4,IF(AND(A81>Onderwerpen!$D$8,A81<Onderwerpen!$D$9),A81-5,IF(AND(A81>Onderwerpen!$D$9,A81<Onderwerpen!$D$10),A81-6,IF(AND(A81>Onderwerpen!$D$10,A81<Onderwerpen!$D$11),A81-7,IF(AND(A81>Onderwerpen!$D$11,A81<Onderwerpen!$D$12),A81-8,IF(AND(A81>Onderwerpen!$D$12,A81<Onderwerpen!$D$13),A81-9,IF(AND(A81>Onderwerpen!$D$13,A81<Onderwerpen!$D$14),A81-10,IF(AND(A81>Onderwerpen!$D$14,A81<Onderwerpen!$D$15),A81-11,IF(AND(A81>Onderwerpen!$D$15,A81<Onderwerpen!$D$16),A81-12,IF(AND(A81>Onderwerpen!$D$16,A81<Onderwerpen!$D$17),A81-13,IF(AND(A81>Onderwerpen!$D$17,A81<Onderwerpen!$D$18),A81-14,IF(AND(A81>Onderwerpen!$D$18,A81<Onderwerpen!$D$19),A81-15,IF(AND(A81>Onderwerpen!$D$19,A81<Onderwerpen!$D$20),A81-16,IF(AND(A81>Onderwerpen!$D$20,A81<Onderwerpen!$D$21),A81-17,IF(AND(A81>Onderwerpen!$D$21,A81<Onderwerpen!$D$22),A81-18,IF(A81>Onderwerpen!$D$22,A81-19,"X"))))))))))))))))))))),"")))))))))))))))))))) -> 66 | D81: =IF(B81="",""&C81,LEFT(B81, FIND(" ",B81)-1) & "."&COUNTIF($B$8:B81,B81)) -> 8.7 | E81: Wordt er rekening gehouden met de risico's en preventiemaatregelen op het etiket van het nieuwe recipiënt?
A82: =IFERROR(IF(A81=Onderwerpen!$C$23+19,"",A81+1),"") -> 74 | B82: =IF(C82<=Onderwerpen!$C$4,Onderwerpen!$A$4,IF(C82<=Onderwerpen!$C$5,Onderwerpen!$A$5,IF(C82<=Onderwerpen!$C$6,Onderwerpen!$A$6,IF(C82<=Onderwerpen!$C$7,Onderwerpen!$A$7,IF(C82<=Onderwerpen!$C$8,Onderwerpen!$A$8,IF(C82<=Onderwerpen!$C$9,Onderwerpen!$A$9,IF(C82<=Onderwerpen!C$10,Onderwerpen!$A$10,IF(C82<=Onderwerpen!C$11,Onderwerpen!$A$11,IF(C82<=Onderwerpen!C$12,Onderwerpen!$A$12,IF(C82<=Onderwerpen!C$13,Onderwerpen!$A$13,IF(C82<=Onderwerpen!$C$14,Onderwerpen!$A$14,IF(C82<=Onderwerpen!$C$15,Onderwerpen!$A$15,IF(C82<=Onderwerpen!$C$16,Onderwerpen!$A$16,IF(C82<=Onderwerpen!$C$17,Onderwerpen!$A$17,IF(C82<=Onderwerpen!$C$18,Onderwerpen!$A$18,IF(C82<=Onderwerpen!$C$19,Onderwerpen!$A$19,IF(C82<=Onderwerpen!$C$20,Onderwerpen!$A$20,IF(C82<=Onderwerpen!$C$21,Onderwerpen!$A$21,IF(C82<=Onderwerpen!$C$22,Onderwerpen!$A$22,IF(C82<=Onderwerpen!$C$23,Onderwerpen!$A$22,"")))))))))))))))))))) -> 8 Gevaarlijke producten | C82: =IF(Onderwerpen!$B$4+1=A82,Onderwerpen!$A$5,IF(SUM(Onderwerpen!$B$4:$B$5)+2=A82,Onderwerpen!$A$6,IF(SUM(Onderwerpen!$B$4:$B$6)+3=A82,Onderwerpen!$A$7,IF(SUM(Onderwerpen!$B$4:$B$7)+4=A82,Onderwerpen!$A$8,IF(SUM(Onderwerpen!$B$4:$B$8)+5=A82,Onderwerpen!$A$9,IF(SUM(Onderwerpen!$B$4:$B$9)+6=A82,Onderwerpen!$A$10,IF(SUM(Onderwerpen!$B$4:$B$10)+7=A82,Onderwerpen!$A$11,IF(SUM(Onderwerpen!$B$4:$B$11)+8=A82,Onderwerpen!$A$12,IF(SUM(Onderwerpen!$B$4:$B$12)+9=A82,Onderwerpen!$A$13,IF(SUM(Onderwerpen!$B$4:$B$13)+10=A82,Onderwerpen!$A$14,IF(SUM(Onderwerpen!$B$4:$B$14)+11=A82,Onderwerpen!$A$15,IF(SUM(Onderwerpen!$B$4:$B$15)+12=A82,Onderwerpen!$A$16,IF(SUM(Onderwerpen!$B$4:$B$16)+13=A82,Onderwerpen!$A$17,IF(SUM(Onderwerpen!$B$4:$B$17)+14=A82,Onderwerpen!$A$18,IF(SUM(Onderwerpen!$B$4:$B$18)+15=A82,Onderwerpen!$A$19,IF(SUM(Onderwerpen!$B$4:$B$19)+16=A82,Onderwerpen!$A$20,IF(SUM(Onderwerpen!$B$4:$B$20)+17=A82,Onderwerpen!$A$21,IF(SUM(Onderwerpen!$B$4:$B$21)+18=A82,Onderwerpen!$A$22,IF(SUM(Onderwerpen!$B$4:$B$22)+19=A82,Onderwerpen!$A$23,IFERROR((IF(A82<Onderwerpen!$D$4,A82,IF(AND(A82>Onderwerpen!$D$4,A82<Onderwerpen!$D$5),A82-1,IF(AND(A82>Onderwerpen!$D$5,A82<Onderwerpen!$D$6),A82-2,IF(AND(A82>Onderwerpen!$D$6,A82<Onderwerpen!$D$7),A82-3,IF(AND(A82>Onderwerpen!$D$7,A82<Onderwerpen!$D$8),A82-4,IF(AND(A82>Onderwerpen!$D$8,A82<Onderwerpen!$D$9),A82-5,IF(AND(A82>Onderwerpen!$D$9,A82<Onderwerpen!$D$10),A82-6,IF(AND(A82>Onderwerpen!$D$10,A82<Onderwerpen!$D$11),A82-7,IF(AND(A82>Onderwerpen!$D$11,A82<Onderwerpen!$D$12),A82-8,IF(AND(A82>Onderwerpen!$D$12,A82<Onderwerpen!$D$13),A82-9,IF(AND(A82>Onderwerpen!$D$13,A82<Onderwerpen!$D$14),A82-10,IF(AND(A82>Onderwerpen!$D$14,A82<Onderwerpen!$D$15),A82-11,IF(AND(A82>Onderwerpen!$D$15,A82<Onderwerpen!$D$16),A82-12,IF(AND(A82>Onderwerpen!$D$16,A82<Onderwerpen!$D$17),A82-13,IF(AND(A82>Onderwerpen!$D$17,A82<Onderwerpen!$D$18),A82-14,IF(AND(A82>Onderwerpen!$D$18,A82<Onderwerpen!$D$19),A82-15,IF(AND(A82>Onderwerpen!$D$19,A82<Onderwerpen!$D$20),A82-16,IF(AND(A82>Onderwerpen!$D$20,A82<Onderwerpen!$D$21),A82-17,IF(AND(A82>Onderwerpen!$D$21,A82<Onderwerpen!$D$22),A82-18,IF(A82>Onderwerpen!$D$22,A82-19,"X"))))))))))))))))))))),"")))))))))))))))))))) -> 67 | D82: =IF(B82="",""&C82,LEFT(B82, FIND(" ",B82)-1) & "."&COUNTIF($B$8:B82,B82)) -> 8.8 | E82: Beschikt uw bedrijf over een geldige en volledige milieuvergunning?
A83: =IFERROR(IF(A82=Onderwerpen!$C$23+19,"",A82+1),"") -> 75 | B83: =IF(C83<=Onderwerpen!$C$4,Onderwerpen!$A$4,IF(C83<=Onderwerpen!$C$5,Onderwerpen!$A$5,IF(C83<=Onderwerpen!$C$6,Onderwerpen!$A$6,IF(C83<=Onderwerpen!$C$7,Onderwerpen!$A$7,IF(C83<=Onderwerpen!$C$8,Onderwerpen!$A$8,IF(C83<=Onderwerpen!$C$9,Onderwerpen!$A$9,IF(C83<=Onderwerpen!C$10,Onderwerpen!$A$10,IF(C83<=Onderwerpen!C$11,Onderwerpen!$A$11,IF(C83<=Onderwerpen!C$12,Onderwerpen!$A$12,IF(C83<=Onderwerpen!C$13,Onderwerpen!$A$13,IF(C83<=Onderwerpen!$C$14,Onderwerpen!$A$14,IF(C83<=Onderwerpen!$C$15,Onderwerpen!$A$15,IF(C83<=Onderwerpen!$C$16,Onderwerpen!$A$16,IF(C83<=Onderwerpen!$C$17,Onderwerpen!$A$17,IF(C83<=Onderwerpen!$C$18,Onderwerpen!$A$18,IF(C83<=Onderwerpen!$C$19,Onderwerpen!$A$19,IF(C83<=Onderwerpen!$C$20,Onderwerpen!$A$20,IF(C83<=Onderwerpen!$C$21,Onderwerpen!$A$21,IF(C83<=Onderwerpen!$C$22,Onderwerpen!$A$22,IF(C83<=Onderwerpen!$C$23,Onderwerpen!$A$22,"")))))))))))))))))))) -> 8 Gevaarlijke producten | C83: =IF(Onderwerpen!$B$4+1=A83,Onderwerpen!$A$5,IF(SUM(Onderwerpen!$B$4:$B$5)+2=A83,Onderwerpen!$A$6,IF(SUM(Onderwerpen!$B$4:$B$6)+3=A83,Onderwerpen!$A$7,IF(SUM(Onderwerpen!$B$4:$B$7)+4=A83,Onderwerpen!$A$8,IF(SUM(Onderwerpen!$B$4:$B$8)+5=A83,Onderwerpen!$A$9,IF(SUM(Onderwerpen!$B$4:$B$9)+6=A83,Onderwerpen!$A$10,IF(SUM(Onderwerpen!$B$4:$B$10)+7=A83,Onderwerpen!$A$11,IF(SUM(Onderwerpen!$B$4:$B$11)+8=A83,Onderwerpen!$A$12,IF(SUM(Onderwerpen!$B$4:$B$12)+9=A83,Onderwerpen!$A$13,IF(SUM(Onderwerpen!$B$4:$B$13)+10=A83,Onderwerpen!$A$14,IF(SUM(Onderwerpen!$B$4:$B$14)+11=A83,Onderwerpen!$A$15,IF(SUM(Onderwerpen!$B$4:$B$15)+12=A83,Onderwerpen!$A$16,IF(SUM(Onderwerpen!$B$4:$B$16)+13=A83,Onderwerpen!$A$17,IF(SUM(Onderwerpen!$B$4:$B$17)+14=A83,Onderwerpen!$A$18,IF(SUM(Onderwerpen!$B$4:$B$18)+15=A83,Onderwerpen!$A$19,IF(SUM(Onderwerpen!$B$4:$B$19)+16=A83,Onderwerpen!$A$20,IF(SUM(Onderwerpen!$B$4:$B$20)+17=A83,Onderwerpen!$A$21,IF(SUM(Onderwerpen!$B$4:$B$21)+18=A83,Onderwerpen!$A$22,IF(SUM(Onderwerpen!$B$4:$B$22)+19=A83,Onderwerpen!$A$23,IFERROR((IF(A83<Onderwerpen!$D$4,A83,IF(AND(A83>Onderwerpen!$D$4,A83<Onderwerpen!$D$5),A83-1,IF(AND(A83>Onderwerpen!$D$5,A83<Onderwerpen!$D$6),A83-2,IF(AND(A83>Onderwerpen!$D$6,A83<Onderwerpen!$D$7),A83-3,IF(AND(A83>Onderwerpen!$D$7,A83<Onderwerpen!$D$8),A83-4,IF(AND(A83>Onderwerpen!$D$8,A83<Onderwerpen!$D$9),A83-5,IF(AND(A83>Onderwerpen!$D$9,A83<Onderwerpen!$D$10),A83-6,IF(AND(A83>Onderwerpen!$D$10,A83<Onderwerpen!$D$11),A83-7,IF(AND(A83>Onderwerpen!$D$11,A83<Onderwerpen!$D$12),A83-8,IF(AND(A83>Onderwerpen!$D$12,A83<Onderwerpen!$D$13),A83-9,IF(AND(A83>Onderwerpen!$D$13,A83<Onderwerpen!$D$14),A83-10,IF(AND(A83>Onderwerpen!$D$14,A83<Onderwerpen!$D$15),A83-11,IF(AND(A83>Onderwerpen!$D$15,A83<Onderwerpen!$D$16),A83-12,IF(AND(A83>Onderwerpen!$D$16,A83<Onderwerpen!$D$17),A83-13,IF(AND(A83>Onderwerpen!$D$17,A83<Onderwerpen!$D$18),A83-14,IF(AND(A83>Onderwerpen!$D$18,A83<Onderwerpen!$D$19),A83-15,IF(AND(A83>Onderwerpen!$D$19,A83<Onderwerpen!$D$20),A83-16,IF(AND(A83>Onderwerpen!$D$20,A83<Onderwerpen!$D$21),A83-17,IF(AND(A83>Onderwerpen!$D$21,A83<Onderwerpen!$D$22),A83-18,IF(A83>Onderwerpen!$D$22,A83-19,"X"))))))))))))))))))))),"")))))))))))))))))))) -> 68 | D83: =IF(B83="",""&C83,LEFT(B83, FIND(" ",B83)-1) & "."&COUNTIF($B$8:B83,B83)) -> 8.9 | E83: Worden de werkplaatsen regelmatig gereinigd?
A84: =IFERROR(IF(A83=Onderwerpen!$C$23+19,"",A83+1),"") -> 76 | B84: =IF(C84<=Onderwerpen!$C$4,Onderwerpen!$A$4,IF(C84<=Onderwerpen!$C$5,Onderwerpen!$A$5,IF(C84<=Onderwerpen!$C$6,Onderwerpen!$A$6,IF(C84<=Onderwerpen!$C$7,Onderwerpen!$A$7,IF(C84<=Onderwerpen!$C$8,Onderwerpen!$A$8,IF(C84<=Onderwerpen!$C$9,Onderwerpen!$A$9,IF(C84<=Onderwerpen!C$10,Onderwerpen!$A$10,IF(C84<=Onderwerpen!C$11,Onderwerpen!$A$11,IF(C84<=Onderwerpen!C$12,Onderwerpen!$A$12,IF(C84<=Onderwerpen!C$13,Onderwerpen!$A$13,IF(C84<=Onderwerpen!$C$14,Onderwerpen!$A$14,IF(C84<=Onderwerpen!$C$15,Onderwerpen!$A$15,IF(C84<=Onderwerpen!$C$16,Onderwerpen!$A$16,IF(C84<=Onderwerpen!$C$17,Onderwerpen!$A$17,IF(C84<=Onderwerpen!$C$18,Onderwerpen!$A$18,IF(C84<=Onderwerpen!$C$19,Onderwerpen!$A$19,IF(C84<=Onderwerpen!$C$20,Onderwerpen!$A$20,IF(C84<=Onderwerpen!$C$21,Onderwerpen!$A$21,IF(C84<=Onderwerpen!$C$22,Onderwerpen!$A$22,IF(C84<=Onderwerpen!$C$23,Onderwerpen!$A$22,"")))))))))))))))))))) -> 8 Gevaarlijke producten | C84: =IF(Onderwerpen!$B$4+1=A84,Onderwerpen!$A$5,IF(SUM(Onderwerpen!$B$4:$B$5)+2=A84,Onderwerpen!$A$6,IF(SUM(Onderwerpen!$B$4:$B$6)+3=A84,Onderwerpen!$A$7,IF(SUM(Onderwerpen!$B$4:$B$7)+4=A84,Onderwerpen!$A$8,IF(SUM(Onderwerpen!$B$4:$B$8)+5=A84,Onderwerpen!$A$9,IF(SUM(Onderwerpen!$B$4:$B$9)+6=A84,Onderwerpen!$A$10,IF(SUM(Onderwerpen!$B$4:$B$10)+7=A84,Onderwerpen!$A$11,IF(SUM(Onderwerpen!$B$4:$B$11)+8=A84,Onderwerpen!$A$12,IF(SUM(Onderwerpen!$B$4:$B$12)+9=A84,Onderwerpen!$A$13,IF(SUM(Onderwerpen!$B$4:$B$13)+10=A84,Onderwerpen!$A$14,IF(SUM(Onderwerpen!$B$4:$B$14)+11=A84,Onderwerpen!$A$15,IF(SUM(Onderwerpen!$B$4:$B$15)+12=A84,Onderwerpen!$A$16,IF(SUM(Onderwerpen!$B$4:$B$16)+13=A84,Onderwerpen!$A$17,IF(SUM(Onderwerpen!$B$4:$B$17)+14=A84,Onderwerpen!$A$18,IF(SUM(Onderwerpen!$B$4:$B$18)+15=A84,Onderwerpen!$A$19,IF(SUM(Onderwerpen!$B$4:$B$19)+16=A84,Onderwerpen!$A$20,IF(SUM(Onderwerpen!$B$4:$B$20)+17=A84,Onderwerpen!$A$21,IF(SUM(Onderwerpen!$B$4:$B$21)+18=A84,Onderwerpen!$A$22,IF(SUM(Onderwerpen!$B$4:$B$22)+19=A84,Onderwerpen!$A$23,IFERROR((IF(A84<Onderwerpen!$D$4,A84,IF(AND(A84>Onderwerpen!$D$4,A84<Onderwerpen!$D$5),A84-1,IF(AND(A84>Onderwerpen!$D$5,A84<Onderwerpen!$D$6),A84-2,IF(AND(A84>Onderwerpen!$D$6,A84<Onderwerpen!$D$7),A84-3,IF(AND(A84>Onderwerpen!$D$7,A84<Onderwerpen!$D$8),A84-4,IF(AND(A84>Onderwerpen!$D$8,A84<Onderwerpen!$D$9),A84-5,IF(AND(A84>Onderwerpen!$D$9,A84<Onderwerpen!$D$10),A84-6,IF(AND(A84>Onderwerpen!$D$10,A84<Onderwerpen!$D$11),A84-7,IF(AND(A84>Onderwerpen!$D$11,A84<Onderwerpen!$D$12),A84-8,IF(AND(A84>Onderwerpen!$D$12,A84<Onderwerpen!$D$13),A84-9,IF(AND(A84>Onderwerpen!$D$13,A84<Onderwerpen!$D$14),A84-10,IF(AND(A84>Onderwerpen!$D$14,A84<Onderwerpen!$D$15),A84-11,IF(AND(A84>Onderwerpen!$D$15,A84<Onderwerpen!$D$16),A84-12,IF(AND(A84>Onderwerpen!$D$16,A84<Onderwerpen!$D$17),A84-13,IF(AND(A84>Onderwerpen!$D$17,A84<Onderwerpen!$D$18),A84-14,IF(AND(A84>Onderwerpen!$D$18,A84<Onderwerpen!$D$19),A84-15,IF(AND(A84>Onderwerpen!$D$19,A84<Onderwerpen!$D$20),A84-16,IF(AND(A84>Onderwerpen!$D$20,A84<Onderwerpen!$D$21),A84-17,IF(AND(A84>Onderwerpen!$D$21,A84<Onderwerpen!$D$22),A84-18,IF(A84>Onderwerpen!$D$22,A84-19,"X"))))))))))))))))))))),"")))))))))))))))))))) -> 69 | D84: =IF(B84="",""&C84,LEFT(B84, FIND(" ",B84)-1) & "."&COUNTIF($B$8:B84,B84)) -> 8.10 | E84: Worden de verschillende afvalstromen in het bedrijf gesorteerd?
A85: =IFERROR(IF(A84=Onderwerpen!$C$23+19,"",A84+1),"") -> 77 | B85: =IF(C85<=Onderwerpen!$C$4,Onderwerpen!$A$4,IF(C85<=Onderwerpen!$C$5,Onderwerpen!$A$5,IF(C85<=Onderwerpen!$C$6,Onderwerpen!$A$6,IF(C85<=Onderwerpen!$C$7,Onderwerpen!$A$7,IF(C85<=Onderwerpen!$C$8,Onderwerpen!$A$8,IF(C85<=Onderwerpen!$C$9,Onderwerpen!$A$9,IF(C85<=Onderwerpen!C$10,Onderwerpen!$A$10,IF(C85<=Onderwerpen!C$11,Onderwerpen!$A$11,IF(C85<=Onderwerpen!C$12,Onderwerpen!$A$12,IF(C85<=Onderwerpen!C$13,Onderwerpen!$A$13,IF(C85<=Onderwerpen!$C$14,Onderwerpen!$A$14,IF(C85<=Onderwerpen!$C$15,Onderwerpen!$A$15,IF(C85<=Onderwerpen!$C$16,Onderwerpen!$A$16,IF(C85<=Onderwerpen!$C$17,Onderwerpen!$A$17,IF(C85<=Onderwerpen!$C$18,Onderwerpen!$A$18,IF(C85<=Onderwerpen!$C$19,Onderwerpen!$A$19,IF(C85<=Onderwerpen!$C$20,Onderwerpen!$A$20,IF(C85<=Onderwerpen!$C$21,Onderwerpen!$A$21,IF(C85<=Onderwerpen!$C$22,Onderwerpen!$A$22,IF(C85<=Onderwerpen!$C$23,Onderwerpen!$A$22,"")))))))))))))))))))) -> 8 Gevaarlijke producten | C85: =IF(Onderwerpen!$B$4+1=A85,Onderwerpen!$A$5,IF(SUM(Onderwerpen!$B$4:$B$5)+2=A85,Onderwerpen!$A$6,IF(SUM(Onderwerpen!$B$4:$B$6)+3=A85,Onderwerpen!$A$7,IF(SUM(Onderwerpen!$B$4:$B$7)+4=A85,Onderwerpen!$A$8,IF(SUM(Onderwerpen!$B$4:$B$8)+5=A85,Onderwerpen!$A$9,IF(SUM(Onderwerpen!$B$4:$B$9)+6=A85,Onderwerpen!$A$10,IF(SUM(Onderwerpen!$B$4:$B$10)+7=A85,Onderwerpen!$A$11,IF(SUM(Onderwerpen!$B$4:$B$11)+8=A85,Onderwerpen!$A$12,IF(SUM(Onderwerpen!$B$4:$B$12)+9=A85,Onderwerpen!$A$13,IF(SUM(Onderwerpen!$B$4:$B$13)+10=A85,Onderwerpen!$A$14,IF(SUM(Onderwerpen!$B$4:$B$14)+11=A85,Onderwerpen!$A$15,IF(SUM(Onderwerpen!$B$4:$B$15)+12=A85,Onderwerpen!$A$16,IF(SUM(Onderwerpen!$B$4:$B$16)+13=A85,Onderwerpen!$A$17,IF(SUM(Onderwerpen!$B$4:$B$17)+14=A85,Onderwerpen!$A$18,IF(SUM(Onderwerpen!$B$4:$B$18)+15=A85,Onderwerpen!$A$19,IF(SUM(Onderwerpen!$B$4:$B$19)+16=A85,Onderwerpen!$A$20,IF(SUM(Onderwerpen!$B$4:$B$20)+17=A85,Onderwerpen!$A$21,IF(SUM(Onderwerpen!$B$4:$B$21)+18=A85,Onderwerpen!$A$22,IF(SUM(Onderwerpen!$B$4:$B$22)+19=A85,Onderwerpen!$A$23,IFERROR((IF(A85<Onderwerpen!$D$4,A85,IF(AND(A85>Onderwerpen!$D$4,A85<Onderwerpen!$D$5),A85-1,IF(AND(A85>Onderwerpen!$D$5,A85<Onderwerpen!$D$6),A85-2,IF(AND(A85>Onderwerpen!$D$6,A85<Onderwerpen!$D$7),A85-3,IF(AND(A85>Onderwerpen!$D$7,A85<Onderwerpen!$D$8),A85-4,IF(AND(A85>Onderwerpen!$D$8,A85<Onderwerpen!$D$9),A85-5,IF(AND(A85>Onderwerpen!$D$9,A85<Onderwerpen!$D$10),A85-6,IF(AND(A85>Onderwerpen!$D$10,A85<Onderwerpen!$D$11),A85-7,IF(AND(A85>Onderwerpen!$D$11,A85<Onderwerpen!$D$12),A85-8,IF(AND(A85>Onderwerpen!$D$12,A85<Onderwerpen!$D$13),A85-9,IF(AND(A85>Onderwerpen!$D$13,A85<Onderwerpen!$D$14),A85-10,IF(AND(A85>Onderwerpen!$D$14,A85<Onderwerpen!$D$15),A85-11,IF(AND(A85>Onderwerpen!$D$15,A85<Onderwerpen!$D$16),A85-12,IF(AND(A85>Onderwerpen!$D$16,A85<Onderwerpen!$D$17),A85-13,IF(AND(A85>Onderwerpen!$D$17,A85<Onderwerpen!$D$18),A85-14,IF(AND(A85>Onderwerpen!$D$18,A85<Onderwerpen!$D$19),A85-15,IF(AND(A85>Onderwerpen!$D$19,A85<Onderwerpen!$D$20),A85-16,IF(AND(A85>Onderwerpen!$D$20,A85<Onderwerpen!$D$21),A85-17,IF(AND(A85>Onderwerpen!$D$21,A85<Onderwerpen!$D$22),A85-18,IF(A85>Onderwerpen!$D$22,A85-19,"X"))))))))))))))))))))),"")))))))))))))))))))) -> 70 | D85: =IF(B85="",""&C85,LEFT(B85, FIND(" ",B85)-1) & "."&COUNTIF($B$8:B85,B85)) -> 8.11 | E85: Wordt afval op een correcte manier afgevoerd?
A86: =IFERROR(IF(A85=Onderwerpen!$C$23+19,"",A85+1),"") -> 78 | B86: =IF(C86<=Onderwerpen!$C$4,Onderwerpen!$A$4,IF(C86<=Onderwerpen!$C$5,Onderwerpen!$A$5,IF(C86<=Onderwerpen!$C$6,Onderwerpen!$A$6,IF(C86<=Onderwerpen!$C$7,Onderwerpen!$A$7,IF(C86<=Onderwerpen!$C$8,Onderwerpen!$A$8,IF(C86<=Onderwerpen!$C$9,Onderwerpen!$A$9,IF(C86<=Onderwerpen!C$10,Onderwerpen!$A$10,IF(C86<=Onderwerpen!C$11,Onderwerpen!$A$11,IF(C86<=Onderwerpen!C$12,Onderwerpen!$A$12,IF(C86<=Onderwerpen!C$13,Onderwerpen!$A$13,IF(C86<=Onderwerpen!$C$14,Onderwerpen!$A$14,IF(C86<=Onderwerpen!$C$15,Onderwerpen!$A$15,IF(C86<=Onderwerpen!$C$16,Onderwerpen!$A$16,IF(C86<=Onderwerpen!$C$17,Onderwerpen!$A$17,IF(C86<=Onderwerpen!$C$18,Onderwerpen!$A$18,IF(C86<=Onderwerpen!$C$19,Onderwerpen!$A$19,IF(C86<=Onderwerpen!$C$20,Onderwerpen!$A$20,IF(C86<=Onderwerpen!$C$21,Onderwerpen!$A$21,IF(C86<=Onderwerpen!$C$22,Onderwerpen!$A$22,IF(C86<=Onderwerpen!$C$23,Onderwerpen!$A$22,"")))))))))))))))))))) -> 8 Gevaarlijke producten | C86: =IF(Onderwerpen!$B$4+1=A86,Onderwerpen!$A$5,IF(SUM(Onderwerpen!$B$4:$B$5)+2=A86,Onderwerpen!$A$6,IF(SUM(Onderwerpen!$B$4:$B$6)+3=A86,Onderwerpen!$A$7,IF(SUM(Onderwerpen!$B$4:$B$7)+4=A86,Onderwerpen!$A$8,IF(SUM(Onderwerpen!$B$4:$B$8)+5=A86,Onderwerpen!$A$9,IF(SUM(Onderwerpen!$B$4:$B$9)+6=A86,Onderwerpen!$A$10,IF(SUM(Onderwerpen!$B$4:$B$10)+7=A86,Onderwerpen!$A$11,IF(SUM(Onderwerpen!$B$4:$B$11)+8=A86,Onderwerpen!$A$12,IF(SUM(Onderwerpen!$B$4:$B$12)+9=A86,Onderwerpen!$A$13,IF(SUM(Onderwerpen!$B$4:$B$13)+10=A86,Onderwerpen!$A$14,IF(SUM(Onderwerpen!$B$4:$B$14)+11=A86,Onderwerpen!$A$15,IF(SUM(Onderwerpen!$B$4:$B$15)+12=A86,Onderwerpen!$A$16,IF(SUM(Onderwerpen!$B$4:$B$16)+13=A86,Onderwerpen!$A$17,IF(SUM(Onderwerpen!$B$4:$B$17)+14=A86,Onderwerpen!$A$18,IF(SUM(Onderwerpen!$B$4:$B$18)+15=A86,Onderwerpen!$A$19,IF(SUM(Onderwerpen!$B$4:$B$19)+16=A86,Onderwerpen!$A$20,IF(SUM(Onderwerpen!$B$4:$B$20)+17=A86,Onderwerpen!$A$21,IF(SUM(Onderwerpen!$B$4:$B$21)+18=A86,Onderwerpen!$A$22,IF(SUM(Onderwerpen!$B$4:$B$22)+19=A86,Onderwerpen!$A$23,IFERROR((IF(A86<Onderwerpen!$D$4,A86,IF(AND(A86>Onderwerpen!$D$4,A86<Onderwerpen!$D$5),A86-1,IF(AND(A86>Onderwerpen!$D$5,A86<Onderwerpen!$D$6),A86-2,IF(AND(A86>Onderwerpen!$D$6,A86<Onderwerpen!$D$7),A86-3,IF(AND(A86>Onderwerpen!$D$7,A86<Onderwerpen!$D$8),A86-4,IF(AND(A86>Onderwerpen!$D$8,A86<Onderwerpen!$D$9),A86-5,IF(AND(A86>Onderwerpen!$D$9,A86<Onderwerpen!$D$10),A86-6,IF(AND(A86>Onderwerpen!$D$10,A86<Onderwerpen!$D$11),A86-7,IF(AND(A86>Onderwerpen!$D$11,A86<Onderwerpen!$D$12),A86-8,IF(AND(A86>Onderwerpen!$D$12,A86<Onderwerpen!$D$13),A86-9,IF(AND(A86>Onderwerpen!$D$13,A86<Onderwerpen!$D$14),A86-10,IF(AND(A86>Onderwerpen!$D$14,A86<Onderwerpen!$D$15),A86-11,IF(AND(A86>Onderwerpen!$D$15,A86<Onderwerpen!$D$16),A86-12,IF(AND(A86>Onderwerpen!$D$16,A86<Onderwerpen!$D$17),A86-13,IF(AND(A86>Onderwerpen!$D$17,A86<Onderwerpen!$D$18),A86-14,IF(AND(A86>Onderwerpen!$D$18,A86<Onderwerpen!$D$19),A86-15,IF(AND(A86>Onderwerpen!$D$19,A86<Onderwerpen!$D$20),A86-16,IF(AND(A86>Onderwerpen!$D$20,A86<Onderwerpen!$D$21),A86-17,IF(AND(A86>Onderwerpen!$D$21,A86<Onderwerpen!$D$22),A86-18,IF(A86>Onderwerpen!$D$22,A86-19,"X"))))))))))))))))))))),"")))))))))))))))))))) -> 71 | D86: =IF(B86="",""&C86,LEFT(B86, FIND(" ",B86)-1) & "."&COUNTIF($B$8:B86,B86)) -> 8.12 | E86: Beschikt u over een inventaris van de mogelijke emissiepunten van producten?
A87: =IFERROR(IF(A86=Onderwerpen!$C$23+19,"",A86+1),"") -> 79 | B87: =IF(C87<=Onderwerpen!$C$4,Onderwerpen!$A$4,IF(C87<=Onderwerpen!$C$5,Onderwerpen!$A$5,IF(C87<=Onderwerpen!$C$6,Onderwerpen!$A$6,IF(C87<=Onderwerpen!$C$7,Onderwerpen!$A$7,IF(C87<=Onderwerpen!$C$8,Onderwerpen!$A$8,IF(C87<=Onderwerpen!$C$9,Onderwerpen!$A$9,IF(C87<=Onderwerpen!C$10,Onderwerpen!$A$10,IF(C87<=Onderwerpen!C$11,Onderwerpen!$A$11,IF(C87<=Onderwerpen!C$12,Onderwerpen!$A$12,IF(C87<=Onderwerpen!C$13,Onderwerpen!$A$13,IF(C87<=Onderwerpen!$C$14,Onderwerpen!$A$14,IF(C87<=Onderwerpen!$C$15,Onderwerpen!$A$15,IF(C87<=Onderwerpen!$C$16,Onderwerpen!$A$16,IF(C87<=Onderwerpen!$C$17,Onderwerpen!$A$17,IF(C87<=Onderwerpen!$C$18,Onderwerpen!$A$18,IF(C87<=Onderwerpen!$C$19,Onderwerpen!$A$19,IF(C87<=Onderwerpen!$C$20,Onderwerpen!$A$20,IF(C87<=Onderwerpen!$C$21,Onderwerpen!$A$21,IF(C87<=Onderwerpen!$C$22,Onderwerpen!$A$22,IF(C87<=Onderwerpen!$C$23,Onderwerpen!$A$22,"")))))))))))))))))))) -> 8 Gevaarlijke producten | C87: =IF(Onderwerpen!$B$4+1=A87,Onderwerpen!$A$5,IF(SUM(Onderwerpen!$B$4:$B$5)+2=A87,Onderwerpen!$A$6,IF(SUM(Onderwerpen!$B$4:$B$6)+3=A87,Onderwerpen!$A$7,IF(SUM(Onderwerpen!$B$4:$B$7)+4=A87,Onderwerpen!$A$8,IF(SUM(Onderwerpen!$B$4:$B$8)+5=A87,Onderwerpen!$A$9,IF(SUM(Onderwerpen!$B$4:$B$9)+6=A87,Onderwerpen!$A$10,IF(SUM(Onderwerpen!$B$4:$B$10)+7=A87,Onderwerpen!$A$11,IF(SUM(Onderwerpen!$B$4:$B$11)+8=A87,Onderwerpen!$A$12,IF(SUM(Onderwerpen!$B$4:$B$12)+9=A87,Onderwerpen!$A$13,IF(SUM(Onderwerpen!$B$4:$B$13)+10=A87,Onderwerpen!$A$14,IF(SUM(Onderwerpen!$B$4:$B$14)+11=A87,Onderwerpen!$A$15,IF(SUM(Onderwerpen!$B$4:$B$15)+12=A87,Onderwerpen!$A$16,IF(SUM(Onderwerpen!$B$4:$B$16)+13=A87,Onderwerpen!$A$17,IF(SUM(Onderwerpen!$B$4:$B$17)+14=A87,Onderwerpen!$A$18,IF(SUM(Onderwerpen!$B$4:$B$18)+15=A87,Onderwerpen!$A$19,IF(SUM(Onderwerpen!$B$4:$B$19)+16=A87,Onderwerpen!$A$20,IF(SUM(Onderwerpen!$B$4:$B$20)+17=A87,Onderwerpen!$A$21,IF(SUM(Onderwerpen!$B$4:$B$21)+18=A87,Onderwerpen!$A$22,IF(SUM(Onderwerpen!$B$4:$B$22)+19=A87,Onderwerpen!$A$23,IFERROR((IF(A87<Onderwerpen!$D$4,A87,IF(AND(A87>Onderwerpen!$D$4,A87<Onderwerpen!$D$5),A87-1,IF(AND(A87>Onderwerpen!$D$5,A87<Onderwerpen!$D$6),A87-2,IF(AND(A87>Onderwerpen!$D$6,A87<Onderwerpen!$D$7),A87-3,IF(AND(A87>Onderwerpen!$D$7,A87<Onderwerpen!$D$8),A87-4,IF(AND(A87>Onderwerpen!$D$8,A87<Onderwerpen!$D$9),A87-5,IF(AND(A87>Onderwerpen!$D$9,A87<Onderwerpen!$D$10),A87-6,IF(AND(A87>Onderwerpen!$D$10,A87<Onderwerpen!$D$11),A87-7,IF(AND(A87>Onderwerpen!$D$11,A87<Onderwerpen!$D$12),A87-8,IF(AND(A87>Onderwerpen!$D$12,A87<Onderwerpen!$D$13),A87-9,IF(AND(A87>Onderwerpen!$D$13,A87<Onderwerpen!$D$14),A87-10,IF(AND(A87>Onderwerpen!$D$14,A87<Onderwerpen!$D$15),A87-11,IF(AND(A87>Onderwerpen!$D$15,A87<Onderwerpen!$D$16),A87-12,IF(AND(A87>Onderwerpen!$D$16,A87<Onderwerpen!$D$17),A87-13,IF(AND(A87>Onderwerpen!$D$17,A87<Onderwerpen!$D$18),A87-14,IF(AND(A87>Onderwerpen!$D$18,A87<Onderwerpen!$D$19),A87-15,IF(AND(A87>Onderwerpen!$D$19,A87<Onderwerpen!$D$20),A87-16,IF(AND(A87>Onderwerpen!$D$20,A87<Onderwerpen!$D$21),A87-17,IF(AND(A87>Onderwerpen!$D$21,A87<Onderwerpen!$D$22),A87-18,IF(A87>Onderwerpen!$D$22,A87-19,"X"))))))))))))))))))))),"")))))))))))))))))))) -> 72 | D87: =IF(B87="",""&C87,LEFT(B87, FIND(" ",B87)-1) & "."&COUNTIF($B$8:B87,B87)) -> 8.13
A88: =IFERROR(IF(A87=Onderwerpen!$C$23+19,"",A87+1),"") -> 80 | B88: =IF(C88<=Onderwerpen!$C$4,Onderwerpen!$A$4,IF(C88<=Onderwerpen!$C$5,Onderwerpen!$A$5,IF(C88<=Onderwerpen!$C$6,Onderwerpen!$A$6,IF(C88<=Onderwerpen!$C$7,Onderwerpen!$A$7,IF(C88<=Onderwerpen!$C$8,Onderwerpen!$A$8,IF(C88<=Onderwerpen!$C$9,Onderwerpen!$A$9,IF(C88<=Onderwerpen!C$10,Onderwerpen!$A$10,IF(C88<=Onderwerpen!C$11,Onderwerpen!$A$11,IF(C88<=Onderwerpen!C$12,Onderwerpen!$A$12,IF(C88<=Onderwerpen!C$13,Onderwerpen!$A$13,IF(C88<=Onderwerpen!$C$14,Onderwerpen!$A$14,IF(C88<=Onderwerpen!$C$15,Onderwerpen!$A$15,IF(C88<=Onderwerpen!$C$16,Onderwerpen!$A$16,IF(C88<=Onderwerpen!$C$17,Onderwerpen!$A$17,IF(C88<=Onderwerpen!$C$18,Onderwerpen!$A$18,IF(C88<=Onderwerpen!$C$19,Onderwerpen!$A$19,IF(C88<=Onderwerpen!$C$20,Onderwerpen!$A$20,IF(C88<=Onderwerpen!$C$21,Onderwerpen!$A$21,IF(C88<=Onderwerpen!$C$22,Onderwerpen!$A$22,IF(C88<=Onderwerpen!$C$23,Onderwerpen!$A$22,"")))))))))))))))))))) ->  | C88: =IF(Onderwerpen!$B$4+1=A88,Onderwerpen!$A$5,IF(SUM(Onderwerpen!$B$4:$B$5)+2=A88,Onderwerpen!$A$6,IF(SUM(Onderwerpen!$B$4:$B$6)+3=A88,Onderwerpen!$A$7,IF(SUM(Onderwerpen!$B$4:$B$7)+4=A88,Onderwerpen!$A$8,IF(SUM(Onderwerpen!$B$4:$B$8)+5=A88,Onderwerpen!$A$9,IF(SUM(Onderwerpen!$B$4:$B$9)+6=A88,Onderwerpen!$A$10,IF(SUM(Onderwerpen!$B$4:$B$10)+7=A88,Onderwerpen!$A$11,IF(SUM(Onderwerpen!$B$4:$B$11)+8=A88,Onderwerpen!$A$12,IF(SUM(Onderwerpen!$B$4:$B$12)+9=A88,Onderwerpen!$A$13,IF(SUM(Onderwerpen!$B$4:$B$13)+10=A88,Onderwerpen!$A$14,IF(SUM(Onderwerpen!$B$4:$B$14)+11=A88,Onderwerpen!$A$15,IF(SUM(Onderwerpen!$B$4:$B$15)+12=A88,Onderwerpen!$A$16,IF(SUM(Onderwerpen!$B$4:$B$16)+13=A88,Onderwerpen!$A$17,IF(SUM(Onderwerpen!$B$4:$B$17)+14=A88,Onderwerpen!$A$18,IF(SUM(Onderwerpen!$B$4:$B$18)+15=A88,Onderwerpen!$A$19,IF(SUM(Onderwerpen!$B$4:$B$19)+16=A88,Onderwerpen!$A$20,IF(SUM(Onderwerpen!$B$4:$B$20)+17=A88,Onderwerpen!$A$21,IF(SUM(Onderwerpen!$B$4:$B$21)+18=A88,Onderwerpen!$A$22,IF(SUM(Onderwerpen!$B$4:$B$22)+19=A88,Onderwerpen!$A$23,IFERROR((IF(A88<Onderwerpen!$D$4,A88,IF(AND(A88>Onderwerpen!$D$4,A88<Onderwerpen!$D$5),A88-1,IF(AND(A88>Onderwerpen!$D$5,A88<Onderwerpen!$D$6),A88-2,IF(AND(A88>Onderwerpen!$D$6,A88<Onderwerpen!$D$7),A88-3,IF(AND(A88>Onderwerpen!$D$7,A88<Onderwerpen!$D$8),A88-4,IF(AND(A88>Onderwerpen!$D$8,A88<Onderwerpen!$D$9),A88-5,IF(AND(A88>Onderwerpen!$D$9,A88<Onderwerpen!$D$10),A88-6,IF(AND(A88>Onderwerpen!$D$10,A88<Onderwerpen!$D$11),A88-7,IF(AND(A88>Onderwerpen!$D$11,A88<Onderwerpen!$D$12),A88-8,IF(AND(A88>Onderwerpen!$D$12,A88<Onderwerpen!$D$13),A88-9,IF(AND(A88>Onderwerpen!$D$13,A88<Onderwerpen!$D$14),A88-10,IF(AND(A88>Onderwerpen!$D$14,A88<Onderwerpen!$D$15),A88-11,IF(AND(A88>Onderwerpen!$D$15,A88<Onderwerpen!$D$16),A88-12,IF(AND(A88>Onderwerpen!$D$16,A88<Onderwerpen!$D$17),A88-13,IF(AND(A88>Onderwerpen!$D$17,A88<Onderwerpen!$D$18),A88-14,IF(AND(A88>Onderwerpen!$D$18,A88<Onderwerpen!$D$19),A88-15,IF(AND(A88>Onderwerpen!$D$19,A88<Onderwerpen!$D$20),A88-16,IF(AND(A88>Onderwerpen!$D$20,A88<Onderwerpen!$D$21),A88-17,IF(AND(A88>Onderwerpen!$D$21,A88<Onderwerpen!$D$22),A88-18,IF(A88>Onderwerpen!$D$22,A88-19,"X"))))))))))))))))))))),"")))))))))))))))))))) -> 9 Brand en noodplan | D88: =IF(B88="",""&C88,LEFT(B88, FIND(" ",B88)-1) & "."&COUNTIF($B$8:B88,B88)) -> 9 Brand en noodplan
A89: =IFERROR(IF(A88=Onderwerpen!$C$23+19,"",A88+1),"") -> 81 | B89: =IF(C89<=Onderwerpen!$C$4,Onderwerpen!$A$4,IF(C89<=Onderwerpen!$C$5,Onderwerpen!$A$5,IF(C89<=Onderwerpen!$C$6,Onderwerpen!$A$6,IF(C89<=Onderwerpen!$C$7,Onderwerpen!$A$7,IF(C89<=Onderwerpen!$C$8,Onderwerpen!$A$8,IF(C89<=Onderwerpen!$C$9,Onderwerpen!$A$9,IF(C89<=Onderwerpen!C$10,Onderwerpen!$A$10,IF(C89<=Onderwerpen!C$11,Onderwerpen!$A$11,IF(C89<=Onderwerpen!C$12,Onderwerpen!$A$12,IF(C89<=Onderwerpen!C$13,Onderwerpen!$A$13,IF(C89<=Onderwerpen!$C$14,Onderwerpen!$A$14,IF(C89<=Onderwerpen!$C$15,Onderwerpen!$A$15,IF(C89<=Onderwerpen!$C$16,Onderwerpen!$A$16,IF(C89<=Onderwerpen!$C$17,Onderwerpen!$A$17,IF(C89<=Onderwerpen!$C$18,Onderwerpen!$A$18,IF(C89<=Onderwerpen!$C$19,Onderwerpen!$A$19,IF(C89<=Onderwerpen!$C$20,Onderwerpen!$A$20,IF(C89<=Onderwerpen!$C$21,Onderwerpen!$A$21,IF(C89<=Onderwerpen!$C$22,Onderwerpen!$A$22,IF(C89<=Onderwerpen!$C$23,Onderwerpen!$A$22,"")))))))))))))))))))) -> 9 Brand en noodplan | C89: =IF(Onderwerpen!$B$4+1=A89,Onderwerpen!$A$5,IF(SUM(Onderwerpen!$B$4:$B$5)+2=A89,Onderwerpen!$A$6,IF(SUM(Onderwerpen!$B$4:$B$6)+3=A89,Onderwerpen!$A$7,IF(SUM(Onderwerpen!$B$4:$B$7)+4=A89,Onderwerpen!$A$8,IF(SUM(Onderwerpen!$B$4:$B$8)+5=A89,Onderwerpen!$A$9,IF(SUM(Onderwerpen!$B$4:$B$9)+6=A89,Onderwerpen!$A$10,IF(SUM(Onderwerpen!$B$4:$B$10)+7=A89,Onderwerpen!$A$11,IF(SUM(Onderwerpen!$B$4:$B$11)+8=A89,Onderwerpen!$A$12,IF(SUM(Onderwerpen!$B$4:$B$12)+9=A89,Onderwerpen!$A$13,IF(SUM(Onderwerpen!$B$4:$B$13)+10=A89,Onderwerpen!$A$14,IF(SUM(Onderwerpen!$B$4:$B$14)+11=A89,Onderwerpen!$A$15,IF(SUM(Onderwerpen!$B$4:$B$15)+12=A89,Onderwerpen!$A$16,IF(SUM(Onderwerpen!$B$4:$B$16)+13=A89,Onderwerpen!$A$17,IF(SUM(Onderwerpen!$B$4:$B$17)+14=A89,Onderwerpen!$A$18,IF(SUM(Onderwerpen!$B$4:$B$18)+15=A89,Onderwerpen!$A$19,IF(SUM(Onderwerpen!$B$4:$B$19)+16=A89,Onderwerpen!$A$20,IF(SUM(Onderwerpen!$B$4:$B$20)+17=A89,Onderwerpen!$A$21,IF(SUM(Onderwerpen!$B$4:$B$21)+18=A89,Onderwerpen!$A$22,IF(SUM(Onderwerpen!$B$4:$B$22)+19=A89,Onderwerpen!$A$23,IFERROR((IF(A89<Onderwerpen!$D$4,A89,IF(AND(A89>Onderwerpen!$D$4,A89<Onderwerpen!$D$5),A89-1,IF(AND(A89>Onderwerpen!$D$5,A89<Onderwerpen!$D$6),A89-2,IF(AND(A89>Onderwerpen!$D$6,A89<Onderwerpen!$D$7),A89-3,IF(AND(A89>Onderwerpen!$D$7,A89<Onderwerpen!$D$8),A89-4,IF(AND(A89>Onderwerpen!$D$8,A89<Onderwerpen!$D$9),A89-5,IF(AND(A89>Onderwerpen!$D$9,A89<Onderwerpen!$D$10),A89-6,IF(AND(A89>Onderwerpen!$D$10,A89<Onderwerpen!$D$11),A89-7,IF(AND(A89>Onderwerpen!$D$11,A89<Onderwerpen!$D$12),A89-8,IF(AND(A89>Onderwerpen!$D$12,A89<Onderwerpen!$D$13),A89-9,IF(AND(A89>Onderwerpen!$D$13,A89<Onderwerpen!$D$14),A89-10,IF(AND(A89>Onderwerpen!$D$14,A89<Onderwerpen!$D$15),A89-11,IF(AND(A89>Onderwerpen!$D$15,A89<Onderwerpen!$D$16),A89-12,IF(AND(A89>Onderwerpen!$D$16,A89<Onderwerpen!$D$17),A89-13,IF(AND(A89>Onderwerpen!$D$17,A89<Onderwerpen!$D$18),A89-14,IF(AND(A89>Onderwerpen!$D$18,A89<Onderwerpen!$D$19),A89-15,IF(AND(A89>Onderwerpen!$D$19,A89<Onderwerpen!$D$20),A89-16,IF(AND(A89>Onderwerpen!$D$20,A89<Onderwerpen!$D$21),A89-17,IF(AND(A89>Onderwerpen!$D$21,A89<Onderwerpen!$D$22),A89-18,IF(A89>Onderwerpen!$D$22,A89-19,"X"))))))))))))))))))))),"")))))))))))))))))))) -> 73 | D89: =IF(B89="",""&C89,LEFT(B89, FIND(" ",B89)-1) & "."&COUNTIF($B$8:B89,B89)) -> 9.1
A90: =IFERROR(IF(A89=Onderwerpen!$C$23+19,"",A89+1),"") -> 82 | B90: =IF(C90<=Onderwerpen!$C$4,Onderwerpen!$A$4,IF(C90<=Onderwerpen!$C$5,Onderwerpen!$A$5,IF(C90<=Onderwerpen!$C$6,Onderwerpen!$A$6,IF(C90<=Onderwerpen!$C$7,Onderwerpen!$A$7,IF(C90<=Onderwerpen!$C$8,Onderwerpen!$A$8,IF(C90<=Onderwerpen!$C$9,Onderwerpen!$A$9,IF(C90<=Onderwerpen!C$10,Onderwerpen!$A$10,IF(C90<=Onderwerpen!C$11,Onderwerpen!$A$11,IF(C90<=Onderwerpen!C$12,Onderwerpen!$A$12,IF(C90<=Onderwerpen!C$13,Onderwerpen!$A$13,IF(C90<=Onderwerpen!$C$14,Onderwerpen!$A$14,IF(C90<=Onderwerpen!$C$15,Onderwerpen!$A$15,IF(C90<=Onderwerpen!$C$16,Onderwerpen!$A$16,IF(C90<=Onderwerpen!$C$17,Onderwerpen!$A$17,IF(C90<=Onderwerpen!$C$18,Onderwerpen!$A$18,IF(C90<=Onderwerpen!$C$19,Onderwerpen!$A$19,IF(C90<=Onderwerpen!$C$20,Onderwerpen!$A$20,IF(C90<=Onderwerpen!$C$21,Onderwerpen!$A$21,IF(C90<=Onderwerpen!$C$22,Onderwerpen!$A$22,IF(C90<=Onderwerpen!$C$23,Onderwerpen!$A$22,"")))))))))))))))))))) -> 9 Brand en noodplan | C90: =IF(Onderwerpen!$B$4+1=A90,Onderwerpen!$A$5,IF(SUM(Onderwerpen!$B$4:$B$5)+2=A90,Onderwerpen!$A$6,IF(SUM(Onderwerpen!$B$4:$B$6)+3=A90,Onderwerpen!$A$7,IF(SUM(Onderwerpen!$B$4:$B$7)+4=A90,Onderwerpen!$A$8,IF(SUM(Onderwerpen!$B$4:$B$8)+5=A90,Onderwerpen!$A$9,IF(SUM(Onderwerpen!$B$4:$B$9)+6=A90,Onderwerpen!$A$10,IF(SUM(Onderwerpen!$B$4:$B$10)+7=A90,Onderwerpen!$A$11,IF(SUM(Onderwerpen!$B$4:$B$11)+8=A90,Onderwerpen!$A$12,IF(SUM(Onderwerpen!$B$4:$B$12)+9=A90,Onderwerpen!$A$13,IF(SUM(Onderwerpen!$B$4:$B$13)+10=A90,Onderwerpen!$A$14,IF(SUM(Onderwerpen!$B$4:$B$14)+11=A90,Onderwerpen!$A$15,IF(SUM(Onderwerpen!$B$4:$B$15)+12=A90,Onderwerpen!$A$16,IF(SUM(Onderwerpen!$B$4:$B$16)+13=A90,Onderwerpen!$A$17,IF(SUM(Onderwerpen!$B$4:$B$17)+14=A90,Onderwerpen!$A$18,IF(SUM(Onderwerpen!$B$4:$B$18)+15=A90,Onderwerpen!$A$19,IF(SUM(Onderwerpen!$B$4:$B$19)+16=A90,Onderwerpen!$A$20,IF(SUM(Onderwerpen!$B$4:$B$20)+17=A90,Onderwerpen!$A$21,IF(SUM(Onderwerpen!$B$4:$B$21)+18=A90,Onderwerpen!$A$22,IF(SUM(Onderwerpen!$B$4:$B$22)+19=A90,Onderwerpen!$A$23,IFERROR((IF(A90<Onderwerpen!$D$4,A90,IF(AND(A90>Onderwerpen!$D$4,A90<Onderwerpen!$D$5),A90-1,IF(AND(A90>Onderwerpen!$D$5,A90<Onderwerpen!$D$6),A90-2,IF(AND(A90>Onderwerpen!$D$6,A90<Onderwerpen!$D$7),A90-3,IF(AND(A90>Onderwerpen!$D$7,A90<Onderwerpen!$D$8),A90-4,IF(AND(A90>Onderwerpen!$D$8,A90<Onderwerpen!$D$9),A90-5,IF(AND(A90>Onderwerpen!$D$9,A90<Onderwerpen!$D$10),A90-6,IF(AND(A90>Onderwerpen!$D$10,A90<Onderwerpen!$D$11),A90-7,IF(AND(A90>Onderwerpen!$D$11,A90<Onderwerpen!$D$12),A90-8,IF(AND(A90>Onderwerpen!$D$12,A90<Onderwerpen!$D$13),A90-9,IF(AND(A90>Onderwerpen!$D$13,A90<Onderwerpen!$D$14),A90-10,IF(AND(A90>Onderwerpen!$D$14,A90<Onderwerpen!$D$15),A90-11,IF(AND(A90>Onderwerpen!$D$15,A90<Onderwerpen!$D$16),A90-12,IF(AND(A90>Onderwerpen!$D$16,A90<Onderwerpen!$D$17),A90-13,IF(AND(A90>Onderwerpen!$D$17,A90<Onderwerpen!$D$18),A90-14,IF(AND(A90>Onderwerpen!$D$18,A90<Onderwerpen!$D$19),A90-15,IF(AND(A90>Onderwerpen!$D$19,A90<Onderwerpen!$D$20),A90-16,IF(AND(A90>Onderwerpen!$D$20,A90<Onderwerpen!$D$21),A90-17,IF(AND(A90>Onderwerpen!$D$21,A90<Onderwerpen!$D$22),A90-18,IF(A90>Onderwerpen!$D$22,A90-19,"X"))))))))))))))))))))),"")))))))))))))))))))) -> 74 | D90: =IF(B90="",""&C90,LEFT(B90, FIND(" ",B90)-1) & "."&COUNTIF($B$8:B90,B90)) -> 9.2
A91: =IFERROR(IF(A90=Onderwerpen!$C$23+19,"",A90+1),"") -> 83 | B91: =IF(C91<=Onderwerpen!$C$4,Onderwerpen!$A$4,IF(C91<=Onderwerpen!$C$5,Onderwerpen!$A$5,IF(C91<=Onderwerpen!$C$6,Onderwerpen!$A$6,IF(C91<=Onderwerpen!$C$7,Onderwerpen!$A$7,IF(C91<=Onderwerpen!$C$8,Onderwerpen!$A$8,IF(C91<=Onderwerpen!$C$9,Onderwerpen!$A$9,IF(C91<=Onderwerpen!C$10,Onderwerpen!$A$10,IF(C91<=Onderwerpen!C$11,Onderwerpen!$A$11,IF(C91<=Onderwerpen!C$12,Onderwerpen!$A$12,IF(C91<=Onderwerpen!C$13,Onderwerpen!$A$13,IF(C91<=Onderwerpen!$C$14,Onderwerpen!$A$14,IF(C91<=Onderwerpen!$C$15,Onderwerpen!$A$15,IF(C91<=Onderwerpen!$C$16,Onderwerpen!$A$16,IF(C91<=Onderwerpen!$C$17,Onderwerpen!$A$17,IF(C91<=Onderwerpen!$C$18,Onderwerpen!$A$18,IF(C91<=Onderwerpen!$C$19,Onderwerpen!$A$19,IF(C91<=Onderwerpen!$C$20,Onderwerpen!$A$20,IF(C91<=Onderwerpen!$C$21,Onderwerpen!$A$21,IF(C91<=Onderwerpen!$C$22,Onderwerpen!$A$22,IF(C91<=Onderwerpen!$C$23,Onderwerpen!$A$22,"")))))))))))))))))))) -> 9 Brand en noodplan | C91: =IF(Onderwerpen!$B$4+1=A91,Onderwerpen!$A$5,IF(SUM(Onderwerpen!$B$4:$B$5)+2=A91,Onderwerpen!$A$6,IF(SUM(Onderwerpen!$B$4:$B$6)+3=A91,Onderwerpen!$A$7,IF(SUM(Onderwerpen!$B$4:$B$7)+4=A91,Onderwerpen!$A$8,IF(SUM(Onderwerpen!$B$4:$B$8)+5=A91,Onderwerpen!$A$9,IF(SUM(Onderwerpen!$B$4:$B$9)+6=A91,Onderwerpen!$A$10,IF(SUM(Onderwerpen!$B$4:$B$10)+7=A91,Onderwerpen!$A$11,IF(SUM(Onderwerpen!$B$4:$B$11)+8=A91,Onderwerpen!$A$12,IF(SUM(Onderwerpen!$B$4:$B$12)+9=A91,Onderwerpen!$A$13,IF(SUM(Onderwerpen!$B$4:$B$13)+10=A91,Onderwerpen!$A$14,IF(SUM(Onderwerpen!$B$4:$B$14)+11=A91,Onderwerpen!$A$15,IF(SUM(Onderwerpen!$B$4:$B$15)+12=A91,Onderwerpen!$A$16,IF(SUM(Onderwerpen!$B$4:$B$16)+13=A91,Onderwerpen!$A$17,IF(SUM(Onderwerpen!$B$4:$B$17)+14=A91,Onderwerpen!$A$18,IF(SUM(Onderwerpen!$B$4:$B$18)+15=A91,Onderwerpen!$A$19,IF(SUM(Onderwerpen!$B$4:$B$19)+16=A91,Onderwerpen!$A$20,IF(SUM(Onderwerpen!$B$4:$B$20)+17=A91,Onderwerpen!$A$21,IF(SUM(Onderwerpen!$B$4:$B$21)+18=A91,Onderwerpen!$A$22,IF(SUM(Onderwerpen!$B$4:$B$22)+19=A91,Onderwerpen!$A$23,IFERROR((IF(A91<Onderwerpen!$D$4,A91,IF(AND(A91>Onderwerpen!$D$4,A91<Onderwerpen!$D$5),A91-1,IF(AND(A91>Onderwerpen!$D$5,A91<Onderwerpen!$D$6),A91-2,IF(AND(A91>Onderwerpen!$D$6,A91<Onderwerpen!$D$7),A91-3,IF(AND(A91>Onderwerpen!$D$7,A91<Onderwerpen!$D$8),A91-4,IF(AND(A91>Onderwerpen!$D$8,A91<Onderwerpen!$D$9),A91-5,IF(AND(A91>Onderwerpen!$D$9,A91<Onderwerpen!$D$10),A91-6,IF(AND(A91>Onderwerpen!$D$10,A91<Onderwerpen!$D$11),A91-7,IF(AND(A91>Onderwerpen!$D$11,A91<Onderwerpen!$D$12),A91-8,IF(AND(A91>Onderwerpen!$D$12,A91<Onderwerpen!$D$13),A91-9,IF(AND(A91>Onderwerpen!$D$13,A91<Onderwerpen!$D$14),A91-10,IF(AND(A91>Onderwerpen!$D$14,A91<Onderwerpen!$D$15),A91-11,IF(AND(A91>Onderwerpen!$D$15,A91<Onderwerpen!$D$16),A91-12,IF(AND(A91>Onderwerpen!$D$16,A91<Onderwerpen!$D$17),A91-13,IF(AND(A91>Onderwerpen!$D$17,A91<Onderwerpen!$D$18),A91-14,IF(AND(A91>Onderwerpen!$D$18,A91<Onderwerpen!$D$19),A91-15,IF(AND(A91>Onderwerpen!$D$19,A91<Onderwerpen!$D$20),A91-16,IF(AND(A91>Onderwerpen!$D$20,A91<Onderwerpen!$D$21),A91-17,IF(AND(A91>Onderwerpen!$D$21,A91<Onderwerpen!$D$22),A91-18,IF(A91>Onderwerpen!$D$22,A91-19,"X"))))))))))))))))))))),"")))))))))))))))))))) -> 75 | D91: =IF(B91="",""&C91,LEFT(B91, FIND(" ",B91)-1) & "."&COUNTIF($B$8:B91,B91)) -> 9.3
A92: =IFERROR(IF(A91=Onderwerpen!$C$23+19,"",A91+1),"") -> 84 | B92: =IF(C92<=Onderwerpen!$C$4,Onderwerpen!$A$4,IF(C92<=Onderwerpen!$C$5,Onderwerpen!$A$5,IF(C92<=Onderwerpen!$C$6,Onderwerpen!$A$6,IF(C92<=Onderwerpen!$C$7,Onderwerpen!$A$7,IF(C92<=Onderwerpen!$C$8,Onderwerpen!$A$8,IF(C92<=Onderwerpen!$C$9,Onderwerpen!$A$9,IF(C92<=Onderwerpen!C$10,Onderwerpen!$A$10,IF(C92<=Onderwerpen!C$11,Onderwerpen!$A$11,IF(C92<=Onderwerpen!C$12,Onderwerpen!$A$12,IF(C92<=Onderwerpen!C$13,Onderwerpen!$A$13,IF(C92<=Onderwerpen!$C$14,Onderwerpen!$A$14,IF(C92<=Onderwerpen!$C$15,Onderwerpen!$A$15,IF(C92<=Onderwerpen!$C$16,Onderwerpen!$A$16,IF(C92<=Onderwerpen!$C$17,Onderwerpen!$A$17,IF(C92<=Onderwerpen!$C$18,Onderwerpen!$A$18,IF(C92<=Onderwerpen!$C$19,Onderwerpen!$A$19,IF(C92<=Onderwerpen!$C$20,Onderwerpen!$A$20,IF(C92<=Onderwerpen!$C$21,Onderwerpen!$A$21,IF(C92<=Onderwerpen!$C$22,Onderwerpen!$A$22,IF(C92<=Onderwerpen!$C$23,Onderwerpen!$A$22,"")))))))))))))))))))) -> 9 Brand en noodplan | C92: =IF(Onderwerpen!$B$4+1=A92,Onderwerpen!$A$5,IF(SUM(Onderwerpen!$B$4:$B$5)+2=A92,Onderwerpen!$A$6,IF(SUM(Onderwerpen!$B$4:$B$6)+3=A92,Onderwerpen!$A$7,IF(SUM(Onderwerpen!$B$4:$B$7)+4=A92,Onderwerpen!$A$8,IF(SUM(Onderwerpen!$B$4:$B$8)+5=A92,Onderwerpen!$A$9,IF(SUM(Onderwerpen!$B$4:$B$9)+6=A92,Onderwerpen!$A$10,IF(SUM(Onderwerpen!$B$4:$B$10)+7=A92,Onderwerpen!$A$11,IF(SUM(Onderwerpen!$B$4:$B$11)+8=A92,Onderwerpen!$A$12,IF(SUM(Onderwerpen!$B$4:$B$12)+9=A92,Onderwerpen!$A$13,IF(SUM(Onderwerpen!$B$4:$B$13)+10=A92,Onderwerpen!$A$14,IF(SUM(Onderwerpen!$B$4:$B$14)+11=A92,Onderwerpen!$A$15,IF(SUM(Onderwerpen!$B$4:$B$15)+12=A92,Onderwerpen!$A$16,IF(SUM(Onderwerpen!$B$4:$B$16)+13=A92,Onderwerpen!$A$17,IF(SUM(Onderwerpen!$B$4:$B$17)+14=A92,Onderwerpen!$A$18,IF(SUM(Onderwerpen!$B$4:$B$18)+15=A92,Onderwerpen!$A$19,IF(SUM(Onderwerpen!$B$4:$B$19)+16=A92,Onderwerpen!$A$20,IF(SUM(Onderwerpen!$B$4:$B$20)+17=A92,Onderwerpen!$A$21,IF(SUM(Onderwerpen!$B$4:$B$21)+18=A92,Onderwerpen!$A$22,IF(SUM(Onderwerpen!$B$4:$B$22)+19=A92,Onderwerpen!$A$23,IFERROR((IF(A92<Onderwerpen!$D$4,A92,IF(AND(A92>Onderwerpen!$D$4,A92<Onderwerpen!$D$5),A92-1,IF(AND(A92>Onderwerpen!$D$5,A92<Onderwerpen!$D$6),A92-2,IF(AND(A92>Onderwerpen!$D$6,A92<Onderwerpen!$D$7),A92-3,IF(AND(A92>Onderwerpen!$D$7,A92<Onderwerpen!$D$8),A92-4,IF(AND(A92>Onderwerpen!$D$8,A92<Onderwerpen!$D$9),A92-5,IF(AND(A92>Onderwerpen!$D$9,A92<Onderwerpen!$D$10),A92-6,IF(AND(A92>Onderwerpen!$D$10,A92<Onderwerpen!$D$11),A92-7,IF(AND(A92>Onderwerpen!$D$11,A92<Onderwerpen!$D$12),A92-8,IF(AND(A92>Onderwerpen!$D$12,A92<Onderwerpen!$D$13),A92-9,IF(AND(A92>Onderwerpen!$D$13,A92<Onderwerpen!$D$14),A92-10,IF(AND(A92>Onderwerpen!$D$14,A92<Onderwerpen!$D$15),A92-11,IF(AND(A92>Onderwerpen!$D$15,A92<Onderwerpen!$D$16),A92-12,IF(AND(A92>Onderwerpen!$D$16,A92<Onderwerpen!$D$17),A92-13,IF(AND(A92>Onderwerpen!$D$17,A92<Onderwerpen!$D$18),A92-14,IF(AND(A92>Onderwerpen!$D$18,A92<Onderwerpen!$D$19),A92-15,IF(AND(A92>Onderwerpen!$D$19,A92<Onderwerpen!$D$20),A92-16,IF(AND(A92>Onderwerpen!$D$20,A92<Onderwerpen!$D$21),A92-17,IF(AND(A92>Onderwerpen!$D$21,A92<Onderwerpen!$D$22),A92-18,IF(A92>Onderwerpen!$D$22,A92-19,"X"))))))))))))))))))))),"")))))))))))))))))))) -> 76 | D92: =IF(B92="",""&C92,LEFT(B92, FIND(" ",B92)-1) & "."&COUNTIF($B$8:B92,B92)) -> 9.4
A93: =IFERROR(IF(A92=Onderwerpen!$C$23+19,"",A92+1),"") -> 85 | B93: =IF(C93<=Onderwerpen!$C$4,Onderwerpen!$A$4,IF(C93<=Onderwerpen!$C$5,Onderwerpen!$A$5,IF(C93<=Onderwerpen!$C$6,Onderwerpen!$A$6,IF(C93<=Onderwerpen!$C$7,Onderwerpen!$A$7,IF(C93<=Onderwerpen!$C$8,Onderwerpen!$A$8,IF(C93<=Onderwerpen!$C$9,Onderwerpen!$A$9,IF(C93<=Onderwerpen!C$10,Onderwerpen!$A$10,IF(C93<=Onderwerpen!C$11,Onderwerpen!$A$11,IF(C93<=Onderwerpen!C$12,Onderwerpen!$A$12,IF(C93<=Onderwerpen!C$13,Onderwerpen!$A$13,IF(C93<=Onderwerpen!$C$14,Onderwerpen!$A$14,IF(C93<=Onderwerpen!$C$15,Onderwerpen!$A$15,IF(C93<=Onderwerpen!$C$16,Onderwerpen!$A$16,IF(C93<=Onderwerpen!$C$17,Onderwerpen!$A$17,IF(C93<=Onderwerpen!$C$18,Onderwerpen!$A$18,IF(C93<=Onderwerpen!$C$19,Onderwerpen!$A$19,IF(C93<=Onderwerpen!$C$20,Onderwerpen!$A$20,IF(C93<=Onderwerpen!$C$21,Onderwerpen!$A$21,IF(C93<=Onderwerpen!$C$22,Onderwerpen!$A$22,IF(C93<=Onderwerpen!$C$23,Onderwerpen!$A$22,"")))))))))))))))))))) -> 9 Brand en noodplan | C93: =IF(Onderwerpen!$B$4+1=A93,Onderwerpen!$A$5,IF(SUM(Onderwerpen!$B$4:$B$5)+2=A93,Onderwerpen!$A$6,IF(SUM(Onderwerpen!$B$4:$B$6)+3=A93,Onderwerpen!$A$7,IF(SUM(Onderwerpen!$B$4:$B$7)+4=A93,Onderwerpen!$A$8,IF(SUM(Onderwerpen!$B$4:$B$8)+5=A93,Onderwerpen!$A$9,IF(SUM(Onderwerpen!$B$4:$B$9)+6=A93,Onderwerpen!$A$10,IF(SUM(Onderwerpen!$B$4:$B$10)+7=A93,Onderwerpen!$A$11,IF(SUM(Onderwerpen!$B$4:$B$11)+8=A93,Onderwerpen!$A$12,IF(SUM(Onderwerpen!$B$4:$B$12)+9=A93,Onderwerpen!$A$13,IF(SUM(Onderwerpen!$B$4:$B$13)+10=A93,Onderwerpen!$A$14,IF(SUM(Onderwerpen!$B$4:$B$14)+11=A93,Onderwerpen!$A$15,IF(SUM(Onderwerpen!$B$4:$B$15)+12=A93,Onderwerpen!$A$16,IF(SUM(Onderwerpen!$B$4:$B$16)+13=A93,Onderwerpen!$A$17,IF(SUM(Onderwerpen!$B$4:$B$17)+14=A93,Onderwerpen!$A$18,IF(SUM(Onderwerpen!$B$4:$B$18)+15=A93,Onderwerpen!$A$19,IF(SUM(Onderwerpen!$B$4:$B$19)+16=A93,Onderwerpen!$A$20,IF(SUM(Onderwerpen!$B$4:$B$20)+17=A93,Onderwerpen!$A$21,IF(SUM(Onderwerpen!$B$4:$B$21)+18=A93,Onderwerpen!$A$22,IF(SUM(Onderwerpen!$B$4:$B$22)+19=A93,Onderwerpen!$A$23,IFERROR((IF(A93<Onderwerpen!$D$4,A93,IF(AND(A93>Onderwerpen!$D$4,A93<Onderwerpen!$D$5),A93-1,IF(AND(A93>Onderwerpen!$D$5,A93<Onderwerpen!$D$6),A93-2,IF(AND(A93>Onderwerpen!$D$6,A93<Onderwerpen!$D$7),A93-3,IF(AND(A93>Onderwerpen!$D$7,A93<Onderwerpen!$D$8),A93-4,IF(AND(A93>Onderwerpen!$D$8,A93<Onderwerpen!$D$9),A93-5,IF(AND(A93>Onderwerpen!$D$9,A93<Onderwerpen!$D$10),A93-6,IF(AND(A93>Onderwerpen!$D$10,A93<Onderwerpen!$D$11),A93-7,IF(AND(A93>Onderwerpen!$D$11,A93<Onderwerpen!$D$12),A93-8,IF(AND(A93>Onderwerpen!$D$12,A93<Onderwerpen!$D$13),A93-9,IF(AND(A93>Onderwerpen!$D$13,A93<Onderwerpen!$D$14),A93-10,IF(AND(A93>Onderwerpen!$D$14,A93<Onderwerpen!$D$15),A93-11,IF(AND(A93>Onderwerpen!$D$15,A93<Onderwerpen!$D$16),A93-12,IF(AND(A93>Onderwerpen!$D$16,A93<Onderwerpen!$D$17),A93-13,IF(AND(A93>Onderwerpen!$D$17,A93<Onderwerpen!$D$18),A93-14,IF(AND(A93>Onderwerpen!$D$18,A93<Onderwerpen!$D$19),A93-15,IF(AND(A93>Onderwerpen!$D$19,A93<Onderwerpen!$D$20),A93-16,IF(AND(A93>Onderwerpen!$D$20,A93<Onderwerpen!$D$21),A93-17,IF(AND(A93>Onderwerpen!$D$21,A93<Onderwerpen!$D$22),A93-18,IF(A93>Onderwerpen!$D$22,A93-19,"X"))))))))))))))))))))),"")))))))))))))))))))) -> 77 | D93: =IF(B93="",""&C93,LEFT(B93, FIND(" ",B93)-1) & "."&COUNTIF($B$8:B93,B93)) -> 9.5
A94: =IFERROR(IF(A93=Onderwerpen!$C$23+19,"",A93+1),"") -> 86 | B94: =IF(C94<=Onderwerpen!$C$4,Onderwerpen!$A$4,IF(C94<=Onderwerpen!$C$5,Onderwerpen!$A$5,IF(C94<=Onderwerpen!$C$6,Onderwerpen!$A$6,IF(C94<=Onderwerpen!$C$7,Onderwerpen!$A$7,IF(C94<=Onderwerpen!$C$8,Onderwerpen!$A$8,IF(C94<=Onderwerpen!$C$9,Onderwerpen!$A$9,IF(C94<=Onderwerpen!C$10,Onderwerpen!$A$10,IF(C94<=Onderwerpen!C$11,Onderwerpen!$A$11,IF(C94<=Onderwerpen!C$12,Onderwerpen!$A$12,IF(C94<=Onderwerpen!C$13,Onderwerpen!$A$13,IF(C94<=Onderwerpen!$C$14,Onderwerpen!$A$14,IF(C94<=Onderwerpen!$C$15,Onderwerpen!$A$15,IF(C94<=Onderwerpen!$C$16,Onderwerpen!$A$16,IF(C94<=Onderwerpen!$C$17,Onderwerpen!$A$17,IF(C94<=Onderwerpen!$C$18,Onderwerpen!$A$18,IF(C94<=Onderwerpen!$C$19,Onderwerpen!$A$19,IF(C94<=Onderwerpen!$C$20,Onderwerpen!$A$20,IF(C94<=Onderwerpen!$C$21,Onderwerpen!$A$21,IF(C94<=Onderwerpen!$C$22,Onderwerpen!$A$22,IF(C94<=Onderwerpen!$C$23,Onderwerpen!$A$22,"")))))))))))))))))))) -> 9 Brand en noodplan | C94: =IF(Onderwerpen!$B$4+1=A94,Onderwerpen!$A$5,IF(SUM(Onderwerpen!$B$4:$B$5)+2=A94,Onderwerpen!$A$6,IF(SUM(Onderwerpen!$B$4:$B$6)+3=A94,Onderwerpen!$A$7,IF(SUM(Onderwerpen!$B$4:$B$7)+4=A94,Onderwerpen!$A$8,IF(SUM(Onderwerpen!$B$4:$B$8)+5=A94,Onderwerpen!$A$9,IF(SUM(Onderwerpen!$B$4:$B$9)+6=A94,Onderwerpen!$A$10,IF(SUM(Onderwerpen!$B$4:$B$10)+7=A94,Onderwerpen!$A$11,IF(SUM(Onderwerpen!$B$4:$B$11)+8=A94,Onderwerpen!$A$12,IF(SUM(Onderwerpen!$B$4:$B$12)+9=A94,Onderwerpen!$A$13,IF(SUM(Onderwerpen!$B$4:$B$13)+10=A94,Onderwerpen!$A$14,IF(SUM(Onderwerpen!$B$4:$B$14)+11=A94,Onderwerpen!$A$15,IF(SUM(Onderwerpen!$B$4:$B$15)+12=A94,Onderwerpen!$A$16,IF(SUM(Onderwerpen!$B$4:$B$16)+13=A94,Onderwerpen!$A$17,IF(SUM(Onderwerpen!$B$4:$B$17)+14=A94,Onderwerpen!$A$18,IF(SUM(Onderwerpen!$B$4:$B$18)+15=A94,Onderwerpen!$A$19,IF(SUM(Onderwerpen!$B$4:$B$19)+16=A94,Onderwerpen!$A$20,IF(SUM(Onderwerpen!$B$4:$B$20)+17=A94,Onderwerpen!$A$21,IF(SUM(Onderwerpen!$B$4:$B$21)+18=A94,Onderwerpen!$A$22,IF(SUM(Onderwerpen!$B$4:$B$22)+19=A94,Onderwerpen!$A$23,IFERROR((IF(A94<Onderwerpen!$D$4,A94,IF(AND(A94>Onderwerpen!$D$4,A94<Onderwerpen!$D$5),A94-1,IF(AND(A94>Onderwerpen!$D$5,A94<Onderwerpen!$D$6),A94-2,IF(AND(A94>Onderwerpen!$D$6,A94<Onderwerpen!$D$7),A94-3,IF(AND(A94>Onderwerpen!$D$7,A94<Onderwerpen!$D$8),A94-4,IF(AND(A94>Onderwerpen!$D$8,A94<Onderwerpen!$D$9),A94-5,IF(AND(A94>Onderwerpen!$D$9,A94<Onderwerpen!$D$10),A94-6,IF(AND(A94>Onderwerpen!$D$10,A94<Onderwerpen!$D$11),A94-7,IF(AND(A94>Onderwerpen!$D$11,A94<Onderwerpen!$D$12),A94-8,IF(AND(A94>Onderwerpen!$D$12,A94<Onderwerpen!$D$13),A94-9,IF(AND(A94>Onderwerpen!$D$13,A94<Onderwerpen!$D$14),A94-10,IF(AND(A94>Onderwerpen!$D$14,A94<Onderwerpen!$D$15),A94-11,IF(AND(A94>Onderwerpen!$D$15,A94<Onderwerpen!$D$16),A94-12,IF(AND(A94>Onderwerpen!$D$16,A94<Onderwerpen!$D$17),A94-13,IF(AND(A94>Onderwerpen!$D$17,A94<Onderwerpen!$D$18),A94-14,IF(AND(A94>Onderwerpen!$D$18,A94<Onderwerpen!$D$19),A94-15,IF(AND(A94>Onderwerpen!$D$19,A94<Onderwerpen!$D$20),A94-16,IF(AND(A94>Onderwerpen!$D$20,A94<Onderwerpen!$D$21),A94-17,IF(AND(A94>Onderwerpen!$D$21,A94<Onderwerpen!$D$22),A94-18,IF(A94>Onderwerpen!$D$22,A94-19,"X"))))))))))))))))))))),"")))))))))))))))))))) -> 78 | D94: =IF(B94="",""&C94,LEFT(B94, FIND(" ",B94)-1) & "."&COUNTIF($B$8:B94,B94)) -> 9.6
A95: =IFERROR(IF(A94=Onderwerpen!$C$23+19,"",A94+1),"") -> 87 | B95: =IF(C95<=Onderwerpen!$C$4,Onderwerpen!$A$4,IF(C95<=Onderwerpen!$C$5,Onderwerpen!$A$5,IF(C95<=Onderwerpen!$C$6,Onderwerpen!$A$6,IF(C95<=Onderwerpen!$C$7,Onderwerpen!$A$7,IF(C95<=Onderwerpen!$C$8,Onderwerpen!$A$8,IF(C95<=Onderwerpen!$C$9,Onderwerpen!$A$9,IF(C95<=Onderwerpen!C$10,Onderwerpen!$A$10,IF(C95<=Onderwerpen!C$11,Onderwerpen!$A$11,IF(C95<=Onderwerpen!C$12,Onderwerpen!$A$12,IF(C95<=Onderwerpen!C$13,Onderwerpen!$A$13,IF(C95<=Onderwerpen!$C$14,Onderwerpen!$A$14,IF(C95<=Onderwerpen!$C$15,Onderwerpen!$A$15,IF(C95<=Onderwerpen!$C$16,Onderwerpen!$A$16,IF(C95<=Onderwerpen!$C$17,Onderwerpen!$A$17,IF(C95<=Onderwerpen!$C$18,Onderwerpen!$A$18,IF(C95<=Onderwerpen!$C$19,Onderwerpen!$A$19,IF(C95<=Onderwerpen!$C$20,Onderwerpen!$A$20,IF(C95<=Onderwerpen!$C$21,Onderwerpen!$A$21,IF(C95<=Onderwerpen!$C$22,Onderwerpen!$A$22,IF(C95<=Onderwerpen!$C$23,Onderwerpen!$A$22,"")))))))))))))))))))) -> 9 Brand en noodplan | C95: =IF(Onderwerpen!$B$4+1=A95,Onderwerpen!$A$5,IF(SUM(Onderwerpen!$B$4:$B$5)+2=A95,Onderwerpen!$A$6,IF(SUM(Onderwerpen!$B$4:$B$6)+3=A95,Onderwerpen!$A$7,IF(SUM(Onderwerpen!$B$4:$B$7)+4=A95,Onderwerpen!$A$8,IF(SUM(Onderwerpen!$B$4:$B$8)+5=A95,Onderwerpen!$A$9,IF(SUM(Onderwerpen!$B$4:$B$9)+6=A95,Onderwerpen!$A$10,IF(SUM(Onderwerpen!$B$4:$B$10)+7=A95,Onderwerpen!$A$11,IF(SUM(Onderwerpen!$B$4:$B$11)+8=A95,Onderwerpen!$A$12,IF(SUM(Onderwerpen!$B$4:$B$12)+9=A95,Onderwerpen!$A$13,IF(SUM(Onderwerpen!$B$4:$B$13)+10=A95,Onderwerpen!$A$14,IF(SUM(Onderwerpen!$B$4:$B$14)+11=A95,Onderwerpen!$A$15,IF(SUM(Onderwerpen!$B$4:$B$15)+12=A95,Onderwerpen!$A$16,IF(SUM(Onderwerpen!$B$4:$B$16)+13=A95,Onderwerpen!$A$17,IF(SUM(Onderwerpen!$B$4:$B$17)+14=A95,Onderwerpen!$A$18,IF(SUM(Onderwerpen!$B$4:$B$18)+15=A95,Onderwerpen!$A$19,IF(SUM(Onderwerpen!$B$4:$B$19)+16=A95,Onderwerpen!$A$20,IF(SUM(Onderwerpen!$B$4:$B$20)+17=A95,Onderwerpen!$A$21,IF(SUM(Onderwerpen!$B$4:$B$21)+18=A95,Onderwerpen!$A$22,IF(SUM(Onderwerpen!$B$4:$B$22)+19=A95,Onderwerpen!$A$23,IFERROR((IF(A95<Onderwerpen!$D$4,A95,IF(AND(A95>Onderwerpen!$D$4,A95<Onderwerpen!$D$5),A95-1,IF(AND(A95>Onderwerpen!$D$5,A95<Onderwerpen!$D$6),A95-2,IF(AND(A95>Onderwerpen!$D$6,A95<Onderwerpen!$D$7),A95-3,IF(AND(A95>Onderwerpen!$D$7,A95<Onderwerpen!$D$8),A95-4,IF(AND(A95>Onderwerpen!$D$8,A95<Onderwerpen!$D$9),A95-5,IF(AND(A95>Onderwerpen!$D$9,A95<Onderwerpen!$D$10),A95-6,IF(AND(A95>Onderwerpen!$D$10,A95<Onderwerpen!$D$11),A95-7,IF(AND(A95>Onderwerpen!$D$11,A95<Onderwerpen!$D$12),A95-8,IF(AND(A95>Onderwerpen!$D$12,A95<Onderwerpen!$D$13),A95-9,IF(AND(A95>Onderwerpen!$D$13,A95<Onderwerpen!$D$14),A95-10,IF(AND(A95>Onderwerpen!$D$14,A95<Onderwerpen!$D$15),A95-11,IF(AND(A95>Onderwerpen!$D$15,A95<Onderwerpen!$D$16),A95-12,IF(AND(A95>Onderwerpen!$D$16,A95<Onderwerpen!$D$17),A95-13,IF(AND(A95>Onderwerpen!$D$17,A95<Onderwerpen!$D$18),A95-14,IF(AND(A95>Onderwerpen!$D$18,A95<Onderwerpen!$D$19),A95-15,IF(AND(A95>Onderwerpen!$D$19,A95<Onderwerpen!$D$20),A95-16,IF(AND(A95>Onderwerpen!$D$20,A95<Onderwerpen!$D$21),A95-17,IF(AND(A95>Onderwerpen!$D$21,A95<Onderwerpen!$D$22),A95-18,IF(A95>Onderwerpen!$D$22,A95-19,"X"))))))))))))))))))))),"")))))))))))))))))))) -> 79 | D95: =IF(B95="",""&C95,LEFT(B95, FIND(" ",B95)-1) & "."&COUNTIF($B$8:B95,B95)) -> 9.7
A96: =IFERROR(IF(A95=Onderwerpen!$C$23+19,"",A95+1),"") -> 88 | B96: =IF(C96<=Onderwerpen!$C$4,Onderwerpen!$A$4,IF(C96<=Onderwerpen!$C$5,Onderwerpen!$A$5,IF(C96<=Onderwerpen!$C$6,Onderwerpen!$A$6,IF(C96<=Onderwerpen!$C$7,Onderwerpen!$A$7,IF(C96<=Onderwerpen!$C$8,Onderwerpen!$A$8,IF(C96<=Onderwerpen!$C$9,Onderwerpen!$A$9,IF(C96<=Onderwerpen!C$10,Onderwerpen!$A$10,IF(C96<=Onderwerpen!C$11,Onderwerpen!$A$11,IF(C96<=Onderwerpen!C$12,Onderwerpen!$A$12,IF(C96<=Onderwerpen!C$13,Onderwerpen!$A$13,IF(C96<=Onderwerpen!$C$14,Onderwerpen!$A$14,IF(C96<=Onderwerpen!$C$15,Onderwerpen!$A$15,IF(C96<=Onderwerpen!$C$16,Onderwerpen!$A$16,IF(C96<=Onderwerpen!$C$17,Onderwerpen!$A$17,IF(C96<=Onderwerpen!$C$18,Onderwerpen!$A$18,IF(C96<=Onderwerpen!$C$19,Onderwerpen!$A$19,IF(C96<=Onderwerpen!$C$20,Onderwerpen!$A$20,IF(C96<=Onderwerpen!$C$21,Onderwerpen!$A$21,IF(C96<=Onderwerpen!$C$22,Onderwerpen!$A$22,IF(C96<=Onderwerpen!$C$23,Onderwerpen!$A$22,"")))))))))))))))))))) -> 9 Brand en noodplan | C96: =IF(Onderwerpen!$B$4+1=A96,Onderwerpen!$A$5,IF(SUM(Onderwerpen!$B$4:$B$5)+2=A96,Onderwerpen!$A$6,IF(SUM(Onderwerpen!$B$4:$B$6)+3=A96,Onderwerpen!$A$7,IF(SUM(Onderwerpen!$B$4:$B$7)+4=A96,Onderwerpen!$A$8,IF(SUM(Onderwerpen!$B$4:$B$8)+5=A96,Onderwerpen!$A$9,IF(SUM(Onderwerpen!$B$4:$B$9)+6=A96,Onderwerpen!$A$10,IF(SUM(Onderwerpen!$B$4:$B$10)+7=A96,Onderwerpen!$A$11,IF(SUM(Onderwerpen!$B$4:$B$11)+8=A96,Onderwerpen!$A$12,IF(SUM(Onderwerpen!$B$4:$B$12)+9=A96,Onderwerpen!$A$13,IF(SUM(Onderwerpen!$B$4:$B$13)+10=A96,Onderwerpen!$A$14,IF(SUM(Onderwerpen!$B$4:$B$14)+11=A96,Onderwerpen!$A$15,IF(SUM(Onderwerpen!$B$4:$B$15)+12=A96,Onderwerpen!$A$16,IF(SUM(Onderwerpen!$B$4:$B$16)+13=A96,Onderwerpen!$A$17,IF(SUM(Onderwerpen!$B$4:$B$17)+14=A96,Onderwerpen!$A$18,IF(SUM(Onderwerpen!$B$4:$B$18)+15=A96,Onderwerpen!$A$19,IF(SUM(Onderwerpen!$B$4:$B$19)+16=A96,Onderwerpen!$A$20,IF(SUM(Onderwerpen!$B$4:$B$20)+17=A96,Onderwerpen!$A$21,IF(SUM(Onderwerpen!$B$4:$B$21)+18=A96,Onderwerpen!$A$22,IF(SUM(Onderwerpen!$B$4:$B$22)+19=A96,Onderwerpen!$A$23,IFERROR((IF(A96<Onderwerpen!$D$4,A96,IF(AND(A96>Onderwerpen!$D$4,A96<Onderwerpen!$D$5),A96-1,IF(AND(A96>Onderwerpen!$D$5,A96<Onderwerpen!$D$6),A96-2,IF(AND(A96>Onderwerpen!$D$6,A96<Onderwerpen!$D$7),A96-3,IF(AND(A96>Onderwerpen!$D$7,A96<Onderwerpen!$D$8),A96-4,IF(AND(A96>Onderwerpen!$D$8,A96<Onderwerpen!$D$9),A96-5,IF(AND(A96>Onderwerpen!$D$9,A96<Onderwerpen!$D$10),A96-6,IF(AND(A96>Onderwerpen!$D$10,A96<Onderwerpen!$D$11),A96-7,IF(AND(A96>Onderwerpen!$D$11,A96<Onderwerpen!$D$12),A96-8,IF(AND(A96>Onderwerpen!$D$12,A96<Onderwerpen!$D$13),A96-9,IF(AND(A96>Onderwerpen!$D$13,A96<Onderwerpen!$D$14),A96-10,IF(AND(A96>Onderwerpen!$D$14,A96<Onderwerpen!$D$15),A96-11,IF(AND(A96>Onderwerpen!$D$15,A96<Onderwerpen!$D$16),A96-12,IF(AND(A96>Onderwerpen!$D$16,A96<Onderwerpen!$D$17),A96-13,IF(AND(A96>Onderwerpen!$D$17,A96<Onderwerpen!$D$18),A96-14,IF(AND(A96>Onderwerpen!$D$18,A96<Onderwerpen!$D$19),A96-15,IF(AND(A96>Onderwerpen!$D$19,A96<Onderwerpen!$D$20),A96-16,IF(AND(A96>Onderwerpen!$D$20,A96<Onderwerpen!$D$21),A96-17,IF(AND(A96>Onderwerpen!$D$21,A96<Onderwerpen!$D$22),A96-18,IF(A96>Onderwerpen!$D$22,A96-19,"X"))))))))))))))))))))),"")))))))))))))))))))) -> 80 | D96: =IF(B96="",""&C96,LEFT(B96, FIND(" ",B96)-1) & "."&COUNTIF($B$8:B96,B96)) -> 9.8
A97: =IFERROR(IF(A96=Onderwerpen!$C$23+19,"",A96+1),"") -> 89 | B97: =IF(C97<=Onderwerpen!$C$4,Onderwerpen!$A$4,IF(C97<=Onderwerpen!$C$5,Onderwerpen!$A$5,IF(C97<=Onderwerpen!$C$6,Onderwerpen!$A$6,IF(C97<=Onderwerpen!$C$7,Onderwerpen!$A$7,IF(C97<=Onderwerpen!$C$8,Onderwerpen!$A$8,IF(C97<=Onderwerpen!$C$9,Onderwerpen!$A$9,IF(C97<=Onderwerpen!C$10,Onderwerpen!$A$10,IF(C97<=Onderwerpen!C$11,Onderwerpen!$A$11,IF(C97<=Onderwerpen!C$12,Onderwerpen!$A$12,IF(C97<=Onderwerpen!C$13,Onderwerpen!$A$13,IF(C97<=Onderwerpen!$C$14,Onderwerpen!$A$14,IF(C97<=Onderwerpen!$C$15,Onderwerpen!$A$15,IF(C97<=Onderwerpen!$C$16,Onderwerpen!$A$16,IF(C97<=Onderwerpen!$C$17,Onderwerpen!$A$17,IF(C97<=Onderwerpen!$C$18,Onderwerpen!$A$18,IF(C97<=Onderwerpen!$C$19,Onderwerpen!$A$19,IF(C97<=Onderwerpen!$C$20,Onderwerpen!$A$20,IF(C97<=Onderwerpen!$C$21,Onderwerpen!$A$21,IF(C97<=Onderwerpen!$C$22,Onderwerpen!$A$22,IF(C97<=Onderwerpen!$C$23,Onderwerpen!$A$22,"")))))))))))))))))))) -> 9 Brand en noodplan | C97: =IF(Onderwerpen!$B$4+1=A97,Onderwerpen!$A$5,IF(SUM(Onderwerpen!$B$4:$B$5)+2=A97,Onderwerpen!$A$6,IF(SUM(Onderwerpen!$B$4:$B$6)+3=A97,Onderwerpen!$A$7,IF(SUM(Onderwerpen!$B$4:$B$7)+4=A97,Onderwerpen!$A$8,IF(SUM(Onderwerpen!$B$4:$B$8)+5=A97,Onderwerpen!$A$9,IF(SUM(Onderwerpen!$B$4:$B$9)+6=A97,Onderwerpen!$A$10,IF(SUM(Onderwerpen!$B$4:$B$10)+7=A97,Onderwerpen!$A$11,IF(SUM(Onderwerpen!$B$4:$B$11)+8=A97,Onderwerpen!$A$12,IF(SUM(Onderwerpen!$B$4:$B$12)+9=A97,Onderwerpen!$A$13,IF(SUM(Onderwerpen!$B$4:$B$13)+10=A97,Onderwerpen!$A$14,IF(SUM(Onderwerpen!$B$4:$B$14)+11=A97,Onderwerpen!$A$15,IF(SUM(Onderwerpen!$B$4:$B$15)+12=A97,Onderwerpen!$A$16,IF(SUM(Onderwerpen!$B$4:$B$16)+13=A97,Onderwerpen!$A$17,IF(SUM(Onderwerpen!$B$4:$B$17)+14=A97,Onderwerpen!$A$18,IF(SUM(Onderwerpen!$B$4:$B$18)+15=A97,Onderwerpen!$A$19,IF(SUM(Onderwerpen!$B$4:$B$19)+16=A97,Onderwerpen!$A$20,IF(SUM(Onderwerpen!$B$4:$B$20)+17=A97,Onderwerpen!$A$21,IF(SUM(Onderwerpen!$B$4:$B$21)+18=A97,Onderwerpen!$A$22,IF(SUM(Onderwerpen!$B$4:$B$22)+19=A97,Onderwerpen!$A$23,IFERROR((IF(A97<Onderwerpen!$D$4,A97,IF(AND(A97>Onderwerpen!$D$4,A97<Onderwerpen!$D$5),A97-1,IF(AND(A97>Onderwerpen!$D$5,A97<Onderwerpen!$D$6),A97-2,IF(AND(A97>Onderwerpen!$D$6,A97<Onderwerpen!$D$7),A97-3,IF(AND(A97>Onderwerpen!$D$7,A97<Onderwerpen!$D$8),A97-4,IF(AND(A97>Onderwerpen!$D$8,A97<Onderwerpen!$D$9),A97-5,IF(AND(A97>Onderwerpen!$D$9,A97<Onderwerpen!$D$10),A97-6,IF(AND(A97>Onderwerpen!$D$10,A97<Onderwerpen!$D$11),A97-7,IF(AND(A97>Onderwerpen!$D$11,A97<Onderwerpen!$D$12),A97-8,IF(AND(A97>Onderwerpen!$D$12,A97<Onderwerpen!$D$13),A97-9,IF(AND(A97>Onderwerpen!$D$13,A97<Onderwerpen!$D$14),A97-10,IF(AND(A97>Onderwerpen!$D$14,A97<Onderwerpen!$D$15),A97-11,IF(AND(A97>Onderwerpen!$D$15,A97<Onderwerpen!$D$16),A97-12,IF(AND(A97>Onderwerpen!$D$16,A97<Onderwerpen!$D$17),A97-13,IF(AND(A97>Onderwerpen!$D$17,A97<Onderwerpen!$D$18),A97-14,IF(AND(A97>Onderwerpen!$D$18,A97<Onderwerpen!$D$19),A97-15,IF(AND(A97>Onderwerpen!$D$19,A97<Onderwerpen!$D$20),A97-16,IF(AND(A97>Onderwerpen!$D$20,A97<Onderwerpen!$D$21),A97-17,IF(AND(A97>Onderwerpen!$D$21,A97<Onderwerpen!$D$22),A97-18,IF(A97>Onderwerpen!$D$22,A97-19,"X"))))))))))))))))))))),"")))))))))))))))))))) -> 81 | D97: =IF(B97="",""&C97,LEFT(B97, FIND(" ",B97)-1) & "."&COUNTIF($B$8:B97,B97)) -> 9.9
